{"text_format":"1","workbook":"xlsx","n_sheets":1,"sheets":["GERAL"],"not_rendered":{"charts":0,"images":0,"macros":1,"external_links":0,"defined_names":18,"comments":0,"pivot_tables":0},"unopened":[],"bounds":{"document_bytes":16777216,"sheet_cells":100000,"rows_first":2000,"rows_last":500,"rows_between":2000,"halvings":0,"cell_chars":16384,"cell_head_chars":4096},"cells_cut":0,"cells_raw":0,"read":"whole","date_system":"1900"}

{"sheet":"GERAL","index":0,"n_rows":1048,"n_cols":14,"rows_kept":1048,"cut":false,"hidden":false,"merged":[]}
["NOME DO EVENTO/AÇÃO DE DESENVOLVIMENTO","RAZÃO SOCIAL DA EMPRESA/ INSTITUIÇÃO PROMOTORA","CNPJ","CH","DATA INICIAL","DATA FINAL","NO PAÍS/NO EXTERIOR","SERVIDOR","TIPO DE DESPESA","VALOR DA DESPESA EM R$","VALOR DE DIÁRIAS E PASSAGENS","REMUNERAÇÃO RECEBIDA DURANTE O AFASTAMENTO EM R$","VALOR PER CAPITA","NECESSIDADE DE DESENVOLVIMENTO DESCRITA NO PDP"]
["CURSOS: 1)RELAÇÕES INTERNACIONAIS - TEORIA E HISTÓRIA; 2)GESTÃO PESSOAL - BASE DA LIDERANÇA; 3)FUNDAMENTOS DA INTEGRAÇÃO REGIONAL - O MERCOSUL; E 4)FORMAÇÃO DE FACILITADORES DE APRENDIZAGEM","1)INSTITUTO LEGISLATIVO BRASILEIRO/SENADO FEDERAL; 2)FUNDACAO ESCOLA NACIONAL DE ADMINISTRACAO PUBLICA - ENAP; 3)FUNDACAO ESCOLA NACIONAL DE ADMINISTRACAO PUBLICA - ENAP; E 4)FUNDACAO ESCOLA NACIONAL DE ADMINISTRACAO PUBLICA - ENAP","1)00.530.279/0001-15; 2)00.627.612/0001-09; 3)00.530.279/0001-15; E 4)00.627.612/0001-09","1) 60; 2) 50; 3) 40; E 4) 40","2019-12-01","2020-02-28","NO PAÍS","GABRIELA COSTA SALAZAR RENNER","GRATUITO",0,0,28478.58,{"$f":"SUM(J2:L2)","v":28478.58},"TEMA DEFINIDO NO GUIA DE CONHECIMENTOS DA ANTT - EIXO TEMÁTICO/GRUPO DE CONHECIMENTO: REGULAÇÃO/DESENVOLVIMENTO DA REGULAÇÃO; DESENVOLVIMENTO INSTITUCIONAL/GESTÃO DE PESSOAS; "]
["PCI 1º SEMESTRE/2020 - ESPANHOL","EU APRENDO ESPANHOL/AULAS PARTICULARES DE ESPANHOL “EU APRENDO ESPANHOL”","27.652.880/0001-37",36,"2020-01-01","2020-06-30","NO PAÍS","NELICIA MURARI BORGES","RESSARCIMENTO",1185,0,"NÃO SE APLICA",1185,"IDIOMAS"]
["PCI 1º SEMESTRE/2020 - INGLÊS","CAMBLY INC","-",38,"2020-01-01","2020-07-15","NO PAÍS","ELISA GUEDES GUERRA                    ","RESSARCIMENTO",880.04,0,"NÃO SE APLICA",880.04,"IDIOMAS"]
["PCI 1º SEMESTRE/2020 - INGLÊS","ENGLISH LIVE/ENGLISHTOWN DO BRASIL INTERMEDIAÇÕES LTDA","04.475.124/0001-84",60,"2020-01-01","2020-07-15","NO PAÍS","FRANCISCO ALEXANDRE DE SALES NETO       ","RESSARCIMENTO",456,0,"NÃO SE APLICA",456,"IDIOMAS"]
["PCI 1º SEMESTRE/2020 - INGLÊS","NATURAL ENGLISH INSTITUTO DE IDIOMAS DANFE\nLTDA - ME","09.291.643/0001-06",35,"2020-01-04","2020-06-27","NO PAÍS","MARIANA LOMBARDO DE LIMA","RESSARCIMENTO",1350,0,"NÃO SE APLICA",1350,"IDIOMAS"]
["PCI 1º SEMESTRE/2020 - INGLÊS","ENGLISH LIVE/ENGLISHTOWN DO BRASIL INTERMEDIAÇÕES LTDA","04.475.124/0001-84",36,"2020-01-07","2020-07-15","NO PAÍS","DANIEL CHEDID PEREIRA JORDAO RAMOS        ","RESSARCIMENTO",480,0,"NÃO SE APLICA",480,"IDIOMAS"]
["CURSO  - CURSO SOBRE ADMINISTRAÇÃO PÚBLICA","ENSINO NACIONAL LTDA","20.357.386/0001-09",80,"2020-01-19","2020-02-02","NO PAÍS","ALAN OLIVEIRA DOS SANTOS","GRATUITO",0,0,166.51,{"$f":"SUM(J8:L8)","v":166.51},"TEMA DEFINIDO NO GUIA DE CONHECIMENTOS DA ANTT - EIXO TEMÁTICO/GRUPO DE CONHECIMENTO: REGULAÇÃO/DESENVOLVIMENTO DA REGULAÇÃO"]
["CURSO  - ATUALIZAÇÃO JURÍDICA - DIREITO DIGITAL CONTEMPORÂNEO","UNIEDUCAR INTELIGÊNCIA EDUCACIONAL LTDA","05.569.970/0001-26",140,"2020-01-19","2020-02-17","NO PAÍS","ALOISIO GOMES CAIXETA","GRATUITO",0,0,21036.46,{"$f":"SUM(J9:L9)","v":21036.46},"TEMA DEFINIDO NO GUIA DE CONHECIMENTOS DA ANTT - EIXO TEMÁTICO/GRUPO DE CONHECIMENTO: GOVERNANÇA CORPORATIVA/ATOS, PROCESSOS E PROCEDIMENTOS ADMINISTRATIVOS"]
["CURSOS: 1) ADMINISTRANDO CONFLITOS; 2) INTRODUÇÃO À COMUNICAÇÃO NÃO VIOLENTA; 3) CURSO GESTÃO DE CONFLITOS: ADMINISTRANDO CRISES CORPORATIVAS","1) WR EDUCACIONAL LTDA ME; 2) UDEMY, INC; 3) UNIEDUCAR INTELIGÊNCIA EDUCACIONAL LTDA","1) 26.165.960/0001-03; 2) 29.030.862/0001-49; 3) 05.569.970/0001-26","1) 160; 2) 2; 3) 60","2020-01-19","2020-02-17","NO PAÍS","ANA PATRÍCIA DA SILVA DE BRITO ","GRATUITO",0,0,19564.36,{"$f":"SUM(J10:L10)","v":19564.36},"TEMA DEFINIDO NO GUIA DE CONHECIMENTOS DA ANTT - EIXO TEMÁTICO/GRUPO DE CONHECIMENTO: DESENVOLVIMENTO INSTITUCIONAL/GESTÃO DE PESSOAS"]
["CURSO ADMINISTRANDO RELACIONAMENTOS, DESENVOLVENDO A LIDERANÇA E TRABALHANDO A MOTIVAÇÃO","UNIEDUCAR INTELIGÊNCIA EDUCACIONAL LTDA","05.569.970/0001-26",140,"2020-01-19","2020-02-17","NO PAÍS","SERGIO STANCIOLI COSTA COUTO","GRATUITO",0,0,19541.88,{"$f":"SUM(J11:L11)","v":19541.88},"TEMA DEFINIDO NO GUIA DE CONHECIMENTOS DA ANTT - EIXO TEMÁTICO/GRUPO DE CONHECIMENTO: DESENVOLVIMENTO INSTITUCIONAL/GESTÃO DE PESSOAS"]
["INTERNATIONAL BUSINESS PROGRAMME","ESCOLA DE ALTA DIRECCION Y ADMINISTRACION - EADA","NÃO HÁ",60,"2020-01-20","2020-01-31","NO EXTERIOR","CYNTHIA RUAS VIEIRA BRAYER","GRATUITO",0,0,7219.34,{"$f":"SUM(J12:L12)","v":7219.34},"INSTRUMENTOS DE NEGOCIAÇÃO/ AMPLIAR CONHECIMENTO E HABILIDADES NO USO DE TÉCNICA DE APOIO À TOMADA DE DECISÃO/MEDIAÇÃO DE CONFLITOS/ AMPLIAR E DESENVOLVER METODOLOGIAS QUE FACILITEM AS RELAÇÕES HUMANAS E COMPETÊNCIAS INTERPESSOAIS NO AMBIENTE DE TRABALHO/ DESENVOLVER COMPETÊNCIAS NA GESTÃO E LIDERANÇA DE EQUIPES/ ADQUIRIR CONHECIMENTO SOBRE OS MÉTODOS, SOLUÇÕES E MELHORES PRÁTICAS SOBRE GESTÃO DA INOVAÇÃO EM INSTITUIÇÕES PÚBLICAS"]
["PCI 1º SEMESTRE/2020 - INGLÊS","WIZARD/B & B EMPREENDIMENTOS E CURSOS DE IDIOMAS LTDA - ME","08.886.726/0001-85",35,"2020-01-20","2020-07-09","NO PAÍS","GIULLIANO RENATO MOLINERO","RESSARCIMENTO",828,0,"NÃO SE APLICA",828,"IDIOMAS"]
["PCI 1º SEMESTRE/2020 - INGLÊS","ENGLISH LIVE/ENGLISHTOWN DO BRASIL INTERMEDIAÇÕES LTDA","04.475.124/0001-84",500,"2020-01-21","2020-07-15","NO PAÍS","EDUARDO GUIMARAES ABATE","RESSARCIMENTO",516,0,"NÃO SE APLICA",516,"IDIOMAS"]
["PCI 1º SEMESTRE/2020 - INGLÊS","MINDS INSTITUTO EDUCACIONAL PARAÍSO/ INSTITUTO EDUCACIONAL PARAÍSO LTDA","15.537.606/0001-02",48,"2020-01-21","2020-07-15","NO PAÍS","MARINA EGUEZ RODRIGUES","RESSARCIMENTO",777,0,"NÃO SE APLICA",777,"IDIOMAS"]
["PCI 1º SEMESTRE/2020 - INGLÊS","PARK IDIOMAS/LDGC ESCOLA DE IDIOMAS LTDA","18.927.492/0001-20",24,"2020-01-23","2020-07-15","NO PAÍS","CAIO CESAR NASCIMENTO NOGUEIRA","RESSARCIMENTO",796.86,0,"NÃO SE APLICA",796.86,"IDIOMAS"]
["PCI 1º SEMESTRE/2020 - INGLÊS","PARK IDIOMAS/LDGC ESCOLA DE IDIOMAS LTDA","18.927.492/0001-20",40,"2020-01-25","2020-07-15","NO PAÍS","PAULO FABIO DA SILVA EUGENIO","RESSARCIMENTO",1350,0,"NÃO SE APLICA",1350,"IDIOMAS"]
["PCI 1º SEMESTRE/2020 - INGLÊS","BRASAS ENGLISH COURSE/ ENGLISH COMPANY ASSESSORIA LINGUISTICA LTDA - EPP","00.961.357/0001-36",59,"2020-01-28","2020-06-02","NO PAÍS","PAULO HENRIQUE DA SILVA COSTA","RESSARCIMENTO",1466.5,0,"NÃO SE APLICA",1466.5,"IDIOMAS"]
["CURSO  - ATUALIZAÇÃO JURÍDICA - DIREITO DA INFRAESTRUTURA","UNIEDUCAR INTELIGÊNCIA EDUCACIONAL LTDA","05.569.970/0001-26",80,"2020-02-03","2020-02-17","NO PAÍS","JOAO VICTOR DINIZ FERREIRA     ","GRATUITO",0,0,9024.17,{"$f":"SUM(J19:L19)","v":9024.17},"TEMA DEFINIDO NO GUIA DE CONHECIMENTOS DA ANTT - EIXO TEMÁTICO/GRUPO DE CONHECIMENTO: REGULAÇÃO/DESENVOLVIMENTO DA REGULAÇÃO"]
["CURSO DE LOGISTICA DE TRANSPORTES","ENSINO NACIONAL LTDA","20.357.386/0001-09",140,"2020-02-03","2020-03-03","NO PAÍS","HUGO FREITAS DE SOUSA","GRATUITO",0,0,9990.44,{"$f":"SUM(J20:L20)","v":9990.44},"TEMA DEFINIDO NO GUIA DE CONHECIMENTOS DA ANTT - EIXO TEMÁTICO/GRUPO DE CONHECIMENTO: DESENVOLVIMENTO INSTITUCIONAL/LOGÍSTICA"]
["CURSO FORMAÇÃO COMPLETA EM SCRUM - PLANEJAMENTO E GESTÃO ÁGIL DE PROJETOS","UNIEDUCAR INTELIGÊNCIA EDUCACIONAL LTDA","05.569.970/0001-26",140,"2020-02-03","2020-03-03","NO PAÍS","SYLVIA COTIAS VASCONCELLOS","SEM CUSTOS DE INSCRIÇÃO - GRATUITO",0,0,18048.34,18048.34,"TEMA DEFINIDO NO GUIA DE CONHECIMENTOS DA ANTT - EIXO TEMÁTICO/GRUPO DE CONHECIMENTO: DESENVOLVIMENTO INSTITUCIONAL/MODELOS DE GESTÃO"]
["PCI 1º SEMESTRE/2020 - INGLÊS","PARK IDIOMAS/LDGC ESCOLA DE IDIOMAS LTDA","18.927.492/0001-20",38,"2020-02-03","2020-06-29","NO PAÍS","CLAUDIO TIYOSHI MIURA              ","RESSARCIMENTO",1245.8,0,"NÃO SE APLICA",1245.8,"IDIOMAS"]
["PCI 1º SEMESTRE/2020 - INGLÊS","PARK IDIOMAS/LDGC ESCOLA DE IDIOMAS LTDA","18.927.492/0001-20",38,"2020-02-03","2020-06-29","NO PAÍS","CRISTIANE PACHECO LOURENCO","RESSARCIMENTO",1245.8,0,"NÃO SE APLICA",1245.8,"IDIOMAS"]
["PCI 1º SEMESTRE/2020 - INGLÊS","PARK IDIOMAS/LDGC ESCOLA DE IDIOMAS LTDA","18.927.492/0001-20",38,"2020-02-03","2020-06-29","NO PAÍS","LEILANE MORAIS ALCÂNTARA","RESSARCIMENTO",1245.8,0,"NÃO SE APLICA",1245.8,"IDIOMAS"]
["PCI 1º SEMESTRE/2020 - INGLÊS","PARK IDIOMAS/LDGC ESCOLA DE IDIOMAS LTDA","18.927.492/0001-20",38,"2020-02-03","2020-06-29","NO PAÍS","LUIS CARLOS DE OLIVEIRA TAQUES","RESSARCIMENTO",1245.8,0,"NÃO SE APLICA",1245.8,"IDIOMAS"]
["PCI 1º SEMESTRE/2020 - INGLÊS","CENTRO CULTURAL INTERNACIONAL/AGRICIA DA SILVA OLIVEIRA","33.021.673/0001-87",30,"2020-02-03","2020-07-15","NO PAÍS","MARIANA RODRIGUES BROCHADO","RESSARCIMENTO",1350,0,"NÃO SE APLICA",1350,"IDIOMAS"]
["SPRINT DE DIMENSIONAMENTO DA FORÇA DE TRABALHO - TURMA 1","MENSE DESENVOLVIMENTO HUMANO E ORGANIZAÇÃO LTDA","31.101.019/0001-58",40,"2020-02-05","2020-03-06","NO PAÍS","ALESSANDRO JUNIO DA SILVA","CONTRATAÇÃO",1055.56,0,1604.7,{"$f":"SUM(J27:L27)","v":2660.26},"ATUALIZAR CONHECIMENTOS NECESSÁRIOS À GESTÃO DA FORÇA DE TRABALHO"]
["SPRINT DE DIMENSIONAMENTO DA FORÇA DE TRABALHO - TURMA 1","MENSE DESENVOLVIMENTO HUMANO E ORGANIZAÇÃO LTDA","31.101.019/0001-58",40,"2020-02-05","2020-03-06","NO PAÍS","ANDERSON GOMES MONTEIRO","CONTRATAÇÃO",1055.56,0,1665.0733333333335,{"$f":"SUM(J28:L28)","v":2720.6333333333332},"ATUALIZAR CONHECIMENTOS NECESSÁRIOS À GESTÃO DA FORÇA DE TRABALHO"]
["SPRINT DE DIMENSIONAMENTO DA FORÇA DE TRABALHO - TURMA 1","MENSE DESENVOLVIMENTO HUMANO E ORGANIZAÇÃO LTDA","31.101.019/0001-58",40,"2020-02-05","2020-03-06","NO PAÍS","ANDRE RICARDO RODRIGUES","CONTRATAÇÃO",1055.56,0,1582.14,{"$f":"SUM(J29:L29)","v":2637.7},"ATUALIZAR CONHECIMENTOS NECESSÁRIOS À GESTÃO DA FORÇA DE TRABALHO"]
["SPRINT DE DIMENSIONAMENTO DA FORÇA DE TRABALHO - TURMA 1","MENSE DESENVOLVIMENTO HUMANO E ORGANIZAÇÃO LTDA","31.101.019/0001-58",40,"2020-02-05","2020-03-06","NO PAÍS","CLEIDES SILVA CAMPOS FONTENELE","CONTRATAÇÃO",1055.56,0,3100.79,{"$f":"SUM(J30:L30)","v":4156.3500000000004},"ATUALIZAR CONHECIMENTOS NECESSÁRIOS À GESTÃO DA FORÇA DE TRABALHO"]
["SPRINT DE DIMENSIONAMENTO DA FORÇA DE TRABALHO - TURMA 1","MENSE DESENVOLVIMENTO HUMANO E ORGANIZAÇÃO LTDA","31.101.019/0001-58",40,"2020-02-05","2020-03-06","NO PAÍS","DANIEL ANTONIO DA MOTA ARAUJO","CONTRATAÇÃO",1055.56,0,3100.79,{"$f":"SUM(J31:L31)","v":4156.3500000000004},"ATUALIZAR CONHECIMENTOS NECESSÁRIOS À GESTÃO DA FORÇA DE TRABALHO"]
["SPRINT DE DIMENSIONAMENTO DA FORÇA DE TRABALHO - TURMA 1","MENSE DESENVOLVIMENTO HUMANO E ORGANIZAÇÃO LTDA","31.101.019/0001-58",40,"2020-02-05","2020-03-06","NO PAÍS","DORENICE DE FATIMA ABRANCHES MONTEIRO VERLY","CONTRATAÇÃO",1055.56,0,1405.64,{"$f":"SUM(J32:L32)","v":2461.1999999999998},"ATUALIZAR CONHECIMENTOS NECESSÁRIOS À GESTÃO DA FORÇA DE TRABALHO"]
["SPRINT DE DIMENSIONAMENTO DA FORÇA DE TRABALHO - TURMA 1","MENSE DESENVOLVIMENTO HUMANO E ORGANIZAÇÃO LTDA","31.101.019/0001-58",40,"2020-02-05","2020-03-06","NO PAÍS","EVERALDO VALENGA ALVES","CONTRATAÇÃO",1055.56,0,2924.95,{"$f":"SUM(J33:L33)","v":3980.5099999999998},"ATUALIZAR CONHECIMENTOS NECESSÁRIOS À GESTÃO DA FORÇA DE TRABALHO"]
["SPRINT DE DIMENSIONAMENTO DA FORÇA DE TRABALHO - TURMA 1","MENSE DESENVOLVIMENTO HUMANO E ORGANIZAÇÃO LTDA","31.101.019/0001-58",40,"2020-02-05","2020-03-06","NO PAÍS","FERNANDO ANDRADE SOLLERO","CONTRATAÇÃO",1055.56,0,3174.89,{"$f":"SUM(J34:L34)","v":4230.45},"ATUALIZAR CONHECIMENTOS NECESSÁRIOS À GESTÃO DA FORÇA DE TRABALHO"]
["SPRINT DE DIMENSIONAMENTO DA FORÇA DE TRABALHO - TURMA 1","MENSE DESENVOLVIMENTO HUMANO E ORGANIZAÇÃO LTDA","31.101.019/0001-58",40,"2020-02-05","2020-03-06","NO PAÍS","GERALDO RODRIGUES DA SILVA JUNIOR","CONTRATAÇÃO",1055.56,0,3256.9800000000005,{"$f":"SUM(J35:L35)","v":4312.5400000000009},"ATUALIZAR CONHECIMENTOS NECESSÁRIOS À GESTÃO DA FORÇA DE TRABALHO"]
["SPRINT DE DIMENSIONAMENTO DA FORÇA DE TRABALHO - TURMA 1","MENSE DESENVOLVIMENTO HUMANO E ORGANIZAÇÃO LTDA","31.101.019/0001-58",40,"2020-02-05","2020-03-06","NO PAÍS","GUILHERME ALMEIDA PEREIRA            ","CONTRATAÇÃO",1055.56,0,1405.64,{"$f":"SUM(J36:L36)","v":2461.1999999999998},"ATUALIZAR CONHECIMENTOS NECESSÁRIOS À GESTÃO DA FORÇA DE TRABALHO"]
["SPRINT DE DIMENSIONAMENTO DA FORÇA DE TRABALHO - TURMA 1","MENSE DESENVOLVIMENTO HUMANO E ORGANIZAÇÃO LTDA","31.101.019/0001-58",40,"2020-02-05","2020-03-06","NO PAÍS","GUSTAVO MODÉ LUNA","CONTRATAÇÃO",1055.55,0,1405.64,{"$f":"SUM(J37:L37)","v":2461.19},"ATUALIZAR CONHECIMENTOS NECESSÁRIOS À GESTÃO DA FORÇA DE TRABALHO"]
["SPRINT DE DIMENSIONAMENTO DA FORÇA DE TRABALHO - TURMA 1","MENSE DESENVOLVIMENTO HUMANO E ORGANIZAÇÃO LTDA","31.101.019/0001-58",40,"2020-02-05","2020-03-06","NO PAÍS","ISRAEL SOARES CHIARELLI","CONTRATAÇÃO",1055.55,0,1405.64,{"$f":"SUM(J38:L38)","v":2461.19},"ATUALIZAR CONHECIMENTOS NECESSÁRIOS À GESTÃO DA FORÇA DE TRABALHO"]
["SPRINT DE DIMENSIONAMENTO DA FORÇA DE TRABALHO - TURMA 1","MENSE DESENVOLVIMENTO HUMANO E ORGANIZAÇÃO LTDA","31.101.019/0001-58",40,"2020-02-05","2020-03-06","NO PAÍS","KAUE LUNARD KAWASHITA","CONTRATAÇÃO",1055.55,0,2924.95,{"$f":"SUM(J39:L39)","v":3980.5},"ATUALIZAR CONHECIMENTOS NECESSÁRIOS À GESTÃO DA FORÇA DE TRABALHO"]
["SPRINT DE DIMENSIONAMENTO DA FORÇA DE TRABALHO - TURMA 1","MENSE DESENVOLVIMENTO HUMANO E ORGANIZAÇÃO LTDA","31.101.019/0001-58",40,"2020-02-05","2020-03-06","NO PAÍS","LEANDRO PAIVA DE OLIVEIRA","CONTRATAÇÃO",1055.55,0,1467.59,{"$f":"SUM(J40:L40)","v":2523.14},"ATUALIZAR CONHECIMENTOS NECESSÁRIOS À GESTÃO DA FORÇA DE TRABALHO"]
["SPRINT DE DIMENSIONAMENTO DA FORÇA DE TRABALHO - TURMA 1","MENSE DESENVOLVIMENTO HUMANO E ORGANIZAÇÃO LTDA","31.101.019/0001-58",40,"2020-02-05","2020-03-06","NO PAÍS","MARCIO XAVIER DE ARAUJO","CONTRATAÇÃO",1055.55,0,2780.91,{"$f":"SUM(J41:L41)","v":3836.46},"ATUALIZAR CONHECIMENTOS NECESSÁRIOS À GESTÃO DA FORÇA DE TRABALHO"]
["SPRINT DE DIMENSIONAMENTO DA FORÇA DE TRABALHO - TURMA 1","MENSE DESENVOLVIMENTO HUMANO E ORGANIZAÇÃO LTDA","31.101.019/0001-58",40,"2020-02-05","2020-03-06","NO PAÍS","MURILLO ESMERALDO MONTELLA ROCHA","CONTRATAÇÃO",1055.55,0,1604.7,{"$f":"SUM(J42:L42)","v":2660.25},"ATUALIZAR CONHECIMENTOS NECESSÁRIOS À GESTÃO DA FORÇA DE TRABALHO"]
["SPRINT DE DIMENSIONAMENTO DA FORÇA DE TRABALHO - TURMA 1","MENSE DESENVOLVIMENTO HUMANO E ORGANIZAÇÃO LTDA","31.101.019/0001-58",40,"2020-02-05","2020-03-06","NO PAÍS","RODOLFO IKARO PINTO LIMA","CONTRATAÇÃO",1055.55,0,1467.59,{"$f":"SUM(J43:L43)","v":2523.14},"ATUALIZAR CONHECIMENTOS NECESSÁRIOS À GESTÃO DA FORÇA DE TRABALHO"]
["SPRINT DE DIMENSIONAMENTO DA FORÇA DE TRABALHO - TURMA 1","MENSE DESENVOLVIMENTO HUMANO E ORGANIZAÇÃO LTDA","31.101.019/0001-58",40,"2020-02-05","2020-03-06","NO PAÍS","ROSSIELE E SILVA FERRAZ FORMIGA","CONTRATAÇÃO",1055.55,0,3260.73,{"$f":"SUM(J44:L44)","v":4316.28},"ATUALIZAR CONHECIMENTOS NECESSÁRIOS À GESTÃO DA FORÇA DE TRABALHO"]
["PCI 1º SEMESTRE/2020 - INGLÊS","CCAA/CULTURA ANGLO AMERICANA LTDA","00.499.087/0001-93",48,"2020-02-10","2020-06-29","NO PAÍS","KALIANE WILMA CAVALCANTE DE LIRA","RESSARCIMENTO",770.43,0,"NÃO SE APLICA",770.43,"IDIOMAS"]
["WORKSHOP SOBRE O DECRETO 10.139.2019 - REVISÃO E CONSOLIDAÇÃO DOS ATOS NORMATIVOS DA ANTT","AGÊNCIA NACIONAL DE TRANSPORTES TERRESTRES - ANTT","04.898.488/0001-77",4,"2020-02-11","2020-02-11","NO PAÍS","ALEXANDRE ALVES SOUTO","GRATUITO",0,0,325.7,{"$f":"SUM(J46:L46)","v":325.7},"DESENVOLVIMENTO DE COMPETÊNCIAS RELATIVAS À LEGÍSTICA E AO PROCESSO LEGISLATIVO"]
["WORKSHOP SOBRE O DECRETO 10.139.2019 - REVISÃO E CONSOLIDAÇÃO DOS ATOS NORMATIVOS DA ANTT","AGÊNCIA NACIONAL DE TRANSPORTES TERRESTRES - ANTT","04.898.488/0001-77",4,"2020-02-11","2020-02-11","NO PAÍS","ANA BEATRIZ RODRIGUES CASTRO","GRATUITO",0,0,300.81,{"$f":"SUM(J47:L47)","v":300.81},"DESENVOLVIMENTO DE COMPETÊNCIAS RELATIVAS À LEGÍSTICA E AO PROCESSO LEGISLATIVO"]
["WORKSHOP SOBRE O DECRETO 10.139.2019 - REVISÃO E CONSOLIDAÇÃO DOS ATOS NORMATIVOS DA ANTT","AGÊNCIA NACIONAL DE TRANSPORTES TERRESTRES - ANTT","04.898.488/0001-77",4,"2020-02-11","2020-02-11","NO PAÍS","ANA PATRIZIA GONÇALVES LIRA","GRATUITO",0,0,342.3,{"$f":"SUM(J48:L48)","v":342.3},"DESENVOLVIMENTO DE COMPETÊNCIAS RELATIVAS À LEGÍSTICA E AO PROCESSO LEGISLATIVO"]
["WORKSHOP SOBRE O DECRETO 10.139.2019 - REVISÃO E CONSOLIDAÇÃO DOS ATOS NORMATIVOS DA ANTT","AGÊNCIA NACIONAL DE TRANSPORTES TERRESTRES - ANTT","04.898.488/0001-77",4,"2020-02-11","2020-02-11","NO PAÍS","CRISTIANE PACHECO LOURENCO","GRATUITO",0,0,325.7,{"$f":"SUM(J49:L49)","v":325.7},"DESENVOLVIMENTO DE COMPETÊNCIAS RELATIVAS À LEGÍSTICA E AO PROCESSO LEGISLATIVO"]
["WORKSHOP SOBRE O DECRETO 10.139.2019 - REVISÃO E CONSOLIDAÇÃO DOS ATOS NORMATIVOS DA ANTT","AGÊNCIA NACIONAL DE TRANSPORTES TERRESTRES - ANTT","04.898.488/0001-77",4,"2020-02-11","2020-02-11","NO PAÍS","DEBORA JIMENEZ DUARTE","GRATUITO",0,0,169.12,{"$f":"SUM(J50:L50)","v":169.12},"DESENVOLVIMENTO DE COMPETÊNCIAS RELATIVAS À LEGÍSTICA E AO PROCESSO LEGISLATIVO"]
["WORKSHOP SOBRE O DECRETO 10.139.2019 - REVISÃO E CONSOLIDAÇÃO DOS ATOS NORMATIVOS DA ANTT","AGÊNCIA NACIONAL DE TRANSPORTES TERRESTRES - ANTT","04.898.488/0001-77",4,"2020-02-11","2020-02-11","NO PAÍS","EDINAILTON SILVA RODRIGUES        ","GRATUITO",0,0,300.81,{"$f":"SUM(J51:L51)","v":300.81},"DESENVOLVIMENTO DE COMPETÊNCIAS RELATIVAS À LEGÍSTICA E AO PROCESSO LEGISLATIVO"]
["WORKSHOP SOBRE O DECRETO 10.139.2019 - REVISÃO E CONSOLIDAÇÃO DOS ATOS NORMATIVOS DA ANTT","AGÊNCIA NACIONAL DE TRANSPORTES TERRESTRES - ANTT","04.898.488/0001-77",4,"2020-02-11","2020-02-11","NO PAÍS","FABIO QUERINO GONÇALVES","GRATUITO",0,0,175.1,{"$f":"SUM(J52:L52)","v":175.1},"DESENVOLVIMENTO DE COMPETÊNCIAS RELATIVAS À LEGÍSTICA E AO PROCESSO LEGISLATIVO"]
["WORKSHOP SOBRE O DECRETO 10.139.2019 - REVISÃO E CONSOLIDAÇÃO DOS ATOS NORMATIVOS DA ANTT","AGÊNCIA NACIONAL DE TRANSPORTES TERRESTRES - ANTT","04.898.488/0001-77",4,"2020-02-11","2020-02-11","NO PAÍS","GUILHERME OLIVEIRA PIRES             ","GRATUITO",0,0,292.48,{"$f":"SUM(J53:L53)","v":292.48},"DESENVOLVIMENTO DE COMPETÊNCIAS RELATIVAS À LEGÍSTICA E AO PROCESSO LEGISLATIVO"]
["WORKSHOP SOBRE O DECRETO 10.139.2019 - REVISÃO E CONSOLIDAÇÃO DOS ATOS NORMATIVOS DA ANTT","AGÊNCIA NACIONAL DE TRANSPORTES TERRESTRES - ANTT","04.898.488/0001-77",4,"2020-02-11","2020-02-11","NO PAÍS","JOSE EXPEDITO BRANDAO FILHO     ","GRATUITO",0,0,300.81,{"$f":"SUM(J54:L54)","v":300.81},"DESENVOLVIMENTO DE COMPETÊNCIAS RELATIVAS À LEGÍSTICA E AO PROCESSO LEGISLATIVO"]
["WORKSHOP SOBRE O DECRETO 10.139.2019 - REVISÃO E CONSOLIDAÇÃO DOS ATOS NORMATIVOS DA ANTT","AGÊNCIA NACIONAL DE TRANSPORTES TERRESTRES - ANTT","04.898.488/0001-77",4,"2020-02-11","2020-02-11","NO PAÍS","KRIS CLEYTON ARAÚJO LEITE","GRATUITO",0,0,164.75,{"$f":"SUM(J55:L55)","v":164.75},"DESENVOLVIMENTO DE COMPETÊNCIAS RELATIVAS À LEGÍSTICA E AO PROCESSO LEGISLATIVO"]
["WORKSHOP SOBRE O DECRETO 10.139.2019 - REVISÃO E CONSOLIDAÇÃO DOS ATOS NORMATIVOS DA ANTT","AGÊNCIA NACIONAL DE TRANSPORTES TERRESTRES - ANTT","04.898.488/0001-77",4,"2020-02-11","2020-02-11","NO PAÍS","LEVINA APARECIDA MACHADO SILVA","GRATUITO",0,0,350.61,{"$f":"SUM(J56:L56)","v":350.61},"DESENVOLVIMENTO DE COMPETÊNCIAS RELATIVAS À LEGÍSTICA E AO PROCESSO LEGISLATIVO"]
["WORKSHOP SOBRE O DECRETO 10.139.2019 - REVISÃO E CONSOLIDAÇÃO DOS ATOS NORMATIVOS DA ANTT","AGÊNCIA NACIONAL DE TRANSPORTES TERRESTRES - ANTT","04.898.488/0001-77",4,"2020-02-11","2020-02-11","NO PAÍS","MARCELO LEISMANN DE OLIVEIRA","GRATUITO",0,0,334,{"$f":"SUM(J57:L57)","v":334},"DESENVOLVIMENTO DE COMPETÊNCIAS RELATIVAS À LEGÍSTICA E AO PROCESSO LEGISLATIVO"]
["WORKSHOP SOBRE O DECRETO 10.139.2019 - REVISÃO E CONSOLIDAÇÃO DOS ATOS NORMATIVOS DA ANTT","AGÊNCIA NACIONAL DE TRANSPORTES TERRESTRES - ANTT","04.898.488/0001-77",4,"2020-02-11","2020-02-11","NO PAÍS","MARCIO DE OLIVEIRA PINTO","GRATUITO",0,0,325.7,{"$f":"SUM(J58:L58)","v":325.7},"DESENVOLVIMENTO DE COMPETÊNCIAS RELATIVAS À LEGÍSTICA E AO PROCESSO LEGISLATIVO"]
["WORKSHOP SOBRE O DECRETO 10.139.2019 - REVISÃO E CONSOLIDAÇÃO DOS ATOS NORMATIVOS DA ANTT","AGÊNCIA NACIONAL DE TRANSPORTES TERRESTRES - ANTT","04.898.488/0001-77",4,"2020-02-11","2020-02-11","NO PAÍS","MARCUS VINICIUS DE ABREU SOUZA VASCONCELLOS","GRATUITO",0,0,166.51,{"$f":"SUM(J59:L59)","v":166.51},"DESENVOLVIMENTO DE COMPETÊNCIAS RELATIVAS À LEGÍSTICA E AO PROCESSO LEGISLATIVO"]
["WORKSHOP SOBRE O DECRETO 10.139.2019 - REVISÃO E CONSOLIDAÇÃO DOS ATOS NORMATIVOS DA ANTT","AGÊNCIA NACIONAL DE TRANSPORTES TERRESTRES - ANTT","04.898.488/0001-77",4,"2020-02-11","2020-02-11","NO PAÍS","MARINA SOARES ALMEIDA            ","GRATUITO",0,0,284.2,{"$f":"SUM(J60:L60)","v":284.2},"DESENVOLVIMENTO DE COMPETÊNCIAS RELATIVAS À LEGÍSTICA E AO PROCESSO LEGISLATIVO"]
["WORKSHOP SOBRE O DECRETO 10.139.2019 - REVISÃO E CONSOLIDAÇÃO DOS ATOS NORMATIVOS DA ANTT","AGÊNCIA NACIONAL DE TRANSPORTES TERRESTRES - ANTT","04.898.488/0001-77",4,"2020-02-11","2020-02-11","NO PAÍS","MYLENA MOREIRA DE ALENCASTRO COSTA","GRATUITO",0,0,595.62,{"$f":"SUM(J61:L61)","v":595.62},"DESENVOLVIMENTO DE COMPETÊNCIAS RELATIVAS À LEGÍSTICA E AO PROCESSO LEGISLATIVO"]
["WORKSHOP SOBRE O DECRETO 10.139.2019 - REVISÃO E CONSOLIDAÇÃO DOS ATOS NORMATIVOS DA ANTT","AGÊNCIA NACIONAL DE TRANSPORTES TERRESTRES - ANTT","04.898.488/0001-77",4,"2020-02-11","2020-02-11","NO PAÍS","RAFAEL PEREIRA GONCALVES","GRATUITO",0,0,45.89,{"$f":"SUM(J62:L62)","v":45.89},"DESENVOLVIMENTO DE COMPETÊNCIAS RELATIVAS À LEGÍSTICA E AO PROCESSO LEGISLATIVO"]
["WORKSHOP SOBRE O DECRETO 10.139.2019 - REVISÃO E CONSOLIDAÇÃO DOS ATOS NORMATIVOS DA ANTT","AGÊNCIA NACIONAL DE TRANSPORTES TERRESTRES - ANTT","04.898.488/0001-77",4,"2020-02-11","2020-02-11","NO PAÍS","SARAH JULIANA DA CUNHA GALINDO","GRATUITO",0,0,169.12,{"$f":"SUM(J63:L63)","v":169.12},"DESENVOLVIMENTO DE COMPETÊNCIAS RELATIVAS À LEGÍSTICA E AO PROCESSO LEGISLATIVO"]
["WORKSHOP SOBRE O DECRETO 10.139.2019 - REVISÃO E CONSOLIDAÇÃO DOS ATOS NORMATIVOS DA ANTT","AGÊNCIA NACIONAL DE TRANSPORTES TERRESTRES - ANTT","04.898.488/0001-77",4,"2020-02-11","2020-02-11","NO PAÍS","THAIS MESSINA DE GODOY FREIXO","GRATUITO",0,0,164.75,{"$f":"SUM(J64:L64)","v":164.75},"DESENVOLVIMENTO DE COMPETÊNCIAS RELATIVAS À LEGÍSTICA E AO PROCESSO LEGISLATIVO"]
["WORKSHOP SOBRE O DECRETO 10.139.2019 - REVISÃO E CONSOLIDAÇÃO DOS ATOS NORMATIVOS DA ANTT","AGÊNCIA NACIONAL DE TRANSPORTES TERRESTRES - ANTT","04.898.488/0001-77",4,"2020-02-11","2020-02-11","NO PAÍS","VICTOR COLONESE MOREIRA DA COSTA                  ","GRATUITO",0,0,300.81,{"$f":"SUM(J65:L65)","v":300.81},"DESENVOLVIMENTO DE COMPETÊNCIAS RELATIVAS À LEGÍSTICA E AO PROCESSO LEGISLATIVO"]
["CURSO LIDERANÇA COMO ESSÊNCIA DA GESTÃO","FUNDACAO ESCOLA NACIONAL DE ADMINISTRACAO PUBLICA - ENAP","00.627.612/0001-09",25,"2020-02-12","2020-02-14","NO PAÍS","NILTON DE MELO VIEIRA","GRATUITO",0,0,1668.54,{"$f":"SUM(J66:L66)","v":1668.54},"DESENVOLVER COMPETÊNCIAS NA GESTÃO E LIDERANÇA DE EQUIPES"]
["PCI 1º SEMESTRE/2020 - INGLÊS","WIZARD/BRASILEIRO E CORDEIRO LTDA - EPP","01.923.346/0001-24",40,"2020-02-15","2020-07-11","NO PAÍS","ANA PAULA MOREIRA DA SILVA","RESSARCIMENTO",807.09,0,"NÃO SE APLICA",807.09,"IDIOMAS"]
["PCI 1º SEMESTRE/2020 - INGLÊS","THOMAS JEFFERSON/CONSELHO CULTURAL THOMAS JEFFERSON","00.114.090/0001-41",60,"2020-02-15","2020-07-11","NO PAÍS","WILTON COSTA DRUMOND SOUSA","RESSARCIMENTO",1350,0,"NÃO SE APLICA",1350,"IDIOMAS"]
["PCI 1º SEMESTRE/2020 - INGLÊS","WIZARD/BH CASTELO IDIOMAS EIRELI","10.406.786/0001-03",35,"2020-02-15","2020-07-15","NO PAÍS","MAURICIO LEITE DE MIRANDA","RESSARCIMENTO",988.2,0,"NÃO SE APLICA",988.2,"IDIOMAS"]
["PCI 1º SEMESTRE/2020 - FRANCÊS","CULTURA FRANCESA/CURSO DE LINGUAS TRANSALPINO LTDA\nME","05.583.734/0001-64",36,"2020-02-17","2020-06-27","NO PAÍS","BRUNO DE SA GUIMARAES","RESSARCIMENTO",910,0,"NÃO SE APLICA",910,"IDIOMAS"]
["CONVENÇÃO ANUAL PARA APRESENTAÇÃO DOS RESULTADOS DA ANTT (O FUTURO DO TRABALLHO E DA GESTÃO)","EXBOSS DESENVOLVIMENTO DE PESSOAS E ORGANIZAÇÕES EIRELI - ME","20139641/0001-39",1,"2020-02-18","2020-02-18","NO PAÍS","ADAILTON RODRIGUES DA SILVA","CONTRATAÇÃO",136.63,0,37.18,{"$f":"SUM(J71:L71)","v":173.81},"TEMA DEFINIDO NO GUIA DE CONHECIMENTOS DA ANTT - EIXO TEMÁTICO/GRUPO DE CONHECIMENTO: DESENVOLVIMENTO INSTITUCIONAL/MODELOS DE GESTÃO"]
["CONVENÇÃO ANUAL PARA APRESENTAÇÃO DOS RESULTADOS DA ANTT (O FUTURO DO TRABALLHO E DA GESTÃO)","EXBOSS DESENVOLVIMENTO DE PESSOAS E ORGANIZAÇÕES EIRELI - ME","20139641/0001-39",1,"2020-02-18","2020-02-18","NO PAÍS","ADALBERTO PEREIRA DA GAMA JUNIOR","CONTRATAÇÃO",136.63,0,36.32,{"$f":"SUM(J72:L72)","v":172.95},"TEMA DEFINIDO NO GUIA DE CONHECIMENTOS DA ANTT - EIXO TEMÁTICO/GRUPO DE CONHECIMENTO: DESENVOLVIMENTO INSTITUCIONAL/MODELOS DE GESTÃO"]
["CONVENÇÃO ANUAL PARA APRESENTAÇÃO DOS RESULTADOS DA ANTT (O FUTURO DO TRABALLHO E DA GESTÃO)","EXBOSS DESENVOLVIMENTO DE PESSOAS E ORGANIZAÇÕES EIRELI - ME","20139641/0001-39",1,"2020-02-18","2020-02-18","NO PAÍS","ALAN JOSE DA SILVA","CONTRATAÇÃO",136.63,0,85.58,{"$f":"SUM(J73:L73)","v":222.20999999999998},"TEMA DEFINIDO NO GUIA DE CONHECIMENTOS DA ANTT - EIXO TEMÁTICO/GRUPO DE CONHECIMENTO: DESENVOLVIMENTO INSTITUCIONAL/MODELOS DE GESTÃO"]
["CONVENÇÃO ANUAL PARA APRESENTAÇÃO DOS RESULTADOS DA ANTT (O FUTURO DO TRABALLHO E DA GESTÃO)","EXBOSS DESENVOLVIMENTO DE PESSOAS E ORGANIZAÇÕES EIRELI - ME","20139641/0001-39",1,"2020-02-18","2020-02-18","NO PAÍS","ALEXANDRE MUNÕZ LOPES DE OLIVEIRA","CONTRATAÇÃO",136.63,0,87.65,{"$f":"SUM(J74:L74)","v":224.28},"TEMA DEFINIDO NO GUIA DE CONHECIMENTOS DA ANTT - EIXO TEMÁTICO/GRUPO DE CONHECIMENTO: DESENVOLVIMENTO INSTITUCIONAL/MODELOS DE GESTÃO"]
["CONVENÇÃO ANUAL PARA APRESENTAÇÃO DOS RESULTADOS DA ANTT (O FUTURO DO TRABALLHO E DA GESTÃO)","EXBOSS DESENVOLVIMENTO DE PESSOAS E ORGANIZAÇÕES EIRELI - ME","20139641/0001-39",1,"2020-02-18","2020-02-18","NO PAÍS","ALEXANDRE PORTO MENDES DE SOUZA","CONTRATAÇÃO",136.63,0,79.349999999999994,{"$f":"SUM(J75:L75)","v":215.98},"TEMA DEFINIDO NO GUIA DE CONHECIMENTOS DA ANTT - EIXO TEMÁTICO/GRUPO DE CONHECIMENTO: DESENVOLVIMENTO INSTITUCIONAL/MODELOS DE GESTÃO"]
["CONVENÇÃO ANUAL PARA APRESENTAÇÃO DOS RESULTADOS DA ANTT (O FUTURO DO TRABALLHO E DA GESTÃO)","EXBOSS DESENVOLVIMENTO DE PESSOAS E ORGANIZAÇÕES EIRELI - ME","20139641/0001-39",1,"2020-02-18","2020-02-18","NO PAÍS","ALINE FEITOSA LOPES","CONTRATAÇÃO",136.63,0,34.18,{"$f":"SUM(J76:L76)","v":170.81},"TEMA DEFINIDO NO GUIA DE CONHECIMENTOS DA ANTT - EIXO TEMÁTICO/GRUPO DE CONHECIMENTO: DESENVOLVIMENTO INSTITUCIONAL/MODELOS DE GESTÃO"]
["CONVENÇÃO ANUAL PARA APRESENTAÇÃO DOS RESULTADOS DA ANTT (O FUTURO DO TRABALLHO E DA GESTÃO)","EXBOSS DESENVOLVIMENTO DE PESSOAS E ORGANIZAÇÕES EIRELI - ME","20139641/0001-39",1,"2020-02-18","2020-02-18","NO PAÍS","ALISSON SILVA DE ASEVEDO","CONTRATAÇÃO",136.63,0,65.53,{"$f":"SUM(J77:L77)","v":202.16},"TEMA DEFINIDO NO GUIA DE CONHECIMENTOS DA ANTT - EIXO TEMÁTICO/GRUPO DE CONHECIMENTO: DESENVOLVIMENTO INSTITUCIONAL/MODELOS DE GESTÃO"]
["CONVENÇÃO ANUAL PARA APRESENTAÇÃO DOS RESULTADOS DA ANTT (O FUTURO DO TRABALLHO E DA GESTÃO)","EXBOSS DESENVOLVIMENTO DE PESSOAS E ORGANIZAÇÕES EIRELI - ME","20139641/0001-39",1,"2020-02-18","2020-02-18","NO PAÍS","ANA BEATRIZ RODRIGUES CASTRO","CONTRATAÇÃO",136.63,0,75.2,{"$f":"SUM(J78:L78)","v":211.82999999999998},"TEMA DEFINIDO NO GUIA DE CONHECIMENTOS DA ANTT - EIXO TEMÁTICO/GRUPO DE CONHECIMENTO: DESENVOLVIMENTO INSTITUCIONAL/MODELOS DE GESTÃO"]
["CONVENÇÃO ANUAL PARA APRESENTAÇÃO DOS RESULTADOS DA ANTT (O FUTURO DO TRABALLHO E DA GESTÃO)","EXBOSS DESENVOLVIMENTO DE PESSOAS E ORGANIZAÇÕES EIRELI - ME","20139641/0001-39",1,"2020-02-18","2020-02-18","NO PAÍS","ANA CLAUDIA SILVEIRA TORRES","CONTRATAÇÃO",136.63,0,73.12,{"$f":"SUM(J79:L79)","v":209.75},"TEMA DEFINIDO NO GUIA DE CONHECIMENTOS DA ANTT - EIXO TEMÁTICO/GRUPO DE CONHECIMENTO: DESENVOLVIMENTO INSTITUCIONAL/MODELOS DE GESTÃO"]
["CONVENÇÃO ANUAL PARA APRESENTAÇÃO DOS RESULTADOS DA ANTT (O FUTURO DO TRABALLHO E DA GESTÃO)","EXBOSS DESENVOLVIMENTO DE PESSOAS E ORGANIZAÇÕES EIRELI - ME","20139641/0001-39",1,"2020-02-18","2020-02-18","NO PAÍS","ANA PATRÍCIA DA SILVA DE BRITO ","CONTRATAÇÃO",136.63,0,81.52,{"$f":"SUM(J80:L80)","v":218.14999999999998},"TEMA DEFINIDO NO GUIA DE CONHECIMENTOS DA ANTT - EIXO TEMÁTICO/GRUPO DE CONHECIMENTO: DESENVOLVIMENTO INSTITUCIONAL/MODELOS DE GESTÃO"]
["CONVENÇÃO ANUAL PARA APRESENTAÇÃO DOS RESULTADOS DA ANTT (O FUTURO DO TRABALLHO E DA GESTÃO)","EXBOSS DESENVOLVIMENTO DE PESSOAS E ORGANIZAÇÕES EIRELI - ME","20139641/0001-39",1,"2020-02-18","2020-02-18","NO PAÍS","ANA PAULA PEREIRA DE SOUSA ROCHA","CONTRATAÇÃO",136.63,0,73.12,{"$f":"SUM(J81:L81)","v":209.75},"TEMA DEFINIDO NO GUIA DE CONHECIMENTOS DA ANTT - EIXO TEMÁTICO/GRUPO DE CONHECIMENTO: DESENVOLVIMENTO INSTITUCIONAL/MODELOS DE GESTÃO"]
["CONVENÇÃO ANUAL PARA APRESENTAÇÃO DOS RESULTADOS DA ANTT (O FUTURO DO TRABALLHO E DA GESTÃO)","EXBOSS DESENVOLVIMENTO DE PESSOAS E ORGANIZAÇÕES EIRELI - ME","20139641/0001-39",1,"2020-02-18","2020-02-18","NO PAÍS","ANDERSON GOMES MONTEIRO","CONTRATAÇÃO",136.63,0,41.63,{"$f":"SUM(J82:L82)","v":178.26},"TEMA DEFINIDO NO GUIA DE CONHECIMENTOS DA ANTT - EIXO TEMÁTICO/GRUPO DE CONHECIMENTO: DESENVOLVIMENTO INSTITUCIONAL/MODELOS DE GESTÃO"]
["CONVENÇÃO ANUAL PARA APRESENTAÇÃO DOS RESULTADOS DA ANTT (O FUTURO DO TRABALLHO E DA GESTÃO)","EXBOSS DESENVOLVIMENTO DE PESSOAS E ORGANIZAÇÕES EIRELI - ME","20139641/0001-39",1,"2020-02-18","2020-02-18","NO PAÍS","ANDERSON LOUSAN DO NASCIMENTO POUBEL","CONTRATAÇÃO",136.63,0,75.2,{"$f":"SUM(J83:L83)","v":211.82999999999998},"TEMA DEFINIDO NO GUIA DE CONHECIMENTOS DA ANTT - EIXO TEMÁTICO/GRUPO DE CONHECIMENTO: DESENVOLVIMENTO INSTITUCIONAL/MODELOS DE GESTÃO"]
["CONVENÇÃO ANUAL PARA APRESENTAÇÃO DOS RESULTADOS DA ANTT (O FUTURO DO TRABALLHO E DA GESTÃO)","EXBOSS DESENVOLVIMENTO DE PESSOAS E ORGANIZAÇÕES EIRELI - ME","20139641/0001-39",1,"2020-02-18","2020-02-18","NO PAÍS","ANDRE BOTIN NASCIMENTO","CONTRATAÇÃO",136.63,0,69.52,{"$f":"SUM(J84:L84)","v":206.14999999999998},"TEMA DEFINIDO NO GUIA DE CONHECIMENTOS DA ANTT - EIXO TEMÁTICO/GRUPO DE CONHECIMENTO: DESENVOLVIMENTO INSTITUCIONAL/MODELOS DE GESTÃO"]
["CONVENÇÃO ANUAL PARA APRESENTAÇÃO DOS RESULTADOS DA ANTT (O FUTURO DO TRABALLHO E DA GESTÃO)","EXBOSS DESENVOLVIMENTO DE PESSOAS E ORGANIZAÇÕES EIRELI - ME","20139641/0001-39",1,"2020-02-18","2020-02-18","NO PAÍS","ANDRE DULCE GONCALVES MAIA","CONTRATAÇÃO",136.63,0,85.58,{"$f":"SUM(J85:L85)","v":222.20999999999998},"TEMA DEFINIDO NO GUIA DE CONHECIMENTOS DA ANTT - EIXO TEMÁTICO/GRUPO DE CONHECIMENTO: DESENVOLVIMENTO INSTITUCIONAL/MODELOS DE GESTÃO"]
["CONVENÇÃO ANUAL PARA APRESENTAÇÃO DOS RESULTADOS DA ANTT (O FUTURO DO TRABALLHO E DA GESTÃO)","EXBOSS DESENVOLVIMENTO DE PESSOAS E ORGANIZAÇÕES EIRELI - ME","20139641/0001-39",1,"2020-02-18","2020-02-18","NO PAÍS","ANDRE LUIS BUSS","CONTRATAÇÃO",136.63,0,43.775750000000002,{"$f":"SUM(J86:L86)","v":180.40575000000001},"TEMA DEFINIDO NO GUIA DE CONHECIMENTOS DA ANTT - EIXO TEMÁTICO/GRUPO DE CONHECIMENTO: DESENVOLVIMENTO INSTITUCIONAL/MODELOS DE GESTÃO"]
["CONVENÇÃO ANUAL PARA APRESENTAÇÃO DOS RESULTADOS DA ANTT (O FUTURO DO TRABALLHO E DA GESTÃO)","EXBOSS DESENVOLVIMENTO DE PESSOAS E ORGANIZAÇÕES EIRELI - ME","20139641/0001-39",1,"2020-02-18","2020-02-18","NO PAÍS","ANDRE RICARDO RODRIGUES","CONTRATAÇÃO",136.63,0,39.549999999999997,{"$f":"SUM(J87:L87)","v":176.18},"TEMA DEFINIDO NO GUIA DE CONHECIMENTOS DA ANTT - EIXO TEMÁTICO/GRUPO DE CONHECIMENTO: DESENVOLVIMENTO INSTITUCIONAL/MODELOS DE GESTÃO"]
["CONVENÇÃO ANUAL PARA APRESENTAÇÃO DOS RESULTADOS DA ANTT (O FUTURO DO TRABALLHO E DA GESTÃO)","EXBOSS DESENVOLVIMENTO DE PESSOAS E ORGANIZAÇÕES EIRELI - ME","20139641/0001-39",1,"2020-02-18","2020-02-18","NO PAÍS","ANDRE SOUSA RAMOS              ","CONTRATAÇÃO",136.63,0,75.2,{"$f":"SUM(J88:L88)","v":211.82999999999998},"TEMA DEFINIDO NO GUIA DE CONHECIMENTOS DA ANTT - EIXO TEMÁTICO/GRUPO DE CONHECIMENTO: DESENVOLVIMENTO INSTITUCIONAL/MODELOS DE GESTÃO"]
["CONVENÇÃO ANUAL PARA APRESENTAÇÃO DOS RESULTADOS DA ANTT (O FUTURO DO TRABALLHO E DA GESTÃO)","EXBOSS DESENVOLVIMENTO DE PESSOAS E ORGANIZAÇÕES EIRELI - ME","20139641/0001-39",1,"2020-02-18","2020-02-18","NO PAÍS","ANNA PAOLA ALLEONE LUKSEVICIUS","CONTRATAÇÃO",136.63,0,83.500291666666669,{"$f":"SUM(J89:L89)","v":220.13029166666666},"TEMA DEFINIDO NO GUIA DE CONHECIMENTOS DA ANTT - EIXO TEMÁTICO/GRUPO DE CONHECIMENTO: DESENVOLVIMENTO INSTITUCIONAL/MODELOS DE GESTÃO"]
["CONVENÇÃO ANUAL PARA APRESENTAÇÃO DOS RESULTADOS DA ANTT (O FUTURO DO TRABALLHO E DA GESTÃO)","EXBOSS DESENVOLVIMENTO DE PESSOAS E ORGANIZAÇÕES EIRELI - ME","20139641/0001-39",1,"2020-02-18","2020-02-18","NO PAÍS","ANNA PAULA NUNES SVENDSEN PINHEIRO","CONTRATAÇÃO",136.63,0,35.14,{"$f":"SUM(J90:L90)","v":171.76999999999998},"TEMA DEFINIDO NO GUIA DE CONHECIMENTOS DA ANTT - EIXO TEMÁTICO/GRUPO DE CONHECIMENTO: DESENVOLVIMENTO INSTITUCIONAL/MODELOS DE GESTÃO"]
["CONVENÇÃO ANUAL PARA APRESENTAÇÃO DOS RESULTADOS DA ANTT (O FUTURO DO TRABALLHO E DA GESTÃO)","EXBOSS DESENVOLVIMENTO DE PESSOAS E ORGANIZAÇÕES EIRELI - ME","20139641/0001-39",1,"2020-02-18","2020-02-18","NO PAÍS","ANTONIO GABRIEL DIAS DE ARAÚJO","CONTRATAÇÃO",136.63,0,75.52,{"$f":"SUM(J91:L91)","v":212.14999999999998},"TEMA DEFINIDO NO GUIA DE CONHECIMENTOS DA ANTT - EIXO TEMÁTICO/GRUPO DE CONHECIMENTO: DESENVOLVIMENTO INSTITUCIONAL/MODELOS DE GESTÃO"]
["CONVENÇÃO ANUAL PARA APRESENTAÇÃO DOS RESULTADOS DA ANTT (O FUTURO DO TRABALLHO E DA GESTÃO)","EXBOSS DESENVOLVIMENTO DE PESSOAS E ORGANIZAÇÕES EIRELI - ME","20139641/0001-39",1,"2020-02-18","2020-02-18","NO PAÍS","ANTONIO SILVIO ALMEIDA DA SILVA     ","CONTRATAÇÃO",136.63,0,35.78,{"$f":"SUM(J92:L92)","v":172.41},"TEMA DEFINIDO NO GUIA DE CONHECIMENTOS DA ANTT - EIXO TEMÁTICO/GRUPO DE CONHECIMENTO: DESENVOLVIMENTO INSTITUCIONAL/MODELOS DE GESTÃO"]
["CONVENÇÃO ANUAL PARA APRESENTAÇÃO DOS RESULTADOS DA ANTT (O FUTURO DO TRABALLHO E DA GESTÃO)","EXBOSS DESENVOLVIMENTO DE PESSOAS E ORGANIZAÇÕES EIRELI - ME","20139641/0001-39",1,"2020-02-18","2020-02-18","NO PAÍS","ARAO PARNES","CONTRATAÇÃO",136.63,0,47.11,{"$f":"SUM(J93:L93)","v":183.74},"TEMA DEFINIDO NO GUIA DE CONHECIMENTOS DA ANTT - EIXO TEMÁTICO/GRUPO DE CONHECIMENTO: DESENVOLVIMENTO INSTITUCIONAL/MODELOS DE GESTÃO"]
["CONVENÇÃO ANUAL PARA APRESENTAÇÃO DOS RESULTADOS DA ANTT (O FUTURO DO TRABALLHO E DA GESTÃO)","EXBOSS DESENVOLVIMENTO DE PESSOAS E ORGANIZAÇÕES EIRELI - ME","20139641/0001-39",1,"2020-02-18","2020-02-18","NO PAÍS","AUGUSTO BARBOZA DA SILVA","CONTRATAÇÃO",136.63,0,9.94,{"$f":"SUM(J94:L94)","v":146.57},"TEMA DEFINIDO NO GUIA DE CONHECIMENTOS DA ANTT - EIXO TEMÁTICO/GRUPO DE CONHECIMENTO: DESENVOLVIMENTO INSTITUCIONAL/MODELOS DE GESTÃO"]
["CONVENÇÃO ANUAL PARA APRESENTAÇÃO DOS RESULTADOS DA ANTT (O FUTURO DO TRABALLHO E DA GESTÃO)","EXBOSS DESENVOLVIMENTO DE PESSOAS E ORGANIZAÇÕES EIRELI - ME","20139641/0001-39",1,"2020-02-18","2020-02-18","NO PAÍS","AUREA FERNANDA DE BRITO LOIOLA AGUIAR","CONTRATAÇÃO",136.63,0,87.65,{"$f":"SUM(J95:L95)","v":224.28},"TEMA DEFINIDO NO GUIA DE CONHECIMENTOS DA ANTT - EIXO TEMÁTICO/GRUPO DE CONHECIMENTO: DESENVOLVIMENTO INSTITUCIONAL/MODELOS DE GESTÃO"]
["CONVENÇÃO ANUAL PARA APRESENTAÇÃO DOS RESULTADOS DA ANTT (O FUTURO DO TRABALLHO E DA GESTÃO)","EXBOSS DESENVOLVIMENTO DE PESSOAS E ORGANIZAÇÕES EIRELI - ME","20139641/0001-39",1,"2020-02-18","2020-02-18","NO PAÍS","BASILIO MILITANI NETO","CONTRATAÇÃO",136.63,0,41.63,{"$f":"SUM(J96:L96)","v":178.26},"TEMA DEFINIDO NO GUIA DE CONHECIMENTOS DA ANTT - EIXO TEMÁTICO/GRUPO DE CONHECIMENTO: DESENVOLVIMENTO INSTITUCIONAL/MODELOS DE GESTÃO"]
["CONVENÇÃO ANUAL PARA APRESENTAÇÃO DOS RESULTADOS DA ANTT (O FUTURO DO TRABALLHO E DA GESTÃO)","EXBOSS DESENVOLVIMENTO DE PESSOAS E ORGANIZAÇÕES EIRELI - ME","20139641/0001-39",1,"2020-02-18","2020-02-18","NO PAÍS","BRUNO DE ARAUJO COLARES      ","CONTRATAÇÃO",136.63,0,71.05,{"$f":"SUM(J97:L97)","v":207.68},"TEMA DEFINIDO NO GUIA DE CONHECIMENTOS DA ANTT - EIXO TEMÁTICO/GRUPO DE CONHECIMENTO: DESENVOLVIMENTO INSTITUCIONAL/MODELOS DE GESTÃO"]
["CONVENÇÃO ANUAL PARA APRESENTAÇÃO DOS RESULTADOS DA ANTT (O FUTURO DO TRABALLHO E DA GESTÃO)","EXBOSS DESENVOLVIMENTO DE PESSOAS E ORGANIZAÇÕES EIRELI - ME","20139641/0001-39",1,"2020-02-18","2020-02-18","NO PAÍS","BRUNO RIBEIRO  ALVARENGA","CONTRATAÇÃO",136.63,0,87.65,{"$f":"SUM(J98:L98)","v":224.28},"TEMA DEFINIDO NO GUIA DE CONHECIMENTOS DA ANTT - EIXO TEMÁTICO/GRUPO DE CONHECIMENTO: DESENVOLVIMENTO INSTITUCIONAL/MODELOS DE GESTÃO"]
["CONVENÇÃO ANUAL PARA APRESENTAÇÃO DOS RESULTADOS DA ANTT (O FUTURO DO TRABALLHO E DA GESTÃO)","EXBOSS DESENVOLVIMENTO DE PESSOAS E ORGANIZAÇÕES EIRELI - ME","20139641/0001-39",1,"2020-02-18","2020-02-18","NO PAÍS","CAIO CESAR NASCIMENTO NOGUEIRA","CONTRATAÇÃO",136.63,0,58.11,{"$f":"SUM(J99:L99)","v":194.74},"TEMA DEFINIDO NO GUIA DE CONHECIMENTOS DA ANTT - EIXO TEMÁTICO/GRUPO DE CONHECIMENTO: DESENVOLVIMENTO INSTITUCIONAL/MODELOS DE GESTÃO"]
["CONVENÇÃO ANUAL PARA APRESENTAÇÃO DOS RESULTADOS DA ANTT (O FUTURO DO TRABALLHO E DA GESTÃO)","EXBOSS DESENVOLVIMENTO DE PESSOAS E ORGANIZAÇÕES EIRELI - ME","20139641/0001-39",1,"2020-02-18","2020-02-18","NO PAÍS","CANDIDO MANOEL FERNANDES PORTO","CONTRATAÇÃO",136.63,0,73.12,{"$f":"SUM(J100:L100)","v":209.75},"TEMA DEFINIDO NO GUIA DE CONHECIMENTOS DA ANTT - EIXO TEMÁTICO/GRUPO DE CONHECIMENTO: DESENVOLVIMENTO INSTITUCIONAL/MODELOS DE GESTÃO"]
["CONVENÇÃO ANUAL PARA APRESENTAÇÃO DOS RESULTADOS DA ANTT (O FUTURO DO TRABALLHO E DA GESTÃO)","EXBOSS DESENVOLVIMENTO DE PESSOAS E ORGANIZAÇÕES EIRELI - ME","20139641/0001-39",1,"2020-02-18","2020-02-18","NO PAÍS","CARLOS ROBERTO ALVISI JUNIOR","CONTRATAÇÃO",136.63,0,80.86,{"$f":"SUM(J101:L101)","v":217.49},"TEMA DEFINIDO NO GUIA DE CONHECIMENTOS DA ANTT - EIXO TEMÁTICO/GRUPO DE CONHECIMENTO: DESENVOLVIMENTO INSTITUCIONAL/MODELOS DE GESTÃO"]
["CONVENÇÃO ANUAL PARA APRESENTAÇÃO DOS RESULTADOS DA ANTT (O FUTURO DO TRABALLHO E DA GESTÃO)","EXBOSS DESENVOLVIMENTO DE PESSOAS E ORGANIZAÇÕES EIRELI - ME","20139641/0001-39",1,"2020-02-18","2020-02-18","NO PAÍS","CELYVANIA MALTA DE BRITO","CONTRATAÇÃO",136.63,0,135.56,{"$f":"SUM(J102:L102)","v":272.19},"TEMA DEFINIDO NO GUIA DE CONHECIMENTOS DA ANTT - EIXO TEMÁTICO/GRUPO DE CONHECIMENTO: DESENVOLVIMENTO INSTITUCIONAL/MODELOS DE GESTÃO"]
["CONVENÇÃO ANUAL PARA APRESENTAÇÃO DOS RESULTADOS DA ANTT (O FUTURO DO TRABALLHO E DA GESTÃO)","EXBOSS DESENVOLVIMENTO DE PESSOAS E ORGANIZAÇÕES EIRELI - ME","20139641/0001-39",1,"2020-02-18","2020-02-18","NO PAÍS","CLAUDIA FATIMA DA FONSECA ALVES","CONTRATAÇÃO",136.63,0,79.52,{"$f":"SUM(J103:L103)","v":216.14999999999998},"TEMA DEFINIDO NO GUIA DE CONHECIMENTOS DA ANTT - EIXO TEMÁTICO/GRUPO DE CONHECIMENTO: DESENVOLVIMENTO INSTITUCIONAL/MODELOS DE GESTÃO"]
["CONVENÇÃO ANUAL PARA APRESENTAÇÃO DOS RESULTADOS DA ANTT (O FUTURO DO TRABALLHO E DA GESTÃO)","EXBOSS DESENVOLVIMENTO DE PESSOAS E ORGANIZAÇÕES EIRELI - ME","20139641/0001-39",1,"2020-02-18","2020-02-18","NO PAÍS","CLAUDIO TIYOSHI MIURA              ","CONTRATAÇÃO",136.63,0,73.12,{"$f":"SUM(J104:L104)","v":209.75},"TEMA DEFINIDO NO GUIA DE CONHECIMENTOS DA ANTT - EIXO TEMÁTICO/GRUPO DE CONHECIMENTO: DESENVOLVIMENTO INSTITUCIONAL/MODELOS DE GESTÃO"]
["CONVENÇÃO ANUAL PARA APRESENTAÇÃO DOS RESULTADOS DA ANTT (O FUTURO DO TRABALLHO E DA GESTÃO)","EXBOSS DESENVOLVIMENTO DE PESSOAS E ORGANIZAÇÕES EIRELI - ME","20139641/0001-39",1,"2020-02-18","2020-02-18","NO PAÍS","CLEBER DIAS DA SILVA JUNIOR","CONTRATAÇÃO",136.63,0,75.52,{"$f":"SUM(J105:L105)","v":212.14999999999998},"TEMA DEFINIDO NO GUIA DE CONHECIMENTOS DA ANTT - EIXO TEMÁTICO/GRUPO DE CONHECIMENTO: DESENVOLVIMENTO INSTITUCIONAL/MODELOS DE GESTÃO"]
["CONVENÇÃO ANUAL PARA APRESENTAÇÃO DOS RESULTADOS DA ANTT (O FUTURO DO TRABALLHO E DA GESTÃO)","EXBOSS DESENVOLVIMENTO DE PESSOAS E ORGANIZAÇÕES EIRELI - ME","20139641/0001-39",1,"2020-02-18","2020-02-18","NO PAÍS","CRISTIANE LUSTOSA GUIMARAES FRANCA","CONTRATAÇÃO",136.63,0,34.86,{"$f":"SUM(J106:L106)","v":171.49},"TEMA DEFINIDO NO GUIA DE CONHECIMENTOS DA ANTT - EIXO TEMÁTICO/GRUPO DE CONHECIMENTO: DESENVOLVIMENTO INSTITUCIONAL/MODELOS DE GESTÃO"]
["CONVENÇÃO ANUAL PARA APRESENTAÇÃO DOS RESULTADOS DA ANTT (O FUTURO DO TRABALLHO E DA GESTÃO)","EXBOSS DESENVOLVIMENTO DE PESSOAS E ORGANIZAÇÕES EIRELI - ME","20139641/0001-39",1,"2020-02-18","2020-02-18","NO PAÍS","CRISTIANE PACHECO LOURENCO","CONTRATAÇÃO",136.63,0,81.42,{"$f":"SUM(J107:L107)","v":218.05},"TEMA DEFINIDO NO GUIA DE CONHECIMENTOS DA ANTT - EIXO TEMÁTICO/GRUPO DE CONHECIMENTO: DESENVOLVIMENTO INSTITUCIONAL/MODELOS DE GESTÃO"]
["CONVENÇÃO ANUAL PARA APRESENTAÇÃO DOS RESULTADOS DA ANTT (O FUTURO DO TRABALLHO E DA GESTÃO)","EXBOSS DESENVOLVIMENTO DE PESSOAS E ORGANIZAÇÕES EIRELI - ME","20139641/0001-39",1,"2020-02-18","2020-02-18","NO PAÍS","CRISTIANE SOUSA DE OLIVEIRA","CONTRATAÇÃO",136.63,0,30.88,{"$f":"SUM(J108:L108)","v":167.51},"TEMA DEFINIDO NO GUIA DE CONHECIMENTOS DA ANTT - EIXO TEMÁTICO/GRUPO DE CONHECIMENTO: DESENVOLVIMENTO INSTITUCIONAL/MODELOS DE GESTÃO"]
["CONVENÇÃO ANUAL PARA APRESENTAÇÃO DOS RESULTADOS DA ANTT (O FUTURO DO TRABALLHO E DA GESTÃO)","EXBOSS DESENVOLVIMENTO DE PESSOAS E ORGANIZAÇÕES EIRELI - ME","20139641/0001-39",1,"2020-02-18","2020-02-18","NO PAÍS","CRISTIANO DELLA GIUSTINA","CONTRATAÇÃO",136.63,0,85.58,{"$f":"SUM(J109:L109)","v":222.20999999999998},"TEMA DEFINIDO NO GUIA DE CONHECIMENTOS DA ANTT - EIXO TEMÁTICO/GRUPO DE CONHECIMENTO: DESENVOLVIMENTO INSTITUCIONAL/MODELOS DE GESTÃO"]
["CONVENÇÃO ANUAL PARA APRESENTAÇÃO DOS RESULTADOS DA ANTT (O FUTURO DO TRABALLHO E DA GESTÃO)","EXBOSS DESENVOLVIMENTO DE PESSOAS E ORGANIZAÇÕES EIRELI - ME","20139641/0001-39",1,"2020-02-18","2020-02-18","NO PAÍS","CYNTHIA RUAS VIEIRA BRAYER","CONTRATAÇÃO",136.63,0,75.2,{"$f":"SUM(J110:L110)","v":211.82999999999998},"TEMA DEFINIDO NO GUIA DE CONHECIMENTOS DA ANTT - EIXO TEMÁTICO/GRUPO DE CONHECIMENTO: DESENVOLVIMENTO INSTITUCIONAL/MODELOS DE GESTÃO"]
["CONVENÇÃO ANUAL PARA APRESENTAÇÃO DOS RESULTADOS DA ANTT (O FUTURO DO TRABALLHO E DA GESTÃO)","EXBOSS DESENVOLVIMENTO DE PESSOAS E ORGANIZAÇÕES EIRELI - ME","20139641/0001-39",1,"2020-02-18","2020-02-18","NO PAÍS","DANIEL DE OLIVEIRA SANTOS","CONTRATAÇÃO",136.63,0,75.2,{"$f":"SUM(J111:L111)","v":211.82999999999998},"TEMA DEFINIDO NO GUIA DE CONHECIMENTOS DA ANTT - EIXO TEMÁTICO/GRUPO DE CONHECIMENTO: DESENVOLVIMENTO INSTITUCIONAL/MODELOS DE GESTÃO"]
["CONVENÇÃO ANUAL PARA APRESENTAÇÃO DOS RESULTADOS DA ANTT (O FUTURO DO TRABALLHO E DA GESTÃO)","EXBOSS DESENVOLVIMENTO DE PESSOAS E ORGANIZAÇÕES EIRELI - ME","20139641/0001-39",1,"2020-02-18","2020-02-18","NO PAÍS","DEBORA GOELZER FRAGA","CONTRATAÇÃO",136.63,0,9.94,{"$f":"SUM(J112:L112)","v":146.57},"TEMA DEFINIDO NO GUIA DE CONHECIMENTOS DA ANTT - EIXO TEMÁTICO/GRUPO DE CONHECIMENTO: DESENVOLVIMENTO INSTITUCIONAL/MODELOS DE GESTÃO"]
["CONVENÇÃO ANUAL PARA APRESENTAÇÃO DOS RESULTADOS DA ANTT (O FUTURO DO TRABALLHO E DA GESTÃO)","EXBOSS DESENVOLVIMENTO DE PESSOAS E ORGANIZAÇÕES EIRELI - ME","20139641/0001-39",1,"2020-02-18","2020-02-18","NO PAÍS","DEBORA JIMENEZ DUARTE","CONTRATAÇÃO",136.63,0,42.28,{"$f":"SUM(J113:L113)","v":178.91},"TEMA DEFINIDO NO GUIA DE CONHECIMENTOS DA ANTT - EIXO TEMÁTICO/GRUPO DE CONHECIMENTO: DESENVOLVIMENTO INSTITUCIONAL/MODELOS DE GESTÃO"]
["CONVENÇÃO ANUAL PARA APRESENTAÇÃO DOS RESULTADOS DA ANTT (O FUTURO DO TRABALLHO E DA GESTÃO)","EXBOSS DESENVOLVIMENTO DE PESSOAS E ORGANIZAÇÕES EIRELI - ME","20139641/0001-39",1,"2020-02-18","2020-02-18","NO PAÍS","DIEGO DASCANIO PEREZ MARQUES","CONTRATAÇÃO",136.63,0,36.69,{"$f":"SUM(J114:L114)","v":173.32},"TEMA DEFINIDO NO GUIA DE CONHECIMENTOS DA ANTT - EIXO TEMÁTICO/GRUPO DE CONHECIMENTO: DESENVOLVIMENTO INSTITUCIONAL/MODELOS DE GESTÃO"]
["CONVENÇÃO ANUAL PARA APRESENTAÇÃO DOS RESULTADOS DA ANTT (O FUTURO DO TRABALLHO E DA GESTÃO)","EXBOSS DESENVOLVIMENTO DE PESSOAS E ORGANIZAÇÕES EIRELI - ME","20139641/0001-39",1,"2020-02-18","2020-02-18","NO PAÍS","DOUGLAS DOS SANTOS GASPARETO","CONTRATAÇÃO",136.63,0,42.683291666666669,{"$f":"SUM(J115:L115)","v":179.31329166666666},"TEMA DEFINIDO NO GUIA DE CONHECIMENTOS DA ANTT - EIXO TEMÁTICO/GRUPO DE CONHECIMENTO: DESENVOLVIMENTO INSTITUCIONAL/MODELOS DE GESTÃO"]
["CONVENÇÃO ANUAL PARA APRESENTAÇÃO DOS RESULTADOS DA ANTT (O FUTURO DO TRABALLHO E DA GESTÃO)","EXBOSS DESENVOLVIMENTO DE PESSOAS E ORGANIZAÇÕES EIRELI - ME","20139641/0001-39",1,"2020-02-18","2020-02-18","NO PAÍS","DURVAL ANTONIO GUERRA VALENTE","CONTRATAÇÃO",136.63,0,58.11,{"$f":"SUM(J116:L116)","v":194.74},"TEMA DEFINIDO NO GUIA DE CONHECIMENTOS DA ANTT - EIXO TEMÁTICO/GRUPO DE CONHECIMENTO: DESENVOLVIMENTO INSTITUCIONAL/MODELOS DE GESTÃO"]
["CONVENÇÃO ANUAL PARA APRESENTAÇÃO DOS RESULTADOS DA ANTT (O FUTURO DO TRABALLHO E DA GESTÃO)","EXBOSS DESENVOLVIMENTO DE PESSOAS E ORGANIZAÇÕES EIRELI - ME","20139641/0001-39",1,"2020-02-18","2020-02-18","NO PAÍS","EDUARDO DE OLIVEIRA SILVA","CONTRATAÇÃO",136.63,0,34.18,{"$f":"SUM(J117:L117)","v":170.81},"TEMA DEFINIDO NO GUIA DE CONHECIMENTOS DA ANTT - EIXO TEMÁTICO/GRUPO DE CONHECIMENTO: DESENVOLVIMENTO INSTITUCIONAL/MODELOS DE GESTÃO"]
["CONVENÇÃO ANUAL PARA APRESENTAÇÃO DOS RESULTADOS DA ANTT (O FUTURO DO TRABALLHO E DA GESTÃO)","EXBOSS DESENVOLVIMENTO DE PESSOAS E ORGANIZAÇÕES EIRELI - ME","20139641/0001-39",1,"2020-02-18","2020-02-18","NO PAÍS","ELLEN LILIPORY","CONTRATAÇÃO",136.63,0,36.32,{"$f":"SUM(J118:L118)","v":172.95},"TEMA DEFINIDO NO GUIA DE CONHECIMENTOS DA ANTT - EIXO TEMÁTICO/GRUPO DE CONHECIMENTO: DESENVOLVIMENTO INSTITUCIONAL/MODELOS DE GESTÃO"]
["CONVENÇÃO ANUAL PARA APRESENTAÇÃO DOS RESULTADOS DA ANTT (O FUTURO DO TRABALLHO E DA GESTÃO)","EXBOSS DESENVOLVIMENTO DE PESSOAS E ORGANIZAÇÕES EIRELI - ME","20139641/0001-39",1,"2020-02-18","2020-02-18","NO PAÍS","EMANUELE BANDEIRA CARVALHO DE LIMA","CONTRATAÇÃO",136.63,0,36.69,{"$f":"SUM(J119:L119)","v":173.32},"TEMA DEFINIDO NO GUIA DE CONHECIMENTOS DA ANTT - EIXO TEMÁTICO/GRUPO DE CONHECIMENTO: DESENVOLVIMENTO INSTITUCIONAL/MODELOS DE GESTÃO"]
["CONVENÇÃO ANUAL PARA APRESENTAÇÃO DOS RESULTADOS DA ANTT (O FUTURO DO TRABALLHO E DA GESTÃO)","EXBOSS DESENVOLVIMENTO DE PESSOAS E ORGANIZAÇÕES EIRELI - ME","20139641/0001-39",1,"2020-02-18","2020-02-18","NO PAÍS","EVANDRO TORQUATO SOBRADO","CONTRATAÇÃO",136.63,0,58.11,{"$f":"SUM(J120:L120)","v":194.74},"TEMA DEFINIDO NO GUIA DE CONHECIMENTOS DA ANTT - EIXO TEMÁTICO/GRUPO DE CONHECIMENTO: DESENVOLVIMENTO INSTITUCIONAL/MODELOS DE GESTÃO"]
["CONVENÇÃO ANUAL PARA APRESENTAÇÃO DOS RESULTADOS DA ANTT (O FUTURO DO TRABALLHO E DA GESTÃO)","EXBOSS DESENVOLVIMENTO DE PESSOAS E ORGANIZAÇÕES EIRELI - ME","20139641/0001-39",1,"2020-02-18","2020-02-18","NO PAÍS","EVERALDO VALENGA ALVES","CONTRATAÇÃO",136.63,0,73.12,{"$f":"SUM(J121:L121)","v":209.75},"TEMA DEFINIDO NO GUIA DE CONHECIMENTOS DA ANTT - EIXO TEMÁTICO/GRUPO DE CONHECIMENTO: DESENVOLVIMENTO INSTITUCIONAL/MODELOS DE GESTÃO"]
["CONVENÇÃO ANUAL PARA APRESENTAÇÃO DOS RESULTADOS DA ANTT (O FUTURO DO TRABALLHO E DA GESTÃO)","EXBOSS DESENVOLVIMENTO DE PESSOAS E ORGANIZAÇÕES EIRELI - ME","20139641/0001-39",1,"2020-02-18","2020-02-18","NO PAÍS","EWERTON LARANJO MENDONÇA","CONTRATAÇÃO",136.63,0,94.14,{"$f":"SUM(J122:L122)","v":230.76999999999998},"TEMA DEFINIDO NO GUIA DE CONHECIMENTOS DA ANTT - EIXO TEMÁTICO/GRUPO DE CONHECIMENTO: DESENVOLVIMENTO INSTITUCIONAL/MODELOS DE GESTÃO"]
["CONVENÇÃO ANUAL PARA APRESENTAÇÃO DOS RESULTADOS DA ANTT (O FUTURO DO TRABALLHO E DA GESTÃO)","EXBOSS DESENVOLVIMENTO DE PESSOAS E ORGANIZAÇÕES EIRELI - ME","20139641/0001-39",1,"2020-02-18","2020-02-18","NO PAÍS","FABIANA CARVALHO DA SILVA","CONTRATAÇÃO",136.63,0,43.775750000000002,{"$f":"SUM(J123:L123)","v":180.40575000000001},"TEMA DEFINIDO NO GUIA DE CONHECIMENTOS DA ANTT - EIXO TEMÁTICO/GRUPO DE CONHECIMENTO: DESENVOLVIMENTO INSTITUCIONAL/MODELOS DE GESTÃO"]
["CONVENÇÃO ANUAL PARA APRESENTAÇÃO DOS RESULTADOS DA ANTT (O FUTURO DO TRABALLHO E DA GESTÃO)","EXBOSS DESENVOLVIMENTO DE PESSOAS E ORGANIZAÇÕES EIRELI - ME","20139641/0001-39",1,"2020-02-18","2020-02-18","NO PAÍS","FABIANE SARAIVA GONCALVES MARIANO","CONTRATAÇÃO",136.63,0,15.17,{"$f":"SUM(J124:L124)","v":151.79999999999998},"TEMA DEFINIDO NO GUIA DE CONHECIMENTOS DA ANTT - EIXO TEMÁTICO/GRUPO DE CONHECIMENTO: DESENVOLVIMENTO INSTITUCIONAL/MODELOS DE GESTÃO"]
["CONVENÇÃO ANUAL PARA APRESENTAÇÃO DOS RESULTADOS DA ANTT (O FUTURO DO TRABALLHO E DA GESTÃO)","EXBOSS DESENVOLVIMENTO DE PESSOAS E ORGANIZAÇÕES EIRELI - ME","20139641/0001-39",1,"2020-02-18","2020-02-18","NO PAÍS","FABIANO FLEXA NOGUEIRA","CONTRATAÇÃO",136.63,0,36.32,{"$f":"SUM(J125:L125)","v":172.95},"TEMA DEFINIDO NO GUIA DE CONHECIMENTOS DA ANTT - EIXO TEMÁTICO/GRUPO DE CONHECIMENTO: DESENVOLVIMENTO INSTITUCIONAL/MODELOS DE GESTÃO"]
["CONVENÇÃO ANUAL PARA APRESENTAÇÃO DOS RESULTADOS DA ANTT (O FUTURO DO TRABALLHO E DA GESTÃO)","EXBOSS DESENVOLVIMENTO DE PESSOAS E ORGANIZAÇÕES EIRELI - ME","20139641/0001-39",1,"2020-02-18","2020-02-18","NO PAÍS","FELIPE BRAGANCA ITABORAHY","CONTRATAÇÃO",136.63,0,114.66,{"$f":"SUM(J126:L126)","v":251.29},"TEMA DEFINIDO NO GUIA DE CONHECIMENTOS DA ANTT - EIXO TEMÁTICO/GRUPO DE CONHECIMENTO: DESENVOLVIMENTO INSTITUCIONAL/MODELOS DE GESTÃO"]
["CONVENÇÃO ANUAL PARA APRESENTAÇÃO DOS RESULTADOS DA ANTT (O FUTURO DO TRABALLHO E DA GESTÃO)","EXBOSS DESENVOLVIMENTO DE PESSOAS E ORGANIZAÇÕES EIRELI - ME","20139641/0001-39",1,"2020-02-18","2020-02-18","NO PAÍS","FELIPE FREIRE DA COSTA","CONTRATAÇÃO",136.63,0,85.58,{"$f":"SUM(J127:L127)","v":222.20999999999998},"TEMA DEFINIDO NO GUIA DE CONHECIMENTOS DA ANTT - EIXO TEMÁTICO/GRUPO DE CONHECIMENTO: DESENVOLVIMENTO INSTITUCIONAL/MODELOS DE GESTÃO"]
["CONVENÇÃO ANUAL PARA APRESENTAÇÃO DOS RESULTADOS DA ANTT (O FUTURO DO TRABALLHO E DA GESTÃO)","EXBOSS DESENVOLVIMENTO DE PESSOAS E ORGANIZAÇÕES EIRELI - ME","20139641/0001-39",1,"2020-02-18","2020-02-18","NO PAÍS","FERNANDA DE GODOY PENTEADO","CONTRATAÇÃO",136.63,0,81.42,{"$f":"SUM(J128:L128)","v":218.05},"TEMA DEFINIDO NO GUIA DE CONHECIMENTOS DA ANTT - EIXO TEMÁTICO/GRUPO DE CONHECIMENTO: DESENVOLVIMENTO INSTITUCIONAL/MODELOS DE GESTÃO"]
["CONVENÇÃO ANUAL PARA APRESENTAÇÃO DOS RESULTADOS DA ANTT (O FUTURO DO TRABALLHO E DA GESTÃO)","EXBOSS DESENVOLVIMENTO DE PESSOAS E ORGANIZAÇÕES EIRELI - ME","20139641/0001-39",1,"2020-02-18","2020-02-18","NO PAÍS","FERNANDA MARIA MACHADO ANDRADE NIEMEYER  ","CONTRATAÇÃO",136.63,0,73.12,{"$f":"SUM(J129:L129)","v":209.75},"TEMA DEFINIDO NO GUIA DE CONHECIMENTOS DA ANTT - EIXO TEMÁTICO/GRUPO DE CONHECIMENTO: DESENVOLVIMENTO INSTITUCIONAL/MODELOS DE GESTÃO"]
["CONVENÇÃO ANUAL PARA APRESENTAÇÃO DOS RESULTADOS DA ANTT (O FUTURO DO TRABALLHO E DA GESTÃO)","EXBOSS DESENVOLVIMENTO DE PESSOAS E ORGANIZAÇÕES EIRELI - ME","20139641/0001-39",1,"2020-02-18","2020-02-18","NO PAÍS","FERNANDO ANDRADE SOLLERO","CONTRATAÇÃO",136.63,0,79.37,{"$f":"SUM(J130:L130)","v":216},"TEMA DEFINIDO NO GUIA DE CONHECIMENTOS DA ANTT - EIXO TEMÁTICO/GRUPO DE CONHECIMENTO: DESENVOLVIMENTO INSTITUCIONAL/MODELOS DE GESTÃO"]
["CONVENÇÃO ANUAL PARA APRESENTAÇÃO DOS RESULTADOS DA ANTT (O FUTURO DO TRABALLHO E DA GESTÃO)","EXBOSS DESENVOLVIMENTO DE PESSOAS E ORGANIZAÇÕES EIRELI - ME","20139641/0001-39",1,"2020-02-18","2020-02-18","NO PAÍS","FERNANDO ANTONIO CABRAL","CONTRATAÇÃO",136.63,0,37.619999999999997,{"$f":"SUM(J131:L131)","v":174.25},"TEMA DEFINIDO NO GUIA DE CONHECIMENTOS DA ANTT - EIXO TEMÁTICO/GRUPO DE CONHECIMENTO: DESENVOLVIMENTO INSTITUCIONAL/MODELOS DE GESTÃO"]
["CONVENÇÃO ANUAL PARA APRESENTAÇÃO DOS RESULTADOS DA ANTT (O FUTURO DO TRABALLHO E DA GESTÃO)","EXBOSS DESENVOLVIMENTO DE PESSOAS E ORGANIZAÇÕES EIRELI - ME","20139641/0001-39",1,"2020-02-18","2020-02-18","NO PAÍS","FERNANDO DE FREITAS BEZERRA              ","CONTRATAÇÃO",136.63,0,73.12,{"$f":"SUM(J132:L132)","v":209.75},"TEMA DEFINIDO NO GUIA DE CONHECIMENTOS DA ANTT - EIXO TEMÁTICO/GRUPO DE CONHECIMENTO: DESENVOLVIMENTO INSTITUCIONAL/MODELOS DE GESTÃO"]
["CONVENÇÃO ANUAL PARA APRESENTAÇÃO DOS RESULTADOS DA ANTT (O FUTURO DO TRABALLHO E DA GESTÃO)","EXBOSS DESENVOLVIMENTO DE PESSOAS E ORGANIZAÇÕES EIRELI - ME","20139641/0001-39",1,"2020-02-18","2020-02-18","NO PAÍS","FLAVIA KLUPPEL CARRARA WOUTERS","CONTRATAÇÃO",136.63,0,75.52,{"$f":"SUM(J133:L133)","v":212.14999999999998},"TEMA DEFINIDO NO GUIA DE CONHECIMENTOS DA ANTT - EIXO TEMÁTICO/GRUPO DE CONHECIMENTO: DESENVOLVIMENTO INSTITUCIONAL/MODELOS DE GESTÃO"]
["CONVENÇÃO ANUAL PARA APRESENTAÇÃO DOS RESULTADOS DA ANTT (O FUTURO DO TRABALLHO E DA GESTÃO)","EXBOSS DESENVOLVIMENTO DE PESSOAS E ORGANIZAÇÕES EIRELI - ME","20139641/0001-39",1,"2020-02-18","2020-02-18","NO PAÍS","FLAVIA ROCHA MELO","CONTRATAÇÃO",136.63,0,58.11,{"$f":"SUM(J134:L134)","v":194.74},"TEMA DEFINIDO NO GUIA DE CONHECIMENTOS DA ANTT - EIXO TEMÁTICO/GRUPO DE CONHECIMENTO: DESENVOLVIMENTO INSTITUCIONAL/MODELOS DE GESTÃO"]
["CONVENÇÃO ANUAL PARA APRESENTAÇÃO DOS RESULTADOS DA ANTT (O FUTURO DO TRABALLHO E DA GESTÃO)","EXBOSS DESENVOLVIMENTO DE PESSOAS E ORGANIZAÇÕES EIRELI - ME","20139641/0001-39",1,"2020-02-18","2020-02-18","NO PAÍS","FRANCISCO JOSE MARQUES","CONTRATAÇÃO",136.63,0,65.37,{"$f":"SUM(J135:L135)","v":202},"TEMA DEFINIDO NO GUIA DE CONHECIMENTOS DA ANTT - EIXO TEMÁTICO/GRUPO DE CONHECIMENTO: DESENVOLVIMENTO INSTITUCIONAL/MODELOS DE GESTÃO"]
["CONVENÇÃO ANUAL PARA APRESENTAÇÃO DOS RESULTADOS DA ANTT (O FUTURO DO TRABALLHO E DA GESTÃO)","EXBOSS DESENVOLVIMENTO DE PESSOAS E ORGANIZAÇÕES EIRELI - ME","20139641/0001-39",1,"2020-02-18","2020-02-18","NO PAÍS","FRANCISCO LEONARDO CARVALHO SOUSA                 ","CONTRATAÇÃO",136.63,0,35.78,{"$f":"SUM(J136:L136)","v":172.41},"TEMA DEFINIDO NO GUIA DE CONHECIMENTOS DA ANTT - EIXO TEMÁTICO/GRUPO DE CONHECIMENTO: DESENVOLVIMENTO INSTITUCIONAL/MODELOS DE GESTÃO"]
["CONVENÇÃO ANUAL PARA APRESENTAÇÃO DOS RESULTADOS DA ANTT (O FUTURO DO TRABALLHO E DA GESTÃO)","EXBOSS DESENVOLVIMENTO DE PESSOAS E ORGANIZAÇÕES EIRELI - ME","20139641/0001-39",1,"2020-02-18","2020-02-18","NO PAÍS","GERALDO LUIZ ANSELMO","CONTRATAÇÃO",136.63,0,38.58,{"$f":"SUM(J137:L137)","v":175.20999999999998},"TEMA DEFINIDO NO GUIA DE CONHECIMENTOS DA ANTT - EIXO TEMÁTICO/GRUPO DE CONHECIMENTO: DESENVOLVIMENTO INSTITUCIONAL/MODELOS DE GESTÃO"]
["CONVENÇÃO ANUAL PARA APRESENTAÇÃO DOS RESULTADOS DA ANTT (O FUTURO DO TRABALLHO E DA GESTÃO)","EXBOSS DESENVOLVIMENTO DE PESSOAS E ORGANIZAÇÕES EIRELI - ME","20139641/0001-39",1,"2020-02-18","2020-02-18","NO PAÍS","GILSON GONCALVES DE MATOS","CONTRATAÇÃO",136.63,0,73.12,{"$f":"SUM(J138:L138)","v":209.75},"TEMA DEFINIDO NO GUIA DE CONHECIMENTOS DA ANTT - EIXO TEMÁTICO/GRUPO DE CONHECIMENTO: DESENVOLVIMENTO INSTITUCIONAL/MODELOS DE GESTÃO"]
["CONVENÇÃO ANUAL PARA APRESENTAÇÃO DOS RESULTADOS DA ANTT (O FUTURO DO TRABALLHO E DA GESTÃO)","EXBOSS DESENVOLVIMENTO DE PESSOAS E ORGANIZAÇÕES EIRELI - ME","20139641/0001-39",1,"2020-02-18","2020-02-18","NO PAÍS","GUILHERME FREDERICO NUNES DE QUEIROZ","CONTRATAÇÃO",136.63,0,35.78,{"$f":"SUM(J139:L139)","v":172.41},"TEMA DEFINIDO NO GUIA DE CONHECIMENTOS DA ANTT - EIXO TEMÁTICO/GRUPO DE CONHECIMENTO: DESENVOLVIMENTO INSTITUCIONAL/MODELOS DE GESTÃO"]
["CONVENÇÃO ANUAL PARA APRESENTAÇÃO DOS RESULTADOS DA ANTT (O FUTURO DO TRABALLHO E DA GESTÃO)","EXBOSS DESENVOLVIMENTO DE PESSOAS E ORGANIZAÇÕES EIRELI - ME","20139641/0001-39",1,"2020-02-18","2020-02-18","NO PAÍS","GUILHERME OLIVEIRA PIRES             ","CONTRATAÇÃO",136.63,0,73.12,{"$f":"SUM(J140:L140)","v":209.75},"TEMA DEFINIDO NO GUIA DE CONHECIMENTOS DA ANTT - EIXO TEMÁTICO/GRUPO DE CONHECIMENTO: DESENVOLVIMENTO INSTITUCIONAL/MODELOS DE GESTÃO"]
["CONVENÇÃO ANUAL PARA APRESENTAÇÃO DOS RESULTADOS DA ANTT (O FUTURO DO TRABALLHO E DA GESTÃO)","EXBOSS DESENVOLVIMENTO DE PESSOAS E ORGANIZAÇÕES EIRELI - ME","20139641/0001-39",1,"2020-02-18","2020-02-18","NO PAÍS","HALEY MARIA DE SOUSA ALMEIDA","CONTRATAÇÃO",136.63,0,76.489999999999995,{"$f":"SUM(J141:L141)","v":213.12},"TEMA DEFINIDO NO GUIA DE CONHECIMENTOS DA ANTT - EIXO TEMÁTICO/GRUPO DE CONHECIMENTO: DESENVOLVIMENTO INSTITUCIONAL/MODELOS DE GESTÃO"]
["CONVENÇÃO ANUAL PARA APRESENTAÇÃO DOS RESULTADOS DA ANTT (O FUTURO DO TRABALLHO E DA GESTÃO)","EXBOSS DESENVOLVIMENTO DE PESSOAS E ORGANIZAÇÕES EIRELI - ME","20139641/0001-39",1,"2020-02-18","2020-02-18","NO PAÍS","HELIO ROBERTO SILVA DE SOUSA","CONTRATAÇÃO",136.63,0,41.63,{"$f":"SUM(J142:L142)","v":178.26},"TEMA DEFINIDO NO GUIA DE CONHECIMENTOS DA ANTT - EIXO TEMÁTICO/GRUPO DE CONHECIMENTO: DESENVOLVIMENTO INSTITUCIONAL/MODELOS DE GESTÃO"]
["CONVENÇÃO ANUAL PARA APRESENTAÇÃO DOS RESULTADOS DA ANTT (O FUTURO DO TRABALLHO E DA GESTÃO)","EXBOSS DESENVOLVIMENTO DE PESSOAS E ORGANIZAÇÕES EIRELI - ME","20139641/0001-39",1,"2020-02-18","2020-02-18","NO PAÍS","HENRIQUE DE AMORIM LEITE","CONTRATAÇÃO",136.63,0,37.619999999999997,{"$f":"SUM(J143:L143)","v":174.25},"TEMA DEFINIDO NO GUIA DE CONHECIMENTOS DA ANTT - EIXO TEMÁTICO/GRUPO DE CONHECIMENTO: DESENVOLVIMENTO INSTITUCIONAL/MODELOS DE GESTÃO"]
["CONVENÇÃO ANUAL PARA APRESENTAÇÃO DOS RESULTADOS DA ANTT (O FUTURO DO TRABALLHO E DA GESTÃO)","EXBOSS DESENVOLVIMENTO DE PESSOAS E ORGANIZAÇÕES EIRELI - ME","20139641/0001-39",1,"2020-02-18","2020-02-18","NO PAÍS","IANA ARAUJO RODRIGUES","CONTRATAÇÃO",136.63,0,75.2,{"$f":"SUM(J144:L144)","v":211.82999999999998},"TEMA DEFINIDO NO GUIA DE CONHECIMENTOS DA ANTT - EIXO TEMÁTICO/GRUPO DE CONHECIMENTO: DESENVOLVIMENTO INSTITUCIONAL/MODELOS DE GESTÃO"]
["CONVENÇÃO ANUAL PARA APRESENTAÇÃO DOS RESULTADOS DA ANTT (O FUTURO DO TRABALLHO E DA GESTÃO)","EXBOSS DESENVOLVIMENTO DE PESSOAS E ORGANIZAÇÕES EIRELI - ME","20139641/0001-39",1,"2020-02-18","2020-02-18","NO PAÍS","IANA HOLANDA RISUENHO","CONTRATAÇÃO",136.63,0,65.53,{"$f":"SUM(J145:L145)","v":202.16},"TEMA DEFINIDO NO GUIA DE CONHECIMENTOS DA ANTT - EIXO TEMÁTICO/GRUPO DE CONHECIMENTO: DESENVOLVIMENTO INSTITUCIONAL/MODELOS DE GESTÃO"]
["CONVENÇÃO ANUAL PARA APRESENTAÇÃO DOS RESULTADOS DA ANTT (O FUTURO DO TRABALLHO E DA GESTÃO)","EXBOSS DESENVOLVIMENTO DE PESSOAS E ORGANIZAÇÕES EIRELI - ME","20139641/0001-39",1,"2020-02-18","2020-02-18","NO PAÍS","JANAINA DOS SANTOS","CONTRATAÇÃO",136.63,0,87.65,{"$f":"SUM(J146:L146)","v":224.28},"TEMA DEFINIDO NO GUIA DE CONHECIMENTOS DA ANTT - EIXO TEMÁTICO/GRUPO DE CONHECIMENTO: DESENVOLVIMENTO INSTITUCIONAL/MODELOS DE GESTÃO"]
["CONVENÇÃO ANUAL PARA APRESENTAÇÃO DOS RESULTADOS DA ANTT (O FUTURO DO TRABALLHO E DA GESTÃO)","EXBOSS DESENVOLVIMENTO DE PESSOAS E ORGANIZAÇÕES EIRELI - ME","20139641/0001-39",1,"2020-02-18","2020-02-18","NO PAÍS","JEAN MAFRA DOS REIS","CONTRATAÇÃO",136.63,0,87.65,{"$f":"SUM(J147:L147)","v":224.28},"TEMA DEFINIDO NO GUIA DE CONHECIMENTOS DA ANTT - EIXO TEMÁTICO/GRUPO DE CONHECIMENTO: DESENVOLVIMENTO INSTITUCIONAL/MODELOS DE GESTÃO"]
["CONVENÇÃO ANUAL PARA APRESENTAÇÃO DOS RESULTADOS DA ANTT (O FUTURO DO TRABALLHO E DA GESTÃO)","EXBOSS DESENVOLVIMENTO DE PESSOAS E ORGANIZAÇÕES EIRELI - ME","20139641/0001-39",1,"2020-02-18","2020-02-18","NO PAÍS","JOAO LUIZ NORONHA DA JORNADA","CONTRATAÇÃO",136.63,0,62.86,{"$f":"SUM(J148:L148)","v":199.49},"TEMA DEFINIDO NO GUIA DE CONHECIMENTOS DA ANTT - EIXO TEMÁTICO/GRUPO DE CONHECIMENTO: DESENVOLVIMENTO INSTITUCIONAL/MODELOS DE GESTÃO"]
["CONVENÇÃO ANUAL PARA APRESENTAÇÃO DOS RESULTADOS DA ANTT (O FUTURO DO TRABALLHO E DA GESTÃO)","EXBOSS DESENVOLVIMENTO DE PESSOAS E ORGANIZAÇÕES EIRELI - ME","20139641/0001-39",1,"2020-02-18","2020-02-18","NO PAÍS","JOAO PAULO DE SOUZA","CONTRATAÇÃO",136.63,0,42.683291666666669,{"$f":"SUM(J149:L149)","v":179.31329166666666},"TEMA DEFINIDO NO GUIA DE CONHECIMENTOS DA ANTT - EIXO TEMÁTICO/GRUPO DE CONHECIMENTO: DESENVOLVIMENTO INSTITUCIONAL/MODELOS DE GESTÃO"]
["CONVENÇÃO ANUAL PARA APRESENTAÇÃO DOS RESULTADOS DA ANTT (O FUTURO DO TRABALLHO E DA GESTÃO)","EXBOSS DESENVOLVIMENTO DE PESSOAS E ORGANIZAÇÕES EIRELI - ME","20139641/0001-39",1,"2020-02-18","2020-02-18","NO PAÍS","JOSÉ AIRES AMARAL FILHO","CONTRATAÇÃO",136.63,0,42.683291666666669,{"$f":"SUM(J150:L150)","v":179.31329166666666},"TEMA DEFINIDO NO GUIA DE CONHECIMENTOS DA ANTT - EIXO TEMÁTICO/GRUPO DE CONHECIMENTO: DESENVOLVIMENTO INSTITUCIONAL/MODELOS DE GESTÃO"]
["CONVENÇÃO ANUAL PARA APRESENTAÇÃO DOS RESULTADOS DA ANTT (O FUTURO DO TRABALLHO E DA GESTÃO)","EXBOSS DESENVOLVIMENTO DE PESSOAS E ORGANIZAÇÕES EIRELI - ME","20139641/0001-39",1,"2020-02-18","2020-02-18","NO PAÍS","JOSE CARLOS MORAES TRINDADE","CONTRATAÇÃO",136.63,0,36.32,{"$f":"SUM(J151:L151)","v":172.95},"TEMA DEFINIDO NO GUIA DE CONHECIMENTOS DA ANTT - EIXO TEMÁTICO/GRUPO DE CONHECIMENTO: DESENVOLVIMENTO INSTITUCIONAL/MODELOS DE GESTÃO"]
["CONVENÇÃO ANUAL PARA APRESENTAÇÃO DOS RESULTADOS DA ANTT (O FUTURO DO TRABALLHO E DA GESTÃO)","EXBOSS DESENVOLVIMENTO DE PESSOAS E ORGANIZAÇÕES EIRELI - ME","20139641/0001-39",1,"2020-02-18","2020-02-18","NO PAÍS","JOSE DA SILVA SANTOS","CONTRATAÇÃO",136.63,0,43.775750000000002,{"$f":"SUM(J152:L152)","v":180.40575000000001},"TEMA DEFINIDO NO GUIA DE CONHECIMENTOS DA ANTT - EIXO TEMÁTICO/GRUPO DE CONHECIMENTO: DESENVOLVIMENTO INSTITUCIONAL/MODELOS DE GESTÃO"]
["CONVENÇÃO ANUAL PARA APRESENTAÇÃO DOS RESULTADOS DA ANTT (O FUTURO DO TRABALLHO E DA GESTÃO)","EXBOSS DESENVOLVIMENTO DE PESSOAS E ORGANIZAÇÕES EIRELI - ME","20139641/0001-39",1,"2020-02-18","2020-02-18","NO PAÍS","JULIANA GONÇALVES DE OLIVEIRA","CONTRATAÇÃO",136.63,0,81.42,{"$f":"SUM(J153:L153)","v":218.05},"TEMA DEFINIDO NO GUIA DE CONHECIMENTOS DA ANTT - EIXO TEMÁTICO/GRUPO DE CONHECIMENTO: DESENVOLVIMENTO INSTITUCIONAL/MODELOS DE GESTÃO"]
["CONVENÇÃO ANUAL PARA APRESENTAÇÃO DOS RESULTADOS DA ANTT (O FUTURO DO TRABALLHO E DA GESTÃO)","EXBOSS DESENVOLVIMENTO DE PESSOAS E ORGANIZAÇÕES EIRELI - ME","20139641/0001-39",1,"2020-02-18","2020-02-18","NO PAÍS","JULIANA MIRANDA CRUZ RIBEIRO","CONTRATAÇÃO",136.63,0,41.19,{"$f":"SUM(J154:L154)","v":177.82},"TEMA DEFINIDO NO GUIA DE CONHECIMENTOS DA ANTT - EIXO TEMÁTICO/GRUPO DE CONHECIMENTO: DESENVOLVIMENTO INSTITUCIONAL/MODELOS DE GESTÃO"]
["CONVENÇÃO ANUAL PARA APRESENTAÇÃO DOS RESULTADOS DA ANTT (O FUTURO DO TRABALLHO E DA GESTÃO)","EXBOSS DESENVOLVIMENTO DE PESSOAS E ORGANIZAÇÕES EIRELI - ME","20139641/0001-39",1,"2020-02-18","2020-02-18","NO PAÍS","JULYCE ODILIA DE MATOS COSTA","CONTRATAÇÃO",136.63,0,83.500291666666669,{"$f":"SUM(J155:L155)","v":220.13029166666666},"TEMA DEFINIDO NO GUIA DE CONHECIMENTOS DA ANTT - EIXO TEMÁTICO/GRUPO DE CONHECIMENTO: DESENVOLVIMENTO INSTITUCIONAL/MODELOS DE GESTÃO"]
["CONVENÇÃO ANUAL PARA APRESENTAÇÃO DOS RESULTADOS DA ANTT (O FUTURO DO TRABALLHO E DA GESTÃO)","EXBOSS DESENVOLVIMENTO DE PESSOAS E ORGANIZAÇÕES EIRELI - ME","20139641/0001-39",1,"2020-02-18","2020-02-18","NO PAÍS","JUSCELINO PEDROSO DIAS","CONTRATAÇÃO",136.63,0,46.85,{"$f":"SUM(J156:L156)","v":183.48},"TEMA DEFINIDO NO GUIA DE CONHECIMENTOS DA ANTT - EIXO TEMÁTICO/GRUPO DE CONHECIMENTO: DESENVOLVIMENTO INSTITUCIONAL/MODELOS DE GESTÃO"]
["CONVENÇÃO ANUAL PARA APRESENTAÇÃO DOS RESULTADOS DA ANTT (O FUTURO DO TRABALLHO E DA GESTÃO)","EXBOSS DESENVOLVIMENTO DE PESSOAS E ORGANIZAÇÕES EIRELI - ME","20139641/0001-39",1,"2020-02-18","2020-02-18","NO PAÍS","KALINE DANTAS GALVAO","CONTRATAÇÃO",136.63,0,15.17,{"$f":"SUM(J157:L157)","v":151.79999999999998},"TEMA DEFINIDO NO GUIA DE CONHECIMENTOS DA ANTT - EIXO TEMÁTICO/GRUPO DE CONHECIMENTO: DESENVOLVIMENTO INSTITUCIONAL/MODELOS DE GESTÃO"]
["CONVENÇÃO ANUAL PARA APRESENTAÇÃO DOS RESULTADOS DA ANTT (O FUTURO DO TRABALLHO E DA GESTÃO)","EXBOSS DESENVOLVIMENTO DE PESSOAS E ORGANIZAÇÕES EIRELI - ME","20139641/0001-39",1,"2020-02-18","2020-02-18","NO PAÍS","KARLA CAMPOS DO CARMO","CONTRATAÇÃO",136.63,0,58.11,{"$f":"SUM(J158:L158)","v":194.74},"TEMA DEFINIDO NO GUIA DE CONHECIMENTOS DA ANTT - EIXO TEMÁTICO/GRUPO DE CONHECIMENTO: DESENVOLVIMENTO INSTITUCIONAL/MODELOS DE GESTÃO"]
["CONVENÇÃO ANUAL PARA APRESENTAÇÃO DOS RESULTADOS DA ANTT (O FUTURO DO TRABALLHO E DA GESTÃO)","EXBOSS DESENVOLVIMENTO DE PESSOAS E ORGANIZAÇÕES EIRELI - ME","20139641/0001-39",1,"2020-02-18","2020-02-18","NO PAÍS","LARISSA WENDLING BRAGA CÔRTES             ","CONTRATAÇÃO",136.63,0,73.12,{"$f":"SUM(J159:L159)","v":209.75},"TEMA DEFINIDO NO GUIA DE CONHECIMENTOS DA ANTT - EIXO TEMÁTICO/GRUPO DE CONHECIMENTO: DESENVOLVIMENTO INSTITUCIONAL/MODELOS DE GESTÃO"]
["CONVENÇÃO ANUAL PARA APRESENTAÇÃO DOS RESULTADOS DA ANTT (O FUTURO DO TRABALLHO E DA GESTÃO)","EXBOSS DESENVOLVIMENTO DE PESSOAS E ORGANIZAÇÕES EIRELI - ME","20139641/0001-39",1,"2020-02-18","2020-02-18","NO PAÍS","LEANDRO PAIVA DE OLIVEIRA","CONTRATAÇÃO",136.63,0,36.69,{"$f":"SUM(J160:L160)","v":173.32},"TEMA DEFINIDO NO GUIA DE CONHECIMENTOS DA ANTT - EIXO TEMÁTICO/GRUPO DE CONHECIMENTO: DESENVOLVIMENTO INSTITUCIONAL/MODELOS DE GESTÃO"]
["CONVENÇÃO ANUAL PARA APRESENTAÇÃO DOS RESULTADOS DA ANTT (O FUTURO DO TRABALLHO E DA GESTÃO)","EXBOSS DESENVOLVIMENTO DE PESSOAS E ORGANIZAÇÕES EIRELI - ME","20139641/0001-39",1,"2020-02-18","2020-02-18","NO PAÍS","LEILANE MACAMBIRA NORMANDO      ","CONTRATAÇÃO",136.63,0,67.53,{"$f":"SUM(J161:L161)","v":204.16},"TEMA DEFINIDO NO GUIA DE CONHECIMENTOS DA ANTT - EIXO TEMÁTICO/GRUPO DE CONHECIMENTO: DESENVOLVIMENTO INSTITUCIONAL/MODELOS DE GESTÃO"]
["CONVENÇÃO ANUAL PARA APRESENTAÇÃO DOS RESULTADOS DA ANTT (O FUTURO DO TRABALLHO E DA GESTÃO)","EXBOSS DESENVOLVIMENTO DE PESSOAS E ORGANIZAÇÕES EIRELI - ME","20139641/0001-39",1,"2020-02-18","2020-02-18","NO PAÍS","LEONARDO FARIAS PASSOS","CONTRATAÇÃO",136.63,0,91.33,{"$f":"SUM(J162:L162)","v":227.95999999999998},"TEMA DEFINIDO NO GUIA DE CONHECIMENTOS DA ANTT - EIXO TEMÁTICO/GRUPO DE CONHECIMENTO: DESENVOLVIMENTO INSTITUCIONAL/MODELOS DE GESTÃO"]
["CONVENÇÃO ANUAL PARA APRESENTAÇÃO DOS RESULTADOS DA ANTT (O FUTURO DO TRABALLHO E DA GESTÃO)","EXBOSS DESENVOLVIMENTO DE PESSOAS E ORGANIZAÇÕES EIRELI - ME","20139641/0001-39",1,"2020-02-18","2020-02-18","NO PAÍS","LEONARDO VIEIRA E SILVA","CONTRATAÇÃO",136.63,0,41.63,{"$f":"SUM(J163:L163)","v":178.26},"TEMA DEFINIDO NO GUIA DE CONHECIMENTOS DA ANTT - EIXO TEMÁTICO/GRUPO DE CONHECIMENTO: DESENVOLVIMENTO INSTITUCIONAL/MODELOS DE GESTÃO"]
["CONVENÇÃO ANUAL PARA APRESENTAÇÃO DOS RESULTADOS DA ANTT (O FUTURO DO TRABALLHO E DA GESTÃO)","EXBOSS DESENVOLVIMENTO DE PESSOAS E ORGANIZAÇÕES EIRELI - ME","20139641/0001-39",1,"2020-02-18","2020-02-18","NO PAÍS","LETICIA MACHADO DANTAS","CONTRATAÇÃO",136.63,0,43.775750000000002,{"$f":"SUM(J164:L164)","v":180.40575000000001},"TEMA DEFINIDO NO GUIA DE CONHECIMENTOS DA ANTT - EIXO TEMÁTICO/GRUPO DE CONHECIMENTO: DESENVOLVIMENTO INSTITUCIONAL/MODELOS DE GESTÃO"]
["CONVENÇÃO ANUAL PARA APRESENTAÇÃO DOS RESULTADOS DA ANTT (O FUTURO DO TRABALLHO E DA GESTÃO)","EXBOSS DESENVOLVIMENTO DE PESSOAS E ORGANIZAÇÕES EIRELI - ME","20139641/0001-39",1,"2020-02-18","2020-02-18","NO PAÍS","LEVINA APARECIDA MACHADO SILVA","CONTRATAÇÃO",136.63,0,87.65,{"$f":"SUM(J165:L165)","v":224.28},"TEMA DEFINIDO NO GUIA DE CONHECIMENTOS DA ANTT - EIXO TEMÁTICO/GRUPO DE CONHECIMENTO: DESENVOLVIMENTO INSTITUCIONAL/MODELOS DE GESTÃO"]
["CONVENÇÃO ANUAL PARA APRESENTAÇÃO DOS RESULTADOS DA ANTT (O FUTURO DO TRABALLHO E DA GESTÃO)","EXBOSS DESENVOLVIMENTO DE PESSOAS E ORGANIZAÇÕES EIRELI - ME","20139641/0001-39",1,"2020-02-18","2020-02-18","NO PAÍS","LIGIA MARIA DE OLIVEIRA BARROS","CONTRATAÇÃO",136.63,0,10.09,{"$f":"SUM(J166:L166)","v":146.72},"TEMA DEFINIDO NO GUIA DE CONHECIMENTOS DA ANTT - EIXO TEMÁTICO/GRUPO DE CONHECIMENTO: DESENVOLVIMENTO INSTITUCIONAL/MODELOS DE GESTÃO"]
["CONVENÇÃO ANUAL PARA APRESENTAÇÃO DOS RESULTADOS DA ANTT (O FUTURO DO TRABALLHO E DA GESTÃO)","EXBOSS DESENVOLVIMENTO DE PESSOAS E ORGANIZAÇÕES EIRELI - ME","20139641/0001-39",1,"2020-02-18","2020-02-18","NO PAÍS","LILIAN MORAIS DE OLIVEIRA","CONTRATAÇÃO",136.63,0,36.69,{"$f":"SUM(J167:L167)","v":173.32},"TEMA DEFINIDO NO GUIA DE CONHECIMENTOS DA ANTT - EIXO TEMÁTICO/GRUPO DE CONHECIMENTO: DESENVOLVIMENTO INSTITUCIONAL/MODELOS DE GESTÃO"]
["CONVENÇÃO ANUAL PARA APRESENTAÇÃO DOS RESULTADOS DA ANTT (O FUTURO DO TRABALLHO E DA GESTÃO)","EXBOSS DESENVOLVIMENTO DE PESSOAS E ORGANIZAÇÕES EIRELI - ME","20139641/0001-39",1,"2020-02-18","2020-02-18","NO PAÍS","LISANGELA JORGE CARIOCA SANTOS","CONTRATAÇÃO",136.63,0,41.63,{"$f":"SUM(J168:L168)","v":178.26},"TEMA DEFINIDO NO GUIA DE CONHECIMENTOS DA ANTT - EIXO TEMÁTICO/GRUPO DE CONHECIMENTO: DESENVOLVIMENTO INSTITUCIONAL/MODELOS DE GESTÃO"]
["CONVENÇÃO ANUAL PARA APRESENTAÇÃO DOS RESULTADOS DA ANTT (O FUTURO DO TRABALLHO E DA GESTÃO)","EXBOSS DESENVOLVIMENTO DE PESSOAS E ORGANIZAÇÕES EIRELI - ME","20139641/0001-39",1,"2020-02-18","2020-02-18","NO PAÍS","LIVIA RIBEIRO DE OLIVEIRA","CONTRATAÇÃO",136.63,0,67.53,{"$f":"SUM(J169:L169)","v":204.16},"TEMA DEFINIDO NO GUIA DE CONHECIMENTOS DA ANTT - EIXO TEMÁTICO/GRUPO DE CONHECIMENTO: DESENVOLVIMENTO INSTITUCIONAL/MODELOS DE GESTÃO"]
["CONVENÇÃO ANUAL PARA APRESENTAÇÃO DOS RESULTADOS DA ANTT (O FUTURO DO TRABALLHO E DA GESTÃO)","EXBOSS DESENVOLVIMENTO DE PESSOAS E ORGANIZAÇÕES EIRELI - ME","20139641/0001-39",1,"2020-02-18","2020-02-18","NO PAÍS","LUCIANO ESTEVE FERREIRA DE ASSIS","CONTRATAÇÃO",136.63,0,81.42,{"$f":"SUM(J170:L170)","v":218.05},"TEMA DEFINIDO NO GUIA DE CONHECIMENTOS DA ANTT - EIXO TEMÁTICO/GRUPO DE CONHECIMENTO: DESENVOLVIMENTO INSTITUCIONAL/MODELOS DE GESTÃO"]
["CONVENÇÃO ANUAL PARA APRESENTAÇÃO DOS RESULTADOS DA ANTT (O FUTURO DO TRABALLHO E DA GESTÃO)","EXBOSS DESENVOLVIMENTO DE PESSOAS E ORGANIZAÇÕES EIRELI - ME","20139641/0001-39",1,"2020-02-18","2020-02-18","NO PAÍS","LUCIANO ROSAS GREGGIO","CONTRATAÇÃO",136.63,0,40.119999999999997,{"$f":"SUM(J171:L171)","v":176.75},"TEMA DEFINIDO NO GUIA DE CONHECIMENTOS DA ANTT - EIXO TEMÁTICO/GRUPO DE CONHECIMENTO: DESENVOLVIMENTO INSTITUCIONAL/MODELOS DE GESTÃO"]
["CONVENÇÃO ANUAL PARA APRESENTAÇÃO DOS RESULTADOS DA ANTT (O FUTURO DO TRABALLHO E DA GESTÃO)","EXBOSS DESENVOLVIMENTO DE PESSOAS E ORGANIZAÇÕES EIRELI - ME","20139641/0001-39",1,"2020-02-18","2020-02-18","NO PAÍS","LUCIENE DA COSTA FRAZÃO DE PINA","CONTRATAÇÃO",136.63,0,75.52,{"$f":"SUM(J172:L172)","v":212.14999999999998},"TEMA DEFINIDO NO GUIA DE CONHECIMENTOS DA ANTT - EIXO TEMÁTICO/GRUPO DE CONHECIMENTO: DESENVOLVIMENTO INSTITUCIONAL/MODELOS DE GESTÃO"]
["CONVENÇÃO ANUAL PARA APRESENTAÇÃO DOS RESULTADOS DA ANTT (O FUTURO DO TRABALLHO E DA GESTÃO)","EXBOSS DESENVOLVIMENTO DE PESSOAS E ORGANIZAÇÕES EIRELI - ME","20139641/0001-39",1,"2020-02-18","2020-02-18","NO PAÍS","LUIS ALBERTO AQUINO AGRA","CONTRATAÇÃO",136.63,0,81.42,{"$f":"SUM(J173:L173)","v":218.05},"TEMA DEFINIDO NO GUIA DE CONHECIMENTOS DA ANTT - EIXO TEMÁTICO/GRUPO DE CONHECIMENTO: DESENVOLVIMENTO INSTITUCIONAL/MODELOS DE GESTÃO"]
["CONVENÇÃO ANUAL PARA APRESENTAÇÃO DOS RESULTADOS DA ANTT (O FUTURO DO TRABALLHO E DA GESTÃO)","EXBOSS DESENVOLVIMENTO DE PESSOAS E ORGANIZAÇÕES EIRELI - ME","20139641/0001-39",1,"2020-02-18","2020-02-18","NO PAÍS","LUIS HENRIQUE SOARES DOS SANTOS","CONTRATAÇÃO",136.63,0,42.28,{"$f":"SUM(J174:L174)","v":178.91},"TEMA DEFINIDO NO GUIA DE CONHECIMENTOS DA ANTT - EIXO TEMÁTICO/GRUPO DE CONHECIMENTO: DESENVOLVIMENTO INSTITUCIONAL/MODELOS DE GESTÃO"]
["CONVENÇÃO ANUAL PARA APRESENTAÇÃO DOS RESULTADOS DA ANTT (O FUTURO DO TRABALLHO E DA GESTÃO)","EXBOSS DESENVOLVIMENTO DE PESSOAS E ORGANIZAÇÕES EIRELI - ME","20139641/0001-39",1,"2020-02-18","2020-02-18","NO PAÍS","MAISA PARRA TUCUNDUVA","CONTRATAÇÃO",136.63,0,42.28,{"$f":"SUM(J175:L175)","v":178.91},"TEMA DEFINIDO NO GUIA DE CONHECIMENTOS DA ANTT - EIXO TEMÁTICO/GRUPO DE CONHECIMENTO: DESENVOLVIMENTO INSTITUCIONAL/MODELOS DE GESTÃO"]
["CONVENÇÃO ANUAL PARA APRESENTAÇÃO DOS RESULTADOS DA ANTT (O FUTURO DO TRABALLHO E DA GESTÃO)","EXBOSS DESENVOLVIMENTO DE PESSOAS E ORGANIZAÇÕES EIRELI - ME","20139641/0001-39",1,"2020-02-18","2020-02-18","NO PAÍS","MARCELO BAVIER MARCOS","CONTRATAÇÃO",136.63,0,75.2,{"$f":"SUM(J176:L176)","v":211.82999999999998},"TEMA DEFINIDO NO GUIA DE CONHECIMENTOS DA ANTT - EIXO TEMÁTICO/GRUPO DE CONHECIMENTO: DESENVOLVIMENTO INSTITUCIONAL/MODELOS DE GESTÃO"]
["CONVENÇÃO ANUAL PARA APRESENTAÇÃO DOS RESULTADOS DA ANTT (O FUTURO DO TRABALLHO E DA GESTÃO)","EXBOSS DESENVOLVIMENTO DE PESSOAS E ORGANIZAÇÕES EIRELI - ME","20139641/0001-39",1,"2020-02-18","2020-02-18","NO PAÍS","MARCELO JOSÉ BARBOSA AMORELLI","CONTRATAÇÃO",136.63,0,87.65,{"$f":"SUM(J177:L177)","v":224.28},"TEMA DEFINIDO NO GUIA DE CONHECIMENTOS DA ANTT - EIXO TEMÁTICO/GRUPO DE CONHECIMENTO: DESENVOLVIMENTO INSTITUCIONAL/MODELOS DE GESTÃO"]
["CONVENÇÃO ANUAL PARA APRESENTAÇÃO DOS RESULTADOS DA ANTT (O FUTURO DO TRABALLHO E DA GESTÃO)","EXBOSS DESENVOLVIMENTO DE PESSOAS E ORGANIZAÇÕES EIRELI - ME","20139641/0001-39",1,"2020-02-18","2020-02-18","NO PAÍS","MARCELO PEREIRA RAMOS","CONTRATAÇÃO",136.63,0,42.683291666666669,{"$f":"SUM(J178:L178)","v":179.31329166666666},"TEMA DEFINIDO NO GUIA DE CONHECIMENTOS DA ANTT - EIXO TEMÁTICO/GRUPO DE CONHECIMENTO: DESENVOLVIMENTO INSTITUCIONAL/MODELOS DE GESTÃO"]
["CONVENÇÃO ANUAL PARA APRESENTAÇÃO DOS RESULTADOS DA ANTT (O FUTURO DO TRABALLHO E DA GESTÃO)","EXBOSS DESENVOLVIMENTO DE PESSOAS E ORGANIZAÇÕES EIRELI - ME","20139641/0001-39",1,"2020-02-18","2020-02-18","NO PAÍS","MARCIA LIKA MON-MA","CONTRATAÇÃO",136.63,0,85.58,{"$f":"SUM(J179:L179)","v":222.20999999999998},"TEMA DEFINIDO NO GUIA DE CONHECIMENTOS DA ANTT - EIXO TEMÁTICO/GRUPO DE CONHECIMENTO: DESENVOLVIMENTO INSTITUCIONAL/MODELOS DE GESTÃO"]
["CONVENÇÃO ANUAL PARA APRESENTAÇÃO DOS RESULTADOS DA ANTT (O FUTURO DO TRABALLHO E DA GESTÃO)","EXBOSS DESENVOLVIMENTO DE PESSOAS E ORGANIZAÇÕES EIRELI - ME","20139641/0001-39",1,"2020-02-18","2020-02-18","NO PAÍS","MARCIA RODRIGUES DOS SANTOS","CONTRATAÇÃO",136.63,0,66.94,{"$f":"SUM(J180:L180)","v":203.57},"TEMA DEFINIDO NO GUIA DE CONHECIMENTOS DA ANTT - EIXO TEMÁTICO/GRUPO DE CONHECIMENTO: DESENVOLVIMENTO INSTITUCIONAL/MODELOS DE GESTÃO"]
["CONVENÇÃO ANUAL PARA APRESENTAÇÃO DOS RESULTADOS DA ANTT (O FUTURO DO TRABALLHO E DA GESTÃO)","EXBOSS DESENVOLVIMENTO DE PESSOAS E ORGANIZAÇÕES EIRELI - ME","20139641/0001-39",1,"2020-02-18","2020-02-18","NO PAÍS","MARCILIO FEITOSA GOMES","CONTRATAÇÃO",136.63,0,15.17,{"$f":"SUM(J181:L181)","v":151.79999999999998},"TEMA DEFINIDO NO GUIA DE CONHECIMENTOS DA ANTT - EIXO TEMÁTICO/GRUPO DE CONHECIMENTO: DESENVOLVIMENTO INSTITUCIONAL/MODELOS DE GESTÃO"]
["CONVENÇÃO ANUAL PARA APRESENTAÇÃO DOS RESULTADOS DA ANTT (O FUTURO DO TRABALLHO E DA GESTÃO)","EXBOSS DESENVOLVIMENTO DE PESSOAS E ORGANIZAÇÕES EIRELI - ME","20139641/0001-39",1,"2020-02-18","2020-02-18","NO PAÍS","MARCIO DE OLIVEIRA PINTO","CONTRATAÇÃO",136.63,0,81.42,{"$f":"SUM(J182:L182)","v":218.05},"TEMA DEFINIDO NO GUIA DE CONHECIMENTOS DA ANTT - EIXO TEMÁTICO/GRUPO DE CONHECIMENTO: DESENVOLVIMENTO INSTITUCIONAL/MODELOS DE GESTÃO"]
["CONVENÇÃO ANUAL PARA APRESENTAÇÃO DOS RESULTADOS DA ANTT (O FUTURO DO TRABALLHO E DA GESTÃO)","EXBOSS DESENVOLVIMENTO DE PESSOAS E ORGANIZAÇÕES EIRELI - ME","20139641/0001-39",1,"2020-02-18","2020-02-18","NO PAÍS","MARCIO LUIS GALINDO","CONTRATAÇÃO",136.63,0,135.56,{"$f":"SUM(J183:L183)","v":272.19},"TEMA DEFINIDO NO GUIA DE CONHECIMENTOS DA ANTT - EIXO TEMÁTICO/GRUPO DE CONHECIMENTO: DESENVOLVIMENTO INSTITUCIONAL/MODELOS DE GESTÃO"]
["CONVENÇÃO ANUAL PARA APRESENTAÇÃO DOS RESULTADOS DA ANTT (O FUTURO DO TRABALLHO E DA GESTÃO)","EXBOSS DESENVOLVIMENTO DE PESSOAS E ORGANIZAÇÕES EIRELI - ME","20139641/0001-39",1,"2020-02-18","2020-02-18","NO PAÍS","MARCIO XAVIER DE ARAUJO","CONTRATAÇÃO",136.63,0,69.52,{"$f":"SUM(J184:L184)","v":206.14999999999998},"TEMA DEFINIDO NO GUIA DE CONHECIMENTOS DA ANTT - EIXO TEMÁTICO/GRUPO DE CONHECIMENTO: DESENVOLVIMENTO INSTITUCIONAL/MODELOS DE GESTÃO"]
["CONVENÇÃO ANUAL PARA APRESENTAÇÃO DOS RESULTADOS DA ANTT (O FUTURO DO TRABALLHO E DA GESTÃO)","EXBOSS DESENVOLVIMENTO DE PESSOAS E ORGANIZAÇÕES EIRELI - ME","20139641/0001-39",1,"2020-02-18","2020-02-18","NO PAÍS","MARCO JUN BORGES","CONTRATAÇÃO",136.63,0,41.63,{"$f":"SUM(J185:L185)","v":178.26},"TEMA DEFINIDO NO GUIA DE CONHECIMENTOS DA ANTT - EIXO TEMÁTICO/GRUPO DE CONHECIMENTO: DESENVOLVIMENTO INSTITUCIONAL/MODELOS DE GESTÃO"]
["CONVENÇÃO ANUAL PARA APRESENTAÇÃO DOS RESULTADOS DA ANTT (O FUTURO DO TRABALLHO E DA GESTÃO)","EXBOSS DESENVOLVIMENTO DE PESSOAS E ORGANIZAÇÕES EIRELI - ME","20139641/0001-39",1,"2020-02-18","2020-02-18","NO PAÍS","MARCOS ANTONIO LIMA DAS NEVES","CONTRATAÇÃO",136.63,0,13.81,{"$f":"SUM(J186:L186)","v":150.44},"TEMA DEFINIDO NO GUIA DE CONHECIMENTOS DA ANTT - EIXO TEMÁTICO/GRUPO DE CONHECIMENTO: DESENVOLVIMENTO INSTITUCIONAL/MODELOS DE GESTÃO"]
["CONVENÇÃO ANUAL PARA APRESENTAÇÃO DOS RESULTADOS DA ANTT (O FUTURO DO TRABALLHO E DA GESTÃO)","EXBOSS DESENVOLVIMENTO DE PESSOAS E ORGANIZAÇÕES EIRELI - ME","20139641/0001-39",1,"2020-02-18","2020-02-18","NO PAÍS","MARIA CAROLINA PULLEN DE ALENCAR ARRAIS","CONTRATAÇÃO",136.63,0,89.9,{"$f":"SUM(J187:L187)","v":226.53},"TEMA DEFINIDO NO GUIA DE CONHECIMENTOS DA ANTT - EIXO TEMÁTICO/GRUPO DE CONHECIMENTO: DESENVOLVIMENTO INSTITUCIONAL/MODELOS DE GESTÃO"]
["CONVENÇÃO ANUAL PARA APRESENTAÇÃO DOS RESULTADOS DA ANTT (O FUTURO DO TRABALLHO E DA GESTÃO)","EXBOSS DESENVOLVIMENTO DE PESSOAS E ORGANIZAÇÕES EIRELI - ME","20139641/0001-39",1,"2020-02-18","2020-02-18","NO PAÍS","MARIA CECILIA SANT ANNA LACERDA","CONTRATAÇÃO",136.63,0,67.09,{"$f":"SUM(J188:L188)","v":203.72},"TEMA DEFINIDO NO GUIA DE CONHECIMENTOS DA ANTT - EIXO TEMÁTICO/GRUPO DE CONHECIMENTO: DESENVOLVIMENTO INSTITUCIONAL/MODELOS DE GESTÃO"]
["CONVENÇÃO ANUAL PARA APRESENTAÇÃO DOS RESULTADOS DA ANTT (O FUTURO DO TRABALLHO E DA GESTÃO)","EXBOSS DESENVOLVIMENTO DE PESSOAS E ORGANIZAÇÕES EIRELI - ME","20139641/0001-39",1,"2020-02-18","2020-02-18","NO PAÍS","MARIA DE LOURDES DELGADO CYRNE MARTINS","CONTRATAÇÃO",136.63,0,81.42,{"$f":"SUM(J189:L189)","v":218.05},"TEMA DEFINIDO NO GUIA DE CONHECIMENTOS DA ANTT - EIXO TEMÁTICO/GRUPO DE CONHECIMENTO: DESENVOLVIMENTO INSTITUCIONAL/MODELOS DE GESTÃO"]
["CONVENÇÃO ANUAL PARA APRESENTAÇÃO DOS RESULTADOS DA ANTT (O FUTURO DO TRABALLHO E DA GESTÃO)","EXBOSS DESENVOLVIMENTO DE PESSOAS E ORGANIZAÇÕES EIRELI - ME","20139641/0001-39",1,"2020-02-18","2020-02-18","NO PAÍS","MARIA DE LOURDES LEITE BARRETO","CONTRATAÇÃO",136.63,0,28.39,{"$f":"SUM(J190:L190)","v":165.01999999999998},"TEMA DEFINIDO NO GUIA DE CONHECIMENTOS DA ANTT - EIXO TEMÁTICO/GRUPO DE CONHECIMENTO: DESENVOLVIMENTO INSTITUCIONAL/MODELOS DE GESTÃO"]
["CONVENÇÃO ANUAL PARA APRESENTAÇÃO DOS RESULTADOS DA ANTT (O FUTURO DO TRABALLHO E DA GESTÃO)","EXBOSS DESENVOLVIMENTO DE PESSOAS E ORGANIZAÇÕES EIRELI - ME","20139641/0001-39",1,"2020-02-18","2020-02-18","NO PAÍS","MARIANA LOMBARDO DE LIMA","CONTRATAÇÃO",136.63,0,83.500291666666669,{"$f":"SUM(J191:L191)","v":220.13029166666666},"TEMA DEFINIDO NO GUIA DE CONHECIMENTOS DA ANTT - EIXO TEMÁTICO/GRUPO DE CONHECIMENTO: DESENVOLVIMENTO INSTITUCIONAL/MODELOS DE GESTÃO"]
["CONVENÇÃO ANUAL PARA APRESENTAÇÃO DOS RESULTADOS DA ANTT (O FUTURO DO TRABALLHO E DA GESTÃO)","EXBOSS DESENVOLVIMENTO DE PESSOAS E ORGANIZAÇÕES EIRELI - ME","20139641/0001-39",1,"2020-02-18","2020-02-18","NO PAÍS","MARINA SOARES ALMEIDA            ","CONTRATAÇÃO",136.63,0,71.05,{"$f":"SUM(J192:L192)","v":207.68},"TEMA DEFINIDO NO GUIA DE CONHECIMENTOS DA ANTT - EIXO TEMÁTICO/GRUPO DE CONHECIMENTO: DESENVOLVIMENTO INSTITUCIONAL/MODELOS DE GESTÃO"]
["CONVENÇÃO ANUAL PARA APRESENTAÇÃO DOS RESULTADOS DA ANTT (O FUTURO DO TRABALLHO E DA GESTÃO)","EXBOSS DESENVOLVIMENTO DE PESSOAS E ORGANIZAÇÕES EIRELI - ME","20139641/0001-39",1,"2020-02-18","2020-02-18","NO PAÍS","MARINA VELOSO DE MELO DOS SANTOS","CONTRATAÇÃO",136.63,0,75.52,{"$f":"SUM(J193:L193)","v":212.14999999999998},"TEMA DEFINIDO NO GUIA DE CONHECIMENTOS DA ANTT - EIXO TEMÁTICO/GRUPO DE CONHECIMENTO: DESENVOLVIMENTO INSTITUCIONAL/MODELOS DE GESTÃO"]
["CONVENÇÃO ANUAL PARA APRESENTAÇÃO DOS RESULTADOS DA ANTT (O FUTURO DO TRABALLHO E DA GESTÃO)","EXBOSS DESENVOLVIMENTO DE PESSOAS E ORGANIZAÇÕES EIRELI - ME","20139641/0001-39",1,"2020-02-18","2020-02-18","NO PAÍS","MAURICIO HIDEO TAMINATO AMEOMO","CONTRATAÇÃO",136.63,0,41.63,{"$f":"SUM(J194:L194)","v":178.26},"TEMA DEFINIDO NO GUIA DE CONHECIMENTOS DA ANTT - EIXO TEMÁTICO/GRUPO DE CONHECIMENTO: DESENVOLVIMENTO INSTITUCIONAL/MODELOS DE GESTÃO"]
["CONVENÇÃO ANUAL PARA APRESENTAÇÃO DOS RESULTADOS DA ANTT (O FUTURO DO TRABALLHO E DA GESTÃO)","EXBOSS DESENVOLVIMENTO DE PESSOAS E ORGANIZAÇÕES EIRELI - ME","20139641/0001-39",1,"2020-02-18","2020-02-18","NO PAÍS","MONICA MARINHO DO NASCIMENTO DELAMARE","CONTRATAÇÃO",136.63,0,42.28,{"$f":"SUM(J195:L195)","v":178.91},"TEMA DEFINIDO NO GUIA DE CONHECIMENTOS DA ANTT - EIXO TEMÁTICO/GRUPO DE CONHECIMENTO: DESENVOLVIMENTO INSTITUCIONAL/MODELOS DE GESTÃO"]
["CONVENÇÃO ANUAL PARA APRESENTAÇÃO DOS RESULTADOS DA ANTT (O FUTURO DO TRABALLHO E DA GESTÃO)","EXBOSS DESENVOLVIMENTO DE PESSOAS E ORGANIZAÇÕES EIRELI - ME","20139641/0001-39",1,"2020-02-18","2020-02-18","NO PAÍS","MURSHED MENEZES ALI","CONTRATAÇÃO",136.63,0,87.65,{"$f":"SUM(J196:L196)","v":224.28},"TEMA DEFINIDO NO GUIA DE CONHECIMENTOS DA ANTT - EIXO TEMÁTICO/GRUPO DE CONHECIMENTO: DESENVOLVIMENTO INSTITUCIONAL/MODELOS DE GESTÃO"]
["CONVENÇÃO ANUAL PARA APRESENTAÇÃO DOS RESULTADOS DA ANTT (O FUTURO DO TRABALLHO E DA GESTÃO)","EXBOSS DESENVOLVIMENTO DE PESSOAS E ORGANIZAÇÕES EIRELI - ME","20139641/0001-39",1,"2020-02-18","2020-02-18","NO PAÍS","MYLENA MOREIRA DE ALENCASTRO COSTA","CONTRATAÇÃO",136.63,0,148.9,{"$f":"SUM(J197:L197)","v":285.52999999999997},"TEMA DEFINIDO NO GUIA DE CONHECIMENTOS DA ANTT - EIXO TEMÁTICO/GRUPO DE CONHECIMENTO: DESENVOLVIMENTO INSTITUCIONAL/MODELOS DE GESTÃO"]
["CONVENÇÃO ANUAL PARA APRESENTAÇÃO DOS RESULTADOS DA ANTT (O FUTURO DO TRABALLHO E DA GESTÃO)","EXBOSS DESENVOLVIMENTO DE PESSOAS E ORGANIZAÇÕES EIRELI - ME","20139641/0001-39",1,"2020-02-18","2020-02-18","NO PAÍS","NARA KOHLSDORF","CONTRATAÇÃO",136.63,0,87.65,{"$f":"SUM(J198:L198)","v":224.28},"TEMA DEFINIDO NO GUIA DE CONHECIMENTOS DA ANTT - EIXO TEMÁTICO/GRUPO DE CONHECIMENTO: DESENVOLVIMENTO INSTITUCIONAL/MODELOS DE GESTÃO"]
["CONVENÇÃO ANUAL PARA APRESENTAÇÃO DOS RESULTADOS DA ANTT (O FUTURO DO TRABALLHO E DA GESTÃO)","EXBOSS DESENVOLVIMENTO DE PESSOAS E ORGANIZAÇÕES EIRELI - ME","20139641/0001-39",1,"2020-02-18","2020-02-18","NO PAÍS","NOBORU OFUGI","CONTRATAÇÃO",136.63,0,65.37,{"$f":"SUM(J199:L199)","v":202},"TEMA DEFINIDO NO GUIA DE CONHECIMENTOS DA ANTT - EIXO TEMÁTICO/GRUPO DE CONHECIMENTO: DESENVOLVIMENTO INSTITUCIONAL/MODELOS DE GESTÃO"]
["CONVENÇÃO ANUAL PARA APRESENTAÇÃO DOS RESULTADOS DA ANTT (O FUTURO DO TRABALLHO E DA GESTÃO)","EXBOSS DESENVOLVIMENTO DE PESSOAS E ORGANIZAÇÕES EIRELI - ME","20139641/0001-39",1,"2020-02-18","2020-02-18","NO PAÍS","PAULO EDUARDO IMPROTA SARAIVA","CONTRATAÇÃO",136.63,0,85.58,{"$f":"SUM(J200:L200)","v":222.20999999999998},"TEMA DEFINIDO NO GUIA DE CONHECIMENTOS DA ANTT - EIXO TEMÁTICO/GRUPO DE CONHECIMENTO: DESENVOLVIMENTO INSTITUCIONAL/MODELOS DE GESTÃO"]
["CONVENÇÃO ANUAL PARA APRESENTAÇÃO DOS RESULTADOS DA ANTT (O FUTURO DO TRABALLHO E DA GESTÃO)","EXBOSS DESENVOLVIMENTO DE PESSOAS E ORGANIZAÇÕES EIRELI - ME","20139641/0001-39",1,"2020-02-18","2020-02-18","NO PAÍS","PAULO FABIO DA SILVA EUGENIO","CONTRATAÇÃO",136.63,0,73.12,{"$f":"SUM(J201:L201)","v":209.75},"TEMA DEFINIDO NO GUIA DE CONHECIMENTOS DA ANTT - EIXO TEMÁTICO/GRUPO DE CONHECIMENTO: DESENVOLVIMENTO INSTITUCIONAL/MODELOS DE GESTÃO"]
["CONVENÇÃO ANUAL PARA APRESENTAÇÃO DOS RESULTADOS DA ANTT (O FUTURO DO TRABALLHO E DA GESTÃO)","EXBOSS DESENVOLVIMENTO DE PESSOAS E ORGANIZAÇÕES EIRELI - ME","20139641/0001-39",1,"2020-02-18","2020-02-18","NO PAÍS","PAULO JOSE  MILANEZ","CONTRATAÇÃO",136.63,0,43.775750000000002,{"$f":"SUM(J202:L202)","v":180.40575000000001},"TEMA DEFINIDO NO GUIA DE CONHECIMENTOS DA ANTT - EIXO TEMÁTICO/GRUPO DE CONHECIMENTO: DESENVOLVIMENTO INSTITUCIONAL/MODELOS DE GESTÃO"]
["CONVENÇÃO ANUAL PARA APRESENTAÇÃO DOS RESULTADOS DA ANTT (O FUTURO DO TRABALLHO E DA GESTÃO)","EXBOSS DESENVOLVIMENTO DE PESSOAS E ORGANIZAÇÕES EIRELI - ME","20139641/0001-39",1,"2020-02-18","2020-02-18","NO PAÍS","PAULO RICARDO ARAUJO DE ORNELAS MENDES","CONTRATAÇÃO",136.63,0,89.33,{"$f":"SUM(J203:L203)","v":225.95999999999998},"TEMA DEFINIDO NO GUIA DE CONHECIMENTOS DA ANTT - EIXO TEMÁTICO/GRUPO DE CONHECIMENTO: DESENVOLVIMENTO INSTITUCIONAL/MODELOS DE GESTÃO"]
["CONVENÇÃO ANUAL PARA APRESENTAÇÃO DOS RESULTADOS DA ANTT (O FUTURO DO TRABALLHO E DA GESTÃO)","EXBOSS DESENVOLVIMENTO DE PESSOAS E ORGANIZAÇÕES EIRELI - ME","20139641/0001-39",1,"2020-02-18","2020-02-18","NO PAÍS","PAULO SERGIO BEZERRA DOS SANTOS","CONTRATAÇÃO",136.63,0,42.28,{"$f":"SUM(J204:L204)","v":178.91},"TEMA DEFINIDO NO GUIA DE CONHECIMENTOS DA ANTT - EIXO TEMÁTICO/GRUPO DE CONHECIMENTO: DESENVOLVIMENTO INSTITUCIONAL/MODELOS DE GESTÃO"]
["CONVENÇÃO ANUAL PARA APRESENTAÇÃO DOS RESULTADOS DA ANTT (O FUTURO DO TRABALLHO E DA GESTÃO)","EXBOSS DESENVOLVIMENTO DE PESSOAS E ORGANIZAÇÕES EIRELI - ME","20139641/0001-39",1,"2020-02-18","2020-02-18","NO PAÍS","PRISCILA CUNHA DO NASCIMENTO","CONTRATAÇÃO",136.62,0,148.63,{"$f":"SUM(J205:L205)","v":285.25},"TEMA DEFINIDO NO GUIA DE CONHECIMENTOS DA ANTT - EIXO TEMÁTICO/GRUPO DE CONHECIMENTO: DESENVOLVIMENTO INSTITUCIONAL/MODELOS DE GESTÃO"]
["CONVENÇÃO ANUAL PARA APRESENTAÇÃO DOS RESULTADOS DA ANTT (O FUTURO DO TRABALLHO E DA GESTÃO)","EXBOSS DESENVOLVIMENTO DE PESSOAS E ORGANIZAÇÕES EIRELI - ME","20139641/0001-39",1,"2020-02-18","2020-02-18","NO PAÍS","RAFAEL PEREIRA GONCALVES","CONTRATAÇÃO",136.62,0,11.47,{"$f":"SUM(J206:L206)","v":148.09},"TEMA DEFINIDO NO GUIA DE CONHECIMENTOS DA ANTT - EIXO TEMÁTICO/GRUPO DE CONHECIMENTO: DESENVOLVIMENTO INSTITUCIONAL/MODELOS DE GESTÃO"]
["CONVENÇÃO ANUAL PARA APRESENTAÇÃO DOS RESULTADOS DA ANTT (O FUTURO DO TRABALLHO E DA GESTÃO)","EXBOSS DESENVOLVIMENTO DE PESSOAS E ORGANIZAÇÕES EIRELI - ME","20139641/0001-39",1,"2020-02-18","2020-02-18","NO PAÍS","RENATA TEIXEIRA CAVALCANTI CRUZ","CONTRATAÇÃO",136.62,0,77.52,{"$f":"SUM(J207:L207)","v":214.14},"TEMA DEFINIDO NO GUIA DE CONHECIMENTOS DA ANTT - EIXO TEMÁTICO/GRUPO DE CONHECIMENTO: DESENVOLVIMENTO INSTITUCIONAL/MODELOS DE GESTÃO"]
["CONVENÇÃO ANUAL PARA APRESENTAÇÃO DOS RESULTADOS DA ANTT (O FUTURO DO TRABALLHO E DA GESTÃO)","EXBOSS DESENVOLVIMENTO DE PESSOAS E ORGANIZAÇÕES EIRELI - ME","20139641/0001-39",1,"2020-02-18","2020-02-18","NO PAÍS","RENATO DE MIRANDA SANTOS","CONTRATAÇÃO",136.62,0,85.58,{"$f":"SUM(J208:L208)","v":222.2},"TEMA DEFINIDO NO GUIA DE CONHECIMENTOS DA ANTT - EIXO TEMÁTICO/GRUPO DE CONHECIMENTO: DESENVOLVIMENTO INSTITUCIONAL/MODELOS DE GESTÃO"]
["CONVENÇÃO ANUAL PARA APRESENTAÇÃO DOS RESULTADOS DA ANTT (O FUTURO DO TRABALLHO E DA GESTÃO)","EXBOSS DESENVOLVIMENTO DE PESSOAS E ORGANIZAÇÕES EIRELI - ME","20139641/0001-39",1,"2020-02-18","2020-02-18","NO PAÍS","RENATO MONTEIRO MIRANDA","CONTRATAÇÃO",136.62,0,36.69,{"$f":"SUM(J209:L209)","v":173.31},"TEMA DEFINIDO NO GUIA DE CONHECIMENTOS DA ANTT - EIXO TEMÁTICO/GRUPO DE CONHECIMENTO: DESENVOLVIMENTO INSTITUCIONAL/MODELOS DE GESTÃO"]
["CONVENÇÃO ANUAL PARA APRESENTAÇÃO DOS RESULTADOS DA ANTT (O FUTURO DO TRABALLHO E DA GESTÃO)","EXBOSS DESENVOLVIMENTO DE PESSOAS E ORGANIZAÇÕES EIRELI - ME","20139641/0001-39",1,"2020-02-18","2020-02-18","NO PAÍS","RODRIGO BONECINI DE ALMEIDA","CONTRATAÇÃO",136.62,0,73.12,{"$f":"SUM(J210:L210)","v":209.74},"TEMA DEFINIDO NO GUIA DE CONHECIMENTOS DA ANTT - EIXO TEMÁTICO/GRUPO DE CONHECIMENTO: DESENVOLVIMENTO INSTITUCIONAL/MODELOS DE GESTÃO"]
["CONVENÇÃO ANUAL PARA APRESENTAÇÃO DOS RESULTADOS DA ANTT (O FUTURO DO TRABALLHO E DA GESTÃO)","EXBOSS DESENVOLVIMENTO DE PESSOAS E ORGANIZAÇÕES EIRELI - ME","20139641/0001-39",1,"2020-02-18","2020-02-18","NO PAÍS","RODRIGO PINTO IGREJA","CONTRATAÇÃO",136.62,0,83.500291666666669,{"$f":"SUM(J211:L211)","v":220.12029166666667},"TEMA DEFINIDO NO GUIA DE CONHECIMENTOS DA ANTT - EIXO TEMÁTICO/GRUPO DE CONHECIMENTO: DESENVOLVIMENTO INSTITUCIONAL/MODELOS DE GESTÃO"]
["CONVENÇÃO ANUAL PARA APRESENTAÇÃO DOS RESULTADOS DA ANTT (O FUTURO DO TRABALLHO E DA GESTÃO)","EXBOSS DESENVOLVIMENTO DE PESSOAS E ORGANIZAÇÕES EIRELI - ME","20139641/0001-39",1,"2020-02-18","2020-02-18","NO PAÍS","ROMULO LUCENA SILVA","CONTRATAÇÃO",136.62,0,42.28,{"$f":"SUM(J212:L212)","v":178.9},"TEMA DEFINIDO NO GUIA DE CONHECIMENTOS DA ANTT - EIXO TEMÁTICO/GRUPO DE CONHECIMENTO: DESENVOLVIMENTO INSTITUCIONAL/MODELOS DE GESTÃO"]
["CONVENÇÃO ANUAL PARA APRESENTAÇÃO DOS RESULTADOS DA ANTT (O FUTURO DO TRABALLHO E DA GESTÃO)","EXBOSS DESENVOLVIMENTO DE PESSOAS E ORGANIZAÇÕES EIRELI - ME","20139641/0001-39",1,"2020-02-18","2020-02-18","NO PAÍS","RONALD SEREJO REBELO","CONTRATAÇÃO",136.62,0,42.28,{"$f":"SUM(J213:L213)","v":178.9},"TEMA DEFINIDO NO GUIA DE CONHECIMENTOS DA ANTT - EIXO TEMÁTICO/GRUPO DE CONHECIMENTO: DESENVOLVIMENTO INSTITUCIONAL/MODELOS DE GESTÃO"]
["CONVENÇÃO ANUAL PARA APRESENTAÇÃO DOS RESULTADOS DA ANTT (O FUTURO DO TRABALLHO E DA GESTÃO)","EXBOSS DESENVOLVIMENTO DE PESSOAS E ORGANIZAÇÕES EIRELI - ME","20139641/0001-39",1,"2020-02-18","2020-02-18","NO PAÍS","RONALDO CABRAL MAGALHAES","CONTRATAÇÃO",136.62,0,70.84,{"$f":"SUM(J214:L214)","v":207.46},"TEMA DEFINIDO NO GUIA DE CONHECIMENTOS DA ANTT - EIXO TEMÁTICO/GRUPO DE CONHECIMENTO: DESENVOLVIMENTO INSTITUCIONAL/MODELOS DE GESTÃO"]
["CONVENÇÃO ANUAL PARA APRESENTAÇÃO DOS RESULTADOS DA ANTT (O FUTURO DO TRABALLHO E DA GESTÃO)","EXBOSS DESENVOLVIMENTO DE PESSOAS E ORGANIZAÇÕES EIRELI - ME","20139641/0001-39",1,"2020-02-18","2020-02-18","NO PAÍS","ROSIMEIRE LIMA DE FREITAS","CONTRATAÇÃO",136.62,0,65.37,{"$f":"SUM(J215:L215)","v":201.99},"TEMA DEFINIDO NO GUIA DE CONHECIMENTOS DA ANTT - EIXO TEMÁTICO/GRUPO DE CONHECIMENTO: DESENVOLVIMENTO INSTITUCIONAL/MODELOS DE GESTÃO"]
["CONVENÇÃO ANUAL PARA APRESENTAÇÃO DOS RESULTADOS DA ANTT (O FUTURO DO TRABALLHO E DA GESTÃO)","EXBOSS DESENVOLVIMENTO DE PESSOAS E ORGANIZAÇÕES EIRELI - ME","20139641/0001-39",1,"2020-02-18","2020-02-18","NO PAÍS","ROZANGELA GASPARINI FREIRE ARAÚJO","CONTRATAÇÃO",136.62,0,81.42,{"$f":"SUM(J216:L216)","v":218.04000000000002},"TEMA DEFINIDO NO GUIA DE CONHECIMENTOS DA ANTT - EIXO TEMÁTICO/GRUPO DE CONHECIMENTO: DESENVOLVIMENTO INSTITUCIONAL/MODELOS DE GESTÃO"]
["CONVENÇÃO ANUAL PARA APRESENTAÇÃO DOS RESULTADOS DA ANTT (O FUTURO DO TRABALLHO E DA GESTÃO)","EXBOSS DESENVOLVIMENTO DE PESSOAS E ORGANIZAÇÕES EIRELI - ME","20139641/0001-39",1,"2020-02-18","2020-02-18","NO PAÍS","SANDRO VIEIRA DA ROSA","CONTRATAÇÃO",136.62,0,85.58,{"$f":"SUM(J217:L217)","v":222.2},"TEMA DEFINIDO NO GUIA DE CONHECIMENTOS DA ANTT - EIXO TEMÁTICO/GRUPO DE CONHECIMENTO: DESENVOLVIMENTO INSTITUCIONAL/MODELOS DE GESTÃO"]
["CONVENÇÃO ANUAL PARA APRESENTAÇÃO DOS RESULTADOS DA ANTT (O FUTURO DO TRABALLHO E DA GESTÃO)","EXBOSS DESENVOLVIMENTO DE PESSOAS E ORGANIZAÇÕES EIRELI - ME","20139641/0001-39",1,"2020-02-18","2020-02-18","NO PAÍS","SEITI BATISTUTA NANYA","CONTRATAÇÃO",136.62,0,81.42,{"$f":"SUM(J218:L218)","v":218.04000000000002},"TEMA DEFINIDO NO GUIA DE CONHECIMENTOS DA ANTT - EIXO TEMÁTICO/GRUPO DE CONHECIMENTO: DESENVOLVIMENTO INSTITUCIONAL/MODELOS DE GESTÃO"]
["CONVENÇÃO ANUAL PARA APRESENTAÇÃO DOS RESULTADOS DA ANTT (O FUTURO DO TRABALLHO E DA GESTÃO)","EXBOSS DESENVOLVIMENTO DE PESSOAS E ORGANIZAÇÕES EIRELI - ME","20139641/0001-39",1,"2020-02-18","2020-02-18","NO PAÍS","SERGIO DUARTE PALMEIRA ROSA","CONTRATAÇÃO",136.62,0,81.42,{"$f":"SUM(J219:L219)","v":218.04000000000002},"TEMA DEFINIDO NO GUIA DE CONHECIMENTOS DA ANTT - EIXO TEMÁTICO/GRUPO DE CONHECIMENTO: DESENVOLVIMENTO INSTITUCIONAL/MODELOS DE GESTÃO"]
["CONVENÇÃO ANUAL PARA APRESENTAÇÃO DOS RESULTADOS DA ANTT (O FUTURO DO TRABALLHO E DA GESTÃO)","EXBOSS DESENVOLVIMENTO DE PESSOAS E ORGANIZAÇÕES EIRELI - ME","20139641/0001-39",1,"2020-02-18","2020-02-18","NO PAÍS","SERGIO STANCIOLI COSTA COUTO","CONTRATAÇÃO",136.62,0,81.42,{"$f":"SUM(J220:L220)","v":218.04000000000002},"TEMA DEFINIDO NO GUIA DE CONHECIMENTOS DA ANTT - EIXO TEMÁTICO/GRUPO DE CONHECIMENTO: DESENVOLVIMENTO INSTITUCIONAL/MODELOS DE GESTÃO"]
["CONVENÇÃO ANUAL PARA APRESENTAÇÃO DOS RESULTADOS DA ANTT (O FUTURO DO TRABALLHO E DA GESTÃO)","EXBOSS DESENVOLVIMENTO DE PESSOAS E ORGANIZAÇÕES EIRELI - ME","20139641/0001-39",1,"2020-02-18","2020-02-18","NO PAÍS","SILVIA MARIA MILHOMEM BRITO MENEZES","CONTRATAÇÃO",136.62,0,54.48,{"$f":"SUM(J221:L221)","v":191.1},"TEMA DEFINIDO NO GUIA DE CONHECIMENTOS DA ANTT - EIXO TEMÁTICO/GRUPO DE CONHECIMENTO: DESENVOLVIMENTO INSTITUCIONAL/MODELOS DE GESTÃO"]
["CONVENÇÃO ANUAL PARA APRESENTAÇÃO DOS RESULTADOS DA ANTT (O FUTURO DO TRABALLHO E DA GESTÃO)","EXBOSS DESENVOLVIMENTO DE PESSOAS E ORGANIZAÇÕES EIRELI - ME","20139641/0001-39",1,"2020-02-18","2020-02-18","NO PAÍS","SIRLEY THERESINHA GARAVENTTA","CONTRATAÇÃO",136.62,0,15.17,{"$f":"SUM(J222:L222)","v":151.79},"TEMA DEFINIDO NO GUIA DE CONHECIMENTOS DA ANTT - EIXO TEMÁTICO/GRUPO DE CONHECIMENTO: DESENVOLVIMENTO INSTITUCIONAL/MODELOS DE GESTÃO"]
["CONVENÇÃO ANUAL PARA APRESENTAÇÃO DOS RESULTADOS DA ANTT (O FUTURO DO TRABALLHO E DA GESTÃO)","EXBOSS DESENVOLVIMENTO DE PESSOAS E ORGANIZAÇÕES EIRELI - ME","20139641/0001-39",1,"2020-02-18","2020-02-18","NO PAÍS","SONIA REGINA FREIRE CARVALHO","CONTRATAÇÃO",136.62,0,15.17,{"$f":"SUM(J223:L223)","v":151.79},"TEMA DEFINIDO NO GUIA DE CONHECIMENTOS DA ANTT - EIXO TEMÁTICO/GRUPO DE CONHECIMENTO: DESENVOLVIMENTO INSTITUCIONAL/MODELOS DE GESTÃO"]
["CONVENÇÃO ANUAL PARA APRESENTAÇÃO DOS RESULTADOS DA ANTT (O FUTURO DO TRABALLHO E DA GESTÃO)","EXBOSS DESENVOLVIMENTO DE PESSOAS E ORGANIZAÇÕES EIRELI - ME","20139641/0001-39",1,"2020-02-18","2020-02-18","NO PAÍS","SUÉLEN SILVA PATROCÍNIO DE OLIVEIRA","CONTRATAÇÃO",136.62,0,42.28,{"$f":"SUM(J224:L224)","v":178.9},"TEMA DEFINIDO NO GUIA DE CONHECIMENTOS DA ANTT - EIXO TEMÁTICO/GRUPO DE CONHECIMENTO: DESENVOLVIMENTO INSTITUCIONAL/MODELOS DE GESTÃO"]
["CONVENÇÃO ANUAL PARA APRESENTAÇÃO DOS RESULTADOS DA ANTT (O FUTURO DO TRABALLHO E DA GESTÃO)","EXBOSS DESENVOLVIMENTO DE PESSOAS E ORGANIZAÇÕES EIRELI - ME","20139641/0001-39",1,"2020-02-18","2020-02-18","NO PAÍS","SUZY MARY COSTA VAZ","CONTRATAÇÃO",136.62,0,58.11,{"$f":"SUM(J225:L225)","v":194.73000000000002},"TEMA DEFINIDO NO GUIA DE CONHECIMENTOS DA ANTT - EIXO TEMÁTICO/GRUPO DE CONHECIMENTO: DESENVOLVIMENTO INSTITUCIONAL/MODELOS DE GESTÃO"]
["CONVENÇÃO ANUAL PARA APRESENTAÇÃO DOS RESULTADOS DA ANTT (O FUTURO DO TRABALLHO E DA GESTÃO)","EXBOSS DESENVOLVIMENTO DE PESSOAS E ORGANIZAÇÕES EIRELI - ME","20139641/0001-39",1,"2020-02-18","2020-02-18","NO PAÍS","SYLVIA COTIAS VASCONCELLOS","CONTRATAÇÃO",136.62,0,75.2,{"$f":"SUM(J226:L226)","v":211.82},"TEMA DEFINIDO NO GUIA DE CONHECIMENTOS DA ANTT - EIXO TEMÁTICO/GRUPO DE CONHECIMENTO: DESENVOLVIMENTO INSTITUCIONAL/MODELOS DE GESTÃO"]
["CONVENÇÃO ANUAL PARA APRESENTAÇÃO DOS RESULTADOS DA ANTT (O FUTURO DO TRABALLHO E DA GESTÃO)","EXBOSS DESENVOLVIMENTO DE PESSOAS E ORGANIZAÇÕES EIRELI - ME","20139641/0001-39",1,"2020-02-18","2020-02-18","NO PAÍS","TALES DE MILETO ALVES CAVALCANTE","CONTRATAÇÃO",136.62,0,42.28,{"$f":"SUM(J227:L227)","v":178.9},"TEMA DEFINIDO NO GUIA DE CONHECIMENTOS DA ANTT - EIXO TEMÁTICO/GRUPO DE CONHECIMENTO: DESENVOLVIMENTO INSTITUCIONAL/MODELOS DE GESTÃO"]
["CONVENÇÃO ANUAL PARA APRESENTAÇÃO DOS RESULTADOS DA ANTT (O FUTURO DO TRABALLHO E DA GESTÃO)","EXBOSS DESENVOLVIMENTO DE PESSOAS E ORGANIZAÇÕES EIRELI - ME","20139641/0001-39",1,"2020-02-18","2020-02-18","NO PAÍS","THAIS MESSINA DE GODOY FREIXO","CONTRATAÇÃO",136.62,0,41.19,{"$f":"SUM(J228:L228)","v":177.81},"TEMA DEFINIDO NO GUIA DE CONHECIMENTOS DA ANTT - EIXO TEMÁTICO/GRUPO DE CONHECIMENTO: DESENVOLVIMENTO INSTITUCIONAL/MODELOS DE GESTÃO"]
["CONVENÇÃO ANUAL PARA APRESENTAÇÃO DOS RESULTADOS DA ANTT (O FUTURO DO TRABALLHO E DA GESTÃO)","EXBOSS DESENVOLVIMENTO DE PESSOAS E ORGANIZAÇÕES EIRELI - ME","20139641/0001-39",1,"2020-02-18","2020-02-18","NO PAÍS","THAIS NOBRE SUNDFELD LIMA MARTINS","CONTRATAÇÃO",136.62,0,42.28,{"$f":"SUM(J229:L229)","v":178.9},"TEMA DEFINIDO NO GUIA DE CONHECIMENTOS DA ANTT - EIXO TEMÁTICO/GRUPO DE CONHECIMENTO: DESENVOLVIMENTO INSTITUCIONAL/MODELOS DE GESTÃO"]
["CONVENÇÃO ANUAL PARA APRESENTAÇÃO DOS RESULTADOS DA ANTT (O FUTURO DO TRABALLHO E DA GESTÃO)","EXBOSS DESENVOLVIMENTO DE PESSOAS E ORGANIZAÇÕES EIRELI - ME","20139641/0001-39",1,"2020-02-18","2020-02-18","NO PAÍS","THAIS ROSY DA SILVA MENDES              ","CONTRATAÇÃO",136.62,0,35.78,{"$f":"SUM(J230:L230)","v":172.4},"TEMA DEFINIDO NO GUIA DE CONHECIMENTOS DA ANTT - EIXO TEMÁTICO/GRUPO DE CONHECIMENTO: DESENVOLVIMENTO INSTITUCIONAL/MODELOS DE GESTÃO"]
["CONVENÇÃO ANUAL PARA APRESENTAÇÃO DOS RESULTADOS DA ANTT (O FUTURO DO TRABALLHO E DA GESTÃO)","EXBOSS DESENVOLVIMENTO DE PESSOAS E ORGANIZAÇÕES EIRELI - ME","20139641/0001-39",1,"2020-02-18","2020-02-18","NO PAÍS","THAIS SOUZA SANTOS","CONTRATAÇÃO",136.62,0,42.28,{"$f":"SUM(J231:L231)","v":178.9},"TEMA DEFINIDO NO GUIA DE CONHECIMENTOS DA ANTT - EIXO TEMÁTICO/GRUPO DE CONHECIMENTO: DESENVOLVIMENTO INSTITUCIONAL/MODELOS DE GESTÃO"]
["CONVENÇÃO ANUAL PARA APRESENTAÇÃO DOS RESULTADOS DA ANTT (O FUTURO DO TRABALLHO E DA GESTÃO)","EXBOSS DESENVOLVIMENTO DE PESSOAS E ORGANIZAÇÕES EIRELI - ME","20139641/0001-39",1,"2020-02-18","2020-02-18","NO PAÍS","THIAGO CASTELO BRANCO COELHO","CONTRATAÇÃO",136.62,0,40.119999999999997,{"$f":"SUM(J232:L232)","v":176.74},"TEMA DEFINIDO NO GUIA DE CONHECIMENTOS DA ANTT - EIXO TEMÁTICO/GRUPO DE CONHECIMENTO: DESENVOLVIMENTO INSTITUCIONAL/MODELOS DE GESTÃO"]
["CONVENÇÃO ANUAL PARA APRESENTAÇÃO DOS RESULTADOS DA ANTT (O FUTURO DO TRABALLHO E DA GESTÃO)","EXBOSS DESENVOLVIMENTO DE PESSOAS E ORGANIZAÇÕES EIRELI - ME","20139641/0001-39",1,"2020-02-18","2020-02-18","NO PAÍS","THIAGO DE CASTRO SOUSA","CONTRATAÇÃO",136.62,0,124.68,{"$f":"SUM(J233:L233)","v":261.3},"TEMA DEFINIDO NO GUIA DE CONHECIMENTOS DA ANTT - EIXO TEMÁTICO/GRUPO DE CONHECIMENTO: DESENVOLVIMENTO INSTITUCIONAL/MODELOS DE GESTÃO"]
["CONVENÇÃO ANUAL PARA APRESENTAÇÃO DOS RESULTADOS DA ANTT (O FUTURO DO TRABALLHO E DA GESTÃO)","EXBOSS DESENVOLVIMENTO DE PESSOAS E ORGANIZAÇÕES EIRELI - ME","20139641/0001-39",1,"2020-02-18","2020-02-18","NO PAÍS","TIAGO ARAUJO DE OLIVEIRA","CONTRATAÇÃO",136.62,0,43.775750000000002,{"$f":"SUM(J234:L234)","v":180.39575000000002},"TEMA DEFINIDO NO GUIA DE CONHECIMENTOS DA ANTT - EIXO TEMÁTICO/GRUPO DE CONHECIMENTO: DESENVOLVIMENTO INSTITUCIONAL/MODELOS DE GESTÃO"]
["CONVENÇÃO ANUAL PARA APRESENTAÇÃO DOS RESULTADOS DA ANTT (O FUTURO DO TRABALLHO E DA GESTÃO)","EXBOSS DESENVOLVIMENTO DE PESSOAS E ORGANIZAÇÕES EIRELI - ME","20139641/0001-39",1,"2020-02-18","2020-02-18","NO PAÍS","TIAGO CAMPOS SILVA NOGUEIRA","CONTRATAÇÃO",136.62,0,36.08,{"$f":"SUM(J235:L235)","v":172.7},"TEMA DEFINIDO NO GUIA DE CONHECIMENTOS DA ANTT - EIXO TEMÁTICO/GRUPO DE CONHECIMENTO: DESENVOLVIMENTO INSTITUCIONAL/MODELOS DE GESTÃO"]
["CONVENÇÃO ANUAL PARA APRESENTAÇÃO DOS RESULTADOS DA ANTT (O FUTURO DO TRABALLHO E DA GESTÃO)","EXBOSS DESENVOLVIMENTO DE PESSOAS E ORGANIZAÇÕES EIRELI - ME","20139641/0001-39",1,"2020-02-18","2020-02-18","NO PAÍS","TITO LIVIO PEREIRA QUEIROZ E SILVA","CONTRATAÇÃO",136.62,0,83.500291666666669,{"$f":"SUM(J236:L236)","v":220.12029166666667},"TEMA DEFINIDO NO GUIA DE CONHECIMENTOS DA ANTT - EIXO TEMÁTICO/GRUPO DE CONHECIMENTO: DESENVOLVIMENTO INSTITUCIONAL/MODELOS DE GESTÃO"]
["CONVENÇÃO ANUAL PARA APRESENTAÇÃO DOS RESULTADOS DA ANTT (O FUTURO DO TRABALLHO E DA GESTÃO)","EXBOSS DESENVOLVIMENTO DE PESSOAS E ORGANIZAÇÕES EIRELI - ME","20139641/0001-39",1,"2020-02-18","2020-02-18","NO PAÍS","VALDILEA RESENDE RAMOS","CONTRATAÇÃO",136.62,0,75.52,{"$f":"SUM(J237:L237)","v":212.14},"TEMA DEFINIDO NO GUIA DE CONHECIMENTOS DA ANTT - EIXO TEMÁTICO/GRUPO DE CONHECIMENTO: DESENVOLVIMENTO INSTITUCIONAL/MODELOS DE GESTÃO"]
["CONVENÇÃO ANUAL PARA APRESENTAÇÃO DOS RESULTADOS DA ANTT (O FUTURO DO TRABALLHO E DA GESTÃO)","EXBOSS DESENVOLVIMENTO DE PESSOAS E ORGANIZAÇÕES EIRELI - ME","20139641/0001-39",1,"2020-02-18","2020-02-18","NO PAÍS","VANESSA DA SILVA SANTOS","CONTRATAÇÃO",136.62,0,85.58,{"$f":"SUM(J238:L238)","v":222.2},"TEMA DEFINIDO NO GUIA DE CONHECIMENTOS DA ANTT - EIXO TEMÁTICO/GRUPO DE CONHECIMENTO: DESENVOLVIMENTO INSTITUCIONAL/MODELOS DE GESTÃO"]
["CONVENÇÃO ANUAL PARA APRESENTAÇÃO DOS RESULTADOS DA ANTT (O FUTURO DO TRABALLHO E DA GESTÃO)","EXBOSS DESENVOLVIMENTO DE PESSOAS E ORGANIZAÇÕES EIRELI - ME","20139641/0001-39",1,"2020-02-18","2020-02-18","NO PAÍS","VINICIUS MAGNUS ANTONIUS TORQUATO DE ARAUJO LIMA","CONTRATAÇÃO",136.62,0,38.58,{"$f":"SUM(J239:L239)","v":175.2},"TEMA DEFINIDO NO GUIA DE CONHECIMENTOS DA ANTT - EIXO TEMÁTICO/GRUPO DE CONHECIMENTO: DESENVOLVIMENTO INSTITUCIONAL/MODELOS DE GESTÃO"]
["CONVENÇÃO ANUAL PARA APRESENTAÇÃO DOS RESULTADOS DA ANTT (O FUTURO DO TRABALLHO E DA GESTÃO)","EXBOSS DESENVOLVIMENTO DE PESSOAS E ORGANIZAÇÕES EIRELI - ME","20139641/0001-39",1,"2020-02-18","2020-02-18","NO PAÍS","WELLINGTON DE MEDEIROS MEIRA","CONTRATAÇÃO",136.62,0,35.78,{"$f":"SUM(J240:L240)","v":172.4},"TEMA DEFINIDO NO GUIA DE CONHECIMENTOS DA ANTT - EIXO TEMÁTICO/GRUPO DE CONHECIMENTO: DESENVOLVIMENTO INSTITUCIONAL/MODELOS DE GESTÃO"]
["CONVENÇÃO ANUAL PARA APRESENTAÇÃO DOS RESULTADOS DA ANTT (O FUTURO DO TRABALLHO E DA GESTÃO)","EXBOSS DESENVOLVIMENTO DE PESSOAS E ORGANIZAÇÕES EIRELI - ME","20139641/0001-39",1,"2020-02-18","2020-02-18","NO PAÍS","WELLINGTON MIRANDA","CONTRATAÇÃO",136.63,0,85.58,{"$f":"SUM(J241:L241)","v":222.20999999999998},"TEMA DEFINIDO NO GUIA DE CONHECIMENTOS DA ANTT - EIXO TEMÁTICO/GRUPO DE CONHECIMENTO: DESENVOLVIMENTO INSTITUCIONAL/MODELOS DE GESTÃO"]
["CONVENÇÃO ANUAL PARA APRESENTAÇÃO DOS RESULTADOS DA ANTT (O FUTURO DO TRABALLHO E DA GESTÃO)","EXBOSS DESENVOLVIMENTO DE PESSOAS E ORGANIZAÇÕES EIRELI - ME","20139641/0001-39",1,"2020-02-18","2020-02-18","NO PAÍS","WILTON COSTA DRUMOND SOUSA","CONTRATAÇÃO",136.63,0,87.65,{"$f":"SUM(J242:L242)","v":224.28},"TEMA DEFINIDO NO GUIA DE CONHECIMENTOS DA ANTT - EIXO TEMÁTICO/GRUPO DE CONHECIMENTO: DESENVOLVIMENTO INSTITUCIONAL/MODELOS DE GESTÃO"]
["CURSO O DESAFIO DA ESCRITA - DOMINANDO A NORMA CULTA","FUNDAÇÃO BRASILEIRA DE EDUCAÇÃO - FUBRAE","34.170.472/0004-57",200,"2020-02-18","2020-03-18","NO PAÍS","EDSON MONTEIRO CUNHA","GRATUITO",0,0,16685.439999999999,{"$f":"SUM(J243:L243)","v":16685.439999999999},"TEMA DEFINIDO NO GUIA DE CONHECIMENTOS DA ANTT - EIXO TEMÁTICO/GRUPO DE CONHECIMENTO: DESENVOLVIMENTO INSTITUCIONAL/IDIOMAS E COMUNICAÇÃO"]
["CURSO DE EXTENSÃO QUALIDADE NO ATENDIMENTO APLICADA AO SERVIÇO PÚBLICO","UNIEDUCAR INTELIGÊNCIA EDUCACIONAL LTDA","05.569.970/0001-26",140,"2020-02-18","2020-03-18","NO PAÍS","ELIEZER DE ASSIS SANTOS","GRATUITO",0,0,8587.18,{"$f":"SUM(J244:L244)","v":8587.18},"TEMA DEFINIDO NO GUIA DE CONHECIMENTOS DA ANTT - EIXO TEMÁTICO/GRUPO DE CONHECIMENTO: DESENVOLVIMENTO INSTITUCIONAL/IDIOMAS E COMUNICAÇÃO"]
["CURSO DE EXTENSÃO MODELOS DE GESTÃO PARA A EXCELÊNCIA","UNIEDUCAR INTELIGÊNCIA EDUCACIONAL LTDA","05.569.970/0001-26",140,"2020-02-18","2020-03-18","NO PAÍS","RENATA CRISTINA DA SILVA SOUZA","GRATUITO",0,0,9258.7900000000009,{"$f":"SUM(J245:L245)","v":9258.7900000000009},"TEMA DEFINIDO NO GUIA DE CONHECIMENTOS DA ANTT - EIXO TEMÁTICO/GRUPO DE CONHECIMENTO: DESENVOLVIMENTO INSTITUCIONAL/MODELOS DE GESTÃO"]
["CURSO ATUALIZAÇÃO JURÍDICA - DIREITO ADMINISTRATIVO - AGÊNCIAS REGULADORAS E EXECUTIVAS","UNIEDUCAR INTELIGÊNCIA EDUCACIONAL LTDA","05.569.970/0001-26",320,"2020-02-18","2020-04-17","NO PAÍS","RAFAEL MACEDO DUARTE","SEM CUSTOS DE INSCRIÇÃO - GRATUITO",0,0,18517.580000000002,18517.580000000002,"TEMA DEFINIDO NO GUIA DE CONHECIMENTOS DA ANTT - EIXO TEMÁTICO/GRUPO DE CONHECIMENTO: REGULAÇÃO/DESENVOLVIMENTO DA REGULAÇÃO"]
["PROGRAMA DE DESENVOLVIMENTO GERENCIAL - PDG 2020 - WORKSHOP 1","HOMERO REIS CONSULTORIA E GESTÃO EMPRESARIAL LTDA","07.131.596/0001-08",4,"2020-03-04","2020-03-04","NO PAÍS","ALOISIO GOMES CAIXETA","CONTRATAÇÃO",354.35,0,350.61,{"$f":"SUM(J247:L247)","v":704.96},"DESENVOLVER NOS COORDENADORES DE PROCESSOS ORGANIZACIONAIS AS COMPETÊNCIAS QUE FORAM TRABALHADAS NOS GESTORES ESTRATÉGICOS DA ANTT."]
["PROGRAMA DE DESENVOLVIMENTO GERENCIAL - PDG 2020 - WORKSHOP 1","HOMERO REIS CONSULTORIA E GESTÃO EMPRESARIAL LTDA","07.131.596/0001-08",4,"2020-03-04","2020-03-04","NO PAÍS","ANA CLAUDIA SILVEIRA TORRES","CONTRATAÇÃO",354.35,0,292.48,{"$f":"SUM(J248:L248)","v":646.83000000000004},"DESENVOLVER NOS COORDENADORES DE PROCESSOS ORGANIZACIONAIS AS COMPETÊNCIAS QUE FORAM TRABALHADAS NOS GESTORES ESTRATÉGICOS DA ANTT."]
["PROGRAMA DE DESENVOLVIMENTO GERENCIAL - PDG 2020 - WORKSHOP 1","HOMERO REIS CONSULTORIA E GESTÃO EMPRESARIAL LTDA","07.131.596/0001-08",4,"2020-03-04","2020-03-04","NO PAÍS","BRUNO RIBEIRO  ALVARENGA","CONTRATAÇÃO",354.35,0,350.61,{"$f":"SUM(J249:L249)","v":704.96},"DESENVOLVER NOS COORDENADORES DE PROCESSOS ORGANIZACIONAIS AS COMPETÊNCIAS QUE FORAM TRABALHADAS NOS GESTORES ESTRATÉGICOS DA ANTT."]
["PROGRAMA DE DESENVOLVIMENTO GERENCIAL - PDG 2020 - WORKSHOP 1","HOMERO REIS CONSULTORIA E GESTÃO EMPRESARIAL LTDA","07.131.596/0001-08",4,"2020-03-04","2020-03-04","NO PAÍS","DALTON DA SILVA NEIVA","CONTRATAÇÃO",354.35,0,292.48,{"$f":"SUM(J250:L250)","v":646.83000000000004},"DESENVOLVER NOS COORDENADORES DE PROCESSOS ORGANIZACIONAIS AS COMPETÊNCIAS QUE FORAM TRABALHADAS NOS GESTORES ESTRATÉGICOS DA ANTT."]
["PROGRAMA DE DESENVOLVIMENTO GERENCIAL - PDG 2020 - WORKSHOP 1","HOMERO REIS CONSULTORIA E GESTÃO EMPRESARIAL LTDA","07.131.596/0001-08",4,"2020-03-04","2020-03-04","NO PAÍS","DANIEL ANTONIO DA MOTA ARAUJO","CONTRATAÇÃO",354.35,0,310.08,{"$f":"SUM(J251:L251)","v":664.43000000000006},"DESENVOLVER NOS COORDENADORES DE PROCESSOS ORGANIZACIONAIS AS COMPETÊNCIAS QUE FORAM TRABALHADAS NOS GESTORES ESTRATÉGICOS DA ANTT."]
["PROGRAMA DE DESENVOLVIMENTO GERENCIAL - PDG 2020 - WORKSHOP 1","HOMERO REIS CONSULTORIA E GESTÃO EMPRESARIAL LTDA","07.131.596/0001-08",4,"2020-03-04","2020-03-04","NO PAÍS","DANIEL DE CASTRO","CONTRATAÇÃO",354.35,0,325.7,{"$f":"SUM(J252:L252)","v":680.05},"DESENVOLVER NOS COORDENADORES DE PROCESSOS ORGANIZACIONAIS AS COMPETÊNCIAS QUE FORAM TRABALHADAS NOS GESTORES ESTRATÉGICOS DA ANTT."]
["PROGRAMA DE DESENVOLVIMENTO GERENCIAL - PDG 2020 - WORKSHOP 1","HOMERO REIS CONSULTORIA E GESTÃO EMPRESARIAL LTDA","07.131.596/0001-08",4,"2020-03-04","2020-03-04","NO PAÍS","EVERALDO VALENGA ALVES","CONTRATAÇÃO",354.35,0,292.48,{"$f":"SUM(J253:L253)","v":646.83000000000004},"DESENVOLVER NOS COORDENADORES DE PROCESSOS ORGANIZACIONAIS AS COMPETÊNCIAS QUE FORAM TRABALHADAS NOS GESTORES ESTRATÉGICOS DA ANTT."]
["PROGRAMA DE DESENVOLVIMENTO GERENCIAL - PDG 2020 - WORKSHOP 1","HOMERO REIS CONSULTORIA E GESTÃO EMPRESARIAL LTDA","07.131.596/0001-08",4,"2020-03-04","2020-03-04","NO PAÍS","GERALDO RODRIGUES DA SILVA JUNIOR","CONTRATAÇÃO",354.35,0,325.7,{"$f":"SUM(J254:L254)","v":680.05},"DESENVOLVER NOS COORDENADORES DE PROCESSOS ORGANIZACIONAIS AS COMPETÊNCIAS QUE FORAM TRABALHADAS NOS GESTORES ESTRATÉGICOS DA ANTT."]
["PROGRAMA DE DESENVOLVIMENTO GERENCIAL - PDG 2020 - WORKSHOP 1","HOMERO REIS CONSULTORIA E GESTÃO EMPRESARIAL LTDA","07.131.596/0001-08",4,"2020-03-04","2020-03-04","NO PAÍS","JANAINA DOS SANTOS","CONTRATAÇÃO",354.35,0,350.61,{"$f":"SUM(J255:L255)","v":704.96},"DESENVOLVER NOS COORDENADORES DE PROCESSOS ORGANIZACIONAIS AS COMPETÊNCIAS QUE FORAM TRABALHADAS NOS GESTORES ESTRATÉGICOS DA ANTT."]
["PROGRAMA DE DESENVOLVIMENTO GERENCIAL - PDG 2020 - WORKSHOP 1","HOMERO REIS CONSULTORIA E GESTÃO EMPRESARIAL LTDA","07.131.596/0001-08",4,"2020-03-04","2020-03-04","NO PAÍS","JULIANA MIRANDA CRUZ RIBEIRO","CONTRATAÇÃO",354.35,0,164.75,{"$f":"SUM(J256:L256)","v":519.1},"DESENVOLVER NOS COORDENADORES DE PROCESSOS ORGANIZACIONAIS AS COMPETÊNCIAS QUE FORAM TRABALHADAS NOS GESTORES ESTRATÉGICOS DA ANTT."]
["PROGRAMA DE DESENVOLVIMENTO GERENCIAL - PDG 2020 - WORKSHOP 1","HOMERO REIS CONSULTORIA E GESTÃO EMPRESARIAL LTDA","07.131.596/0001-08",4,"2020-03-04","2020-03-04","NO PAÍS","KARTNEY CARVALHO DE SOUSA","CONTRATAÇÃO",354.35,0,175.1,{"$f":"SUM(J257:L257)","v":529.45000000000005},"DESENVOLVER NOS COORDENADORES DE PROCESSOS ORGANIZACIONAIS AS COMPETÊNCIAS QUE FORAM TRABALHADAS NOS GESTORES ESTRATÉGICOS DA ANTT."]
["PROGRAMA DE DESENVOLVIMENTO GERENCIAL - PDG 2020 - WORKSHOP 1","HOMERO REIS CONSULTORIA E GESTÃO EMPRESARIAL LTDA","07.131.596/0001-08",4,"2020-03-04","2020-03-04","NO PAÍS","LILIAN MORAIS DE OLIVEIRA","CONTRATAÇÃO",354.35,0,146.76,{"$f":"SUM(J258:L258)","v":501.11},"DESENVOLVER NOS COORDENADORES DE PROCESSOS ORGANIZACIONAIS AS COMPETÊNCIAS QUE FORAM TRABALHADAS NOS GESTORES ESTRATÉGICOS DA ANTT."]
["PROGRAMA DE DESENVOLVIMENTO GERENCIAL - PDG 2020 - WORKSHOP 1","HOMERO REIS CONSULTORIA E GESTÃO EMPRESARIAL LTDA","07.131.596/0001-08",4,"2020-03-04","2020-03-04","NO PAÍS","MARINA SOARES ALMEIDA            ","CONTRATAÇÃO",354.35,0,284.2,{"$f":"SUM(J259:L259)","v":638.54999999999995},"DESENVOLVER NOS COORDENADORES DE PROCESSOS ORGANIZACIONAIS AS COMPETÊNCIAS QUE FORAM TRABALHADAS NOS GESTORES ESTRATÉGICOS DA ANTT."]
["PROGRAMA DE DESENVOLVIMENTO GERENCIAL - PDG 2020 - WORKSHOP 1","HOMERO REIS CONSULTORIA E GESTÃO EMPRESARIAL LTDA","07.131.596/0001-08",4,"2020-03-04","2020-03-04","NO PAÍS","MICHELINE PORTELA PINTO","CONTRATAÇÃO",354.35,0,302.08999999999997,{"$f":"SUM(J260:L260)","v":656.44},"DESENVOLVER NOS COORDENADORES DE PROCESSOS ORGANIZACIONAIS AS COMPETÊNCIAS QUE FORAM TRABALHADAS NOS GESTORES ESTRATÉGICOS DA ANTT."]
["PROGRAMA DE DESENVOLVIMENTO GERENCIAL - PDG 2020 - WORKSHOP 1","HOMERO REIS CONSULTORIA E GESTÃO EMPRESARIAL LTDA","07.131.596/0001-08",4,"2020-03-04","2020-03-04","NO PAÍS","PAULO HENRIQUE DA SILVA COSTA","CONTRATAÇÃO",354.35,0,326.07,{"$f":"SUM(J261:L261)","v":680.42000000000007},"DESENVOLVER NOS COORDENADORES DE PROCESSOS ORGANIZACIONAIS AS COMPETÊNCIAS QUE FORAM TRABALHADAS NOS GESTORES ESTRATÉGICOS DA ANTT."]
["PROGRAMA DE DESENVOLVIMENTO GERENCIAL - PDG 2020 - WORKSHOP 1","HOMERO REIS CONSULTORIA E GESTÃO EMPRESARIAL LTDA","07.131.596/0001-08",4,"2020-03-04","2020-03-04","NO PAÍS","PAULO JOSE  MILANEZ","CONTRATAÇÃO",354.35,0,175.1,{"$f":"SUM(J262:L262)","v":529.45000000000005},"DESENVOLVER NOS COORDENADORES DE PROCESSOS ORGANIZACIONAIS AS COMPETÊNCIAS QUE FORAM TRABALHADAS NOS GESTORES ESTRATÉGICOS DA ANTT."]
["PROGRAMA DE DESENVOLVIMENTO GERENCIAL - PDG 2020 - WORKSHOP 1","HOMERO REIS CONSULTORIA E GESTÃO EMPRESARIAL LTDA","07.131.596/0001-08",4,"2020-03-04","2020-03-04","NO PAÍS","PRISCILA DE ANDRADE PEREIRA","CONTRATAÇÃO",354.35,0,160.47,{"$f":"SUM(J263:L263)","v":514.82000000000005},"DESENVOLVER NOS COORDENADORES DE PROCESSOS ORGANIZACIONAIS AS COMPETÊNCIAS QUE FORAM TRABALHADAS NOS GESTORES ESTRATÉGICOS DA ANTT."]
["PROGRAMA DE DESENVOLVIMENTO GERENCIAL - PDG 2020 - WORKSHOP 1","HOMERO REIS CONSULTORIA E GESTÃO EMPRESARIAL LTDA","07.131.596/0001-08",4,"2020-03-04","2020-03-04","NO PAÍS","RAFAELA PAIVA BRANDAO","CONTRATAÇÃO",354.35,0,310.08,{"$f":"SUM(J264:L264)","v":664.43000000000006},"DESENVOLVER NOS COORDENADORES DE PROCESSOS ORGANIZACIONAIS AS COMPETÊNCIAS QUE FORAM TRABALHADAS NOS GESTORES ESTRATÉGICOS DA ANTT."]
["PROGRAMA DE DESENVOLVIMENTO GERENCIAL - PDG 2020 - WORKSHOP 1","HOMERO REIS CONSULTORIA E GESTÃO EMPRESARIAL LTDA","07.131.596/0001-08",4,"2020-03-04","2020-03-04","NO PAÍS","ROSE MARRI DE PAULA TEIXEIRA","CONTRATAÇÃO",354.35,0,107.66,{"$f":"SUM(J265:L265)","v":462.01},"DESENVOLVER NOS COORDENADORES DE PROCESSOS ORGANIZACIONAIS AS COMPETÊNCIAS QUE FORAM TRABALHADAS NOS GESTORES ESTRATÉGICOS DA ANTT."]
["PROGRAMA DE DESENVOLVIMENTO GERENCIAL - PDG 2020 - WORKSHOP 1","HOMERO REIS CONSULTORIA E GESTÃO EMPRESARIAL LTDA","07.131.596/0001-08",4,"2020-03-04","2020-03-04","NO PAÍS","SANDRO VIEIRA DA ROSA","CONTRATAÇÃO",354.35,0,342.3,{"$f":"SUM(J266:L266)","v":696.65000000000009},"DESENVOLVER NOS COORDENADORES DE PROCESSOS ORGANIZACIONAIS AS COMPETÊNCIAS QUE FORAM TRABALHADAS NOS GESTORES ESTRATÉGICOS DA ANTT."]
["PROGRAMA DE DESENVOLVIMENTO GERENCIAL - PDG 2020 - WORKSHOP 1","HOMERO REIS CONSULTORIA E GESTÃO EMPRESARIAL LTDA","07.131.596/0001-08",4,"2020-03-04","2020-03-04","NO PAÍS","SERGIO DUARTE PALMEIRA ROSA","CONTRATAÇÃO",354.35,0,325.7,{"$f":"SUM(J267:L267)","v":680.05},"DESENVOLVER NOS COORDENADORES DE PROCESSOS ORGANIZACIONAIS AS COMPETÊNCIAS QUE FORAM TRABALHADAS NOS GESTORES ESTRATÉGICOS DA ANTT."]
["PROGRAMA DE DESENVOLVIMENTO GERENCIAL - PDG 2020 - WORKSHOP 1","HOMERO REIS CONSULTORIA E GESTÃO EMPRESARIAL LTDA","07.131.596/0001-08",4,"2020-03-04","2020-03-04","NO PAÍS","THAIS MARIA DE ANDRADE VILLELA","CONTRATAÇÃO",354.35,0,300.81,{"$f":"SUM(J268:L268)","v":655.16000000000008},"DESENVOLVER NOS COORDENADORES DE PROCESSOS ORGANIZACIONAIS AS COMPETÊNCIAS QUE FORAM TRABALHADAS NOS GESTORES ESTRATÉGICOS DA ANTT."]
["PROGRAMA DE DESENVOLVIMENTO GERENCIAL - PDG 2020 - WORKSHOP 1","HOMERO REIS CONSULTORIA E GESTÃO EMPRESARIAL LTDA","07.131.596/0001-08",4,"2020-03-04","2020-03-04","NO PAÍS","THIAGO DE CASTRO SOUSA","CONTRATAÇÃO",354.35,0,498.73,{"$f":"SUM(J269:L269)","v":853.08},"DESENVOLVER NOS COORDENADORES DE PROCESSOS ORGANIZACIONAIS AS COMPETÊNCIAS QUE FORAM TRABALHADAS NOS GESTORES ESTRATÉGICOS DA ANTT."]
["PROGRAMA DE DESENVOLVIMENTO GERENCIAL - PDG 2020 - WORKSHOP 1","HOMERO REIS CONSULTORIA E GESTÃO EMPRESARIAL LTDA","07.131.596/0001-08",4,"2020-03-04","2020-03-04","NO PAÍS","VICTOR HUGO GOUVEIA DE LUCENA LIMA","CONTRATAÇÃO",354.35,0,169.12,{"$f":"SUM(J270:L270)","v":523.47},"DESENVOLVER NOS COORDENADORES DE PROCESSOS ORGANIZACIONAIS AS COMPETÊNCIAS QUE FORAM TRABALHADAS NOS GESTORES ESTRATÉGICOS DA ANTT."]
["PROGRAMA DE DESENVOLVIMENTO GERENCIAL - PDG 2020 - WORKSHOP 1","HOMERO REIS CONSULTORIA E GESTÃO EMPRESARIAL LTDA","07.131.596/0001-08",4,"2020-03-04","2020-03-04","NO PAÍS","WILLIANE VIEIRA MAIA","CONTRATAÇÃO",354.35,0,310.08,{"$f":"SUM(J271:L271)","v":664.43000000000006},"DESENVOLVER NOS COORDENADORES DE PROCESSOS ORGANIZACIONAIS AS COMPETÊNCIAS QUE FORAM TRABALHADAS NOS GESTORES ESTRATÉGICOS DA ANTT."]
["CURSO DE EXTENSÃO ATUALIZAÇÃO JURÍDICA - DIREITO ADMINISTRATIVO - PROCESSO ADMINISTRATIVO DISCIPLINAR","UNIEDUCAR INTELIGÊNCIA EDUCACIONAL LTDA","05.569.970/0001-26",80,"2020-03-04","2020-03-18","NO PAÍS","CHRISTIANE PESSÔA ALVES MARQUES","GRATUITO",0,0,4995.22,{"$f":"SUM(J272:L272)","v":4995.22},"TEMA DEFINIDO NO GUIA DE CONHECIMENTOS DA ANTT - EIXO TEMÁTICO/GRUPO DE CONHECIMENTO: GOVERNANÇA CORPORATIVA/ATOS, PROCESSOS E PROCEDIMENTOS ADMINISTRATIVOS"]
["CURSO FUNDAMENTOS DO DIREITO PÚBLICO E ÉTICA NA ADMINISTRAÇÃO PÚBLICA","FUNDAÇÃO BRASILEIRA DE EDUCAÇÃO - FUBRAE","34.170.472/0004-57",150,"2020-03-04","2020-03-18","NO PAÍS","TIAGO ARAUJO DE OLIVEIRA","GRATUITO",0,0,5253.09,{"$f":"SUM(J273:L273)","v":5253.09},"TEMA DEFINIDO NO GUIA DE CONHECIMENTOS DA ANTT - EIXO TEMÁTICO/GRUPO DE CONHECIMENTO: GOVERNANÇA CORPORATIVA/ATOS, PROCESSOS E PROCEDIMENTOS ADMINISTRATIVOS"]
["CURSO DE EXTENSÃO ANÁLISE E DECISÃO DE INVESTIMENTOS","UNIEDUCAR INTELIGÊNCIA EDUCACIONAL LTDA","05.569.970/0001-26",140,"2020-03-04","2020-04-02","NO PAÍS","CARLOS GUSTAVO SANTOS HUEBEL","GRATUITO",0,0,20040.07,{"$f":"SUM(J274:L274)","v":20040.07},"TEMA DEFINIDO NO GUIA DE CONHECIMENTOS DA ANTT - EIXO TEMÁTICO/GRUPO DE CONHECIMENTO: INFRAESTRUTURA/FERROVIÁRIA"]
["ATUALIZAÇÃO JURÍDICA - DIREITO ARBITRAL – ARBITRAGEM E PODER JUDICIÁRIO NO NOVO CPC 2015","UNIEDUCAR INTELIGÊNCIA EDUCACIONAL LTDA","05.569.970/0001-26",140,"2020-03-04","2020-04-02","NO PAÍS","DANIEL RICARDO LEMOS LINDER","GRATUITO",0,0,19541.88,{"$f":"SUM(J275:L275)","v":19541.88},"TEMA DEFINIDO NO GUIA DE CONHECIMENTOS DA ANTT - EIXO TEMÁTICO/GRUPO DE CONHECIMENTO: GOVERNANÇA CORPORATIVA/ATOS, PROCESSOS E PROCEDIMENTOS ADMINISTRATIVOS"]
["CURSOS: 1) ACESSO À INFORMAÇÃO; 2) DEFESA DO USUÁRIO E SIMPLIFICAÇÃO; 3) RESOLUÇÃO DOS CONFLITOS APLICADA AO CONTEXTO DAS OUVIDORIAS; 4) TRATAMENTO DE DENÚNCIAS EM OUVIDORIA; 5) GESTÃO DA ESTRATÉGIA COM BSC - FUNDAMENTOS; 6) GESTÃO DE RISCOS NO SETOR PÚBLICO; 7) PLANEJAMENTO ESTRATÉGICO PARA ORGANIZAÇÕES PÚBLICAS","FUNDACAO ESCOLA NACIONAL DE ADMINISTRACAO PUBLICA - ENAP","00.627.612/0001-09","1) 20; 2) 20; 3) 20; 4) 20; 5) 20; 6) 20; 7) 40","2020-03-04","2020-04-02","NO PAÍS","FLAVIA RIBEIRO CRESPO","GRATUITO",0,0,9990.44,{"$f":"SUM(J276:L276)","v":9990.44},"TEMA DEFINIDO NO GUIA DE CONHECIMENTOS DA ANTT - EIXO TEMÁTICO/GRUPO DE CONHECIMENTO: DESENVOLVIMENTO INSTITUCIONAL/COMUNICAÇÃO/GESTÃO DE PESSOAS/GESTÃO ESTRATÉGICA/GESTÃO DE RISCOS E COMPLIANCE"]
["CURSO GESTÃO DE PROJETOS NO SETOR PÚBLICO","FUNDAÇÃO BRASILEIRA DE EDUCAÇÃO - FUBRAE","34.170.472/0004-57",150,"2020-03-04","2020-04-02","NO PAÍS","HELBERTH TEIXEIRA DOS SANTOS","GRATUITO",0,0,9990.44,{"$f":"SUM(J277:L277)","v":9990.44},"TEMA DEFINIDO NO GUIA DE CONHECIMENTOS DA ANTT - EIXO TEMÁTICO/GRUPO DE CONHECIMENTO: DESENVOLVIMENTO INSTITUCIONAL/MODELOS DE GESTÃO"]
["CURSO FUNDAMENTOS DO DIREITO PÚBLICO E ÉTICA NA ADMINISTRAÇÃO PÚBLICA","FUNDAÇÃO BRASILEIRA DE EDUCAÇÃO - FUBRAE","34.170.472/0004-57",150,"2020-03-04","2020-04-02","NO PAÍS","ISADORA BAPTISTA SURIANI","GRATUITO",0,0,19541.88,{"$f":"SUM(J278:L278)","v":19541.88},"TEMA DEFINIDO NO GUIA DE CONHECIMENTOS DA ANTT - EIXO TEMÁTICO/GRUPO DE CONHECIMENTO: GOVERNANÇA CORPORATIVA/ATOS, PROCESSOS E PROCEDIMENTOS ADMINISTRATIVOS E ÉTICA E CORREIÇÃO"]
["CURSO DE EXTENSÃO MATRIZ MODAL - TRANSPORTE INTERMODAL E EFICIÊNCIA OPERACIONAL","UNIEDUCAR INTELIGÊNCIA EDUCACIONAL LTDA","05.569.970/0001-26",140,"2020-03-04","2020-04-02","NO PAÍS","JOAO BATISTA KOSLYK","GRATUITO",0,0,10506.18,{"$f":"SUM(J279:L279)","v":10506.18},"TEMA DEFINIDO NO GUIA DE CONHECIMENTOS DA ANTT - EIXO TEMÁTICO/GRUPO DE CONHECIMENTO: FISCALIZAÇÃO/TRANSPORTE DE CARGAS"]
["MATRIZ MODAL – TRANSPORTE INTERMODAL E EFICIÊNCIA OPERACIONAL","UNIEDUCAR","05.569.970/0001-26",140,"2020-03-04","2020-04-02","NO PAÍS","JOAO BATISTA KOSLYK","SEM CUSTOS DE INSCRIÇÃO - GRATUITO",0,0,10506.18,10506.18,"TEMA DEFINIDO NO GUIA DE CONHECIMENTOS DA ANTT - EIXO TEMÁTICO/GRUPO DE CONHECIMENTO: FISCALIZAÇÃO/TRANSPORTE DE CARGAS"]
["CURSO DE EXTENSÃO ESTATÍSTICA ECONÔMICA E ECONOMETRIA","UNIEDUCAR INTELIGÊNCIA EDUCACIONAL LTDA","05.569.970/0001-26",140,"2020-03-04","2020-04-02","NO PAÍS","JONATHAN DOMINGOS DE LIMA      ","GRATUITO",0,0,18048.34,{"$f":"SUM(J281:L281)","v":18048.34},"TEMA DEFINIDO NO GUIA DE CONHECIMENTOS DA ANTT - EIXO TEMÁTICO/GRUPO DE CONHECIMENTO: GOVERNANÇA CORPORATIVA/MÉTODOS DE ANÁLISE"]
["CURSOS: 1) CURSO ÉTICA E SERVIÇO PÚBLICO; 2) ATENDIMENTO AO PÚBLICO","1) FUNDACAO ESCOLA NACIONAL DE ADMINISTRACAO PUBLICA - ENAP; 2) FUNDAÇÃO BRASILEIRA DE EDUCAÇÃO - FUBRAE","1) 00.627.612/0001-09; 2) 34.170.472/0004-57","1) 20; 2) 120","2020-03-04","2020-04-02","NO PAÍS","MARIO MITSUO DE KOBAYASHI","GRATUITO",0,0,9492.86,{"$f":"SUM(J282:L282)","v":9492.86},"TEMA DEFINIDO NO GUIA DE CONHECIMENTOS DA ANTT - EIXO TEMÁTICO/GRUPO DE CONHECIMENTO: GOVERNANÇA CORPORATIVA/ÉTICA E CORREIÇÃO E DESENVOLVIMENTO INSTITUCIONAL/COMUNICAÇÃO"]
["CURSOS: 1) CURSO ADMINISTRAÇÃO DO FRETE; 2) CONHECENDO O CÓDIGO DE TRÂNSITO BRASILEIRO - CTB; 3) MOVIMENTAÇÃO DE CARGAS PERIGOSAS; 4) GESTÃO DE CONFLITOS","SERVIÇO SOCIAL DO TRANSPORTE","73.471.989/0162-70","1) 30; 2) 30; 3) 22; 4) 40","2020-03-04","2020-04-02","NO PAÍS","MILTON ALOES ROQUE JUNIOR","GRATUITO",0,0,9492.86,{"$f":"SUM(J283:L283)","v":9492.86},"TEMA DEFINIDO NO GUIA DE CONHECIMENTOS DA ANTT - EIXO TEMÁTICO/GRUPO DE CONHECIMENTO: FISCALIZAÇÃO/TRANSPORTE DE CARGAS OU FISCALIZAÇÃO/DESENVOLVIMENTO DA FISCALIZAÇÃO"]
["CURSO DE EXTENSÃO ATUALIZAÇÃO JURÍDICA - DIREITO ADMINISTRATIVO - PROCESSO ADMINISTRATIVO DISCIPLINAR","UNIEDUCAR INTELIGÊNCIA EDUCACIONAL LTDA","05.569.970/0001-26",140,"2020-03-04","2020-04-02","NO PAÍS","RICARDO LUIZ DA MATA MACHADO","GRATUITO",0,0,19541.88,{"$f":"SUM(J284:L284)","v":19541.88},"TEMA DEFINIDO NO GUIA DE CONHECIMENTOS DA ANTT - EIXO TEMÁTICO/GRUPO DE CONHECIMENTO: GOVERNANÇA CORPORATIVA/ATOS, PROCESSOS E PROCEDIMENTOS ADMINISTRATIVOS"]
["PCI 1º SEMESTRE/2020 - ALEMÃO","GOETHE ZENTRUM/ASSOCIACAO CIVIL GOETHE\nZENTRUM BRASILIA","02.417.131/0001-02",48,"2020-03-09","2020-06-29","NO PAÍS","ERICK CORREIA DE ALMEIDA","RESSARCIMENTO",1298.3800000000001,0,"NÃO SE APLICA",1298.3800000000001,"IDIOMAS"]
["CURSO LIDERANÇA FEMININA: CONSOLIDANDO COMPETÊNCIAS E POTENCIALIZANDO SUA INFLUÊNCIA","FUNDACAO ESCOLA NACIONAL DE ADMINISTRACAO PUBLICA - ENAP","00.627.612/0001-09",16,"2020-03-10","2020-03-11","NO PAÍS","ANA PATRÍCIA DA SILVA DE BRITO ","SEM CUSTOS DE INSCRIÇÃO - GRATUITO",0,0,1304.2906666666668,1304.2906666666668,"DESENVOLVER COMPETÊNCIAS NA GESTÃO E LIDERANÇA DE EQUIPES"]
["PROGRAMA DE DESENVOLVIMENTO GERENCIAL - PDG 2020 - WORKSHOP 2","HOMERO REIS CONSULTORIA E GESTÃO EMPRESARIAL LTDA","07.131.596/0001-08",4,"2020-03-11","2020-03-11","NO PAÍS","ALOISIO GOMES CAIXETA","CONTRATAÇÃO",354.35,0,350.61,{"$f":"SUM(J287:L287)","v":704.96},"DESENVOLVER NOS COORDENADORES DE PROCESSOS ORGANIZACIONAIS AS COMPETÊNCIAS QUE FORAM TRABALHADAS NOS GESTORES ESTRATÉGICOS DA ANTT."]
["PROGRAMA DE DESENVOLVIMENTO GERENCIAL - PDG 2020 - WORKSHOP 2","HOMERO REIS CONSULTORIA E GESTÃO EMPRESARIAL LTDA","07.131.596/0001-08",4,"2020-03-11","2020-03-11","NO PAÍS","ANA CLAUDIA SILVEIRA TORRES","CONTRATAÇÃO",354.35,0,292.48,{"$f":"SUM(J288:L288)","v":646.83000000000004},"DESENVOLVER NOS COORDENADORES DE PROCESSOS ORGANIZACIONAIS AS COMPETÊNCIAS QUE FORAM TRABALHADAS NOS GESTORES ESTRATÉGICOS DA ANTT."]
["PROGRAMA DE DESENVOLVIMENTO GERENCIAL - PDG 2020 - WORKSHOP 2","HOMERO REIS CONSULTORIA E GESTÃO EMPRESARIAL LTDA","07.131.596/0001-08",4,"2020-03-11","2020-03-11","NO PAÍS","BRUNO RIBEIRO  ALVARENGA","CONTRATAÇÃO",354.35,0,350.61,{"$f":"SUM(J289:L289)","v":704.96},"DESENVOLVER NOS COORDENADORES DE PROCESSOS ORGANIZACIONAIS AS COMPETÊNCIAS QUE FORAM TRABALHADAS NOS GESTORES ESTRATÉGICOS DA ANTT."]
["PROGRAMA DE DESENVOLVIMENTO GERENCIAL - PDG 2020 - WORKSHOP 2","HOMERO REIS CONSULTORIA E GESTÃO EMPRESARIAL LTDA","07.131.596/0001-08",4,"2020-03-11","2020-03-11","NO PAÍS","DALTON DA SILVA NEIVA","CONTRATAÇÃO",354.35,0,292.48,{"$f":"SUM(J290:L290)","v":646.83000000000004},"DESENVOLVER NOS COORDENADORES DE PROCESSOS ORGANIZACIONAIS AS COMPETÊNCIAS QUE FORAM TRABALHADAS NOS GESTORES ESTRATÉGICOS DA ANTT."]
["PROGRAMA DE DESENVOLVIMENTO GERENCIAL - PDG 2020 - WORKSHOP 2","HOMERO REIS CONSULTORIA E GESTÃO EMPRESARIAL LTDA","07.131.596/0001-08",4,"2020-03-11","2020-03-11","NO PAÍS","DANIEL ANTONIO DA MOTA ARAUJO","CONTRATAÇÃO",354.35,0,310.08,{"$f":"SUM(J291:L291)","v":664.43000000000006},"DESENVOLVER NOS COORDENADORES DE PROCESSOS ORGANIZACIONAIS AS COMPETÊNCIAS QUE FORAM TRABALHADAS NOS GESTORES ESTRATÉGICOS DA ANTT."]
["PROGRAMA DE DESENVOLVIMENTO GERENCIAL - PDG 2020 - WORKSHOP 2","HOMERO REIS CONSULTORIA E GESTÃO EMPRESARIAL LTDA","07.131.596/0001-08",4,"2020-03-11","2020-03-11","NO PAÍS","DANIEL DE CASTRO","CONTRATAÇÃO",354.35,0,325.7,{"$f":"SUM(J292:L292)","v":680.05},"DESENVOLVER NOS COORDENADORES DE PROCESSOS ORGANIZACIONAIS AS COMPETÊNCIAS QUE FORAM TRABALHADAS NOS GESTORES ESTRATÉGICOS DA ANTT."]
["PROGRAMA DE DESENVOLVIMENTO GERENCIAL - PDG 2020 - WORKSHOP 2","HOMERO REIS CONSULTORIA E GESTÃO EMPRESARIAL LTDA","07.131.596/0001-08",4,"2020-03-11","2020-03-11","NO PAÍS","EVERALDO VALENGA ALVES","CONTRATAÇÃO",354.35,0,292.48,{"$f":"SUM(J293:L293)","v":646.83000000000004},"DESENVOLVER NOS COORDENADORES DE PROCESSOS ORGANIZACIONAIS AS COMPETÊNCIAS QUE FORAM TRABALHADAS NOS GESTORES ESTRATÉGICOS DA ANTT."]
["PROGRAMA DE DESENVOLVIMENTO GERENCIAL - PDG 2020 - WORKSHOP 2","HOMERO REIS CONSULTORIA E GESTÃO EMPRESARIAL LTDA","07.131.596/0001-08",4,"2020-03-11","2020-03-11","NO PAÍS","GERALDO RODRIGUES DA SILVA JUNIOR","CONTRATAÇÃO",354.35,0,325.7,{"$f":"SUM(J294:L294)","v":680.05},"DESENVOLVER NOS COORDENADORES DE PROCESSOS ORGANIZACIONAIS AS COMPETÊNCIAS QUE FORAM TRABALHADAS NOS GESTORES ESTRATÉGICOS DA ANTT."]
["PROGRAMA DE DESENVOLVIMENTO GERENCIAL - PDG 2020 - WORKSHOP 2","HOMERO REIS CONSULTORIA E GESTÃO EMPRESARIAL LTDA","07.131.596/0001-08",4,"2020-03-11","2020-03-11","NO PAÍS","JANAINA DOS SANTOS","CONTRATAÇÃO",354.35,0,350.61,{"$f":"SUM(J295:L295)","v":704.96},"DESENVOLVER NOS COORDENADORES DE PROCESSOS ORGANIZACIONAIS AS COMPETÊNCIAS QUE FORAM TRABALHADAS NOS GESTORES ESTRATÉGICOS DA ANTT."]
["PROGRAMA DE DESENVOLVIMENTO GERENCIAL - PDG 2020 - WORKSHOP 2","HOMERO REIS CONSULTORIA E GESTÃO EMPRESARIAL LTDA","07.131.596/0001-08",4,"2020-03-11","2020-03-11","NO PAÍS","JULIANA MIRANDA CRUZ RIBEIRO","CONTRATAÇÃO",354.35,0,164.75,{"$f":"SUM(J296:L296)","v":519.1},"DESENVOLVER NOS COORDENADORES DE PROCESSOS ORGANIZACIONAIS AS COMPETÊNCIAS QUE FORAM TRABALHADAS NOS GESTORES ESTRATÉGICOS DA ANTT."]
["PROGRAMA DE DESENVOLVIMENTO GERENCIAL - PDG 2020 - WORKSHOP 2","HOMERO REIS CONSULTORIA E GESTÃO EMPRESARIAL LTDA","07.131.596/0001-08",4,"2020-03-11","2020-03-11","NO PAÍS","KARTNEY CARVALHO DE SOUSA","CONTRATAÇÃO",354.35,0,175.1,{"$f":"SUM(J297:L297)","v":529.45000000000005},"DESENVOLVER NOS COORDENADORES DE PROCESSOS ORGANIZACIONAIS AS COMPETÊNCIAS QUE FORAM TRABALHADAS NOS GESTORES ESTRATÉGICOS DA ANTT."]
["PROGRAMA DE DESENVOLVIMENTO GERENCIAL - PDG 2020 - WORKSHOP 2","HOMERO REIS CONSULTORIA E GESTÃO EMPRESARIAL LTDA","07.131.596/0001-08",4,"2020-03-11","2020-03-11","NO PAÍS","LILIAN MORAIS DE OLIVEIRA","CONTRATAÇÃO",354.35,0,146.76,{"$f":"SUM(J298:L298)","v":501.11},"DESENVOLVER NOS COORDENADORES DE PROCESSOS ORGANIZACIONAIS AS COMPETÊNCIAS QUE FORAM TRABALHADAS NOS GESTORES ESTRATÉGICOS DA ANTT."]
["PROGRAMA DE DESENVOLVIMENTO GERENCIAL - PDG 2020 - WORKSHOP 2","HOMERO REIS CONSULTORIA E GESTÃO EMPRESARIAL LTDA","07.131.596/0001-08",4,"2020-03-11","2020-03-11","NO PAÍS","MARINA SOARES ALMEIDA            ","CONTRATAÇÃO",354.35,0,284.2,{"$f":"SUM(J299:L299)","v":638.54999999999995},"DESENVOLVER NOS COORDENADORES DE PROCESSOS ORGANIZACIONAIS AS COMPETÊNCIAS QUE FORAM TRABALHADAS NOS GESTORES ESTRATÉGICOS DA ANTT."]
["PROGRAMA DE DESENVOLVIMENTO GERENCIAL - PDG 2020 - WORKSHOP 2","HOMERO REIS CONSULTORIA E GESTÃO EMPRESARIAL LTDA","07.131.596/0001-08",4,"2020-03-11","2020-03-11","NO PAÍS","MICHELINE PORTELA PINTO","CONTRATAÇÃO",354.35,0,302.08999999999997,{"$f":"SUM(J300:L300)","v":656.44},"DESENVOLVER NOS COORDENADORES DE PROCESSOS ORGANIZACIONAIS AS COMPETÊNCIAS QUE FORAM TRABALHADAS NOS GESTORES ESTRATÉGICOS DA ANTT."]
["PROGRAMA DE DESENVOLVIMENTO GERENCIAL - PDG 2020 - WORKSHOP 2","HOMERO REIS CONSULTORIA E GESTÃO EMPRESARIAL LTDA","07.131.596/0001-08",4,"2020-03-11","2020-03-11","NO PAÍS","PAULO HENRIQUE DA SILVA COSTA","CONTRATAÇÃO",354.35,0,326.07,{"$f":"SUM(J301:L301)","v":680.42000000000007},"DESENVOLVER NOS COORDENADORES DE PROCESSOS ORGANIZACIONAIS AS COMPETÊNCIAS QUE FORAM TRABALHADAS NOS GESTORES ESTRATÉGICOS DA ANTT."]
["PROGRAMA DE DESENVOLVIMENTO GERENCIAL - PDG 2020 - WORKSHOP 2","HOMERO REIS CONSULTORIA E GESTÃO EMPRESARIAL LTDA","07.131.596/0001-08",4,"2020-03-11","2020-03-11","NO PAÍS","PAULO JOSE  MILANEZ","CONTRATAÇÃO",354.35,0,175.1,{"$f":"SUM(J302:L302)","v":529.45000000000005},"DESENVOLVER NOS COORDENADORES DE PROCESSOS ORGANIZACIONAIS AS COMPETÊNCIAS QUE FORAM TRABALHADAS NOS GESTORES ESTRATÉGICOS DA ANTT."]
["PROGRAMA DE DESENVOLVIMENTO GERENCIAL - PDG 2020 - WORKSHOP 2","HOMERO REIS CONSULTORIA E GESTÃO EMPRESARIAL LTDA","07.131.596/0001-08",4,"2020-03-11","2020-03-11","NO PAÍS","PRISCILA DE ANDRADE PEREIRA","CONTRATAÇÃO",354.35,0,160.47,{"$f":"SUM(J303:L303)","v":514.82000000000005},"DESENVOLVER NOS COORDENADORES DE PROCESSOS ORGANIZACIONAIS AS COMPETÊNCIAS QUE FORAM TRABALHADAS NOS GESTORES ESTRATÉGICOS DA ANTT."]
["PROGRAMA DE DESENVOLVIMENTO GERENCIAL - PDG 2020 - WORKSHOP 2","HOMERO REIS CONSULTORIA E GESTÃO EMPRESARIAL LTDA","07.131.596/0001-08",4,"2020-03-11","2020-03-11","NO PAÍS","RAFAELA PAIVA BRANDAO","CONTRATAÇÃO",354.35,0,310.08,{"$f":"SUM(J304:L304)","v":664.43000000000006},"DESENVOLVER NOS COORDENADORES DE PROCESSOS ORGANIZACIONAIS AS COMPETÊNCIAS QUE FORAM TRABALHADAS NOS GESTORES ESTRATÉGICOS DA ANTT."]
["PROGRAMA DE DESENVOLVIMENTO GERENCIAL - PDG 2020 - WORKSHOP 2","HOMERO REIS CONSULTORIA E GESTÃO EMPRESARIAL LTDA","07.131.596/0001-08",4,"2020-03-11","2020-03-11","NO PAÍS","ROSE MARRI DE PAULA TEIXEIRA","CONTRATAÇÃO",354.35,0,107.66,{"$f":"SUM(J305:L305)","v":462.01},"DESENVOLVER NOS COORDENADORES DE PROCESSOS ORGANIZACIONAIS AS COMPETÊNCIAS QUE FORAM TRABALHADAS NOS GESTORES ESTRATÉGICOS DA ANTT."]
["PROGRAMA DE DESENVOLVIMENTO GERENCIAL - PDG 2020 - WORKSHOP 2","HOMERO REIS CONSULTORIA E GESTÃO EMPRESARIAL LTDA","07.131.596/0001-08",4,"2020-03-11","2020-03-11","NO PAÍS","SANDRO VIEIRA DA ROSA","CONTRATAÇÃO",354.35,0,342.3,{"$f":"SUM(J306:L306)","v":696.65000000000009},"DESENVOLVER NOS COORDENADORES DE PROCESSOS ORGANIZACIONAIS AS COMPETÊNCIAS QUE FORAM TRABALHADAS NOS GESTORES ESTRATÉGICOS DA ANTT."]
["PROGRAMA DE DESENVOLVIMENTO GERENCIAL - PDG 2020 - WORKSHOP 2","HOMERO REIS CONSULTORIA E GESTÃO EMPRESARIAL LTDA","07.131.596/0001-08",4,"2020-03-11","2020-03-11","NO PAÍS","SERGIO DUARTE PALMEIRA ROSA","CONTRATAÇÃO",354.35,0,325.7,{"$f":"SUM(J307:L307)","v":680.05},"DESENVOLVER NOS COORDENADORES DE PROCESSOS ORGANIZACIONAIS AS COMPETÊNCIAS QUE FORAM TRABALHADAS NOS GESTORES ESTRATÉGICOS DA ANTT."]
["PROGRAMA DE DESENVOLVIMENTO GERENCIAL - PDG 2020 - WORKSHOP 2","HOMERO REIS CONSULTORIA E GESTÃO EMPRESARIAL LTDA","07.131.596/0001-08",4,"2020-03-11","2020-03-11","NO PAÍS","THAIS MARIA DE ANDRADE VILLELA","CONTRATAÇÃO",354.35,0,300.81,{"$f":"SUM(J308:L308)","v":655.16000000000008},"DESENVOLVER NOS COORDENADORES DE PROCESSOS ORGANIZACIONAIS AS COMPETÊNCIAS QUE FORAM TRABALHADAS NOS GESTORES ESTRATÉGICOS DA ANTT."]
["PROGRAMA DE DESENVOLVIMENTO GERENCIAL - PDG 2020 - WORKSHOP 2","HOMERO REIS CONSULTORIA E GESTÃO EMPRESARIAL LTDA","07.131.596/0001-08",4,"2020-03-11","2020-03-11","NO PAÍS","THIAGO DE CASTRO SOUSA","CONTRATAÇÃO",354.35,0,498.73,{"$f":"SUM(J309:L309)","v":853.08},"DESENVOLVER NOS COORDENADORES DE PROCESSOS ORGANIZACIONAIS AS COMPETÊNCIAS QUE FORAM TRABALHADAS NOS GESTORES ESTRATÉGICOS DA ANTT."]
["PROGRAMA DE DESENVOLVIMENTO GERENCIAL - PDG 2020 - WORKSHOP 2","HOMERO REIS CONSULTORIA E GESTÃO EMPRESARIAL LTDA","07.131.596/0001-08",4,"2020-03-11","2020-03-11","NO PAÍS","VICTOR HUGO GOUVEIA DE LUCENA LIMA","CONTRATAÇÃO",354.35,0,169.12,{"$f":"SUM(J310:L310)","v":523.47},"DESENVOLVER NOS COORDENADORES DE PROCESSOS ORGANIZACIONAIS AS COMPETÊNCIAS QUE FORAM TRABALHADAS NOS GESTORES ESTRATÉGICOS DA ANTT."]
["PROGRAMA DE DESENVOLVIMENTO GERENCIAL - PDG 2020 - WORKSHOP 2","HOMERO REIS CONSULTORIA E GESTÃO EMPRESARIAL LTDA","07.131.596/0001-08",4,"2020-03-11","2020-03-11","NO PAÍS","WILLIANE VIEIRA MAIA","CONTRATAÇÃO",354.35,0,310.08,{"$f":"SUM(J311:L311)","v":664.43000000000006},"DESENVOLVER NOS COORDENADORES DE PROCESSOS ORGANIZACIONAIS AS COMPETÊNCIAS QUE FORAM TRABALHADAS NOS GESTORES ESTRATÉGICOS DA ANTT."]
["CURSO DE EXTENSÃO ATUALIZAÇÃO JURÍDICA - DIREITO ADMINISTRATIVO - AGÊNCIAS REGULADORAS E EXECUTIVAS","UNIEDUCAR INTELIGÊNCIA EDUCACIONAL LTDA","05.569.970/0001-26",180,"2020-03-19","2020-04-17","NO PAÍS","ELAINE CRISTINA DE BRITTO LIRA","GRATUITO",0,0,9258.7900000000009,{"$f":"SUM(J312:L312)","v":9258.7900000000009},"TEMA DEFINIDO NO GUIA DE CONHECIMENTOS DA ANTT - EIXO TEMÁTICO/GRUPO DE CONHECIMENTO: GOVERNANÇA CORPORATIVA/ATOS, PROCESSOS E PROCEDIMENTOS ADMINISTRATIVOS"]
["CURSO GESTÃO NA ADMINISTRAÇÃO PÚBLICA","CENTRO DE EDUCACAO PROFISSIONAL LTDA","10.326.300/0001-19",180,"2020-03-19","2020-04-17","NO PAÍS","EMANUELE BANDEIRA CARVALHO DE LIMA","GRATUITO",0,0,8805.5499999999993,{"$f":"SUM(J313:L313)","v":8805.5499999999993},"TEMA DEFINIDO NO GUIA DE CONHECIMENTOS DA ANTT - EIXO TEMÁTICO/GRUPO DE CONHECIMENTO: DESENVOLVIMENTO INSTITUCIONAL/MODELOS DE GESTÃO"]
["CURSO GESTÃO DE PROBLEMAS","OTAVIO MEDEIROS DIAS - CURSOS VIRTUAIS NET","08.179.401/0001-62",140,"2020-03-19","2020-04-17","NO PAÍS","EMERSON PEREZ","GRATUITO",0,0,10506.18,{"$f":"SUM(J314:L314)","v":10506.18},"TEMA DEFINIDO NO GUIA DE CONHECIMENTOS DA ANTT - EIXO TEMÁTICO/GRUPO DE CONHECIMENTO: DESENVOLVIMENTO INSTITUCIONAL/GESTÃO DE PESSOAS"]
["GESTÃO DE PROBLEMAS","CURSOS VIRTUAIS .NET","08.179.401/0001-62",140,"2020-03-19","2020-04-17","NO PAÍS","EMERSON PEREZ","SEM CUSTOS DE INSCRIÇÃO - GRATUITO",0,0,10506.18,10506.18,"TEMA DEFINIDO NO GUIA DE CONHECIMENTOS DA ANTT - EIXO TEMÁTICO/GRUPO DE CONHECIMENTO: DESENVOLVIMENTO INSTITUCIONAL/GESTÃO DE PESSOAS"]
["CURSO DE EXTENSÃO EXCEL 2013 AVANÇADO","UNIEDUCAR INTELIGÊNCIA EDUCACIONAL LTDA","05.569.970/0001-26",140,"2020-03-19","2020-04-17","NO PAÍS","JULYCE ODILIA DE MATOS COSTA","GRATUITO",0,0,20040.07,{"$f":"SUM(J316:L316)","v":20040.07},"TEMA DEFINIDO NO GUIA DE CONHECIMENTOS DA ANTT - EIXO TEMÁTICO/GRUPO DE CONHECIMENTO: DESENVOLVIMENTO INSTITUCIONAL/TECNOLOGIA DA INFORMAÇÃO"]
["CÓDIGO DE TRÂNSITO MULTAS PROCESSO E CRIME DE TRÂNSITO","UNIEDUCAR","05.569.970/0001-26",260,"2020-03-19","2020-05-17","NO PAÍS","RIVADAVIA OLIVEIRA JUNIOR","SEM CUSTOS DE INSCRIÇÃO - GRATUITO",0,0,35098.18,35098.18,"TEMA DEFINIDO NO GUIA DE CONHECIMENTOS DA ANTT - EIXO TEMÁTICO/GRUPO DE CONHECIMENTO: FISCALIZAÇÃO / DESENVOLVIMENTO DA FISCALIZAÇÃO/TRANSPORTE DE PASSAGEIROS/TRANSPORTE DE CARGAS"]
["CURSO CÁLCULO DE CUSTOS E PREÇOS DO TRANSPORTE - CURSO LOGÍSTICA DE TRANSPORTES\n","FBV CURSOS ","12.301.010/0001-46",380,"2020-03-19","2020-06-16","NO PAÍS","LEONARDO SIDNEY DA SILVA LULA PEREIRA","SEM CUSTOS DE INSCRIÇÃO - GRATUITO",0,0,30731.97,30731.97,"TEMA DEFINIDO NO GUIA DE CONHECIMENTOS DA ANTT - EIXO TEMÁTICO/GRUPO DE CONHECIMENTO: DESENVOLVIMENTO INSTITUCIONAL - LOGÍSTICA "]
["CURSO CÁLCULO DE CUSTOS E PREÇOS DO TRANSPORTE - CURSO LOGÍSTICA DE TRANSPORTES","FERNANDO B VALE - ESCOLA WEB FBV CURSOS ","12.301.010/0001-46",380,"2020-03-19","2020-06-16","NO PAÍS","LEONARDO SIDNEY DA SILVA LULA PEREIRA","SEM CUSTOS DE INSCRIÇÃO - GRATUITO",0,0,30731.97,30731.97,"TEMA DEFINIDO NO GUIA DE CONHECIMENTOS DA ANTT - EIXO TEMÁTICO/GRUPO DE CONHECIMENTO: DESENVOLVIMENTO INSTITUCIONAL - LOGÍSTICA\n "]
["PCI 1º SEMESTRE/2020 - INGLÊS","CAMBLY INC","-",16,"2020-03-30","2020-07-15","NO PAÍS","LIVIA RIBEIRO DE OLIVEIRA","RESSARCIMENTO",264.14,0,"NÃO SE APLICA",264.14,"IDIOMAS"]
["CURSO DE EXTENSÃO ATUALIZAÇÃO JURÍDICA - DIREITO ADMINISTRATIVO - ADMINISTRAÇÃO PÚBLICA","UNIEDUCAR INTELIGÊNCIA EDUCACIONAL LTDA","05.569.970/0001-26",120,"2020-04-03","2020-04-17","NO PAÍS","FABIO BRAGA MOTA","GRATUITO",0,0,5253.09,{"$f":"SUM(J321:L321)","v":5253.09},"TEMA DEFINIDO NO GUIA DE CONHECIMENTOS DA ANTT - EIXO TEMÁTICO/GRUPO DE CONHECIMENTO: GOVERNANÇA CORPORATIVA/ATOS, PROCESSOS E PROCEDIMENTOS ADMINISTRATIVOS"]
["CURSO ADMINISTRANDO RELACIONAMENTOS, DESENVOLVENDO A LIDERANÇA E TRABALHANDO A MOTIVAÇÃO","UNIEDUCAR INTELIGÊNCIA EDUCACIONAL LTDA","05.569.970/0001-26",140,"2020-04-03","2020-05-02","NO PAÍS","ELIANE DE OLIVEIRA ABRAS","SEM CUSTOS DE INSCRIÇÃO - GRATUITO",0,0,9990.44,9990.44,"TEMA DEFINIDO NO GUIA DE CONHECIMENTOS DA ANTT - EIXO TEMÁTICO/GRUPO DE CONHECIMENTO: DESENVOLVIMENTO INSTITUCIONAL/GESTÃO DE PESSOAS"]
["CURSO ANÁLISE E DECISÃO DE INVESTIMENTOS","UNIEDUCAR INTELIGÊNCIA EDUCACIONAL LTDA","05.569.970/0001-26",140,"2020-04-03","2020-05-02","NO PAÍS","EMIDIO ADONIAS SANTANA MOTA","SEM CUSTOS DE INSCRIÇÃO - GRATUITO",0,0,21036.46,21036.46,"TEMA DEFINIDO NO GUIA DE CONHECIMENTOS DA ANTT - EIXO TEMÁTICO/GRUPO DE CONHECIMENTO: REGULAÇÃO/DESENVOLVIMENTO DA REGULAÇÃO"]
["CURSO CONTRATOS ADMINISTRATIVOS","CENTRO DE DESENVOLVIMENTO PROVISSIONAL LTDA","18.182.849/0001-09",160,"2020-04-03","2020-05-02","NO PAÍS","FABIANA CARVALHO DA SILVA","SEM CUSTOS DE INSCRIÇÃO - GRATUITO",0,0,10506.18,10506.18,"TEMA DEFINIDO NO GUIA DE CONHECIMENTOS DA ANTT - EIXO TEMÁTICO/GRUPO DE CONHECIMENTO: CONTRATAÇÃO E COOPERAÇÃO NO SERVIÇO PÚBLICO"]
["CONTRATOS ADMINISTRATIVOS","CEDEP","18.182.899/0001-99",120,"2020-04-03","2020-05-02","NO PAÍS","FABIANA CARVALHO DA SILVA","SEM CUSTOS DE INSCRIÇÃO - GRATUITO",0,0,10506.18,10506.18,"TEMA DEFINIDO NO GUIA DE CONHECIMENTOS DA ANTT - EIXO TEMÁTICO/GRUPO DE CONHECIMENTO: CONTRATAÇÃO E COOPERAÇÃO NO SERVIÇO PÚBLICO"]
["PCI 1º SEMESTRE/2020 - INGLÊS","PARK IDIOMAS/LDGC ESCOLA DE IDIOMAS LTDA","18.927.492/0001-20",11,"2020-04-13","2020-06-29","NO PAÍS","SAMANTA DE ARAUJO MORAIS","RESSARCIMENTO",924.72,0,"NÃO SE APLICA",924.72,"IDIOMAS"]
["CURSO ATUALIZAÇÃO JURÍDICA - DIREITO ADMINISTRATIVO - AGÊNCIAS REGULADORAS E EXECUTIVAS","UNIEDUCAR INTELIGÊNCIA EDUCACIONAL LTDA","05.569.970/0001-26",80,"2020-04-18","2020-05-02","NO PAÍS","THIAGO CEFAS COSTA DE LIMA","SEM CUSTOS DE INSCRIÇÃO - GRATUITO",0,0,8774.5450000000001,8774.5450000000001,"TEMA DEFINIDO NO GUIA DE CONHECIMENTOS DA ANTT - EIXO TEMÁTICO/GRUPO DE CONHECIMENTO: DESENVOLVIMENTO INSTITUCIONAL/CONCEITO BÁSICO E MODELOS DE GESTÃO"]
["ATUALIZAÇÃO JURÍDICA - NOVO CPC 2015 - RECURSOS - ATUALIZAÇÃO JURÍDICA - DIREITO ADMINISTRATIVO - AGÊNCIAS REGULADORAS E EXECUTIVAS","UNIEDUCAR","05.569.970/0001-26",160,"2020-04-18","2020-05-02","NO PAÍS","THIAGO CEFAS COSTA DE LIMA","SEM CUSTOS DE INSCRIÇÃO - GRATUITO",0,0,8774.5450000000001,8774.5450000000001,"TEMA DEFINIDO NO GUIA DE CONHECIMENTOS DA ANTT - EIXO TEMÁTICO/GRUPO DE CONHECIMENTO: GOVERNANÇA COORPORATIVA / ATOS PROCESSOS E PROCEDIMENTOS ADMINISTRATIVOS DESENVOLVIMENTO INSTITUCIONAL / CONCEITOS BÁSICOS E MODELOS DE GESTÃO "]
["CURSO ATUALIZAÇÃO JURÍDICA - DIREITO ADMINISTRATIVO - AGÊNCIAS REGULADORAS E EXECUTIVAS","UNIEDUCAR INTELIGÊNCIA EDUCACIONAL LTDA","05.569.970/0001-26",140,"2020-04-18","2020-05-17","NO PAÍS","GERALDO ALMEIDA FERREIRA JUNIOR","SEM CUSTOS DE INSCRIÇÃO - GRATUITO",0,0,9990.44,9990.44,"TEMA DEFINIDO NO GUIA DE CONHECIMENTOS DA ANTT - EIXO TEMÁTICO/GRUPO DE CONHECIMENTO: REGULAÇÃO/DESENVOLVIMENTO DA REGULAÇÃO"]
["CURSO HERMENÊUTICA E ARGUMENTAÇÃO JURÍDICA","METROPOLITAN EDUCACAO LTDA","13.411.192/0001-70",180,"2020-04-18","2020-05-17","NO PAÍS","NAYARA CAMPOS GONDIM MARTINS COELHO","SEM CUSTOS DE INSCRIÇÃO - GRATUITO",0,0,9990.44,9990.44,"TEMA DEFINIDO NO GUIA DE CONHECIMENTOS DA ANTT - EIXO TEMÁTICO/GRUPO DE CONHECIMENTO: DESENVOLVIMENTO INSTITUCIONAL/CONCEITO BÁSICO"]
["CURSO A NOVA LEI ANTICORRUPÇÃO E A GOVERNANÇA CORPORATIVA","UNIEDUCAR INTELIGÊNCIA EDUCACIONAL LTDA","05.569.970/0001-26",140,"2020-04-18","2020-05-17","NO PAÍS","PAULO SERGIO BEZERRA DOS SANTOS","SEM CUSTOS DE INSCRIÇÃO - GRATUITO",0,0,10147.08,10147.08,"TEMA DEFINIDO NO GUIA DE CONHECIMENTOS DA ANTT - EIXO TEMÁTICO/GRUPO DE CONHECIMENTO: GOVERNANÇA CORPORATIVA/CONTROLE"]
["CURSO ANÁLISE DE DADOS E SÉRIES TEMPORAIS - AMOSTRAGEM, ESTIMAÇÃO, REGRESSÃO, CORRELAÇÃO E TEORIAS DECISÃO","UNIEDUCAR INTELIGÊNCIA EDUCACIONAL LTDA","05.569.970/0001-26",140,"2020-04-18","2020-05-17","NO PAÍS","RENATO DE MIRANDA SANTOS","SEM CUSTOS DE INSCRIÇÃO - GRATUITO",0,0,20538.259999999998,20538.259999999998,"TEMA DEFINIDO NO GUIA DE CONHECIMENTOS DA ANTT - EIXO TEMÁTICO/GRUPO DE CONHECIMENTO: REGULAÇÃO/DESENVOLVIMENTO DA REGULAÇÃO"]
["ANÁLISE DE DADOS E SÉRIES TEMPORAIS","UNIEDUCAR","05.569.970/0001-26",140,"2020-04-18","2020-05-17","NO PAÍS","RENATO DE MIRANDA SANTOS","SEM CUSTOS DE INSCRIÇÃO - GRATUITO",0,0,20538.259999999998,20538.259999999998,"TEMA DEFINIDO NO GUIA DE CONHECIMENTOS DA ANTT - EIXO TEMÁTICO/GRUPO DE CONHECIMENTO: REGULAÇÃO - DESENVOLVIMENTO DA REGULAÇÃO"]
["CURSO ATUALIZAÇÃO DE DIREITO E PROCESSO DO TRABALHO - A REFORMA TRABALHISTA","UNIEDUCAR INTELIGÊNCIA EDUCACIONAL LTDA","05.569.970/0001-26",80,"2020-05-03","2020-05-17","NO PAÍS","BEATRIZ PIMENTA FERNANDES      ","SEM CUSTOS DE INSCRIÇÃO - GRATUITO",0,0,8103.07,8103.07,"TEMA DEFINIDO NO GUIA DE CONHECIMENTOS DA ANTT - EIXO TEMÁTICO/GRUPO DE CONHECIMENTO: INSTITUCIONAL/CONTRATAÇÃO E COOPERAÇÃO NO SERVIÇO PÚBLICO"]
["CURSO INTRODUÇÃO À FISCALIZAÇÃO DE TRANSPORTE COLETIVO","ANGELITA ALVES DE OLIVEIRA COSTA","32.802.528/0001-70",80,"2020-05-03","2020-05-17","NO PAÍS","CALIXTO JOSE DE MORAES","SEM CUSTOS DE INSCRIÇÃO - GRATUITO",0,0,5253.09,5253.09,"TEMA DEFINIDO NO GUIA DE CONHECIMENTOS DA ANTT - EIXO TEMÁTICO/GRUPO DE CONHECIMENTO: FISCALIZAÇÃO/TRANSPORTE DE PASSAGEIROS"]
["CURSO DE ESPANHOL","OTAVIO MEDEIROS DIAS","08.179.401/0001-62",140,"2020-05-03","2020-05-20","NO PAÍS","PAULO JORGE COSTA","SEM CUSTOS DE INSCRIÇÃO - GRATUITO",0,0,11725.128000000001,11725.128000000001,"TEMA DEFINIDO NO GUIA DE CONHECIMENTOS DA ANTT - EIXO TEMÁTICO/GRUPO DE CONHECIMENTO: DESENVOLVIMENTO INSTITUCIONAL/IDIOMAS"]
["CURSO  DE ÉTICA E CIDADANIA","UNIEDUCAR INTELIGÊNCIA EDUCACIONAL LTDA","05.569.970/0001-26",160,"2020-05-03","2020-06-01","NO PAÍS","ANTONIO ALACIR NORONHA MOREIRA","SEM CUSTOS DE INSCRIÇÃO - GRATUITO",0,0,10243.99,10243.99,"TEMA DEFINIDO NO GUIA DE CONHECIMENTOS DA ANTT - EIXO TEMÁTICO/GRUPO DE CONHECIMENTO: FISCALIZAÇÃO/TRANSPORTE DE PASSAGEIROS"]
["ETICA E CIDADANIA","UNIEDUCAR","05.569.970/0001-26",160,"2020-05-03","2020-06-01","NO PAÍS","ANTONIO ALACIR NORONHA MOREIRA","SEM CUSTOS DE INSCRIÇÃO - GRATUITO",0,0,10243.99,10243.99,"TEMA DEFINIDO NO GUIA DE CONHECIMENTOS DA ANTT - EIXO TEMÁTICO/GRUPO DE CONHECIMENTO: FISCALIZAÇÃO/TRANSPORTE DE PASSAGEIROS"]
["CURSO DE LOGÍSTICA","OTAVIO MEDEIROS DIAS","08.179.401/0001-62",160,"2020-05-03","2020-06-01","NO PAÍS","CARLOS ANDRE CAMARGO","SEM CUSTOS DE INSCRIÇÃO - GRATUITO",0,0,10506.18,10506.18,"TEMA DEFINIDO NO GUIA DE CONHECIMENTOS DA ANTT - EIXO TEMÁTICO/GRUPO DE CONHECIMENTO: DESENVOLVIMENTO INSTITUCIONAL/LOGISTICA"]
["CURSO ORGANIZAÇÃO E IM´LEMENTAÇÃO DA GESTÃO POR PROJETO","FUNDAÇÃO BRASILEIRA DE EDUCAÇÃO - FUBRAE","34.170.479/0001-57",150,"2020-05-03","2020-06-01","NO PAÍS","EUGENIO JOSE SARAIVA CAMARA COSTA","SEM CUSTOS DE INSCRIÇÃO - GRATUITO",0,0,17549.09,17549.09,"TEMA DEFINIDO NO GUIA DE CONHECIMENTOS DA ANTT - EIXO TEMÁTICO/GRUPO DE CONHECIMENTO: DESENVOLVIMENTO INSTITUCIONAL/MODELOS DE GESTÃO"]
["CURSO ATUALIZAÇÃO JURÍDICA - DIREITO ADMINISTRATIVO - DIREITO ANTICORRUPÇÃO","UNIEDUCAR INTELIGÊNCIA EDUCACIONAL LTDA","05.569.970/0001-26",140,"2020-05-03","2020-06-01","NO PAÍS","FELIPE BARBOSA FERREIRA","SEM CUSTOS DE INSCRIÇÃO - GRATUITO",0,0,10147.08,10147.08,"TEMA DEFINIDO NO GUIA DE CONHECIMENTOS DA ANTT - EIXO TEMÁTICO/GRUPO DE CONHECIMENTO: GOVERNANÇA CORPORATIVA/ÉTICA E CORREIÇÃO"]
["CURSO INTRODUÇÃO À FISCALIZAÇÃO DE TRANSPORTE COLETIVO","ANGELITA ALVES DE OLIVEIRA COSTA","32.802.528/0001-70",180,"2020-05-03","2020-06-01","NO PAÍS","GUILHERME SCHMIDT","SEM CUSTOS DE INSCRIÇÃO - GRATUITO",0,0,10506.18,10506.18,"TEMA DEFINIDO NO GUIA DE CONHECIMENTOS DA ANTT - EIXO TEMÁTICO/GRUPO DE CONHECIMENTO: FISCALIZAÇÃO/TRANSPORTE DE PASSAGEIROS"]
["CURSO EXCEL 2013 INTERMEDIÁRIO; EXCEL 2016 AVANÇADO","UNIEDUCAR INTELIGÊNCIA EDUCACIONAL LTDA","05.569.970/0001-26",180,"2020-05-03","2020-06-01","NO PAÍS","IGOR FILIPE EUGENIO                             ","SEM CUSTOS DE INSCRIÇÃO - GRATUITO",0,0,17549.09,17549.09,"TEMA DEFINIDO NO GUIA DE CONHECIMENTOS DA ANTT - EIXO TEMÁTICO/GRUPO DE CONHECIMENTO: DESENVOLVIMENTO INSTITUCIONAL/MODELOS DE GESTÃO"]
["CURSO REDAÇÃO OFICIAL E CORRESPONDÊNCIAS ADMINISTRATIVAS NO SETOR PÚBLICO","CENED - CENTRO DE EDUCAÇÃO PROFISSIONAL LTDA","10.326.300/0001-19",180,"2020-05-03","2020-06-01","NO PAÍS","LETICIA MACHADO DANTAS","SEM CUSTOS DE INSCRIÇÃO - GRATUITO",0,0,10506.18,10506.18,"TEMA DEFINIDO NO GUIA DE CONHECIMENTOS DA ANTT - EIXO TEMÁTICO/GRUPO DE CONHECIMENTO: DESENVOLVIMENTO INSTITUCIONAL/COMUNICAÇÃO"]
["CURSO ATUALIZAÇÃO JURÍDICA - APOSENTADORIA DO SERVIDOR PÚBLICO - REFORMA DA PREVIDÊNCIA EC 103/19","UNIEDUCAR INTELIGÊNCIA EDUCACIONAL LTDA","05.569.970/0001-26",140,"2020-05-03","2020-06-01","NO PAÍS","MARIA MADALENA FERREIRA DE SOUZA","SEM CUSTOS DE INSCRIÇÃO - GRATUITO",0,0,18604.72,18604.72,"TEMA DEFINIDO NO GUIA DE CONHECIMENTOS DA ANTT - EIXO TEMÁTICO/GRUPO DE CONHECIMENTO: DESENVOLVIMENTO INSTITUCIONAL/GESTÃO DE PESSOAS"]
["CURSO ATUALIZAÇÃO JURÍDICA - ADMINISTRATIVO - CONTRATOS, CONVÊNIO E SANÇÕES CONTRATUAIS","UNIEDUCAR INTELIGÊNCIA EDUCACIONAL LTDA","05.569.970/0001-26",140,"2020-05-03","2020-06-01","NO PAÍS","RAFAEL TAVARES FERREIRA LIMA","SEM CUSTOS DE INSCRIÇÃO - GRATUITO",0,0,10147.08,10147.08,"TEMA DEFINIDO NO GUIA DE CONHECIMENTOS DA ANTT - EIXO TEMÁTICO/GRUPO DE CONHECIMENTO: INSTITUCIONAL/CONTRATAÇÃO E COOPERAÇÃO NO SERVIÇO PÚBLICO"]
["EXTENSÃO ATUALIZAÇÃO JURÍDICA - DIREITO DA INFRAESTRUTURA","UNIEDUCAR INTELIGÊNCIA EDUCACIONAL LTDA","05.569.970/0001-26",140,"2020-05-18","2020-06-16","NO PAÍS","MARCO JUN BORGES","SEM CUSTOS DE INSCRIÇÃO - GRATUITO",0,0,9990.44,9990.44,"TEMA DEFINIDO NO GUIA DE CONHECIMENTOS DA ANTT - EIXO TEMÁTICO/GRUPO DE CONHECIMENTO: INFRAESTRUTURA"]
["APERFEIÇOAMENTO EM HERMENÊUCA E ARGUMENTAÇÃO JURÍDICA","FACULDADE METROPOLITANA","13.411.192/0001-70",180,"2020-05-18","2020-06-16","NO PAÍS","OCTÁVIO HENRIQUE MARTINS PEDROSA","SEM CUSTOS DE INSCRIÇÃO - GRATUITO",0,0,10506.18,10506.18,"TEMA DEFINIDO NO GUIA DE CONHECIMENTOS DA ANTT - EIXO TEMÁTICO/GRUPO DE CONHECIMENTO: GOVERNANÇA CORPORATIVA / ATOS, PROCESSOS E PROCEDIMENTOS ADMINISTRATIVOS"]
["APERFEIÇOAMENTO EM HERMENÊUCA E ARGUMENTAÇÃO JURÍDICA","FACULDADE METROPOLITANA","13.411.192/0001-70",180,"2020-05-18","2020-06-16","NO PAÍS","OCTÁVIO HENRIQUE MARTINS PEDROSA","SEM CUSTOS DE INSCRIÇÃO - GRATUITO",0,0,10506.18,10506.18,"TEMA DEFINIDO NO GUIA DE CONHECIMENTOS DA ANTT - EIXO TEMÁTICO/GRUPO DE CONHECIMENTO: GOVERNANÇA CORPORATIVA / ATOS, PROCESSOS E PROCEDIMENTOS ADMINISTRATIVOS"]
["GESTÃO ESTRATÉGICA DE PESSOAS E PLANOS DE CARREIRA - GESTÃO PESSOAL - BASE DA LIDERANÇA - ÉTICA E SERVIÇO PÚBLICO - INTRODUÇÃO À GESTÃO DE PROCESSOS -GESTÃO DE RISCOS NO SETOR PÚBLICO - A PRECIFICAÇÃO NO TRANSPORTE RODOVIÁRIO DE CARGAS ","ENAP","06.627.612/0001-09",130,"2020-06-02","2020-07-01","NO PAÍS","ALEXANDRE MOACIR MAGRO","SEM CUSTOS DE INSCRIÇÃO - GRATUITO",0,0,9492.86,9492.86,"TEMA DEFINIDO NO GUIA DE CONHECIMENTOS DA ANTT - EIXO TEMÁTICO/GRUPO DE CONHECIMENTO: REGULAÇÃO - TRANSPORTES TERRESTRES, DESENVOLVIMENTO INSTITUCIONAL - GESTÃO DE PESSOAS, GOVERNANÇA CORPORATIVA - ÉTICA E CORREIÇÃO"]
["GESTÃO DE PROBLEMAS","CURSOS VIRTUAIS .NET","08.179.401/0001-62",140,"2020-06-02","2020-07-01","NO PAÍS","ANDERSON APARECIDO PEREIRA DA SILVA CASQUEL","SEM CUSTOS DE INSCRIÇÃO - GRATUITO",0,0,10243.99,10243.99,"TEMA DEFINIDO NO GUIA DE CONHECIMENTOS DA ANTT - EIXO TEMÁTICO/GRUPO DE CONHECIMENTO: FISCALIZAÇÃO / TRANSPORTE DE PASSAGEIROS"]
["LIDERANÇA E GESTÃO DE EQUIPES","INSTITUTO DE ENSINO PROFISSIONALIZANTE CAPACITAR LTDA","16.693.045/0001-29",150,"2020-06-02","2020-07-01","NO PAÍS","ELISA GUEDES GUERRA                    ","SEM CUSTOS DE INSCRIÇÃO - GRATUITO",0,0,18048.34,18048.34,"TEMA DEFINIDO NO GUIA DE CONHECIMENTOS DA ANTT - EIXO TEMÁTICO/GRUPO DE CONHECIMENTO: DESENVOLVIMENTO INSTITUCIONAL/GESTÃO DE PESSOAS"]
["CURSO DE HERMENÊUTICA E ARGUMENTAÇÃO JURÍDICA","METROPOLITAN EDUCACAO LTDA","13.411.192/0001-70",180,"2020-06-02","2020-07-01","NO PAÍS","HAROLDO MAIA DE ALMEIDA","SEM CUSTOS DE INSCRIÇÃO - GRATUITO",0,0,10506.18,10506.18,"TEMA DEFINIDO NO GUIA DE CONHECIMENTOS DA ANTT - EIXO TEMÁTICO/GRUPO DE CONHECIMENTO: GOVERNANÇA CORPORATIVA/ATOS, PROCESSOS E PROCEDIMENTOS ADMINISTRATIVOS"]
["CONFLITO E A NEGOCIAÇÃO - A COMUNICAÇÃO COMO DIFERENCIAL COMPETITIVO","UNIEDUCAR","05.569.970/0001-26",160,"2020-06-02","2020-07-01","NO PAÍS","IANA HOLANDA RISUENHO","SEM CUSTOS DE INSCRIÇÃO - GRATUITO",0,0,15726.85,15726.85,"TEMA DEFINIDO NO GUIA DE CONHECIMENTOS DA ANTT - EIXO TEMÁTICO/GRUPO DE CONHECIMENTO: DESENVOLVIMENTO INSTITUCIONAL/GESTÃO DE PESSOAS"]
["AGENTES PÚBLICOS NA CONSTITUIÇÃO","UNIEDUCAR INTELIGÊNCIA EDUCACIONAL LTDA","05.569.970/0001-26",140,"2020-06-02","2020-07-01","NO PAÍS","ISABEL DOLABELA DE LIMA LOPES","SEM CUSTOS DE INSCRIÇÃO - GRATUITO",0,0,15726.85,15726.85,"TEMA DEFINIDO NO GUIA DE CONHECIMENTOS DA ANTT - EIXO TEMÁTICO/GRUPO DE CONHECIMENTO: DESENVOLVIMENTO INSTITUCIONAL/GESTÃO DE PESSOAS"]
["TRANSPORTADOR AUTÔNOMO DE CARGAS/INTRODUÇÃO AO TRANSPORTE RODOVIÁRIO DE CARGAS/OPERAÇÃO DE TRANSPORTE DE CARGAS","SEST/SENAT","73.471.963001-47",124,"2020-06-02","2020-07-01","NO PAÍS","JOSE GUILHERME ROCHA URBAN","SEM CUSTOS DE INSCRIÇÃO - GRATUITO",0,0,10506.18,10506.18,"TEMA DEFINIDO NO GUIA DE CONHECIMENTOS DA ANTT - EIXO TEMÁTICO/GRUPO DE CONHECIMENTO: FISCALIZAÇÃO / TRANSPORTE DE CARGA"]
["CURSO CONTRATOS DA ADMINISTRAÇÃO E DAS ESTATAIS E OS IMPACTOS DA COVID-19 – CONTRATOS FORMALIZADOS ANTES DA CRISE E DE ACORDO COM A LEI Nº 13.979/2020","ZÊNITE INFORMAÇÃO E CONSULTORIA S.A","86.781.069/0001-15",15,"2020-06-15","2020-06-23","NO PAÍS","ABELAR VIEIRA ROSA NETO         ","INSCRIÇÃO",1267.5,0,"NÃO SE APLICA",1267.5,"NECESSIDADE DE CONHECIMENTO TÉCNICO EM PLANEJAMENTO E ACOMPANHAMENTO DA EXECUÇÃO DE CONTRATOS ADMINISTRATIVOS"]
["CURSO CONTRATOS DA ADMINISTRAÇÃO E DAS ESTATAIS E OS IMPACTOS DA COVID-19 – CONTRATOS FORMALIZADOS ANTES DA CRISE E DE ACORDO COM A LEI Nº 13.979/2020","ZÊNITE INFORMAÇÃO E CONSULTORIA S.A","86.781.069/0001-15",15,"2020-06-15","2020-06-23","NO PAÍS","ANA CLAUDIA DE SOUSA SILVA          ","INSCRIÇÃO",1267.5,0,"NÃO SE APLICA",1267.5,"NECESSIDADE DE CONHECIMENTO TÉCNICO EM PLANEJAMENTO E ACOMPANHAMENTO DA EXECUÇÃO DE CONTRATOS ADMINISTRATIVOS"]
["CURSO CONTRATOS DA ADMINISTRAÇÃO E DAS ESTATAIS E OS IMPACTOS DA COVID-19 – CONTRATOS FORMALIZADOS ANTES DA CRISE E DE ACORDO COM A LEI Nº 13.979/2020","ZÊNITE INFORMAÇÃO E CONSULTORIA S.A","86.781.069/0001-15",15,"2020-06-15","2020-06-23","NO PAÍS","ANDRE BULHOES MACHADO","INSCRIÇÃO",1267.5,0,"NÃO SE APLICA",1267.5,"NECESSIDADE DE CONHECIMENTO TÉCNICO EM PLANEJAMENTO E ACOMPANHAMENTO DA EXECUÇÃO DE CONTRATOS ADMINISTRATIVOS"]
["CURSO CONTRATOS DA ADMINISTRAÇÃO E DAS ESTATAIS E OS IMPACTOS DA COVID-19 – CONTRATOS FORMALIZADOS ANTES DA CRISE E DE ACORDO COM A LEI Nº 13.979/2020","ZÊNITE INFORMAÇÃO E CONSULTORIA S.A","86.781.069/0001-15",15,"2020-06-15","2020-06-23","NO PAÍS","CARLOS ELIAS BASTOS DOS SANTOS","INSCRIÇÃO",1267.5,0,"NÃO SE APLICA",1267.5,"NECESSIDADE DE CONHECIMENTO TÉCNICO EM PLANEJAMENTO E ACOMPANHAMENTO DA EXECUÇÃO DE CONTRATOS ADMINISTRATIVOS"]
["CURSO CONTRATOS DA ADMINISTRAÇÃO E DAS ESTATAIS E OS IMPACTOS DA COVID-19 – CONTRATOS FORMALIZADOS ANTES DA CRISE E DE ACORDO COM A LEI Nº 13.979/2020","ZÊNITE INFORMAÇÃO E CONSULTORIA S.A","86.781.069/0001-15",15,"2020-06-15","2020-06-23","NO PAÍS","CLARISSA ZOBY CARNEIRO LEAO","INSCRIÇÃO",1267.5,0,"NÃO SE APLICA",1267.5,"NECESSIDADE DE CONHECIMENTO TÉCNICO EM PLANEJAMENTO E ACOMPANHAMENTO DA EXECUÇÃO DE CONTRATOS ADMINISTRATIVOS"]
["CURSO CONTRATOS DA ADMINISTRAÇÃO E DAS ESTATAIS E OS IMPACTOS DA COVID-19 – CONTRATOS FORMALIZADOS ANTES DA CRISE E DE ACORDO COM A LEI Nº 13.979/2020","ZÊNITE INFORMAÇÃO E CONSULTORIA S.A","86.781.069/0001-15",15,"2020-06-15","2020-06-23","NO PAÍS","DANIEL PEREIRA COELHO","INSCRIÇÃO",1267.5,0,"NÃO SE APLICA",1267.5,"NECESSIDADE DE CONHECIMENTO TÉCNICO EM PLANEJAMENTO E ACOMPANHAMENTO DA EXECUÇÃO DE CONTRATOS ADMINISTRATIVOS"]
["CURSO CONTRATOS DA ADMINISTRAÇÃO E DAS ESTATAIS E OS IMPACTOS DA COVID-19 – CONTRATOS FORMALIZADOS ANTES DA CRISE E DE ACORDO COM A LEI Nº 13.979/2020","ZÊNITE INFORMAÇÃO E CONSULTORIA S.A","86.781.069/0001-15",15,"2020-06-15","2020-06-23","NO PAÍS","FABIA MARIA DO NASCIMENTO","INSCRIÇÃO",1267.5,0,"NÃO SE APLICA",1267.5,"NECESSIDADE DE CONHECIMENTO TÉCNICO EM PLANEJAMENTO E ACOMPANHAMENTO DA EXECUÇÃO DE CONTRATOS ADMINISTRATIVOS"]
["CURSO CONTRATOS DA ADMINISTRAÇÃO E DAS ESTATAIS E OS IMPACTOS DA COVID-19 – CONTRATOS FORMALIZADOS ANTES DA CRISE E DE ACORDO COM A LEI Nº 13.979/2020","ZÊNITE INFORMAÇÃO E CONSULTORIA S.A","86.781.069/0001-15",15,"2020-06-15","2020-06-23","NO PAÍS","FRANCISCA VERONICA JUCÁ DE MORAIS","INSCRIÇÃO",1267.5,0,"NÃO SE APLICA",1267.5,"NECESSIDADE DE CONHECIMENTO TÉCNICO EM PLANEJAMENTO E ACOMPANHAMENTO DA EXECUÇÃO DE CONTRATOS ADMINISTRATIVOS"]
["CURSO CONTRATOS DA ADMINISTRAÇÃO E DAS ESTATAIS E OS IMPACTOS DA COVID-19 – CONTRATOS FORMALIZADOS ANTES DA CRISE E DE ACORDO COM A LEI Nº 13.979/2020","ZÊNITE INFORMAÇÃO E CONSULTORIA S.A","86.781.069/0001-15",15,"2020-06-15","2020-06-23","NO PAÍS","FREDERICO LUIZ VIEIRA","INSCRIÇÃO",1267.5,0,"NÃO SE APLICA",1267.5,"NECESSIDADE DE CONHECIMENTO TÉCNICO EM PLANEJAMENTO E ACOMPANHAMENTO DA EXECUÇÃO DE CONTRATOS ADMINISTRATIVOS"]
["CURSO CONTRATOS DA ADMINISTRAÇÃO E DAS ESTATAIS E OS IMPACTOS DA COVID-19 – CONTRATOS FORMALIZADOS ANTES DA CRISE E DE ACORDO COM A LEI Nº 13.979/2020","ZÊNITE INFORMAÇÃO E CONSULTORIA S.A","86.781.069/0001-15",15,"2020-06-15","2020-06-23","NO PAÍS","HORTENCIA BROCK","INSCRIÇÃO",1267.5,0,"NÃO SE APLICA",1267.5,"NECESSIDADE DE CONHECIMENTO TÉCNICO EM PLANEJAMENTO E ACOMPANHAMENTO DA EXECUÇÃO DE CONTRATOS ADMINISTRATIVOS"]
["CURSO CONTRATOS DA ADMINISTRAÇÃO E DAS ESTATAIS E OS IMPACTOS DA COVID-19 – CONTRATOS FORMALIZADOS ANTES DA CRISE E DE ACORDO COM A LEI Nº 13.979/2020","ZÊNITE INFORMAÇÃO E CONSULTORIA S.A","86.781.069/0001-15",15,"2020-06-15","2020-06-23","NO PAÍS","JULIANE FURTADO NOVAES","INSCRIÇÃO",1267.5,0,"NÃO SE APLICA",1267.5,"NECESSIDADE DE CONHECIMENTO TÉCNICO EM PLANEJAMENTO E ACOMPANHAMENTO DA EXECUÇÃO DE CONTRATOS ADMINISTRATIVOS"]
["CURSO CONTRATOS DA ADMINISTRAÇÃO E DAS ESTATAIS E OS IMPACTOS DA COVID-19 – CONTRATOS FORMALIZADOS ANTES DA CRISE E DE ACORDO COM A LEI Nº 13.979/2020","ZÊNITE INFORMAÇÃO E CONSULTORIA S.A","86.781.069/0001-15",15,"2020-06-15","2020-06-23","NO PAÍS","LIANE MASCARENHAS ROCHA","INSCRIÇÃO",1267.5,0,"NÃO SE APLICA",1267.5,"NECESSIDADE DE CONHECIMENTO TÉCNICO EM PLANEJAMENTO E ACOMPANHAMENTO DA EXECUÇÃO DE CONTRATOS ADMINISTRATIVOS"]
["CURSO CONTRATOS DA ADMINISTRAÇÃO E DAS ESTATAIS E OS IMPACTOS DA COVID-19 – CONTRATOS FORMALIZADOS ANTES DA CRISE E DE ACORDO COM A LEI Nº 13.979/2020","ZÊNITE INFORMAÇÃO E CONSULTORIA S.A","86.781.069/0001-15",15,"2020-06-15","2020-06-23","NO PAÍS","LIVIA RIBEIRO DE OLIVEIRA","INSCRIÇÃO",1267.5,0,"NÃO SE APLICA",1267.5,"NECESSIDADE DE CONHECIMENTO TÉCNICO EM PLANEJAMENTO E ACOMPANHAMENTO DA EXECUÇÃO DE CONTRATOS ADMINISTRATIVOS"]
["CURSO CONTRATOS DA ADMINISTRAÇÃO E DAS ESTATAIS E OS IMPACTOS DA COVID-19 – CONTRATOS FORMALIZADOS ANTES DA CRISE E DE ACORDO COM A LEI Nº 13.979/2020","ZÊNITE INFORMAÇÃO E CONSULTORIA S.A","86.781.069/0001-15",15,"2020-06-15","2020-06-23","NO PAÍS","MARINA JUNIA SILVA MARTINS DEZAN","INSCRIÇÃO",1267.5,0,"NÃO SE APLICA",1267.5,"NECESSIDADE DE CONHECIMENTO TÉCNICO EM PLANEJAMENTO E ACOMPANHAMENTO DA EXECUÇÃO DE CONTRATOS ADMINISTRATIVOS"]
["CURSO CONTRATOS DA ADMINISTRAÇÃO E DAS ESTATAIS E OS IMPACTOS DA COVID-19 – CONTRATOS FORMALIZADOS ANTES DA CRISE E DE ACORDO COM A LEI Nº 13.979/2020","ZÊNITE INFORMAÇÃO E CONSULTORIA S.A","86.781.069/0001-15",15,"2020-06-15","2020-06-23","NO PAÍS","PATRICIA CALDAS MONTEIRO","INSCRIÇÃO",1267.5,0,"NÃO SE APLICA",1267.5,"NECESSIDADE DE CONHECIMENTO TÉCNICO EM PLANEJAMENTO E ACOMPANHAMENTO DA EXECUÇÃO DE CONTRATOS ADMINISTRATIVOS"]
["CURSO CONTRATOS DA ADMINISTRAÇÃO E DAS ESTATAIS E OS IMPACTOS DA COVID-19 – CONTRATOS FORMALIZADOS ANTES DA CRISE E DE ACORDO COM A LEI Nº 13.979/2020","ZÊNITE INFORMAÇÃO E CONSULTORIA S.A","86.781.069/0001-15",15,"2020-06-15","2020-06-23","NO PAÍS","PAULA TOMASINI","INSCRIÇÃO",1267.5,0,"NÃO SE APLICA",1267.5,"NECESSIDADE DE CONHECIMENTO TÉCNICO EM PLANEJAMENTO E ACOMPANHAMENTO DA EXECUÇÃO DE CONTRATOS ADMINISTRATIVOS"]
["CURSO CONTRATOS DA ADMINISTRAÇÃO E DAS ESTATAIS E OS IMPACTOS DA COVID-19 – CONTRATOS FORMALIZADOS ANTES DA CRISE E DE ACORDO COM A LEI Nº 13.979/2020","ZÊNITE INFORMAÇÃO E CONSULTORIA S.A","86.781.069/0001-15",15,"2020-06-15","2020-06-23","NO PAÍS","PAULO LEONARDO DA COSTA OLIVEIRA","INSCRIÇÃO",1267.5,0,"NÃO SE APLICA",1267.5,"NECESSIDADE DE CONHECIMENTO TÉCNICO EM PLANEJAMENTO E ACOMPANHAMENTO DA EXECUÇÃO DE CONTRATOS ADMINISTRATIVOS"]
["CURSO CONTRATOS DA ADMINISTRAÇÃO E DAS ESTATAIS E OS IMPACTOS DA COVID-19 – CONTRATOS FORMALIZADOS ANTES DA CRISE E DE ACORDO COM A LEI Nº 13.979/2020","ZÊNITE INFORMAÇÃO E CONSULTORIA S.A","86.781.069/0001-15",15,"2020-06-15","2020-06-23","NO PAÍS","PRISCILA DE ANDRADE PEREIRA","INSCRIÇÃO",1267.5,0,"NÃO SE APLICA",1267.5,"NECESSIDADE DE CONHECIMENTO TÉCNICO EM PLANEJAMENTO E ACOMPANHAMENTO DA EXECUÇÃO DE CONTRATOS ADMINISTRATIVOS"]
["CURSO CONTRATOS DA ADMINISTRAÇÃO E DAS ESTATAIS E OS IMPACTOS DA COVID-19 – CONTRATOS FORMALIZADOS ANTES DA CRISE E DE ACORDO COM A LEI Nº 13.979/2020","ZÊNITE INFORMAÇÃO E CONSULTORIA S.A","86.781.069/0001-15",15,"2020-06-15","2020-06-23","NO PAÍS","RAFAEL MOYA FERNANDES LOPES","INSCRIÇÃO",1267.5,0,"NÃO SE APLICA",1267.5,"NECESSIDADE DE CONHECIMENTO TÉCNICO EM PLANEJAMENTO E ACOMPANHAMENTO DA EXECUÇÃO DE CONTRATOS ADMINISTRATIVOS"]
["CURSO CONTRATOS DA ADMINISTRAÇÃO E DAS ESTATAIS E OS IMPACTOS DA COVID-19 – CONTRATOS FORMALIZADOS ANTES DA CRISE E DE ACORDO COM A LEI Nº 13.979/2020","ZÊNITE INFORMAÇÃO E CONSULTORIA S.A","86.781.069/0001-15",15,"2020-06-15","2020-06-23","NO PAÍS","RAFAEL TAVARES FERREIRA LIMA","INSCRIÇÃO",1267.5,0,"NÃO SE APLICA",1267.5,"NECESSIDADE DE CONHECIMENTO TÉCNICO EM PLANEJAMENTO E ACOMPANHAMENTO DA EXECUÇÃO DE CONTRATOS ADMINISTRATIVOS"]
["CURSO CONTRATOS DA ADMINISTRAÇÃO E DAS ESTATAIS E OS IMPACTOS DA COVID-19 – CONTRATOS FORMALIZADOS ANTES DA CRISE E DE ACORDO COM A LEI Nº 13.979/2020","ZÊNITE INFORMAÇÃO E CONSULTORIA S.A","86.781.069/0001-15",15,"2020-06-15","2020-06-23","NO PAÍS","ROBERTO CUNHA TRINDADE","INSCRIÇÃO",1267.5,0,"NÃO SE APLICA",1267.5,"NECESSIDADE DE CONHECIMENTO TÉCNICO EM PLANEJAMENTO E ACOMPANHAMENTO DA EXECUÇÃO DE CONTRATOS ADMINISTRATIVOS"]
["CURSO CONTRATOS DA ADMINISTRAÇÃO E DAS ESTATAIS E OS IMPACTOS DA COVID-19 – CONTRATOS FORMALIZADOS ANTES DA CRISE E DE ACORDO COM A LEI Nº 13.979/2020","ZÊNITE INFORMAÇÃO E CONSULTORIA S.A","86.781.069/0001-15",15,"2020-06-15","2020-06-23","NO PAÍS","ROBSON DE BARROS VILLA NETO","INSCRIÇÃO",1267.5,0,"NÃO SE APLICA",1267.5,"NECESSIDADE DE CONHECIMENTO TÉCNICO EM PLANEJAMENTO E ACOMPANHAMENTO DA EXECUÇÃO DE CONTRATOS ADMINISTRATIVOS"]
["CURSO CONTRATOS DA ADMINISTRAÇÃO E DAS ESTATAIS E OS IMPACTOS DA COVID-19 – CONTRATOS FORMALIZADOS ANTES DA CRISE E DE ACORDO COM A LEI Nº 13.979/2020","ZÊNITE INFORMAÇÃO E CONSULTORIA S.A","86.781.069/0001-15",15,"2020-06-15","2020-06-23","NO PAÍS","SUZY MARY COSTA VAZ","INSCRIÇÃO",1267.5,0,"NÃO SE APLICA",1267.5,"NECESSIDADE DE CONHECIMENTO TÉCNICO EM PLANEJAMENTO E ACOMPANHAMENTO DA EXECUÇÃO DE CONTRATOS ADMINISTRATIVOS"]
["CURSO CONTRATOS DA ADMINISTRAÇÃO E DAS ESTATAIS E OS IMPACTOS DA COVID-19 – CONTRATOS FORMALIZADOS ANTES DA CRISE E DE ACORDO COM A LEI Nº 13.979/2020","ZÊNITE INFORMAÇÃO E CONSULTORIA S.A","86.781.069/0001-15",15,"2020-06-15","2020-06-23","NO PAÍS","THIAGO REIS VICTORINO","INSCRIÇÃO",1267.5,0,"NÃO SE APLICA",1267.5,"NECESSIDADE DE CONHECIMENTO TÉCNICO EM PLANEJAMENTO E ACOMPANHAMENTO DA EXECUÇÃO DE CONTRATOS ADMINISTRATIVOS"]
["CURSO CONTRATOS DA ADMINISTRAÇÃO E DAS ESTATAIS E OS IMPACTOS DA COVID-19 – CONTRATOS FORMALIZADOS ANTES DA CRISE E DE ACORDO COM A LEI Nº 13.979/2020","ZÊNITE INFORMAÇÃO E CONSULTORIA S.A","86.781.069/0001-15",15,"2020-06-15","2020-06-23","NO PAÍS","VALERIA DE MELO CAETANO","INSCRIÇÃO",1267.5,0,"NÃO SE APLICA",1267.5,"NECESSIDADE DE CONHECIMENTO TÉCNICO EM PLANEJAMENTO E ACOMPANHAMENTO DA EXECUÇÃO DE CONTRATOS ADMINISTRATIVOS"]
["MODELOS DE GESTÃO PARA A EXCELÊNCIA","UNIEDUCAR","05.569.970/0001-26",80,"2020-06-17","2020-07-01","NO PAÍS","SHEILA MOREIRA SALES","SEM CUSTOS DE INSCRIÇÃO - GRATUITO",0,0,9782.18,9782.18,"TEMA DEFINIDO NO GUIA DE CONHECIMENTOS DA ANTT - EIXO TEMÁTICO/GRUPO DE CONHECIMENTO: DESENVOLVIMENTO INSTITUCIONAL/MODELOS DE GESTÃO"]
["PROGRAMA DE DESENVOLVIMENTO GERENCIAL - PDG 2020 - SUPERVISÃO LÍDER COACH 1","HOMERO REIS CONSULTORIA E GESTÃO EMPRESARIAL LTDA","07.131.596/0001-08",2,"2020-06-26","2020-06-26","NO PAÍS","ALOISIO GOMES CAIXETA","CONTRATAÇÃO",177.62,0,"NÃO SE APLICA",177.62,"DESENVOLVER NOS COORDENADORES DE PROCESSOS ORGANIZACIONAIS AS COMPETÊNCIAS QUE FORAM TRABALHADAS NOS GESTORES ESTRATÉGICOS DA ANTT."]
["PROGRAMA DE DESENVOLVIMENTO GERENCIAL - PDG 2020 - SUPERVISÃO LÍDER COACH 1","HOMERO REIS CONSULTORIA E GESTÃO EMPRESARIAL LTDA","07.131.596/0001-08",2,"2020-06-26","2020-06-26","NO PAÍS","ANA CLAUDIA SILVEIRA TORRES","CONTRATAÇÃO",177.62,0,"NÃO SE APLICA",177.62,"DESENVOLVER NOS COORDENADORES DE PROCESSOS ORGANIZACIONAIS AS COMPETÊNCIAS QUE FORAM TRABALHADAS NOS GESTORES ESTRATÉGICOS DA ANTT."]
["PROGRAMA DE DESENVOLVIMENTO GERENCIAL - PDG 2020 - SUPERVISÃO LÍDER COACH 1","HOMERO REIS CONSULTORIA E GESTÃO EMPRESARIAL LTDA","07.131.596/0001-08",2,"2020-06-26","2020-06-26","NO PAÍS","BRUNO RIBEIRO  ALVARENGA","CONTRATAÇÃO",177.62,0,"NÃO SE APLICA",177.62,"DESENVOLVER NOS COORDENADORES DE PROCESSOS ORGANIZACIONAIS AS COMPETÊNCIAS QUE FORAM TRABALHADAS NOS GESTORES ESTRATÉGICOS DA ANTT."]
["PROGRAMA DE DESENVOLVIMENTO GERENCIAL - PDG 2020 - SUPERVISÃO LÍDER COACH 1","HOMERO REIS CONSULTORIA E GESTÃO EMPRESARIAL LTDA","07.131.596/0001-08",2,"2020-06-26","2020-06-26","NO PAÍS","DANIEL DE CASTRO","CONTRATAÇÃO",177.62,0,"NÃO SE APLICA",177.62,"DESENVOLVER NOS COORDENADORES DE PROCESSOS ORGANIZACIONAIS AS COMPETÊNCIAS QUE FORAM TRABALHADAS NOS GESTORES ESTRATÉGICOS DA ANTT."]
["PROGRAMA DE DESENVOLVIMENTO GERENCIAL - PDG 2020 - SUPERVISÃO LÍDER COACH 1","HOMERO REIS CONSULTORIA E GESTÃO EMPRESARIAL LTDA","07.131.596/0001-08",2,"2020-06-26","2020-06-26","NO PAÍS","GERALDO RODRIGUES DA SILVA JUNIOR","CONTRATAÇÃO",177.62,0,"NÃO SE APLICA",177.62,"DESENVOLVER NOS COORDENADORES DE PROCESSOS ORGANIZACIONAIS AS COMPETÊNCIAS QUE FORAM TRABALHADAS NOS GESTORES ESTRATÉGICOS DA ANTT."]
["PROGRAMA DE DESENVOLVIMENTO GERENCIAL - PDG 2020 - SUPERVISÃO LÍDER COACH 1","HOMERO REIS CONSULTORIA E GESTÃO EMPRESARIAL LTDA","07.131.596/0001-08",2,"2020-06-26","2020-06-26","NO PAÍS","JANAINA DOS SANTOS","CONTRATAÇÃO",177.62,0,"NÃO SE APLICA",177.62,"DESENVOLVER NOS COORDENADORES DE PROCESSOS ORGANIZACIONAIS AS COMPETÊNCIAS QUE FORAM TRABALHADAS NOS GESTORES ESTRATÉGICOS DA ANTT."]
["PROGRAMA DE DESENVOLVIMENTO GERENCIAL - PDG 2020 - SUPERVISÃO LÍDER COACH 1","HOMERO REIS CONSULTORIA E GESTÃO EMPRESARIAL LTDA","07.131.596/0001-08",2,"2020-06-26","2020-06-26","NO PAÍS","JULIANA MIRANDA CRUZ RIBEIRO","CONTRATAÇÃO",177.62,0,"NÃO SE APLICA",177.62,"DESENVOLVER NOS COORDENADORES DE PROCESSOS ORGANIZACIONAIS AS COMPETÊNCIAS QUE FORAM TRABALHADAS NOS GESTORES ESTRATÉGICOS DA ANTT."]
["PROGRAMA DE DESENVOLVIMENTO GERENCIAL - PDG 2020 - SUPERVISÃO LÍDER COACH 1","HOMERO REIS CONSULTORIA E GESTÃO EMPRESARIAL LTDA","07.131.596/0001-08",2,"2020-06-26","2020-06-26","NO PAÍS","KARTNEY CARVALHO DE SOUSA","CONTRATAÇÃO",177.62,0,"NÃO SE APLICA",177.62,"DESENVOLVER NOS COORDENADORES DE PROCESSOS ORGANIZACIONAIS AS COMPETÊNCIAS QUE FORAM TRABALHADAS NOS GESTORES ESTRATÉGICOS DA ANTT."]
["PROGRAMA DE DESENVOLVIMENTO GERENCIAL - PDG 2020 - SUPERVISÃO LÍDER COACH 1","HOMERO REIS CONSULTORIA E GESTÃO EMPRESARIAL LTDA","07.131.596/0001-08",2,"2020-06-26","2020-06-26","NO PAÍS","LILIAN MORAIS DE OLIVEIRA","CONTRATAÇÃO",177.62,0,"NÃO SE APLICA",177.62,"DESENVOLVER NOS COORDENADORES DE PROCESSOS ORGANIZACIONAIS AS COMPETÊNCIAS QUE FORAM TRABALHADAS NOS GESTORES ESTRATÉGICOS DA ANTT."]
["PROGRAMA DE DESENVOLVIMENTO GERENCIAL - PDG 2020 - SUPERVISÃO LÍDER COACH 1","HOMERO REIS CONSULTORIA E GESTÃO EMPRESARIAL LTDA","07.131.596/0001-08",2,"2020-06-26","2020-06-26","NO PAÍS","MARINA SOARES ALMEIDA            ","CONTRATAÇÃO",177.62,0,"NÃO SE APLICA",177.62,"DESENVOLVER NOS COORDENADORES DE PROCESSOS ORGANIZACIONAIS AS COMPETÊNCIAS QUE FORAM TRABALHADAS NOS GESTORES ESTRATÉGICOS DA ANTT."]
["PROGRAMA DE DESENVOLVIMENTO GERENCIAL - PDG 2020 - SUPERVISÃO LÍDER COACH 1","HOMERO REIS CONSULTORIA E GESTÃO EMPRESARIAL LTDA","07.131.596/0001-08",2,"2020-06-26","2020-06-26","NO PAÍS","MICHELINE PORTELA PINTO","CONTRATAÇÃO",177.62,0,"NÃO SE APLICA",177.62,"DESENVOLVER NOS COORDENADORES DE PROCESSOS ORGANIZACIONAIS AS COMPETÊNCIAS QUE FORAM TRABALHADAS NOS GESTORES ESTRATÉGICOS DA ANTT."]
["PROGRAMA DE DESENVOLVIMENTO GERENCIAL - PDG 2020 - SUPERVISÃO LÍDER COACH 1","HOMERO REIS CONSULTORIA E GESTÃO EMPRESARIAL LTDA","07.131.596/0001-08",2,"2020-06-26","2020-06-26","NO PAÍS","PAULO HENRIQUE DA SILVA COSTA","CONTRATAÇÃO",177.62,0,"NÃO SE APLICA",177.62,"DESENVOLVER NOS COORDENADORES DE PROCESSOS ORGANIZACIONAIS AS COMPETÊNCIAS QUE FORAM TRABALHADAS NOS GESTORES ESTRATÉGICOS DA ANTT."]
["PROGRAMA DE DESENVOLVIMENTO GERENCIAL - PDG 2020 - SUPERVISÃO LÍDER COACH 1","HOMERO REIS CONSULTORIA E GESTÃO EMPRESARIAL LTDA","07.131.596/0001-08",2,"2020-06-26","2020-06-26","NO PAÍS","PAULO JOSE  MILANEZ","CONTRATAÇÃO",177.62,0,"NÃO SE APLICA",177.62,"DESENVOLVER NOS COORDENADORES DE PROCESSOS ORGANIZACIONAIS AS COMPETÊNCIAS QUE FORAM TRABALHADAS NOS GESTORES ESTRATÉGICOS DA ANTT."]
["PROGRAMA DE DESENVOLVIMENTO GERENCIAL - PDG 2020 - SUPERVISÃO LÍDER COACH 1","HOMERO REIS CONSULTORIA E GESTÃO EMPRESARIAL LTDA","07.131.596/0001-08",2,"2020-06-26","2020-06-26","NO PAÍS","PRISCILA DE ANDRADE PEREIRA","CONTRATAÇÃO",177.62,0,"NÃO SE APLICA",177.62,"DESENVOLVER NOS COORDENADORES DE PROCESSOS ORGANIZACIONAIS AS COMPETÊNCIAS QUE FORAM TRABALHADAS NOS GESTORES ESTRATÉGICOS DA ANTT."]
["PROGRAMA DE DESENVOLVIMENTO GERENCIAL - PDG 2020 - SUPERVISÃO LÍDER COACH 1","HOMERO REIS CONSULTORIA E GESTÃO EMPRESARIAL LTDA","07.131.596/0001-08",2,"2020-06-26","2020-06-26","NO PAÍS","RAFAELA PAIVA BRANDAO","CONTRATAÇÃO",177.62,0,"NÃO SE APLICA",177.62,"DESENVOLVER NOS COORDENADORES DE PROCESSOS ORGANIZACIONAIS AS COMPETÊNCIAS QUE FORAM TRABALHADAS NOS GESTORES ESTRATÉGICOS DA ANTT."]
["PROGRAMA DE DESENVOLVIMENTO GERENCIAL - PDG 2020 - SUPERVISÃO LÍDER COACH 1","HOMERO REIS CONSULTORIA E GESTÃO EMPRESARIAL LTDA","07.131.596/0001-08",2,"2020-06-26","2020-06-26","NO PAÍS","SANDRO VIEIRA DA ROSA","CONTRATAÇÃO",177.62,0,"NÃO SE APLICA",177.62,"DESENVOLVER NOS COORDENADORES DE PROCESSOS ORGANIZACIONAIS AS COMPETÊNCIAS QUE FORAM TRABALHADAS NOS GESTORES ESTRATÉGICOS DA ANTT."]
["PROGRAMA DE DESENVOLVIMENTO GERENCIAL - PDG 2020 - SUPERVISÃO LÍDER COACH 1","HOMERO REIS CONSULTORIA E GESTÃO EMPRESARIAL LTDA","07.131.596/0001-08",2,"2020-06-26","2020-06-26","NO PAÍS","SERGIO DUARTE PALMEIRA ROSA","CONTRATAÇÃO",177.62,0,"NÃO SE APLICA",177.62,"DESENVOLVER NOS COORDENADORES DE PROCESSOS ORGANIZACIONAIS AS COMPETÊNCIAS QUE FORAM TRABALHADAS NOS GESTORES ESTRATÉGICOS DA ANTT."]
["PROGRAMA DE DESENVOLVIMENTO GERENCIAL - PDG 2020 - SUPERVISÃO LÍDER COACH 1","HOMERO REIS CONSULTORIA E GESTÃO EMPRESARIAL LTDA","07.131.596/0001-08",2,"2020-06-26","2020-06-26","NO PAÍS","THAIS MARIA DE ANDRADE VILLELA","CONTRATAÇÃO",177.62,0,"NÃO SE APLICA",177.62,"DESENVOLVER NOS COORDENADORES DE PROCESSOS ORGANIZACIONAIS AS COMPETÊNCIAS QUE FORAM TRABALHADAS NOS GESTORES ESTRATÉGICOS DA ANTT."]
["PROGRAMA DE DESENVOLVIMENTO GERENCIAL - PDG 2020 - SUPERVISÃO LÍDER COACH 1","HOMERO REIS CONSULTORIA E GESTÃO EMPRESARIAL LTDA","07.131.596/0001-08",2,"2020-06-26","2020-06-26","NO PAÍS","THIAGO DE CASTRO SOUSA","CONTRATAÇÃO",177.62,0,"NÃO SE APLICA",177.62,"DESENVOLVER NOS COORDENADORES DE PROCESSOS ORGANIZACIONAIS AS COMPETÊNCIAS QUE FORAM TRABALHADAS NOS GESTORES ESTRATÉGICOS DA ANTT."]
["PROGRAMA DE DESENVOLVIMENTO GERENCIAL - PDG 2020 - SUPERVISÃO LÍDER COACH 1","HOMERO REIS CONSULTORIA E GESTÃO EMPRESARIAL LTDA","07.131.596/0001-08",2,"2020-06-26","2020-06-26","NO PAÍS","VICTOR HUGO GOUVEIA DE LUCENA LIMA","CONTRATAÇÃO",177.61,0,"NÃO SE APLICA",177.61,"DESENVOLVER NOS COORDENADORES DE PROCESSOS ORGANIZACIONAIS AS COMPETÊNCIAS QUE FORAM TRABALHADAS NOS GESTORES ESTRATÉGICOS DA ANTT."]
["PROGRAMA DE DESENVOLVIMENTO GERENCIAL - PDG 2020 - SUPERVISÃO LÍDER COACH 1","HOMERO REIS CONSULTORIA E GESTÃO EMPRESARIAL LTDA","07.131.596/0001-08",2,"2020-06-26","2020-06-26","NO PAÍS","WILLIANE VIEIRA MAIA","CONTRATAÇÃO",177.61,0,"NÃO SE APLICA",177.61,"DESENVOLVER NOS COORDENADORES DE PROCESSOS ORGANIZACIONAIS AS COMPETÊNCIAS QUE FORAM TRABALHADAS NOS GESTORES ESTRATÉGICOS DA ANTT."]
["PROGRAMA DE DESENVOLVIMENTO GERENCIAL - PDG 2020 - WORKSHOP 3","HOMERO REIS CONSULTORIA E GESTÃO EMPRESARIAL LTDA","07.131.596/0001-08",4,"2020-07-01","2020-07-03","NO PAÍS","ALOISIO GOMES CAIXETA","CONTRATAÇÃO",421.85,0,"NÃO SE APLICA",421.85,"DESENVOLVER NOS COORDENADORES DE PROCESSOS ORGANIZACIONAIS AS COMPETÊNCIAS QUE FORAM TRABALHADAS NOS GESTORES ESTRATÉGICOS DA ANTT."]
["PROGRAMA DE DESENVOLVIMENTO GERENCIAL - PDG 2020 - WORKSHOP 3","HOMERO REIS CONSULTORIA E GESTÃO EMPRESARIAL LTDA","07.131.596/0001-08",4,"2020-07-01","2020-07-03","NO PAÍS","ANA CLAUDIA SILVEIRA TORRES","CONTRATAÇÃO",421.85,0,"NÃO SE APLICA",421.85,"DESENVOLVER NOS COORDENADORES DE PROCESSOS ORGANIZACIONAIS AS COMPETÊNCIAS QUE FORAM TRABALHADAS NOS GESTORES ESTRATÉGICOS DA ANTT."]
["PROGRAMA DE DESENVOLVIMENTO GERENCIAL - PDG 2020 - WORKSHOP 3","HOMERO REIS CONSULTORIA E GESTÃO EMPRESARIAL LTDA","07.131.596/0001-08",4,"2020-07-01","2020-07-03","NO PAÍS","BRUNO RIBEIRO  ALVARENGA","CONTRATAÇÃO",421.85,0,"NÃO SE APLICA",421.85,"DESENVOLVER NOS COORDENADORES DE PROCESSOS ORGANIZACIONAIS AS COMPETÊNCIAS QUE FORAM TRABALHADAS NOS GESTORES ESTRATÉGICOS DA ANTT."]
["PROGRAMA DE DESENVOLVIMENTO GERENCIAL - PDG 2020 - WORKSHOP 3","HOMERO REIS CONSULTORIA E GESTÃO EMPRESARIAL LTDA","07.131.596/0001-08",4,"2020-07-01","2020-07-03","NO PAÍS","DANIEL DE CASTRO","CONTRATAÇÃO",421.85,0,"NÃO SE APLICA",421.85,"DESENVOLVER NOS COORDENADORES DE PROCESSOS ORGANIZACIONAIS AS COMPETÊNCIAS QUE FORAM TRABALHADAS NOS GESTORES ESTRATÉGICOS DA ANTT."]
["PROGRAMA DE DESENVOLVIMENTO GERENCIAL - PDG 2020 - WORKSHOP 3","HOMERO REIS CONSULTORIA E GESTÃO EMPRESARIAL LTDA","07.131.596/0001-08",4,"2020-07-01","2020-07-03","NO PAÍS","GERALDO RODRIGUES DA SILVA JUNIOR","CONTRATAÇÃO",421.85,0,"NÃO SE APLICA",421.85,"DESENVOLVER NOS COORDENADORES DE PROCESSOS ORGANIZACIONAIS AS COMPETÊNCIAS QUE FORAM TRABALHADAS NOS GESTORES ESTRATÉGICOS DA ANTT."]
["PROGRAMA DE DESENVOLVIMENTO GERENCIAL - PDG 2020 - WORKSHOP 3","HOMERO REIS CONSULTORIA E GESTÃO EMPRESARIAL LTDA","07.131.596/0001-08",4,"2020-07-01","2020-07-03","NO PAÍS","JANAINA DOS SANTOS","CONTRATAÇÃO",421.85,0,"NÃO SE APLICA",421.85,"DESENVOLVER NOS COORDENADORES DE PROCESSOS ORGANIZACIONAIS AS COMPETÊNCIAS QUE FORAM TRABALHADAS NOS GESTORES ESTRATÉGICOS DA ANTT."]
["PROGRAMA DE DESENVOLVIMENTO GERENCIAL - PDG 2020 - WORKSHOP 3","HOMERO REIS CONSULTORIA E GESTÃO EMPRESARIAL LTDA","07.131.596/0001-08",4,"2020-07-01","2020-07-03","NO PAÍS","JULIANA MIRANDA CRUZ RIBEIRO","CONTRATAÇÃO",421.85,0,"NÃO SE APLICA",421.85,"DESENVOLVER NOS COORDENADORES DE PROCESSOS ORGANIZACIONAIS AS COMPETÊNCIAS QUE FORAM TRABALHADAS NOS GESTORES ESTRATÉGICOS DA ANTT."]
["PROGRAMA DE DESENVOLVIMENTO GERENCIAL - PDG 2020 - WORKSHOP 3","HOMERO REIS CONSULTORIA E GESTÃO EMPRESARIAL LTDA","07.131.596/0001-08",4,"2020-07-01","2020-07-03","NO PAÍS","KARTNEY CARVALHO DE SOUSA","CONTRATAÇÃO",421.85,0,"NÃO SE APLICA",421.85,"DESENVOLVER NOS COORDENADORES DE PROCESSOS ORGANIZACIONAIS AS COMPETÊNCIAS QUE FORAM TRABALHADAS NOS GESTORES ESTRATÉGICOS DA ANTT."]
["PROGRAMA DE DESENVOLVIMENTO GERENCIAL - PDG 2020 - WORKSHOP 3","HOMERO REIS CONSULTORIA E GESTÃO EMPRESARIAL LTDA","07.131.596/0001-08",4,"2020-07-01","2020-07-03","NO PAÍS","LILIAN MORAIS DE OLIVEIRA","CONTRATAÇÃO",421.85,0,"NÃO SE APLICA",421.85,"DESENVOLVER NOS COORDENADORES DE PROCESSOS ORGANIZACIONAIS AS COMPETÊNCIAS QUE FORAM TRABALHADAS NOS GESTORES ESTRATÉGICOS DA ANTT."]
["PROGRAMA DE DESENVOLVIMENTO GERENCIAL - PDG 2020 - WORKSHOP 3","HOMERO REIS CONSULTORIA E GESTÃO EMPRESARIAL LTDA","07.131.596/0001-08",4,"2020-07-01","2020-07-03","NO PAÍS","MARINA SOARES ALMEIDA            ","CONTRATAÇÃO",421.85,0,"NÃO SE APLICA",421.85,"DESENVOLVER NOS COORDENADORES DE PROCESSOS ORGANIZACIONAIS AS COMPETÊNCIAS QUE FORAM TRABALHADAS NOS GESTORES ESTRATÉGICOS DA ANTT."]
["PROGRAMA DE DESENVOLVIMENTO GERENCIAL - PDG 2020 - WORKSHOP 3","HOMERO REIS CONSULTORIA E GESTÃO EMPRESARIAL LTDA","07.131.596/0001-08",4,"2020-07-01","2020-07-03","NO PAÍS","MICHELINE PORTELA PINTO","CONTRATAÇÃO",421.85,0,"NÃO SE APLICA",421.85,"DESENVOLVER NOS COORDENADORES DE PROCESSOS ORGANIZACIONAIS AS COMPETÊNCIAS QUE FORAM TRABALHADAS NOS GESTORES ESTRATÉGICOS DA ANTT."]
["PROGRAMA DE DESENVOLVIMENTO GERENCIAL - PDG 2020 - WORKSHOP 3","HOMERO REIS CONSULTORIA E GESTÃO EMPRESARIAL LTDA","07.131.596/0001-08",4,"2020-07-01","2020-07-03","NO PAÍS","PAULO HENRIQUE DA SILVA COSTA","CONTRATAÇÃO",421.84,0,"NÃO SE APLICA",421.84,"DESENVOLVER NOS COORDENADORES DE PROCESSOS ORGANIZACIONAIS AS COMPETÊNCIAS QUE FORAM TRABALHADAS NOS GESTORES ESTRATÉGICOS DA ANTT."]
["PROGRAMA DE DESENVOLVIMENTO GERENCIAL - PDG 2020 - WORKSHOP 3","HOMERO REIS CONSULTORIA E GESTÃO EMPRESARIAL LTDA","07.131.596/0001-08",4,"2020-07-01","2020-07-03","NO PAÍS","PAULO JOSE  MILANEZ","CONTRATAÇÃO",421.84,0,"NÃO SE APLICA",421.84,"DESENVOLVER NOS COORDENADORES DE PROCESSOS ORGANIZACIONAIS AS COMPETÊNCIAS QUE FORAM TRABALHADAS NOS GESTORES ESTRATÉGICOS DA ANTT."]
["PROGRAMA DE DESENVOLVIMENTO GERENCIAL - PDG 2020 - WORKSHOP 3","HOMERO REIS CONSULTORIA E GESTÃO EMPRESARIAL LTDA","07.131.596/0001-08",4,"2020-07-01","2020-07-03","NO PAÍS","PRISCILA DE ANDRADE PEREIRA","CONTRATAÇÃO",421.84,0,"NÃO SE APLICA",421.84,"DESENVOLVER NOS COORDENADORES DE PROCESSOS ORGANIZACIONAIS AS COMPETÊNCIAS QUE FORAM TRABALHADAS NOS GESTORES ESTRATÉGICOS DA ANTT."]
["PROGRAMA DE DESENVOLVIMENTO GERENCIAL - PDG 2020 - WORKSHOP 3","HOMERO REIS CONSULTORIA E GESTÃO EMPRESARIAL LTDA","07.131.596/0001-08",4,"2020-07-01","2020-07-03","NO PAÍS","RAFAELA PAIVA BRANDAO","CONTRATAÇÃO",421.84,0,"NÃO SE APLICA",421.84,"DESENVOLVER NOS COORDENADORES DE PROCESSOS ORGANIZACIONAIS AS COMPETÊNCIAS QUE FORAM TRABALHADAS NOS GESTORES ESTRATÉGICOS DA ANTT."]
["PROGRAMA DE DESENVOLVIMENTO GERENCIAL - PDG 2020 - WORKSHOP 3","HOMERO REIS CONSULTORIA E GESTÃO EMPRESARIAL LTDA","07.131.596/0001-08",4,"2020-07-01","2020-07-03","NO PAÍS","SANDRO VIEIRA DA ROSA","CONTRATAÇÃO",421.84,0,"NÃO SE APLICA",421.84,"DESENVOLVER NOS COORDENADORES DE PROCESSOS ORGANIZACIONAIS AS COMPETÊNCIAS QUE FORAM TRABALHADAS NOS GESTORES ESTRATÉGICOS DA ANTT."]
["PROGRAMA DE DESENVOLVIMENTO GERENCIAL - PDG 2020 - WORKSHOP 3","HOMERO REIS CONSULTORIA E GESTÃO EMPRESARIAL LTDA","07.131.596/0001-08",4,"2020-07-01","2020-07-03","NO PAÍS","SERGIO DUARTE PALMEIRA ROSA","CONTRATAÇÃO",421.84,0,"NÃO SE APLICA",421.84,"DESENVOLVER NOS COORDENADORES DE PROCESSOS ORGANIZACIONAIS AS COMPETÊNCIAS QUE FORAM TRABALHADAS NOS GESTORES ESTRATÉGICOS DA ANTT."]
["PROGRAMA DE DESENVOLVIMENTO GERENCIAL - PDG 2020 - WORKSHOP 3","HOMERO REIS CONSULTORIA E GESTÃO EMPRESARIAL LTDA","07.131.596/0001-08",4,"2020-07-01","2020-07-03","NO PAÍS","THAIS MARIA DE ANDRADE VILLELA","CONTRATAÇÃO",421.84,0,"NÃO SE APLICA",421.84,"DESENVOLVER NOS COORDENADORES DE PROCESSOS ORGANIZACIONAIS AS COMPETÊNCIAS QUE FORAM TRABALHADAS NOS GESTORES ESTRATÉGICOS DA ANTT."]
["PROGRAMA DE DESENVOLVIMENTO GERENCIAL - PDG 2020 - WORKSHOP 3","HOMERO REIS CONSULTORIA E GESTÃO EMPRESARIAL LTDA","07.131.596/0001-08",4,"2020-07-01","2020-07-03","NO PAÍS","THIAGO DE CASTRO SOUSA","CONTRATAÇÃO",421.84,0,"NÃO SE APLICA",421.84,"DESENVOLVER NOS COORDENADORES DE PROCESSOS ORGANIZACIONAIS AS COMPETÊNCIAS QUE FORAM TRABALHADAS NOS GESTORES ESTRATÉGICOS DA ANTT."]
["PROGRAMA DE DESENVOLVIMENTO GERENCIAL - PDG 2020 - WORKSHOP 3","HOMERO REIS CONSULTORIA E GESTÃO EMPRESARIAL LTDA","07.131.596/0001-08",4,"2020-07-01","2020-07-03","NO PAÍS","VICTOR HUGO GOUVEIA DE LUCENA LIMA","CONTRATAÇÃO",421.84,0,"NÃO SE APLICA",421.84,"DESENVOLVER NOS COORDENADORES DE PROCESSOS ORGANIZACIONAIS AS COMPETÊNCIAS QUE FORAM TRABALHADAS NOS GESTORES ESTRATÉGICOS DA ANTT."]
["PROGRAMA DE DESENVOLVIMENTO GERENCIAL - PDG 2020 - WORKSHOP 3","HOMERO REIS CONSULTORIA E GESTÃO EMPRESARIAL LTDA","07.131.596/0001-08",4,"2020-07-01","2020-07-03","NO PAÍS","WILLIANE VIEIRA MAIA","CONTRATAÇÃO",421.84,0,"NÃO SE APLICA",421.84,"DESENVOLVER NOS COORDENADORES DE PROCESSOS ORGANIZACIONAIS AS COMPETÊNCIAS QUE FORAM TRABALHADAS NOS GESTORES ESTRATÉGICOS DA ANTT."]
["ATUALIZAÇÃO JURÍDICA - DIREITO ADMINISTRATIVO – AGÊNCIAS REGULADORAS E EXECUTIVAS","UNIEDUCAR","05.569.970/0001-26",120,"2020-07-02","2020-07-17","NO PAÍS","JULIANA ESTEVES LIMA DE OLIVEIRA","SEM CUSTOS DE INSCRIÇÃO - GRATUITO",0,0,4814.0950000000003,4814.0950000000003,"TEMA DEFINIDO NO GUIA DE CONHECIMENTOS DA ANTT - EIXO TEMÁTICO/GRUPO DE CONHECIMENTO: REGULAÇÃO/ATUALIZAÇÃO JURÍDICA DIREITO ADMINISTRATIVO AGÊNCIAS REGULADORAS E EXECUTIVAS"]
["WINDOWS 7 - WORD 2010 -  EXCEL 2010 - POWER POINT 2010 - INTERNET","CENTRO EDUCACIONAL DE DESENVOLVIMENTO PROFISSIONAL LTDA","18.182.899/0001-99",220,"2020-07-02","2020-07-31","NO PAÍS","RENATA RESENDE DAS NEVES SANTOS","SEM CUSTOS DE INSCRIÇÃO - GRATUITO",0,0,10243.99,10243.99,"TEMA DEFINIDO NO GUIA DE CONHECIMENTOS DA ANTT - EIXO TEMÁTICO/GRUPO DE CONHECIMENTO: FISCALIZAÇÃO/TRANSPORTE DE PASSAGEIROS"]
["PÓS-GRADUAÇÃO LATO SENSU BUSINESS INTELLIGENCE, BIG DATA E ANALYTICS CIÊNCIA DE DADOS - ÁREA DE CONHECIMENTO - COMPUTAÇÃO E TECNOLOGIAS DA INFORMAÇÃO E COMUNICAÇÃO (TIC)","UNIDERP","04.310.392/0001-46",400,"2020-07-02","2020-09-29","NO PAIS ","ATILA MOREIRA MARTINS","SEM CUSTOS DE INSCRIÇÃO - GRATUITO",0,0,31518.54,31518.54,"FISCALIZAÇÃO/FERROVIAS/ PDP: DESENVOLVER HABILIDADES EM FERRAMENTAS DE CONTROLE (EXCEL, POWER BI, PROJECT) PARA AUXILIAR NOS PROCESSOS DE EXECUÇÃO E APURAÇÃO DE DADOS."]
["PROGRAMA DE DESENVOLVIMENTO GERENCIAL - PDG 2020 - WORKSHOP 4","HOMERO REIS CONSULTORIA E GESTÃO EMPRESARIAL LTDA","07.131.596/0001-08",4,"2020-07-13","2020-07-16","NO PAÍS","ALOISIO GOMES CAIXETA","CONTRATAÇÃO",442.93,0,"NÃO SE APLICA",442.93,"DESENVOLVER NOS COORDENADORES DE PROCESSOS ORGANIZACIONAIS AS COMPETÊNCIAS QUE FORAM TRABALHADAS NOS GESTORES ESTRATÉGICOS DA ANTT."]
["PROGRAMA DE DESENVOLVIMENTO GERENCIAL - PDG 2020 - WORKSHOP 4","HOMERO REIS CONSULTORIA E GESTÃO EMPRESARIAL LTDA","07.131.596/0001-08",4,"2020-07-13","2020-07-16","NO PAÍS","ANA CLAUDIA SILVEIRA TORRES","CONTRATAÇÃO",442.93,0,"NÃO SE APLICA",442.93,"DESENVOLVER NOS COORDENADORES DE PROCESSOS ORGANIZACIONAIS AS COMPETÊNCIAS QUE FORAM TRABALHADAS NOS GESTORES ESTRATÉGICOS DA ANTT."]
["PROGRAMA DE DESENVOLVIMENTO GERENCIAL - PDG 2020 - WORKSHOP 4","HOMERO REIS CONSULTORIA E GESTÃO EMPRESARIAL LTDA","07.131.596/0001-08",4,"2020-07-13","2020-07-16","NO PAÍS","DANIEL DE CASTRO","CONTRATAÇÃO",442.93,0,"NÃO SE APLICA",442.93,"DESENVOLVER NOS COORDENADORES DE PROCESSOS ORGANIZACIONAIS AS COMPETÊNCIAS QUE FORAM TRABALHADAS NOS GESTORES ESTRATÉGICOS DA ANTT."]
["PROGRAMA DE DESENVOLVIMENTO GERENCIAL - PDG 2020 - WORKSHOP 4","HOMERO REIS CONSULTORIA E GESTÃO EMPRESARIAL LTDA","07.131.596/0001-08",4,"2020-07-13","2020-07-16","NO PAÍS","GERALDO RODRIGUES DA SILVA JUNIOR","CONTRATAÇÃO",442.93,0,"NÃO SE APLICA",442.93,"DESENVOLVER NOS COORDENADORES DE PROCESSOS ORGANIZACIONAIS AS COMPETÊNCIAS QUE FORAM TRABALHADAS NOS GESTORES ESTRATÉGICOS DA ANTT."]
["PROGRAMA DE DESENVOLVIMENTO GERENCIAL - PDG 2020 - WORKSHOP 4","HOMERO REIS CONSULTORIA E GESTÃO EMPRESARIAL LTDA","07.131.596/0001-08",4,"2020-07-13","2020-07-16","NO PAÍS","JANAINA DOS SANTOS","CONTRATAÇÃO",442.93,0,"NÃO SE APLICA",442.93,"DESENVOLVER NOS COORDENADORES DE PROCESSOS ORGANIZACIONAIS AS COMPETÊNCIAS QUE FORAM TRABALHADAS NOS GESTORES ESTRATÉGICOS DA ANTT."]
["PROGRAMA DE DESENVOLVIMENTO GERENCIAL - PDG 2020 - WORKSHOP 4","HOMERO REIS CONSULTORIA E GESTÃO EMPRESARIAL LTDA","07.131.596/0001-08",4,"2020-07-13","2020-07-16","NO PAÍS","JULIANA MIRANDA CRUZ RIBEIRO","CONTRATAÇÃO",442.93,0,"NÃO SE APLICA",442.93,"DESENVOLVER NOS COORDENADORES DE PROCESSOS ORGANIZACIONAIS AS COMPETÊNCIAS QUE FORAM TRABALHADAS NOS GESTORES ESTRATÉGICOS DA ANTT."]
["PROGRAMA DE DESENVOLVIMENTO GERENCIAL - PDG 2020 - WORKSHOP 4","HOMERO REIS CONSULTORIA E GESTÃO EMPRESARIAL LTDA","07.131.596/0001-08",4,"2020-07-13","2020-07-16","NO PAÍS","KARTNEY CARVALHO DE SOUSA","CONTRATAÇÃO",442.93,0,"NÃO SE APLICA",442.93,"DESENVOLVER NOS COORDENADORES DE PROCESSOS ORGANIZACIONAIS AS COMPETÊNCIAS QUE FORAM TRABALHADAS NOS GESTORES ESTRATÉGICOS DA ANTT."]
["PROGRAMA DE DESENVOLVIMENTO GERENCIAL - PDG 2020 - WORKSHOP 4","HOMERO REIS CONSULTORIA E GESTÃO EMPRESARIAL LTDA","07.131.596/0001-08",4,"2020-07-13","2020-07-16","NO PAÍS","LILIAN MORAIS DE OLIVEIRA","CONTRATAÇÃO",442.93,0,"NÃO SE APLICA",442.93,"DESENVOLVER NOS COORDENADORES DE PROCESSOS ORGANIZACIONAIS AS COMPETÊNCIAS QUE FORAM TRABALHADAS NOS GESTORES ESTRATÉGICOS DA ANTT."]
["PROGRAMA DE DESENVOLVIMENTO GERENCIAL - PDG 2020 - WORKSHOP 4","HOMERO REIS CONSULTORIA E GESTÃO EMPRESARIAL LTDA","07.131.596/0001-08",4,"2020-07-13","2020-07-16","NO PAÍS","MARINA SOARES ALMEIDA            ","CONTRATAÇÃO",442.93,0,"NÃO SE APLICA",442.93,"DESENVOLVER NOS COORDENADORES DE PROCESSOS ORGANIZACIONAIS AS COMPETÊNCIAS QUE FORAM TRABALHADAS NOS GESTORES ESTRATÉGICOS DA ANTT."]
["PROGRAMA DE DESENVOLVIMENTO GERENCIAL - PDG 2020 - WORKSHOP 4","HOMERO REIS CONSULTORIA E GESTÃO EMPRESARIAL LTDA","07.131.596/0001-08",4,"2020-07-13","2020-07-16","NO PAÍS","MICHELINE PORTELA PINTO","CONTRATAÇÃO",442.93,0,"NÃO SE APLICA",442.93,"DESENVOLVER NOS COORDENADORES DE PROCESSOS ORGANIZACIONAIS AS COMPETÊNCIAS QUE FORAM TRABALHADAS NOS GESTORES ESTRATÉGICOS DA ANTT."]
["PROGRAMA DE DESENVOLVIMENTO GERENCIAL - PDG 2020 - WORKSHOP 4","HOMERO REIS CONSULTORIA E GESTÃO EMPRESARIAL LTDA","07.131.596/0001-08",4,"2020-07-13","2020-07-16","NO PAÍS","PAULO HENRIQUE DA SILVA COSTA","CONTRATAÇÃO",442.93,0,"NÃO SE APLICA",442.93,"DESENVOLVER NOS COORDENADORES DE PROCESSOS ORGANIZACIONAIS AS COMPETÊNCIAS QUE FORAM TRABALHADAS NOS GESTORES ESTRATÉGICOS DA ANTT."]
["PROGRAMA DE DESENVOLVIMENTO GERENCIAL - PDG 2020 - WORKSHOP 4","HOMERO REIS CONSULTORIA E GESTÃO EMPRESARIAL LTDA","07.131.596/0001-08",4,"2020-07-13","2020-07-16","NO PAÍS","PAULO JOSE  MILANEZ","CONTRATAÇÃO",442.93,0,"NÃO SE APLICA",442.93,"DESENVOLVER NOS COORDENADORES DE PROCESSOS ORGANIZACIONAIS AS COMPETÊNCIAS QUE FORAM TRABALHADAS NOS GESTORES ESTRATÉGICOS DA ANTT."]
["PROGRAMA DE DESENVOLVIMENTO GERENCIAL - PDG 2020 - WORKSHOP 4","HOMERO REIS CONSULTORIA E GESTÃO EMPRESARIAL LTDA","07.131.596/0001-08",4,"2020-07-13","2020-07-16","NO PAÍS","PRISCILA DE ANDRADE PEREIRA","CONTRATAÇÃO",442.93,0,"NÃO SE APLICA",442.93,"DESENVOLVER NOS COORDENADORES DE PROCESSOS ORGANIZACIONAIS AS COMPETÊNCIAS QUE FORAM TRABALHADAS NOS GESTORES ESTRATÉGICOS DA ANTT."]
["PROGRAMA DE DESENVOLVIMENTO GERENCIAL - PDG 2020 - WORKSHOP 4","HOMERO REIS CONSULTORIA E GESTÃO EMPRESARIAL LTDA","07.131.596/0001-08",4,"2020-07-13","2020-07-16","NO PAÍS","RAFAELA PAIVA BRANDAO","CONTRATAÇÃO",442.93,0,"NÃO SE APLICA",442.93,"DESENVOLVER NOS COORDENADORES DE PROCESSOS ORGANIZACIONAIS AS COMPETÊNCIAS QUE FORAM TRABALHADAS NOS GESTORES ESTRATÉGICOS DA ANTT."]
["PROGRAMA DE DESENVOLVIMENTO GERENCIAL - PDG 2020 - WORKSHOP 4","HOMERO REIS CONSULTORIA E GESTÃO EMPRESARIAL LTDA","07.131.596/0001-08",4,"2020-07-13","2020-07-16","NO PAÍS","SANDRO VIEIRA DA ROSA","CONTRATAÇÃO",442.93,0,"NÃO SE APLICA",442.93,"DESENVOLVER NOS COORDENADORES DE PROCESSOS ORGANIZACIONAIS AS COMPETÊNCIAS QUE FORAM TRABALHADAS NOS GESTORES ESTRATÉGICOS DA ANTT."]
["PROGRAMA DE DESENVOLVIMENTO GERENCIAL - PDG 2020 - WORKSHOP 4","HOMERO REIS CONSULTORIA E GESTÃO EMPRESARIAL LTDA","07.131.596/0001-08",4,"2020-07-13","2020-07-16","NO PAÍS","SERGIO DUARTE PALMEIRA ROSA","CONTRATAÇÃO",442.93,0,"NÃO SE APLICA",442.93,"DESENVOLVER NOS COORDENADORES DE PROCESSOS ORGANIZACIONAIS AS COMPETÊNCIAS QUE FORAM TRABALHADAS NOS GESTORES ESTRATÉGICOS DA ANTT."]
["PROGRAMA DE DESENVOLVIMENTO GERENCIAL - PDG 2020 - WORKSHOP 4","HOMERO REIS CONSULTORIA E GESTÃO EMPRESARIAL LTDA","07.131.596/0001-08",4,"2020-07-13","2020-07-16","NO PAÍS","THAIS MARIA DE ANDRADE VILLELA","CONTRATAÇÃO",442.93,0,"NÃO SE APLICA",442.93,"DESENVOLVER NOS COORDENADORES DE PROCESSOS ORGANIZACIONAIS AS COMPETÊNCIAS QUE FORAM TRABALHADAS NOS GESTORES ESTRATÉGICOS DA ANTT."]
["PROGRAMA DE DESENVOLVIMENTO GERENCIAL - PDG 2020 - WORKSHOP 4","HOMERO REIS CONSULTORIA E GESTÃO EMPRESARIAL LTDA","07.131.596/0001-08",4,"2020-07-13","2020-07-16","NO PAÍS","THIAGO DE CASTRO SOUSA","CONTRATAÇÃO",442.93,0,"NÃO SE APLICA",442.93,"DESENVOLVER NOS COORDENADORES DE PROCESSOS ORGANIZACIONAIS AS COMPETÊNCIAS QUE FORAM TRABALHADAS NOS GESTORES ESTRATÉGICOS DA ANTT."]
["PROGRAMA DE DESENVOLVIMENTO GERENCIAL - PDG 2020 - WORKSHOP 4","HOMERO REIS CONSULTORIA E GESTÃO EMPRESARIAL LTDA","07.131.596/0001-08",4,"2020-07-13","2020-07-16","NO PAÍS","VICTOR HUGO GOUVEIA DE LUCENA LIMA","CONTRATAÇÃO",442.93,0,"NÃO SE APLICA",442.93,"DESENVOLVER NOS COORDENADORES DE PROCESSOS ORGANIZACIONAIS AS COMPETÊNCIAS QUE FORAM TRABALHADAS NOS GESTORES ESTRATÉGICOS DA ANTT."]
["PROGRAMA DE DESENVOLVIMENTO GERENCIAL - PDG 2020 - WORKSHOP 4","HOMERO REIS CONSULTORIA E GESTÃO EMPRESARIAL LTDA","07.131.596/0001-08",4,"2020-07-13","2020-07-16","NO PAÍS","WILLIANE VIEIRA MAIA","CONTRATAÇÃO",442.93,0,"NÃO SE APLICA",442.93,"DESENVOLVER NOS COORDENADORES DE PROCESSOS ORGANIZACIONAIS AS COMPETÊNCIAS QUE FORAM TRABALHADAS NOS GESTORES ESTRATÉGICOS DA ANTT."]
["CURSO DISPENSA E INEXIGIBILIDADE DE LICITAÇÃO - CABIMENTO, INSTRUÇÃO E OS CONTRATOS DECORRENTES, DE ACORDO COM AS LEIS NºS 13.9792010, 8.6661993 E A RECENTE MP Nº 9612020","ZÊNITE INFORMAÇÃO E CONSULTORIA S.A","86.781.069/0001-15",15,"2020-07-13","2020-07-17","NO PAÍS","ABELAR VIEIRA ROSA NETO         ","INSCRIÇÃO",1690,0,"NÃO SE APLICA",1690,"FISCALIZAÇÃO DOS CONTRATOS ADMINISTRATIVOS"]
["PCI 2º SEMESTRE 2020 - INGLÊS","HANDS ON ENGLISH SCHOOL","29.611.235/0001-00",22,"2020-07-16","2020-12-10","NO PAÍS","MARCIA LIKA MON-MA","RESSARCIMENTO",935,0,0,935,"CONHECIMENTO EM IDIOMAS"]
["PCI 2º SEMESTRE 2020 - INGLÊS","EL ENGLISH LIFE","04.475.124/0001-84",60,"2020-07-16","2020-12-15","NO PAÍS","FRANCISCO ALEXANDRE DE SALES NETO       ","RESSARCIMENTO",486,0,0,486,"CONHECIMENTO EM IDIOMAS"]
["PCI 2º SEMESTRE 2020 - INGLÊS","CAMBLY INC","13.236.697/0001-46",4,"2020-07-16","2020-12-15","NO PAÍS","LIVIA RIBEIRO DE OLIVEIRA","RESSARCIMENTO",508.02,0,0,508.02,"CONHECIMENTO EM IDIOMAS"]
["PCI 2º SEMESTRE 2020 - INGLÊS","WIZARD CASTELO","10.406.786/0001-03",35,"2020-07-16","2020-12-15","NO PAÍS","MAURICIO LEITE DE MIRANDA","RESSARCIMENTO",1087.02,0,0,1087.02,"CONHECIMENTO EM IDIOMAS"]
["GESTÃO DE RISCOS NA ADMINISTRAÇÃO PÚBLICA","CEGESP"," 19.779.846/0001-08",140,"2020-07-17","2020-08-15","NO PAÍS","CYNARA NOGUEIRA CAVALCANTE","SEM CUSTOS DE INSCRIÇÃO - GRATUITO",0,0,18604.72,18604.72,"TEMA DEFINIDO NO GUIA DE CONHECIMENTOS DA ANTT - EIXO TEMÁTICO/GRUPO DE CONHECIMENTO: DESENVOLVIMENTO INSTITUCIONAL/GESTÃO DE RISCOS E COMPLIANCE "]
["PCI 2º SEMESTRE 2020 - INGLÊS","THE NATURAL ENGLISH","09.291.643/0001-06",35,"2020-07-17","2020-12-10","NO PAÍS","MARIANA LOMBARDO DE LIMA","RESSARCIMENTO",1350,0,0,1350,"CONHECIMENTO EM IDIOMAS"]
["PCI 2º SEMESTRE 2020 - ESPANHOL","EU APRENDO ESPANHOL","27.652.880/0001-37",60,"2020-07-21","2020-11-30","NO PAÍS","JANAINA DOS SANTOS","RESSARCIMENTO",720,0,0,720,"CONHECIMENTO EM IDIOMAS"]
["PCI 2º SEMESTRE 2020 - INGLÊS","SOUNDS BETTER ENGLISH TRAINING & SERVICES","30.281.613/0001-05",20,"2020-07-21","2020-12-01","NO PAÍS","LEIZE ATHAYDE BRAGA SILVEIRA","RESSARCIMENTO",510,0,0,510,"CONHECIMENTO EM IDIOMAS"]
["PROGRAMA DE DESENVOLVIMENTO GERENCIAL - PDG 2020 - SUPERVISÃO LÍDER COACH 2","HOMERO REIS CONSULTORIA E GESTÃO EMPRESARIAL LTDA","07.131.596/0001-08",2,"2020-07-30","2020-07-30","NO PAÍS","ALOISIO GOMES CAIXETA","CONTRATAÇÃO",219.42,0,"NÃO SE APLICA",219.42,"DESENVOLVER NOS COORDENADORES DE PROCESSOS ORGANIZACIONAIS AS COMPETÊNCIAS QUE FORAM TRABALHADAS NOS GESTORES ESTRATÉGICOS DA ANTT."]
["PROGRAMA DE DESENVOLVIMENTO GERENCIAL - PDG 2020 - SUPERVISÃO LÍDER COACH 2","HOMERO REIS CONSULTORIA E GESTÃO EMPRESARIAL LTDA","07.131.596/0001-08",2,"2020-07-30","2020-07-30","NO PAÍS","BRUNO RIBEIRO  ALVARENGA","CONTRATAÇÃO",219.42,0,"NÃO SE APLICA",219.42,"DESENVOLVER NOS COORDENADORES DE PROCESSOS ORGANIZACIONAIS AS COMPETÊNCIAS QUE FORAM TRABALHADAS NOS GESTORES ESTRATÉGICOS DA ANTT."]
["PROGRAMA DE DESENVOLVIMENTO GERENCIAL - PDG 2020 - SUPERVISÃO LÍDER COACH 2","HOMERO REIS CONSULTORIA E GESTÃO EMPRESARIAL LTDA","07.131.596/0001-08",2,"2020-07-30","2020-07-30","NO PAÍS","DANIEL ANTONIO DA MOTA ARAUJO","CONTRATAÇÃO",219.42,0,"NÃO SE APLICA",219.42,"DESENVOLVER NOS COORDENADORES DE PROCESSOS ORGANIZACIONAIS AS COMPETÊNCIAS QUE FORAM TRABALHADAS NOS GESTORES ESTRATÉGICOS DA ANTT."]
["PROGRAMA DE DESENVOLVIMENTO GERENCIAL - PDG 2020 - SUPERVISÃO LÍDER COACH 2","HOMERO REIS CONSULTORIA E GESTÃO EMPRESARIAL LTDA","07.131.596/0001-08",2,"2020-07-30","2020-07-30","NO PAÍS","DANIEL DE CASTRO","CONTRATAÇÃO",219.41,0,"NÃO SE APLICA",219.41,"DESENVOLVER NOS COORDENADORES DE PROCESSOS ORGANIZACIONAIS AS COMPETÊNCIAS QUE FORAM TRABALHADAS NOS GESTORES ESTRATÉGICOS DA ANTT."]
["PROGRAMA DE DESENVOLVIMENTO GERENCIAL - PDG 2020 - SUPERVISÃO LÍDER COACH 2","HOMERO REIS CONSULTORIA E GESTÃO EMPRESARIAL LTDA","07.131.596/0001-08",2,"2020-07-30","2020-07-30","NO PAÍS","GERALDO RODRIGUES DA SILVA JUNIOR","CONTRATAÇÃO",219.41,0,"NÃO SE APLICA",219.41,"DESENVOLVER NOS COORDENADORES DE PROCESSOS ORGANIZACIONAIS AS COMPETÊNCIAS QUE FORAM TRABALHADAS NOS GESTORES ESTRATÉGICOS DA ANTT."]
["PROGRAMA DE DESENVOLVIMENTO GERENCIAL - PDG 2020 - SUPERVISÃO LÍDER COACH 2","HOMERO REIS CONSULTORIA E GESTÃO EMPRESARIAL LTDA","07.131.596/0001-08",2,"2020-07-30","2020-07-30","NO PAÍS","JANAINA DOS SANTOS","CONTRATAÇÃO",219.41,0,"NÃO SE APLICA",219.41,"DESENVOLVER NOS COORDENADORES DE PROCESSOS ORGANIZACIONAIS AS COMPETÊNCIAS QUE FORAM TRABALHADAS NOS GESTORES ESTRATÉGICOS DA ANTT."]
["PROGRAMA DE DESENVOLVIMENTO GERENCIAL - PDG 2020 - SUPERVISÃO LÍDER COACH 2","HOMERO REIS CONSULTORIA E GESTÃO EMPRESARIAL LTDA","07.131.596/0001-08",2,"2020-07-30","2020-07-30","NO PAÍS","JULIANA MIRANDA CRUZ RIBEIRO","CONTRATAÇÃO",219.41,0,"NÃO SE APLICA",219.41,"DESENVOLVER NOS COORDENADORES DE PROCESSOS ORGANIZACIONAIS AS COMPETÊNCIAS QUE FORAM TRABALHADAS NOS GESTORES ESTRATÉGICOS DA ANTT."]
["PROGRAMA DE DESENVOLVIMENTO GERENCIAL - PDG 2020 - SUPERVISÃO LÍDER COACH 2","HOMERO REIS CONSULTORIA E GESTÃO EMPRESARIAL LTDA","07.131.596/0001-08",2,"2020-07-30","2020-07-30","NO PAÍS","MICHELINE PORTELA PINTO","CONTRATAÇÃO",219.41,0,"NÃO SE APLICA",219.41,"DESENVOLVER NOS COORDENADORES DE PROCESSOS ORGANIZACIONAIS AS COMPETÊNCIAS QUE FORAM TRABALHADAS NOS GESTORES ESTRATÉGICOS DA ANTT."]
["PROGRAMA DE DESENVOLVIMENTO GERENCIAL - PDG 2020 - SUPERVISÃO LÍDER COACH 2","HOMERO REIS CONSULTORIA E GESTÃO EMPRESARIAL LTDA","07.131.596/0001-08",2,"2020-07-30","2020-07-30","NO PAÍS","PAULO HENRIQUE DA SILVA COSTA","CONTRATAÇÃO",219.41,0,"NÃO SE APLICA",219.41,"DESENVOLVER NOS COORDENADORES DE PROCESSOS ORGANIZACIONAIS AS COMPETÊNCIAS QUE FORAM TRABALHADAS NOS GESTORES ESTRATÉGICOS DA ANTT."]
["PROGRAMA DE DESENVOLVIMENTO GERENCIAL - PDG 2020 - SUPERVISÃO LÍDER COACH 2","HOMERO REIS CONSULTORIA E GESTÃO EMPRESARIAL LTDA","07.131.596/0001-08",2,"2020-07-30","2020-07-30","NO PAÍS","PAULO JOSE  MILANEZ","CONTRATAÇÃO",219.41,0,"NÃO SE APLICA",219.41,"DESENVOLVER NOS COORDENADORES DE PROCESSOS ORGANIZACIONAIS AS COMPETÊNCIAS QUE FORAM TRABALHADAS NOS GESTORES ESTRATÉGICOS DA ANTT."]
["PROGRAMA DE DESENVOLVIMENTO GERENCIAL - PDG 2020 - SUPERVISÃO LÍDER COACH 2","HOMERO REIS CONSULTORIA E GESTÃO EMPRESARIAL LTDA","07.131.596/0001-08",2,"2020-07-30","2020-07-30","NO PAÍS","PRISCILA DE ANDRADE PEREIRA","CONTRATAÇÃO",219.41,0,"NÃO SE APLICA",219.41,"DESENVOLVER NOS COORDENADORES DE PROCESSOS ORGANIZACIONAIS AS COMPETÊNCIAS QUE FORAM TRABALHADAS NOS GESTORES ESTRATÉGICOS DA ANTT."]
["PROGRAMA DE DESENVOLVIMENTO GERENCIAL - PDG 2020 - SUPERVISÃO LÍDER COACH 2","HOMERO REIS CONSULTORIA E GESTÃO EMPRESARIAL LTDA","07.131.596/0001-08",2,"2020-07-30","2020-07-30","NO PAÍS","RAFAELA PAIVA BRANDAO","CONTRATAÇÃO",219.41,0,"NÃO SE APLICA",219.41,"DESENVOLVER NOS COORDENADORES DE PROCESSOS ORGANIZACIONAIS AS COMPETÊNCIAS QUE FORAM TRABALHADAS NOS GESTORES ESTRATÉGICOS DA ANTT."]
["PROGRAMA DE DESENVOLVIMENTO GERENCIAL - PDG 2020 - SUPERVISÃO LÍDER COACH 2","HOMERO REIS CONSULTORIA E GESTÃO EMPRESARIAL LTDA","07.131.596/0001-08",2,"2020-07-30","2020-07-30","NO PAÍS","SANDRO VIEIRA DA ROSA","CONTRATAÇÃO",219.41,0,"NÃO SE APLICA",219.41,"DESENVOLVER NOS COORDENADORES DE PROCESSOS ORGANIZACIONAIS AS COMPETÊNCIAS QUE FORAM TRABALHADAS NOS GESTORES ESTRATÉGICOS DA ANTT."]
["PROGRAMA DE DESENVOLVIMENTO GERENCIAL - PDG 2020 - SUPERVISÃO LÍDER COACH 2","HOMERO REIS CONSULTORIA E GESTÃO EMPRESARIAL LTDA","07.131.596/0001-08",2,"2020-07-30","2020-07-30","NO PAÍS","THAIS MARIA DE ANDRADE VILLELA","CONTRATAÇÃO",219.41,0,"NÃO SE APLICA",219.41,"DESENVOLVER NOS COORDENADORES DE PROCESSOS ORGANIZACIONAIS AS COMPETÊNCIAS QUE FORAM TRABALHADAS NOS GESTORES ESTRATÉGICOS DA ANTT."]
["PROGRAMA DE DESENVOLVIMENTO GERENCIAL - PDG 2020 - SUPERVISÃO LÍDER COACH 2","HOMERO REIS CONSULTORIA E GESTÃO EMPRESARIAL LTDA","07.131.596/0001-08",2,"2020-07-30","2020-07-30","NO PAÍS","THIAGO DE CASTRO SOUSA","CONTRATAÇÃO",219.41,0,"NÃO SE APLICA",219.41,"DESENVOLVER NOS COORDENADORES DE PROCESSOS ORGANIZACIONAIS AS COMPETÊNCIAS QUE FORAM TRABALHADAS NOS GESTORES ESTRATÉGICOS DA ANTT."]
["PROGRAMA DE DESENVOLVIMENTO GERENCIAL - PDG 2020 - SUPERVISÃO LÍDER COACH 2","HOMERO REIS CONSULTORIA E GESTÃO EMPRESARIAL LTDA","07.131.596/0001-08",2,"2020-07-30","2020-07-30","NO PAÍS","VICTOR HUGO GOUVEIA DE LUCENA LIMA","CONTRATAÇÃO",219.41,0,"NÃO SE APLICA",219.41,"DESENVOLVER NOS COORDENADORES DE PROCESSOS ORGANIZACIONAIS AS COMPETÊNCIAS QUE FORAM TRABALHADAS NOS GESTORES ESTRATÉGICOS DA ANTT."]
["PROGRAMA DE DESENVOLVIMENTO GERENCIAL - PDG 2020 - SUPERVISÃO LÍDER COACH 2","HOMERO REIS CONSULTORIA E GESTÃO EMPRESARIAL LTDA","07.131.596/0001-08",2,"2020-07-30","2020-07-30","NO PAÍS","WILLIANE VIEIRA MAIA","CONTRATAÇÃO",219.41,0,"NÃO SE APLICA",219.41,"DESENVOLVER NOS COORDENADORES DE PROCESSOS ORGANIZACIONAIS AS COMPETÊNCIAS QUE FORAM TRABALHADAS NOS GESTORES ESTRATÉGICOS DA ANTT."]
["ASSESSORIA DE IMPRENSA","CENTRO EDUCACIONAL DE DESENVOLVIMENTO PROFISSIONAL LTDA","18.182.899/0001-99",165,"2020-07-31","2020-08-31","NO PAÍS","ADEMIR BATISTA CASTORINO          ","SEM CUSTOS DE INSCRIÇÃO - GRATUITO",0,0,17549.09,17549.09,"TEMA DEFINIDO NO GUIA DE CONHECIMENTOS DA ANTT - EIXO TEMÁTICO/GRUPO DE CONHECIMENTO: DESENVOLVIMENTO INSTITUCIONAL"]
["QUALIDADE NO ATENDIMENTO APLICADO AO SERVIDOR PÚBLICO","UNIEDUCAR INTELIGÊNCIA EDUCACIONAL LTDA","05.569.970/0001-26",140,"2020-08-01","2020-08-30","NO PAÍS","CARLOS JOSE DIAS SANTIAGO JUNIOR     ","SEM CUSTOS DE INSCRIÇÃO - GRATUITO",0,0,8587.18,8587.18,"TEMA DEFINIDO NO GUIA DE CONHECIMENTOS DA ANTT - EIXO TEMÁTICO/GRUPO DE CONHECIMENTO: DESENVOLVIMENTO INSTITUCIONAL/CONCEITOS BÁSICOS E COMUNICAÇÃO"]
["CURSOS: 1) NOÇÕES INTRODUTÓRIAS DE LICITAÇÃO E CONTRATOS ADMINISTRATIVOS; 2) ÉTICA E SERVIÇO PÚBLICO; 3) ATUALIZAÇÃO JURÍDICA - DIREITO ADMINISTRATIVO - ADMINISTRAÇÃO PÚBLICA","1) FUNDACAO ESCOLA NACIONAL DE  ADMINISTRACAO PUBLICA; 2) FUNDACAO ESCOLA NACIONAL DE  ADMINISTRACAO PUBLICA; 3) UNIEDUCAR INTELIGENCIA EDUCACIONAL LTDA","1) 06.627.612/0001-09; 2) 06.627.612/0001-09; 3) 05.569.970/0001-26","1) 30; 2) 20; 3) 100","2020-08-01","2020-08-30","NO PAÍS","LIANE MASCARENHAS ROCHA","SEM CUSTOS DE INSCRIÇÃO - GRATUITO",0,0,9123.26,9123.26,"TEMA DEFINIDO NO GUIA DE CONHECIMENTOS DA ANTT - EIXO TEMÁTICO/GRUPO DE CONHECIMENTO: DESENVOLVIMENTO INSTITUCIONAL"]
["PCI 2º SEMESTRE 2020 - INGLÊS","MR.JAMES – PRIVATE ENGLISH TEACHER","17.352.599/0001-25",48,"2020-08-01","2020-12-15","NO PAÍS","ANA PATRIZIA GONÇALVES LIRA","RESSARCIMENTO",1350,0,0,1350,"CONHECIMENTO EM IDIOMAS"]
["PCI 2º SEMESTRE 2020 - INGLÊS","PARK IDIOMAS","18.927.492/0001-20",36,"2020-08-03","2020-12-15","NO PAÍS","CAIO CESAR NASCIMENTO NOGUEIRA","RESSARCIMENTO",1015.3,0,0,1015.3,"CONHECIMENTO EM IDIOMAS"]
["PCI 2º SEMESTRE 2020 - INGLÊS","PARK IDIOMAS","18.927.492/0001-20",36,"2020-08-03","2020-12-15","NO PAÍS","CLAUDIO TIYOSHI MIURA              ","RESSARCIMENTO",1279,0,0,1279,"CONHECIMENTO EM IDIOMAS"]
["PCI 2º SEMESTRE 2020 - INGLÊS","PARK IDIOMAS","18.927.492/0001-20",36,"2020-08-03","2020-12-15","NO PAÍS","CRISTIANE PACHECO LOURENCO","RESSARCIMENTO",1278.9000000000001,0,0,1278.9000000000001,"CONHECIMENTO EM IDIOMAS"]
["PCI 2º SEMESTRE 2020 - INGLÊS","PARK IDIOMAS","18.927.492/0001-20",36,"2020-08-03","2020-12-15","NO PAÍS","LEILANE MORAIS ALCÂNTARA","RESSARCIMENTO",1279,0,0,1279,"CONHECIMENTO EM IDIOMAS"]
["PCI 2º SEMESTRE 2020 - INGLÊS","PARK IDIOMAS","18.927.492/0001-20",20,"2020-08-03","2020-12-15","NO PAÍS","SAMANTA DE ARAUJO MORAIS","RESSARCIMENTO",1350,0,0,1350,"CONHECIMENTO EM IDIOMAS"]
["OFICINA-AÇÃO DE MAPEAMENTO DE COMPETÊNCIAS TÉCNICAS","INTELETTO- INSTITUTO DE DESENVOLVIMENTO DE COMPETENCIAS LTDA","06.197.492/0001-33",56,"2020-08-06","2020-11-04","NO PAÍS","ALAM GONÇALVES GUIMARAES","CONTRATAÇÃO",4140,0,0,4140,"EVOLUIR HABILIDADES E CONHECIMENTOS EM FERRAMENTAS DE GESTÃO E PLANEJAMENTO/ ADQUIRIR CONHECIMENTO SOBRE OS MÉTODOS E MELHORES PRÁTICAS NA GESTÃO POR RESULTADOS/ AMPLIAR CONHECIMENTO DAS NOVAS PRÁTICAS, FERRAMENTAS E INSTRUMENTOS DE GESTÃO E INOVAÇÃO PARA MELHORIA DO DESEMPENHO NA ANTT"]
["OFICINA-AÇÃO DE MAPEAMENTO DE COMPETÊNCIAS TÉCNICAS","INTELETTO- INSTITUTO DE DESENVOLVIMENTO DE COMPETENCIAS LTDA","06.197.492/0001-33",56,"2020-08-06","2020-11-04","NO PAÍS","ANA PATRÍCIA DA SILVA DE BRITO ","CONTRATAÇÃO",4140,0,0,4140,"EVOLUIR HABILIDADES E CONHECIMENTOS EM FERRAMENTAS DE GESTÃO E PLANEJAMENTO/ ADQUIRIR CONHECIMENTO SOBRE OS MÉTODOS E MELHORES PRÁTICAS NA GESTÃO POR RESULTADOS/ AMPLIAR CONHECIMENTO DAS NOVAS PRÁTICAS, FERRAMENTAS E INSTRUMENTOS DE GESTÃO E INOVAÇÃO PARA MELHORIA DO DESEMPENHO NA ANTT"]
["OFICINA-AÇÃO DE MAPEAMENTO DE COMPETÊNCIAS TÉCNICAS","INTELETTO- INSTITUTO DE DESENVOLVIMENTO DE COMPETENCIAS LTDA","06.197.492/0001-33",56,"2020-08-06","2020-11-04","NO PAÍS","CARLOS HENRIQUE SILVA","CONTRATAÇÃO",4140,0,0,4140,"EVOLUIR HABILIDADES E CONHECIMENTOS EM FERRAMENTAS DE GESTÃO E PLANEJAMENTO/ ADQUIRIR CONHECIMENTO SOBRE OS MÉTODOS E MELHORES PRÁTICAS NA GESTÃO POR RESULTADOS/ AMPLIAR CONHECIMENTO DAS NOVAS PRÁTICAS, FERRAMENTAS E INSTRUMENTOS DE GESTÃO E INOVAÇÃO PARA MELHORIA DO DESEMPENHO NA ANTT"]
["OFICINA-AÇÃO DE MAPEAMENTO DE COMPETÊNCIAS TÉCNICAS","INTELETTO- INSTITUTO DE DESENVOLVIMENTO DE COMPETENCIAS LTDA","06.197.492/0001-33",56,"2020-08-06","2020-11-04","NO PAÍS","CLAUDIA FATIMA DA FONSECA ALVES","CONTRATAÇÃO",4140,0,0,4140,"EVOLUIR HABILIDADES E CONHECIMENTOS EM FERRAMENTAS DE GESTÃO E PLANEJAMENTO/ ADQUIRIR CONHECIMENTO SOBRE OS MÉTODOS E MELHORES PRÁTICAS NA GESTÃO POR RESULTADOS/ AMPLIAR CONHECIMENTO DAS NOVAS PRÁTICAS, FERRAMENTAS E INSTRUMENTOS DE GESTÃO E INOVAÇÃO PARA MELHORIA DO DESEMPENHO NA ANTT"]
["OFICINA-AÇÃO DE MAPEAMENTO DE COMPETÊNCIAS TÉCNICAS","INTELETTO- INSTITUTO DE DESENVOLVIMENTO DE COMPETENCIAS LTDA","06.197.492/0001-33",56,"2020-08-06","2020-11-04","NO PAÍS","DORENICE DE FATIMA ABRANCHES MONTEIRO VERLY","CONTRATAÇÃO",4140,0,0,4140,"EVOLUIR HABILIDADES E CONHECIMENTOS EM FERRAMENTAS DE GESTÃO E PLANEJAMENTO/ ADQUIRIR CONHECIMENTO SOBRE OS MÉTODOS E MELHORES PRÁTICAS NA GESTÃO POR RESULTADOS/ AMPLIAR CONHECIMENTO DAS NOVAS PRÁTICAS, FERRAMENTAS E INSTRUMENTOS DE GESTÃO E INOVAÇÃO PARA MELHORIA DO DESEMPENHO NA ANTT"]
["OFICINA-AÇÃO DE MAPEAMENTO DE COMPETÊNCIAS TÉCNICAS","INTELETTO- INSTITUTO DE DESENVOLVIMENTO DE COMPETENCIAS LTDA","06.197.492/0001-33",56,"2020-08-06","2020-11-04","NO PAÍS","GERALDO LUIZ ANSELMO","CONTRATAÇÃO",4140,0,0,4140,"EVOLUIR HABILIDADES E CONHECIMENTOS EM FERRAMENTAS DE GESTÃO E PLANEJAMENTO/ ADQUIRIR CONHECIMENTO SOBRE OS MÉTODOS E MELHORES PRÁTICAS NA GESTÃO POR RESULTADOS/ AMPLIAR CONHECIMENTO DAS NOVAS PRÁTICAS, FERRAMENTAS E INSTRUMENTOS DE GESTÃO E INOVAÇÃO PARA MELHORIA DO DESEMPENHO NA ANTT"]
["OFICINA-AÇÃO DE MAPEAMENTO DE COMPETÊNCIAS TÉCNICAS","INTELETTO- INSTITUTO DE DESENVOLVIMENTO DE COMPETENCIAS LTDA","06.197.492/0001-33",56,"2020-08-06","2020-11-04","NO PAÍS","HELTHON MARCONDES CRISOSTOMO DAMASCENO  ","CONTRATAÇÃO",4140,0,0,4140,"EVOLUIR HABILIDADES E CONHECIMENTOS EM FERRAMENTAS DE GESTÃO E PLANEJAMENTO/ ADQUIRIR CONHECIMENTO SOBRE OS MÉTODOS E MELHORES PRÁTICAS NA GESTÃO POR RESULTADOS/ AMPLIAR CONHECIMENTO DAS NOVAS PRÁTICAS, FERRAMENTAS E INSTRUMENTOS DE GESTÃO E INOVAÇÃO PARA MELHORIA DO DESEMPENHO NA ANTT"]
["OFICINA-AÇÃO DE MAPEAMENTO DE COMPETÊNCIAS TÉCNICAS","INTELETTO- INSTITUTO DE DESENVOLVIMENTO DE COMPETENCIAS LTDA","06.197.492/0001-33",56,"2020-08-06","2020-11-04","NO PAÍS","JOABE EDER DE MORAIS CUNHA","CONTRATAÇÃO",4140,0,0,4140,"EVOLUIR HABILIDADES E CONHECIMENTOS EM FERRAMENTAS DE GESTÃO E PLANEJAMENTO/ ADQUIRIR CONHECIMENTO SOBRE OS MÉTODOS E MELHORES PRÁTICAS NA GESTÃO POR RESULTADOS/ AMPLIAR CONHECIMENTO DAS NOVAS PRÁTICAS, FERRAMENTAS E INSTRUMENTOS DE GESTÃO E INOVAÇÃO PARA MELHORIA DO DESEMPENHO NA ANTT"]
["OFICINA-AÇÃO DE MAPEAMENTO DE COMPETÊNCIAS TÉCNICAS","INTELETTO- INSTITUTO DE DESENVOLVIMENTO DE COMPETENCIAS LTDA","06.197.492/0001-33",56,"2020-08-06","2020-11-04","NO PAÍS","JOSE EXPEDITO BRANDAO FILHO     ","CONTRATAÇÃO",4140,0,0,4140,"EVOLUIR HABILIDADES E CONHECIMENTOS EM FERRAMENTAS DE GESTÃO E PLANEJAMENTO/ ADQUIRIR CONHECIMENTO SOBRE OS MÉTODOS E MELHORES PRÁTICAS NA GESTÃO POR RESULTADOS/ AMPLIAR CONHECIMENTO DAS NOVAS PRÁTICAS, FERRAMENTAS E INSTRUMENTOS DE GESTÃO E INOVAÇÃO PARA MELHORIA DO DESEMPENHO NA ANTT"]
["OFICINA-AÇÃO DE MAPEAMENTO DE COMPETÊNCIAS TÉCNICAS","INTELETTO- INSTITUTO DE DESENVOLVIMENTO DE COMPETENCIAS LTDA","06.197.492/0001-33",56,"2020-08-06","2020-11-04","NO PAÍS","KARLA CAMPOS DO CARMO","CONTRATAÇÃO",4140,0,0,4140,"EVOLUIR HABILIDADES E CONHECIMENTOS EM FERRAMENTAS DE GESTÃO E PLANEJAMENTO/ ADQUIRIR CONHECIMENTO SOBRE OS MÉTODOS E MELHORES PRÁTICAS NA GESTÃO POR RESULTADOS/ AMPLIAR CONHECIMENTO DAS NOVAS PRÁTICAS, FERRAMENTAS E INSTRUMENTOS DE GESTÃO E INOVAÇÃO PARA MELHORIA DO DESEMPENHO NA ANTT"]
["OFICINA-AÇÃO DE MAPEAMENTO DE COMPETÊNCIAS TÉCNICAS","INTELETTO- INSTITUTO DE DESENVOLVIMENTO DE COMPETENCIAS LTDA","06.197.492/0001-33",56,"2020-08-06","2020-11-04","NO PAÍS","KAUE LUNARD KAWASHITA","CONTRATAÇÃO",4140,0,0,4140,"EVOLUIR HABILIDADES E CONHECIMENTOS EM FERRAMENTAS DE GESTÃO E PLANEJAMENTO/ ADQUIRIR CONHECIMENTO SOBRE OS MÉTODOS E MELHORES PRÁTICAS NA GESTÃO POR RESULTADOS/ AMPLIAR CONHECIMENTO DAS NOVAS PRÁTICAS, FERRAMENTAS E INSTRUMENTOS DE GESTÃO E INOVAÇÃO PARA MELHORIA DO DESEMPENHO NA ANTT"]
["OFICINA-AÇÃO DE MAPEAMENTO DE COMPETÊNCIAS TÉCNICAS","INTELETTO- INSTITUTO DE DESENVOLVIMENTO DE COMPETENCIAS LTDA","06.197.492/0001-33",56,"2020-08-06","2020-11-04","NO PAÍS","LEONARDO MENDONCA DE OLIVEIRA","CONTRATAÇÃO",4140,0,0,4140,"EVOLUIR HABILIDADES E CONHECIMENTOS EM FERRAMENTAS DE GESTÃO E PLANEJAMENTO/ ADQUIRIR CONHECIMENTO SOBRE OS MÉTODOS E MELHORES PRÁTICAS NA GESTÃO POR RESULTADOS/ AMPLIAR CONHECIMENTO DAS NOVAS PRÁTICAS, FERRAMENTAS E INSTRUMENTOS DE GESTÃO E INOVAÇÃO PARA MELHORIA DO DESEMPENHO NA ANTT"]
["OFICINA-AÇÃO DE MAPEAMENTO DE COMPETÊNCIAS TÉCNICAS","INTELETTO- INSTITUTO DE DESENVOLVIMENTO DE COMPETENCIAS LTDA","06.197.492/0001-33",56,"2020-08-06","2020-11-04","NO PAÍS","LETICIA ARAUJO SILVA VENSON","CONTRATAÇÃO",4140,0,0,4140,"EVOLUIR HABILIDADES E CONHECIMENTOS EM FERRAMENTAS DE GESTÃO E PLANEJAMENTO/ ADQUIRIR CONHECIMENTO SOBRE OS MÉTODOS E MELHORES PRÁTICAS NA GESTÃO POR RESULTADOS/ AMPLIAR CONHECIMENTO DAS NOVAS PRÁTICAS, FERRAMENTAS E INSTRUMENTOS DE GESTÃO E INOVAÇÃO PARA MELHORIA DO DESEMPENHO NA ANTT"]
["OFICINA-AÇÃO DE MAPEAMENTO DE COMPETÊNCIAS TÉCNICAS","INTELETTO- INSTITUTO DE DESENVOLVIMENTO DE COMPETENCIAS LTDA","06.197.492/0001-33",56,"2020-08-06","2020-11-04","NO PAÍS","LILIAN MORAIS DE OLIVEIRA","CONTRATAÇÃO",4140,0,0,4140,"EVOLUIR HABILIDADES E CONHECIMENTOS EM FERRAMENTAS DE GESTÃO E PLANEJAMENTO/ ADQUIRIR CONHECIMENTO SOBRE OS MÉTODOS E MELHORES PRÁTICAS NA GESTÃO POR RESULTADOS/ AMPLIAR CONHECIMENTO DAS NOVAS PRÁTICAS, FERRAMENTAS E INSTRUMENTOS DE GESTÃO E INOVAÇÃO PARA MELHORIA DO DESEMPENHO NA ANTT"]
["OFICINA-AÇÃO DE MAPEAMENTO DE COMPETÊNCIAS TÉCNICAS","INTELETTO- INSTITUTO DE DESENVOLVIMENTO DE COMPETENCIAS LTDA","06.197.492/0001-33",56,"2020-08-06","2020-11-04","NO PAÍS","MARCIA LIKA MON-MA","CONTRATAÇÃO",4140,0,0,4140,"EVOLUIR HABILIDADES E CONHECIMENTOS EM FERRAMENTAS DE GESTÃO E PLANEJAMENTO/ ADQUIRIR CONHECIMENTO SOBRE OS MÉTODOS E MELHORES PRÁTICAS NA GESTÃO POR RESULTADOS/ AMPLIAR CONHECIMENTO DAS NOVAS PRÁTICAS, FERRAMENTAS E INSTRUMENTOS DE GESTÃO E INOVAÇÃO PARA MELHORIA DO DESEMPENHO NA ANTT"]
["OFICINA-AÇÃO DE MAPEAMENTO DE COMPETÊNCIAS TÉCNICAS","INTELETTO- INSTITUTO DE DESENVOLVIMENTO DE COMPETENCIAS LTDA","06.197.492/0001-33",56,"2020-08-06","2020-11-04","NO PAÍS","MARIANA RODRIGUES BROCHADO","CONTRATAÇÃO",4140,0,0,4140,"EVOLUIR HABILIDADES E CONHECIMENTOS EM FERRAMENTAS DE GESTÃO E PLANEJAMENTO/ ADQUIRIR CONHECIMENTO SOBRE OS MÉTODOS E MELHORES PRÁTICAS NA GESTÃO POR RESULTADOS/ AMPLIAR CONHECIMENTO DAS NOVAS PRÁTICAS, FERRAMENTAS E INSTRUMENTOS DE GESTÃO E INOVAÇÃO PARA MELHORIA DO DESEMPENHO NA ANTT"]
["OFICINA-AÇÃO DE MAPEAMENTO DE COMPETÊNCIAS TÉCNICAS","INTELETTO- INSTITUTO DE DESENVOLVIMENTO DE COMPETENCIAS LTDA","06.197.492/0001-33",56,"2020-08-06","2020-11-04","NO PAÍS","MAURO LUCIO DUARTE LEITE           ","CONTRATAÇÃO",4140,0,0,4140,"EVOLUIR HABILIDADES E CONHECIMENTOS EM FERRAMENTAS DE GESTÃO E PLANEJAMENTO/ ADQUIRIR CONHECIMENTO SOBRE OS MÉTODOS E MELHORES PRÁTICAS NA GESTÃO POR RESULTADOS/ AMPLIAR CONHECIMENTO DAS NOVAS PRÁTICAS, FERRAMENTAS E INSTRUMENTOS DE GESTÃO E INOVAÇÃO PARA MELHORIA DO DESEMPENHO NA ANTT"]
["OFICINA-AÇÃO DE MAPEAMENTO DE COMPETÊNCIAS TÉCNICAS","INTELETTO- INSTITUTO DE DESENVOLVIMENTO DE COMPETENCIAS LTDA","06.197.492/0001-33",56,"2020-08-06","2020-11-04","NO PAÍS","MICHELLE VIEIRA DE ALMEIDA      ","CONTRATAÇÃO",4140,0,0,4140,"EVOLUIR HABILIDADES E CONHECIMENTOS EM FERRAMENTAS DE GESTÃO E PLANEJAMENTO/ ADQUIRIR CONHECIMENTO SOBRE OS MÉTODOS E MELHORES PRÁTICAS NA GESTÃO POR RESULTADOS/ AMPLIAR CONHECIMENTO DAS NOVAS PRÁTICAS, FERRAMENTAS E INSTRUMENTOS DE GESTÃO E INOVAÇÃO PARA MELHORIA DO DESEMPENHO NA ANTT"]
["OFICINA-AÇÃO DE MAPEAMENTO DE COMPETÊNCIAS TÉCNICAS","INTELETTO- INSTITUTO DE DESENVOLVIMENTO DE COMPETENCIAS LTDA","06.197.492/0001-33",56,"2020-08-06","2020-11-04","NO PAÍS","MONICA MARINHO DO NASCIMENTO DELAMARE","CONTRATAÇÃO",4140,0,0,4140,"EVOLUIR HABILIDADES E CONHECIMENTOS EM FERRAMENTAS DE GESTÃO E PLANEJAMENTO/ ADQUIRIR CONHECIMENTO SOBRE OS MÉTODOS E MELHORES PRÁTICAS NA GESTÃO POR RESULTADOS/ AMPLIAR CONHECIMENTO DAS NOVAS PRÁTICAS, FERRAMENTAS E INSTRUMENTOS DE GESTÃO E INOVAÇÃO PARA MELHORIA DO DESEMPENHO NA ANTT"]
["OFICINA-AÇÃO DE MAPEAMENTO DE COMPETÊNCIAS TÉCNICAS","INTELETTO- INSTITUTO DE DESENVOLVIMENTO DE COMPETENCIAS LTDA","06.197.492/0001-33",56,"2020-08-06","2020-11-04","NO PAÍS","PAULO HENRIQUE MARQUES SANTOS","CONTRATAÇÃO",4140,0,0,4140,"EVOLUIR HABILIDADES E CONHECIMENTOS EM FERRAMENTAS DE GESTÃO E PLANEJAMENTO/ ADQUIRIR CONHECIMENTO SOBRE OS MÉTODOS E MELHORES PRÁTICAS NA GESTÃO POR RESULTADOS/ AMPLIAR CONHECIMENTO DAS NOVAS PRÁTICAS, FERRAMENTAS E INSTRUMENTOS DE GESTÃO E INOVAÇÃO PARA MELHORIA DO DESEMPENHO NA ANTT"]
["OFICINA-AÇÃO DE MAPEAMENTO DE COMPETÊNCIAS TÉCNICAS","INTELETTO- INSTITUTO DE DESENVOLVIMENTO DE COMPETENCIAS LTDA","06.197.492/0001-33",56,"2020-08-06","2020-11-04","NO PAÍS","RACHEL PEDREIRA DALLAGNOL        ","CONTRATAÇÃO",4140,0,0,4140,"EVOLUIR HABILIDADES E CONHECIMENTOS EM FERRAMENTAS DE GESTÃO E PLANEJAMENTO/ ADQUIRIR CONHECIMENTO SOBRE OS MÉTODOS E MELHORES PRÁTICAS NA GESTÃO POR RESULTADOS/ AMPLIAR CONHECIMENTO DAS NOVAS PRÁTICAS, FERRAMENTAS E INSTRUMENTOS DE GESTÃO E INOVAÇÃO PARA MELHORIA DO DESEMPENHO NA ANTT"]
["OFICINA-AÇÃO DE MAPEAMENTO DE COMPETÊNCIAS TÉCNICAS","INTELETTO- INSTITUTO DE DESENVOLVIMENTO DE COMPETENCIAS LTDA","06.197.492/0001-33",56,"2020-08-06","2020-11-04","NO PAÍS","ROSSIELE E SILVA FERRAZ FORMIGA","CONTRATAÇÃO",4140,0,0,4140,"EVOLUIR HABILIDADES E CONHECIMENTOS EM FERRAMENTAS DE GESTÃO E PLANEJAMENTO/ ADQUIRIR CONHECIMENTO SOBRE OS MÉTODOS E MELHORES PRÁTICAS NA GESTÃO POR RESULTADOS/ AMPLIAR CONHECIMENTO DAS NOVAS PRÁTICAS, FERRAMENTAS E INSTRUMENTOS DE GESTÃO E INOVAÇÃO PARA MELHORIA DO DESEMPENHO NA ANTT"]
["OFICINA-AÇÃO DE MAPEAMENTO DE COMPETÊNCIAS TÉCNICAS","INTELETTO- INSTITUTO DE DESENVOLVIMENTO DE COMPETENCIAS LTDA","06.197.492/0001-33",56,"2020-08-06","2020-11-04","NO PAÍS","THABATA MORENO GROSSO FLEURY TENSER","CONTRATAÇÃO",4140,0,0,4140,"EVOLUIR HABILIDADES E CONHECIMENTOS EM FERRAMENTAS DE GESTÃO E PLANEJAMENTO/ ADQUIRIR CONHECIMENTO SOBRE OS MÉTODOS E MELHORES PRÁTICAS NA GESTÃO POR RESULTADOS/ AMPLIAR CONHECIMENTO DAS NOVAS PRÁTICAS, FERRAMENTAS E INSTRUMENTOS DE GESTÃO E INOVAÇÃO PARA MELHORIA DO DESEMPENHO NA ANTT"]
["OFICINA-AÇÃO DE MAPEAMENTO DE COMPETÊNCIAS TÉCNICAS","INTELETTO- INSTITUTO DE DESENVOLVIMENTO DE COMPETENCIAS LTDA","06.197.492/0001-33",56,"2020-08-06","2020-11-04","NO PAÍS","VERA CRISTINA MEDEIROS AZEVEDO RESPINO","CONTRATAÇÃO",4140,0,0,4140,"EVOLUIR HABILIDADES E CONHECIMENTOS EM FERRAMENTAS DE GESTÃO E PLANEJAMENTO/ ADQUIRIR CONHECIMENTO SOBRE OS MÉTODOS E MELHORES PRÁTICAS NA GESTÃO POR RESULTADOS/ AMPLIAR CONHECIMENTO DAS NOVAS PRÁTICAS, FERRAMENTAS E INSTRUMENTOS DE GESTÃO E INOVAÇÃO PARA MELHORIA DO DESEMPENHO NA ANTT"]
["PCI 2º SEMESTRE 2020 - INGLÊS","CASA THOMAS JEFFERSON","00.114.090/0006-56",48,"2020-08-08","2020-12-12","NO PAÍS","WILTON COSTA DRUMOND SOUSA","RESSARCIMENTO",1350,0,0,1350,"CONHECIMENTO EM IDIOMAS"]
["PROGRAMA DE DESENVOLVIMENTO GERENCIAL - PDG 2020 - TURMA 2 - WORKSHOP 1","HOMERO REIS CONSULTORIA E GESTÃO EMPRESARIAL LTDA","07.131.596/0001-08",4,"2020-08-11","2020-08-13","NO PAÍS","ALAN JOSE DA SILVA","CONTRATAÇÃO",340.7,0,"NÃO SE APLICA",340.7,"DESENVOLVER NOS COORDENADORES DE PROCESSOS ORGANIZACIONAIS AS COMPETÊNCIAS QUE FORAM TRABALHADAS NOS GESTORES ESTRATÉGICOS DA ANTT."]
["PROGRAMA DE DESENVOLVIMENTO GERENCIAL - PDG 2020 - TURMA 2 - WORKSHOP 1","HOMERO REIS CONSULTORIA E GESTÃO EMPRESARIAL LTDA","07.131.596/0001-08",4,"2020-08-11","2020-08-13","NO PAÍS","ALESSANDRA CAIXETA SILVA PRADO","CONTRATAÇÃO",340.7,0,"NÃO SE APLICA",340.7,"DESENVOLVER NOS COORDENADORES DE PROCESSOS ORGANIZACIONAIS AS COMPETÊNCIAS QUE FORAM TRABALHADAS NOS GESTORES ESTRATÉGICOS DA ANTT."]
["PROGRAMA DE DESENVOLVIMENTO GERENCIAL - PDG 2020 - TURMA 2 - WORKSHOP 1","HOMERO REIS CONSULTORIA E GESTÃO EMPRESARIAL LTDA","07.131.596/0001-08",4,"2020-08-11","2020-08-13","NO PAÍS","ANDRE RICARDO RODRIGUES","CONTRATAÇÃO",340.7,0,"NÃO SE APLICA",340.7,"DESENVOLVER NOS COORDENADORES DE PROCESSOS ORGANIZACIONAIS AS COMPETÊNCIAS QUE FORAM TRABALHADAS NOS GESTORES ESTRATÉGICOS DA ANTT."]
["PROGRAMA DE DESENVOLVIMENTO GERENCIAL - PDG 2020 - TURMA 2 - WORKSHOP 1","HOMERO REIS CONSULTORIA E GESTÃO EMPRESARIAL LTDA","07.131.596/0001-08",4,"2020-08-11","2020-08-13","NO PAÍS","CLAUBER SANTOS CAMPELLO","CONTRATAÇÃO",340.7,0,"NÃO SE APLICA",340.7,"DESENVOLVER NOS COORDENADORES DE PROCESSOS ORGANIZACIONAIS AS COMPETÊNCIAS QUE FORAM TRABALHADAS NOS GESTORES ESTRATÉGICOS DA ANTT."]
["PROGRAMA DE DESENVOLVIMENTO GERENCIAL - PDG 2020 - TURMA 2 - WORKSHOP 1","HOMERO REIS CONSULTORIA E GESTÃO EMPRESARIAL LTDA","07.131.596/0001-08",4,"2020-08-11","2020-08-13","NO PAÍS","EMANOEL GONCALVES DE CARVALHO","CONTRATAÇÃO",340.7,0,"NÃO SE APLICA",340.7,"DESENVOLVER NOS COORDENADORES DE PROCESSOS ORGANIZACIONAIS AS COMPETÊNCIAS QUE FORAM TRABALHADAS NOS GESTORES ESTRATÉGICOS DA ANTT."]
["PROGRAMA DE DESENVOLVIMENTO GERENCIAL - PDG 2020 - TURMA 2 - WORKSHOP 1","HOMERO REIS CONSULTORIA E GESTÃO EMPRESARIAL LTDA","07.131.596/0001-08",4,"2020-08-11","2020-08-13","NO PAÍS","ISABELA SOARES MACHADO REICHERT","CONTRATAÇÃO",340.7,0,"NÃO SE APLICA",340.7,"DESENVOLVER NOS COORDENADORES DE PROCESSOS ORGANIZACIONAIS AS COMPETÊNCIAS QUE FORAM TRABALHADAS NOS GESTORES ESTRATÉGICOS DA ANTT."]
["PROGRAMA DE DESENVOLVIMENTO GERENCIAL - PDG 2020 - TURMA 2 - WORKSHOP 1","HOMERO REIS CONSULTORIA E GESTÃO EMPRESARIAL LTDA","07.131.596/0001-08",4,"2020-08-11","2020-08-13","NO PAÍS","KALIANE WILMA CAVALCANTE DE LIRA","CONTRATAÇÃO",340.69,0,"NÃO SE APLICA",340.69,"DESENVOLVER NOS COORDENADORES DE PROCESSOS ORGANIZACIONAIS AS COMPETÊNCIAS QUE FORAM TRABALHADAS NOS GESTORES ESTRATÉGICOS DA ANTT."]
["PROGRAMA DE DESENVOLVIMENTO GERENCIAL - PDG 2020 - TURMA 2 - WORKSHOP 1","HOMERO REIS CONSULTORIA E GESTÃO EMPRESARIAL LTDA","07.131.596/0001-08",4,"2020-08-11","2020-08-13","NO PAÍS","LEILANE MORAIS ALCÂNTARA","CONTRATAÇÃO",340.69,0,"NÃO SE APLICA",340.69,"DESENVOLVER NOS COORDENADORES DE PROCESSOS ORGANIZACIONAIS AS COMPETÊNCIAS QUE FORAM TRABALHADAS NOS GESTORES ESTRATÉGICOS DA ANTT."]
["PROGRAMA DE DESENVOLVIMENTO GERENCIAL - PDG 2020 - TURMA 2 - WORKSHOP 1","HOMERO REIS CONSULTORIA E GESTÃO EMPRESARIAL LTDA","07.131.596/0001-08",4,"2020-08-11","2020-08-13","NO PAÍS","LETICIA ARAUJO SILVA VENSON","CONTRATAÇÃO",340.69,0,"NÃO SE APLICA",340.69,"DESENVOLVER NOS COORDENADORES DE PROCESSOS ORGANIZACIONAIS AS COMPETÊNCIAS QUE FORAM TRABALHADAS NOS GESTORES ESTRATÉGICOS DA ANTT."]
["PROGRAMA DE DESENVOLVIMENTO GERENCIAL - PDG 2020 - TURMA 2 - WORKSHOP 1","HOMERO REIS CONSULTORIA E GESTÃO EMPRESARIAL LTDA","07.131.596/0001-08",4,"2020-08-11","2020-08-13","NO PAÍS","LEVINA APARECIDA MACHADO SILVA","CONTRATAÇÃO",340.69,0,"NÃO SE APLICA",340.69,"DESENVOLVER NOS COORDENADORES DE PROCESSOS ORGANIZACIONAIS AS COMPETÊNCIAS QUE FORAM TRABALHADAS NOS GESTORES ESTRATÉGICOS DA ANTT."]
["PROGRAMA DE DESENVOLVIMENTO GERENCIAL - PDG 2020 - TURMA 2 - WORKSHOP 1","HOMERO REIS CONSULTORIA E GESTÃO EMPRESARIAL LTDA","07.131.596/0001-08",4,"2020-08-11","2020-08-13","NO PAÍS","LIGIA MARIA DE OLIVEIRA BARROS","CONTRATAÇÃO",340.69,0,"NÃO SE APLICA",340.69,"DESENVOLVER NOS COORDENADORES DE PROCESSOS ORGANIZACIONAIS AS COMPETÊNCIAS QUE FORAM TRABALHADAS NOS GESTORES ESTRATÉGICOS DA ANTT."]
["PROGRAMA DE DESENVOLVIMENTO GERENCIAL - PDG 2020 - TURMA 2 - WORKSHOP 1","HOMERO REIS CONSULTORIA E GESTÃO EMPRESARIAL LTDA","07.131.596/0001-08",4,"2020-08-11","2020-08-13","NO PAÍS","MARCIA LIKA MON-MA","CONTRATAÇÃO",340.69,0,"NÃO SE APLICA",340.69,"DESENVOLVER NOS COORDENADORES DE PROCESSOS ORGANIZACIONAIS AS COMPETÊNCIAS QUE FORAM TRABALHADAS NOS GESTORES ESTRATÉGICOS DA ANTT."]
["PROGRAMA DE DESENVOLVIMENTO GERENCIAL - PDG 2020 - TURMA 2 - WORKSHOP 1","HOMERO REIS CONSULTORIA E GESTÃO EMPRESARIAL LTDA","07.131.596/0001-08",4,"2020-08-11","2020-08-13","NO PAÍS","MARCUS VINICIUS DE ABREU SOUZA VASCONCELLOS","CONTRATAÇÃO",340.69,0,"NÃO SE APLICA",340.69,"DESENVOLVER NOS COORDENADORES DE PROCESSOS ORGANIZACIONAIS AS COMPETÊNCIAS QUE FORAM TRABALHADAS NOS GESTORES ESTRATÉGICOS DA ANTT."]
["PROGRAMA DE DESENVOLVIMENTO GERENCIAL - PDG 2020 - TURMA 2 - WORKSHOP 1","HOMERO REIS CONSULTORIA E GESTÃO EMPRESARIAL LTDA","07.131.596/0001-08",4,"2020-08-11","2020-08-13","NO PAÍS","MARNE LIEGGIO JUNIOR","CONTRATAÇÃO",340.69,0,"NÃO SE APLICA",340.69,"DESENVOLVER NOS COORDENADORES DE PROCESSOS ORGANIZACIONAIS AS COMPETÊNCIAS QUE FORAM TRABALHADAS NOS GESTORES ESTRATÉGICOS DA ANTT."]
["PROGRAMA DE DESENVOLVIMENTO GERENCIAL - PDG 2020 - TURMA 2 - WORKSHOP 1","HOMERO REIS CONSULTORIA E GESTÃO EMPRESARIAL LTDA","07.131.596/0001-08",4,"2020-08-11","2020-08-13","NO PAÍS","MAURO RODRIGUES SANJAD","CONTRATAÇÃO",340.69,0,"NÃO SE APLICA",340.69,"DESENVOLVER NOS COORDENADORES DE PROCESSOS ORGANIZACIONAIS AS COMPETÊNCIAS QUE FORAM TRABALHADAS NOS GESTORES ESTRATÉGICOS DA ANTT."]
["PROGRAMA DE DESENVOLVIMENTO GERENCIAL - PDG 2020 - TURMA 2 - WORKSHOP 1","HOMERO REIS CONSULTORIA E GESTÃO EMPRESARIAL LTDA","07.131.596/0001-08",4,"2020-08-11","2020-08-13","NO PAÍS","MILENA MARA NARANJO FLORES","CONTRATAÇÃO",340.69,0,"NÃO SE APLICA",340.69,"DESENVOLVER NOS COORDENADORES DE PROCESSOS ORGANIZACIONAIS AS COMPETÊNCIAS QUE FORAM TRABALHADAS NOS GESTORES ESTRATÉGICOS DA ANTT."]
["PROGRAMA DE DESENVOLVIMENTO GERENCIAL - PDG 2020 - TURMA 2 - WORKSHOP 1","HOMERO REIS CONSULTORIA E GESTÃO EMPRESARIAL LTDA","07.131.596/0001-08",4,"2020-08-11","2020-08-13","NO PAÍS","NARA KOHLSDORF","CONTRATAÇÃO",340.69,0,"NÃO SE APLICA",340.69,"DESENVOLVER NOS COORDENADORES DE PROCESSOS ORGANIZACIONAIS AS COMPETÊNCIAS QUE FORAM TRABALHADAS NOS GESTORES ESTRATÉGICOS DA ANTT."]
["PROGRAMA DE DESENVOLVIMENTO GERENCIAL - PDG 2020 - TURMA 2 - WORKSHOP 1","HOMERO REIS CONSULTORIA E GESTÃO EMPRESARIAL LTDA","07.131.596/0001-08",4,"2020-08-11","2020-08-13","NO PAÍS","NILTON DE MELO VIEIRA","CONTRATAÇÃO",340.69,0,"NÃO SE APLICA",340.69,"DESENVOLVER NOS COORDENADORES DE PROCESSOS ORGANIZACIONAIS AS COMPETÊNCIAS QUE FORAM TRABALHADAS NOS GESTORES ESTRATÉGICOS DA ANTT."]
["PROGRAMA DE DESENVOLVIMENTO GERENCIAL - PDG 2020 - TURMA 2 - WORKSHOP 1","HOMERO REIS CONSULTORIA E GESTÃO EMPRESARIAL LTDA","07.131.596/0001-08",4,"2020-08-11","2020-08-13","NO PAÍS","PATRICIA CALDAS MONTEIRO","CONTRATAÇÃO",340.69,0,"NÃO SE APLICA",340.69,"DESENVOLVER NOS COORDENADORES DE PROCESSOS ORGANIZACIONAIS AS COMPETÊNCIAS QUE FORAM TRABALHADAS NOS GESTORES ESTRATÉGICOS DA ANTT."]
["PROGRAMA DE DESENVOLVIMENTO GERENCIAL - PDG 2020 - TURMA 2 - WORKSHOP 1","HOMERO REIS CONSULTORIA E GESTÃO EMPRESARIAL LTDA","07.131.596/0001-08",4,"2020-08-11","2020-08-13","NO PAÍS","PAULO RICARDO ARAUJO DE ORNELAS MENDES","CONTRATAÇÃO",340.69,0,"NÃO SE APLICA",340.69,"DESENVOLVER NOS COORDENADORES DE PROCESSOS ORGANIZACIONAIS AS COMPETÊNCIAS QUE FORAM TRABALHADAS NOS GESTORES ESTRATÉGICOS DA ANTT."]
["PROGRAMA DE DESENVOLVIMENTO GERENCIAL - PDG 2020 - TURMA 2 - WORKSHOP 1","HOMERO REIS CONSULTORIA E GESTÃO EMPRESARIAL LTDA","07.131.596/0001-08",4,"2020-08-11","2020-08-13","NO PAÍS","RACHEL PEDREIRA DALLAGNOL        ","CONTRATAÇÃO",340.69,0,"NÃO SE APLICA",340.69,"DESENVOLVER NOS COORDENADORES DE PROCESSOS ORGANIZACIONAIS AS COMPETÊNCIAS QUE FORAM TRABALHADAS NOS GESTORES ESTRATÉGICOS DA ANTT."]
["PROGRAMA DE DESENVOLVIMENTO GERENCIAL - PDG 2020 - TURMA 2 - WORKSHOP 1","HOMERO REIS CONSULTORIA E GESTÃO EMPRESARIAL LTDA","07.131.596/0001-08",4,"2020-08-11","2020-08-13","NO PAÍS","ROBERTA NEGRAO COSTA WACHHOLZ","CONTRATAÇÃO",340.69,0,"NÃO SE APLICA",340.69,"DESENVOLVER NOS COORDENADORES DE PROCESSOS ORGANIZACIONAIS AS COMPETÊNCIAS QUE FORAM TRABALHADAS NOS GESTORES ESTRATÉGICOS DA ANTT."]
["PROGRAMA DE DESENVOLVIMENTO GERENCIAL - PDG 2020 - TURMA 2 - WORKSHOP 1","HOMERO REIS CONSULTORIA E GESTÃO EMPRESARIAL LTDA","07.131.596/0001-08",4,"2020-08-11","2020-08-13","NO PAÍS","RODRIGO BARROS BRANDAO SOARES","CONTRATAÇÃO",340.69,0,"NÃO SE APLICA",340.69,"DESENVOLVER NOS COORDENADORES DE PROCESSOS ORGANIZACIONAIS AS COMPETÊNCIAS QUE FORAM TRABALHADAS NOS GESTORES ESTRATÉGICOS DA ANTT."]
["PROGRAMA DE DESENVOLVIMENTO GERENCIAL - PDG 2020 - TURMA 2 - WORKSHOP 1","HOMERO REIS CONSULTORIA E GESTÃO EMPRESARIAL LTDA","07.131.596/0001-08",4,"2020-08-11","2020-08-13","NO PAÍS","THAIS NOBRE SUNDFELD LIMA MARTINS","CONTRATAÇÃO",340.69,0,"NÃO SE APLICA",340.69,"DESENVOLVER NOS COORDENADORES DE PROCESSOS ORGANIZACIONAIS AS COMPETÊNCIAS QUE FORAM TRABALHADAS NOS GESTORES ESTRATÉGICOS DA ANTT."]
["PROGRAMA DE DESENVOLVIMENTO GERENCIAL - PDG 2020 - TURMA 2 - WORKSHOP 1","HOMERO REIS CONSULTORIA E GESTÃO EMPRESARIAL LTDA","07.131.596/0001-08",4,"2020-08-11","2020-08-13","NO PAÍS","VANESSA DA SILVA SANTOS","CONTRATAÇÃO",340.69,0,"NÃO SE APLICA",340.69,"DESENVOLVER NOS COORDENADORES DE PROCESSOS ORGANIZACIONAIS AS COMPETÊNCIAS QUE FORAM TRABALHADAS NOS GESTORES ESTRATÉGICOS DA ANTT."]
["PROGRAMA DE DESENVOLVIMENTO GERENCIAL - PDG 2020 - TURMA 2 - WORKSHOP 1","HOMERO REIS CONSULTORIA E GESTÃO EMPRESARIAL LTDA","07.131.596/0001-08",4,"2020-08-11","2020-08-13","NO PAÍS","VICTOR FERREIRA SOARES","CONTRATAÇÃO",340.69,0,"NÃO SE APLICA",340.69,"DESENVOLVER NOS COORDENADORES DE PROCESSOS ORGANIZACIONAIS AS COMPETÊNCIAS QUE FORAM TRABALHADAS NOS GESTORES ESTRATÉGICOS DA ANTT."]
["BUSINESS INTELLIGENCE - SISTEMAS DE APOIO À DECISÃO","UNIEDUCAR INTELIGÊNCIA EDUCACIONAL LTDA","05.569.970/0001-26",140,"2020-08-16","2020-09-14","NO PAÍS","RENATO DE MIRANDA SANTOS","SEM CUSTOS DE INSCRIÇÃO - GRATUITO",0,0,20538.259999999998,20538.259999999998,"TEMA DEFINIDO NO GUIA DE CONHECIMENTOS DA ANTT - EIXO TEMÁTICO/GRUPO DE CONHECIMENTO: DESENVOLVIMENTO INSTITUCIONAL/GESTÃO ESTRATÉGICA"]
["ADMINISTRANDO RELACIONAMENTOS - DESENVOLVENDO A LIDERANÇA E TRABALHANDO A MOTIVAÇÃO","UNIEDUCAR INTELIGÊNCIA EDUCACIONAL LTDA","05.569.970/0001-26",140,"2020-08-16","2020-09-14","NO PAÍS","RIVADAVIA OLIVEIRA JUNIOR","SEM CUSTOS DE INSCRIÇÃO - GRATUITO",0,0,17549.09,17549.09,"TEMA DEFINIDO NO GUIA DE CONHECIMENTOS DA ANTT - EIXO TEMÁTICO/GRUPO DE CONHECIMENTO: DESENVOLVIMENTO INSTITUCIONA /GESTÃO ESTRATÉGICA/GESTÃO DE PESSOAS"]
["CURSO DESFAZIMENTO DE BENS E MATERIAIS SEGUNDO O DECRETO Nº9373/18","GERSON DOS SANTOS TREINAMENTOS - ME","31.433.068/0001-98",16,"2020-08-24","2020-08-25","NO PAÍS","JULIANE FURTADO NOVAES","INSCRIÇÃO",847,0,1302.7920000000001,2149.7920000000004,"EVOLUIR HABILIDADES E CONHECIMENTOS EM FERRAMENTAS DE GESTÃO E PLANEJAMENTO"]
["CURSO DESFAZIMENTO DE BENS E MATERIAIS SEGUNDO O DECRETO Nº9373/18","GERSON DOS SANTOS TREINAMENTOS - ME","31.433.068/0001-98",16,"2020-08-24","2020-08-25","NO PAÍS","LISANGELA JORGE CARIOCA SANTOS","INSCRIÇÃO",847,0,666.0293333333334,1513.0293333333334,"EVOLUIR HABILIDADES E CONHECIMENTOS EM FERRAMENTAS DE GESTÃO E PLANEJAMENTO"]
["CURSO DESFAZIMENTO DE BENS E MATERIAIS SEGUNDO O DECRETO Nº9373/18","GERSON DOS SANTOS TREINAMENTOS - ME","31.433.068/0001-98",16,"2020-08-24","2020-08-25","NO PAÍS","PATRICIA DE OLIVEIRA SILVA","INSCRIÇÃO",847,0,658.99266666666665,1505.9926666666665,"EVOLUIR HABILIDADES E CONHECIMENTOS EM FERRAMENTAS DE GESTÃO E PLANEJAMENTO"]
["CURSO DESFAZIMENTO DE BENS E MATERIAIS SEGUNDO O DECRETO Nº9373/18","GERSON DOS SANTOS TREINAMENTOS - ME","31.433.068/0001-98",16,"2020-08-24","2020-08-25","NO PAÍS","ROSECLEIDE DA SILVA CUSTODIO","INSCRIÇÃO",847,0,159.08000000000001,1006.08,"EVOLUIR HABILIDADES E CONHECIMENTOS EM FERRAMENTAS DE GESTÃO E PLANEJAMENTO"]
["RESPONSABILIDADE DOS AGENTES PÚBLICOS, PARECER JURÍDICO E APLICAÇÃO DE SANÇÃO EM TEMPOS DE PANDEMIA – O QUE MUDOU E COMO PREVENIR A RESPONSABILIZAÇÃO?","ZENITE INFORMACAO E CONSULTORIA S/A","86.781.069/0001-15",12,"2020-08-24","2020-08-27","NO PAÍS","BEATRIZ PIMENTA FERNANDES      ","INSCRIÇÃO",1490,0,"NÃO SE APLICA",1490,"NECESSIDADE DE CONHECIMENTO TÉCNICO EM PLANEJAMENTO E ACOMPANHAMENTO DA EXECUÇÃO DE CONTRATOS ADMINISTRATIVOS"]
["RESPONSABILIDADE DOS AGENTES PÚBLICOS, PARECER JURÍDICO E APLICAÇÃO DE SANÇÃO EM TEMPOS DE PANDEMIA – O QUE MUDOU E COMO PREVENIR A RESPONSABILIZAÇÃO?","ZENITE INFORMACAO E CONSULTORIA S/A","86.781.069/0001-15",12,"2020-08-24","2020-08-27","NO PAÍS","SUZY MARY COSTA VAZ","INSCRIÇÃO",1490,0,"NÃO SE APLICA",1490,"NECESSIDADE DE CONHECIMENTO TÉCNICO EM PLANEJAMENTO E ACOMPANHAMENTO DA EXECUÇÃO DE CONTRATOS ADMINISTRATIVOS"]
["PROGRAMA DE DESENVOLVIMENTO GERENCIAL - PDG 2020 - TURMA 2 - WORKSHOP 2","HOMERO REIS CONSULTORIA E GESTÃO EMPRESARIAL LTDA","07.131.596/0001-08",4,"2020-08-26","2020-08-28","NO PAÍS","ALAN JOSE DA SILVA","CONTRATAÇÃO",340.73,0,"NÃO SE APLICA",340.73,"DESENVOLVER NOS COORDENADORES DE PROCESSOS ORGANIZACIONAIS AS COMPETÊNCIAS QUE FORAM TRABALHADAS NOS GESTORES ESTRATÉGICOS DA ANTT."]
["PROGRAMA DE DESENVOLVIMENTO GERENCIAL - PDG 2020 - TURMA 2 - WORKSHOP 2","HOMERO REIS CONSULTORIA E GESTÃO EMPRESARIAL LTDA","07.131.596/0001-08",4,"2020-08-26","2020-08-28","NO PAÍS","ALESSANDRA CAIXETA SILVA PRADO","CONTRATAÇÃO",340.73,0,"NÃO SE APLICA",340.73,"DESENVOLVER NOS COORDENADORES DE PROCESSOS ORGANIZACIONAIS AS COMPETÊNCIAS QUE FORAM TRABALHADAS NOS GESTORES ESTRATÉGICOS DA ANTT."]
["PROGRAMA DE DESENVOLVIMENTO GERENCIAL - PDG 2020 - TURMA 2 - WORKSHOP 2","HOMERO REIS CONSULTORIA E GESTÃO EMPRESARIAL LTDA","07.131.596/0001-08",4,"2020-08-26","2020-08-28","NO PAÍS","ANDRE RICARDO RODRIGUES","CONTRATAÇÃO",340.73,0,"NÃO SE APLICA",340.73,"DESENVOLVER NOS COORDENADORES DE PROCESSOS ORGANIZACIONAIS AS COMPETÊNCIAS QUE FORAM TRABALHADAS NOS GESTORES ESTRATÉGICOS DA ANTT."]
["PROGRAMA DE DESENVOLVIMENTO GERENCIAL - PDG 2020 - TURMA 2 - WORKSHOP 2","HOMERO REIS CONSULTORIA E GESTÃO EMPRESARIAL LTDA","07.131.596/0001-08",4,"2020-08-26","2020-08-28","NO PAÍS","CLAUBER SANTOS CAMPELLO","CONTRATAÇÃO",340.72,0,"NÃO SE APLICA",340.72,"DESENVOLVER NOS COORDENADORES DE PROCESSOS ORGANIZACIONAIS AS COMPETÊNCIAS QUE FORAM TRABALHADAS NOS GESTORES ESTRATÉGICOS DA ANTT."]
["PROGRAMA DE DESENVOLVIMENTO GERENCIAL - PDG 2020 - TURMA 2 - WORKSHOP 2","HOMERO REIS CONSULTORIA E GESTÃO EMPRESARIAL LTDA","07.131.596/0001-08",4,"2020-08-26","2020-08-28","NO PAÍS","EMANOEL GONCALVES DE CARVALHO","CONTRATAÇÃO",340.72,0,"NÃO SE APLICA",340.72,"DESENVOLVER NOS COORDENADORES DE PROCESSOS ORGANIZACIONAIS AS COMPETÊNCIAS QUE FORAM TRABALHADAS NOS GESTORES ESTRATÉGICOS DA ANTT."]
["PROGRAMA DE DESENVOLVIMENTO GERENCIAL - PDG 2020 - TURMA 2 - WORKSHOP 2","HOMERO REIS CONSULTORIA E GESTÃO EMPRESARIAL LTDA","07.131.596/0001-08",4,"2020-08-26","2020-08-28","NO PAÍS","ISABELA SOARES MACHADO REICHERT","CONTRATAÇÃO",340.72,0,"NÃO SE APLICA",340.72,"DESENVOLVER NOS COORDENADORES DE PROCESSOS ORGANIZACIONAIS AS COMPETÊNCIAS QUE FORAM TRABALHADAS NOS GESTORES ESTRATÉGICOS DA ANTT."]
["PROGRAMA DE DESENVOLVIMENTO GERENCIAL - PDG 2020 - TURMA 2 - WORKSHOP 2","HOMERO REIS CONSULTORIA E GESTÃO EMPRESARIAL LTDA","07.131.596/0001-08",4,"2020-08-26","2020-08-28","NO PAÍS","KALIANE WILMA CAVALCANTE DE LIRA","CONTRATAÇÃO",340.72,0,"NÃO SE APLICA",340.72,"DESENVOLVER NOS COORDENADORES DE PROCESSOS ORGANIZACIONAIS AS COMPETÊNCIAS QUE FORAM TRABALHADAS NOS GESTORES ESTRATÉGICOS DA ANTT."]
["PROGRAMA DE DESENVOLVIMENTO GERENCIAL - PDG 2020 - TURMA 2 - WORKSHOP 2","HOMERO REIS CONSULTORIA E GESTÃO EMPRESARIAL LTDA","07.131.596/0001-08",4,"2020-08-26","2020-08-28","NO PAÍS","LEILANE MORAIS ALCÂNTARA","CONTRATAÇÃO",340.72,0,"NÃO SE APLICA",340.72,"DESENVOLVER NOS COORDENADORES DE PROCESSOS ORGANIZACIONAIS AS COMPETÊNCIAS QUE FORAM TRABALHADAS NOS GESTORES ESTRATÉGICOS DA ANTT."]
["PROGRAMA DE DESENVOLVIMENTO GERENCIAL - PDG 2020 - TURMA 2 - WORKSHOP 2","HOMERO REIS CONSULTORIA E GESTÃO EMPRESARIAL LTDA","07.131.596/0001-08",4,"2020-08-26","2020-08-28","NO PAÍS","LETICIA ARAUJO SILVA VENSON","CONTRATAÇÃO",340.72,0,"NÃO SE APLICA",340.72,"DESENVOLVER NOS COORDENADORES DE PROCESSOS ORGANIZACIONAIS AS COMPETÊNCIAS QUE FORAM TRABALHADAS NOS GESTORES ESTRATÉGICOS DA ANTT."]
["PROGRAMA DE DESENVOLVIMENTO GERENCIAL - PDG 2020 - TURMA 2 - WORKSHOP 2","HOMERO REIS CONSULTORIA E GESTÃO EMPRESARIAL LTDA","07.131.596/0001-08",4,"2020-08-26","2020-08-28","NO PAÍS","LEVINA APARECIDA MACHADO SILVA","CONTRATAÇÃO",340.72,0,"NÃO SE APLICA",340.72,"DESENVOLVER NOS COORDENADORES DE PROCESSOS ORGANIZACIONAIS AS COMPETÊNCIAS QUE FORAM TRABALHADAS NOS GESTORES ESTRATÉGICOS DA ANTT."]
["PROGRAMA DE DESENVOLVIMENTO GERENCIAL - PDG 2020 - TURMA 2 - WORKSHOP 2","HOMERO REIS CONSULTORIA E GESTÃO EMPRESARIAL LTDA","07.131.596/0001-08",4,"2020-08-26","2020-08-28","NO PAÍS","LIGIA MARIA DE OLIVEIRA BARROS","CONTRATAÇÃO",340.72,0,"NÃO SE APLICA",340.72,"DESENVOLVER NOS COORDENADORES DE PROCESSOS ORGANIZACIONAIS AS COMPETÊNCIAS QUE FORAM TRABALHADAS NOS GESTORES ESTRATÉGICOS DA ANTT."]
["PROGRAMA DE DESENVOLVIMENTO GERENCIAL - PDG 2020 - TURMA 2 - WORKSHOP 2","HOMERO REIS CONSULTORIA E GESTÃO EMPRESARIAL LTDA","07.131.596/0001-08",4,"2020-08-26","2020-08-28","NO PAÍS","MARCIA LIKA MON-MA","CONTRATAÇÃO",340.72,0,"NÃO SE APLICA",340.72,"DESENVOLVER NOS COORDENADORES DE PROCESSOS ORGANIZACIONAIS AS COMPETÊNCIAS QUE FORAM TRABALHADAS NOS GESTORES ESTRATÉGICOS DA ANTT."]
["PROGRAMA DE DESENVOLVIMENTO GERENCIAL - PDG 2020 - TURMA 2 - WORKSHOP 2","HOMERO REIS CONSULTORIA E GESTÃO EMPRESARIAL LTDA","07.131.596/0001-08",4,"2020-08-26","2020-08-28","NO PAÍS","MARCUS VINICIUS DE ABREU SOUZA VASCONCELLOS","CONTRATAÇÃO",340.72,0,"NÃO SE APLICA",340.72,"DESENVOLVER NOS COORDENADORES DE PROCESSOS ORGANIZACIONAIS AS COMPETÊNCIAS QUE FORAM TRABALHADAS NOS GESTORES ESTRATÉGICOS DA ANTT."]
["PROGRAMA DE DESENVOLVIMENTO GERENCIAL - PDG 2020 - TURMA 2 - WORKSHOP 2","HOMERO REIS CONSULTORIA E GESTÃO EMPRESARIAL LTDA","07.131.596/0001-08",4,"2020-08-26","2020-08-28","NO PAÍS","MARNE LIEGGIO JUNIOR","CONTRATAÇÃO",340.72,0,"NÃO SE APLICA",340.72,"DESENVOLVER NOS COORDENADORES DE PROCESSOS ORGANIZACIONAIS AS COMPETÊNCIAS QUE FORAM TRABALHADAS NOS GESTORES ESTRATÉGICOS DA ANTT."]
["PROGRAMA DE DESENVOLVIMENTO GERENCIAL - PDG 2020 - TURMA 2 - WORKSHOP 2","HOMERO REIS CONSULTORIA E GESTÃO EMPRESARIAL LTDA","07.131.596/0001-08",4,"2020-08-26","2020-08-28","NO PAÍS","MAURO RODRIGUES SANJAD","CONTRATAÇÃO",340.72,0,"NÃO SE APLICA",340.72,"DESENVOLVER NOS COORDENADORES DE PROCESSOS ORGANIZACIONAIS AS COMPETÊNCIAS QUE FORAM TRABALHADAS NOS GESTORES ESTRATÉGICOS DA ANTT."]
["PROGRAMA DE DESENVOLVIMENTO GERENCIAL - PDG 2020 - TURMA 2 - WORKSHOP 2","HOMERO REIS CONSULTORIA E GESTÃO EMPRESARIAL LTDA","07.131.596/0001-08",4,"2020-08-26","2020-08-28","NO PAÍS","MILENA MARA NARANJO FLORES","CONTRATAÇÃO",340.72,0,"NÃO SE APLICA",340.72,"DESENVOLVER NOS COORDENADORES DE PROCESSOS ORGANIZACIONAIS AS COMPETÊNCIAS QUE FORAM TRABALHADAS NOS GESTORES ESTRATÉGICOS DA ANTT."]
["PROGRAMA DE DESENVOLVIMENTO GERENCIAL - PDG 2020 - TURMA 2 - WORKSHOP 2","HOMERO REIS CONSULTORIA E GESTÃO EMPRESARIAL LTDA","07.131.596/0001-08",4,"2020-08-26","2020-08-28","NO PAÍS","NARA KOHLSDORF","CONTRATAÇÃO",340.72,0,"NÃO SE APLICA",340.72,"DESENVOLVER NOS COORDENADORES DE PROCESSOS ORGANIZACIONAIS AS COMPETÊNCIAS QUE FORAM TRABALHADAS NOS GESTORES ESTRATÉGICOS DA ANTT."]
["PROGRAMA DE DESENVOLVIMENTO GERENCIAL - PDG 2020 - TURMA 2 - WORKSHOP 2","HOMERO REIS CONSULTORIA E GESTÃO EMPRESARIAL LTDA","07.131.596/0001-08",4,"2020-08-26","2020-08-28","NO PAÍS","NILTON DE MELO VIEIRA","CONTRATAÇÃO",340.72,0,"NÃO SE APLICA",340.72,"DESENVOLVER NOS COORDENADORES DE PROCESSOS ORGANIZACIONAIS AS COMPETÊNCIAS QUE FORAM TRABALHADAS NOS GESTORES ESTRATÉGICOS DA ANTT."]
["PROGRAMA DE DESENVOLVIMENTO GERENCIAL - PDG 2020 - TURMA 2 - WORKSHOP 2","HOMERO REIS CONSULTORIA E GESTÃO EMPRESARIAL LTDA","07.131.596/0001-08",4,"2020-08-26","2020-08-28","NO PAÍS","PATRICIA CALDAS MONTEIRO","CONTRATAÇÃO",340.72,0,"NÃO SE APLICA",340.72,"DESENVOLVER NOS COORDENADORES DE PROCESSOS ORGANIZACIONAIS AS COMPETÊNCIAS QUE FORAM TRABALHADAS NOS GESTORES ESTRATÉGICOS DA ANTT."]
["PROGRAMA DE DESENVOLVIMENTO GERENCIAL - PDG 2020 - TURMA 2 - WORKSHOP 2","HOMERO REIS CONSULTORIA E GESTÃO EMPRESARIAL LTDA","07.131.596/0001-08",4,"2020-08-26","2020-08-28","NO PAÍS","PAULO RICARDO ARAUJO DE ORNELAS MENDES","CONTRATAÇÃO",340.72,0,"NÃO SE APLICA",340.72,"DESENVOLVER NOS COORDENADORES DE PROCESSOS ORGANIZACIONAIS AS COMPETÊNCIAS QUE FORAM TRABALHADAS NOS GESTORES ESTRATÉGICOS DA ANTT."]
["PROGRAMA DE DESENVOLVIMENTO GERENCIAL - PDG 2020 - TURMA 2 - WORKSHOP 2","HOMERO REIS CONSULTORIA E GESTÃO EMPRESARIAL LTDA","07.131.596/0001-08",4,"2020-08-26","2020-08-28","NO PAÍS","RACHEL PEDREIRA DALLAGNOL        ","CONTRATAÇÃO",340.72,0,"NÃO SE APLICA",340.72,"DESENVOLVER NOS COORDENADORES DE PROCESSOS ORGANIZACIONAIS AS COMPETÊNCIAS QUE FORAM TRABALHADAS NOS GESTORES ESTRATÉGICOS DA ANTT."]
["PROGRAMA DE DESENVOLVIMENTO GERENCIAL - PDG 2020 - TURMA 2 - WORKSHOP 2","HOMERO REIS CONSULTORIA E GESTÃO EMPRESARIAL LTDA","07.131.596/0001-08",4,"2020-08-26","2020-08-28","NO PAÍS","ROBERTA NEGRAO COSTA WACHHOLZ","CONTRATAÇÃO",340.72,0,"NÃO SE APLICA",340.72,"DESENVOLVER NOS COORDENADORES DE PROCESSOS ORGANIZACIONAIS AS COMPETÊNCIAS QUE FORAM TRABALHADAS NOS GESTORES ESTRATÉGICOS DA ANTT."]
["PROGRAMA DE DESENVOLVIMENTO GERENCIAL - PDG 2020 - TURMA 2 - WORKSHOP 2","HOMERO REIS CONSULTORIA E GESTÃO EMPRESARIAL LTDA","07.131.596/0001-08",4,"2020-08-26","2020-08-28","NO PAÍS","RODRIGO BARROS BRANDAO SOARES","CONTRATAÇÃO",340.72,0,"NÃO SE APLICA",340.72,"DESENVOLVER NOS COORDENADORES DE PROCESSOS ORGANIZACIONAIS AS COMPETÊNCIAS QUE FORAM TRABALHADAS NOS GESTORES ESTRATÉGICOS DA ANTT."]
["PROGRAMA DE DESENVOLVIMENTO GERENCIAL - PDG 2020 - TURMA 2 - WORKSHOP 2","HOMERO REIS CONSULTORIA E GESTÃO EMPRESARIAL LTDA","07.131.596/0001-08",4,"2020-08-26","2020-08-28","NO PAÍS","THAIS NOBRE SUNDFELD LIMA MARTINS","CONTRATAÇÃO",340.72,0,"NÃO SE APLICA",340.72,"DESENVOLVER NOS COORDENADORES DE PROCESSOS ORGANIZACIONAIS AS COMPETÊNCIAS QUE FORAM TRABALHADAS NOS GESTORES ESTRATÉGICOS DA ANTT."]
["PROGRAMA DE DESENVOLVIMENTO GERENCIAL - PDG 2020 - TURMA 2 - WORKSHOP 2","HOMERO REIS CONSULTORIA E GESTÃO EMPRESARIAL LTDA","07.131.596/0001-08",4,"2020-08-26","2020-08-28","NO PAÍS","VANESSA DA SILVA SANTOS","CONTRATAÇÃO",340.72,0,"NÃO SE APLICA",340.72,"DESENVOLVER NOS COORDENADORES DE PROCESSOS ORGANIZACIONAIS AS COMPETÊNCIAS QUE FORAM TRABALHADAS NOS GESTORES ESTRATÉGICOS DA ANTT."]
["PROGRAMA DE DESENVOLVIMENTO GERENCIAL - PDG 2020 - TURMA 2 - WORKSHOP 2","HOMERO REIS CONSULTORIA E GESTÃO EMPRESARIAL LTDA","07.131.596/0001-08",4,"2020-08-26","2020-08-28","NO PAÍS","VICTOR FERREIRA SOARES","CONTRATAÇÃO",340.72,0,"NÃO SE APLICA",340.72,"DESENVOLVER NOS COORDENADORES DE PROCESSOS ORGANIZACIONAIS AS COMPETÊNCIAS QUE FORAM TRABALHADAS NOS GESTORES ESTRATÉGICOS DA ANTT."]
["MATRIZ MODAL - TRANSPORTE INTERMODAL E EFICIÊNCIA OPERACIONAL","UNIEDUCAR INTELIGÊNCIA EDUCACIONAL LTDA","05.569.970/0001-26",80,"2020-08-31","2020-09-14","NO PAÍS","RODRIGO LUCIUS DE AMORIM","SEM CUSTOS DE INSCRIÇÃO - GRATUITO",0,0,10020.035,10020.035,"TEMA DEFINIDO NO GUIA DE CONHECIMENTOS DA ANTT - EIXO TEMÁTICO/GRUPO DE CONHECIMENTO: REGULAÇÃO/DESENVOLVIMENTO DA REGULAÇÃO E TRANSPORTES TERRESTRES"]
["ATUALIZAÇÃO JURÍDICA /DIREITO ADMINISTRATIVO /AGÊNCIAS REGULADORAS E EXECUTIVAS","UNIEDUCAR INTELIGÊNCIA EDUCACIONAL LTDA","05.569.970/0001-26",140,"2020-08-31","2020-09-29","NO PAÍS","ARISTOTELES BRANDAO FILHO","SEM CUSTOS DE INSCRIÇÃO - GRATUITO",0,0,10506.18,10506.18,"TEMA DEFINIDO NO GUIA DE CONHECIMENTOS DA ANTT - EIXO TEMÁTICO/GRUPO DE CONHECIMENTO: GOVERNANÇA COORPORATIVA /ATOS/PROCESSOS E PROCEDIMENTOS ADMINISTRATIVOS"]
["CURSO DE GESTÃO DE INFORMAÇÕES E INOVAÇÃO NO SETOR PÚBLICO","METROPOLITAN EDUCACAO LTDA"," 13.411.192/0001-70",180,"2020-08-31","2020-09-29","NO PAÍS","CRISTIANO DELLA GIUSTINA","SEM CUSTOS DE INSCRIÇÃO - GRATUITO",0,0,20538.259999999998,20538.259999999998,"TEMA DEFINIDO NO GUIA DE CONHECIMENTOS DA ANTT - EIXO TEMÁTICO/GRUPO DE CONHECIMENTO: DESENVOLVIMENTO INSTITUCIONAL/GESTÃO ESTRATÉGICA"]
["PROCESSO ADMINISTRATIVO FEDERAL","UNIEDUCAR INTELIGÊNCIA EDUCACIONAL LTDA","05.569.970/0001-26",140,"2020-08-31","2020-09-29","NO PAÍS","FLAVIA KLUPPEL CARRARA WOUTERS","SEM CUSTOS DE INSCRIÇÃO - GRATUITO",0,0,18125.43,18125.43,"TEMA DEFINIDO NO GUIA DE CONHECIMENTOS DA ANTT - EIXO TEMÁTICO/GRUPO DE CONHECIMENTO: GOVERNANÇA CORPORATIVA /ATOS,/PROCESSOS E PROCEDIMENTOS/ADMINISTRATIVOS"]
["GESTÃO DE TRÂNSITO","ABBA CURSOS","32.802.528/0001-70",140,"2020-08-31","2020-09-29","NO PAÍS","GUILHERME SCHMIDT","SEM CUSTOS DE INSCRIÇÃO - GRATUITO",0,0,10506.18,10506.18,"TEMA DEFINIDO NO GUIA DE CONHECIMENTOS DA ANTT - EIXO TEMÁTICO/GRUPO DE CONHECIMENTO: FISCALIZAÇÃO/TRANSPORTE DE PASSAGEIROS"]
["ATUALIZAÇÃO JURÍDICA - DIREITO ADMINISTRATIVO – AGÊNCIAS REGULADORAS E EXECUTIVAS","UNIEDUCAR INTELIGÊNCIA EDUCACIONAL LTDA","05.569.970/0001-26",140,"2020-08-31","2020-09-29","NO PAÍS","JOAO BATISTA KOSLYK","SEM CUSTOS DE INSCRIÇÃO - GRATUITO",0,0,10506.18,10506.18,"TEMA DEFINIDO NO GUIA DE CONHECIMENTOS DA ANTT - EIXO TEMÁTICO/GRUPO DE CONHECIMENTO: REGULAÇÃO/DESENVOLVIMENTO DA REGULAÇÃO"]
["LIDERANÇA - COMPORTAMENTO ORGANIZACIONAL","INSTITUTO TRIBUTÁRIO DE ENSINO À DISTÂNCIA","07.163.191/0001-51",140,"2020-08-31","2020-09-29","NO PAÍS","ZONIR ALVIRA FLORES","SEM CUSTOS DE INSCRIÇÃO - GRATUITO",0,0,10506.18,10506.18,"TEMA DEFINIDO NO GUIA DE CONHECIMENTOS DA ANTT - EIXO TEMÁTICO/GRUPO DE CONHECIMENTO: DESENVOLVIMENTO INSTITUCIONAL/GESTÃO DE PESSOAS"]
["ATUALIZAÇÃO JURÍDICA - DIREITO ADMINISTRATIVO - LEGISLAÇÃO DE INTELIGÊNCIA","UNIEDUCAR INTELIGÊNCIA EDUCACIONAL LTDA","05.569.970/0001-26",140,"2020-08-31","2020-10-29","NO PAÍS","DALTON DA SILVA NEIVA","SEM CUSTOS DE INSCRIÇÃO - GRATUITO",0,0,35098.18,35098.18,"TEMA DEFINIDO NO GUIA DE CONHECIMENTOS DA ANTT - EIXO TEMÁTICO/GRUPO DE CONHECIMENTO: FISCALIZAÇÃO/DESENVOLVIMENTO DA FISCALIZAÇÃO "]
["DIREITO ADMINISTRATIVO E PRINCÍPIOS DA ADMINISTRAÇÃO PÚBLICA","UNIEDUCAR INTELIGÊNCIA EDUCACIONAL LTDA","05.569.970/0001-26",260,"2020-08-31","2020-10-29","NO PAÍS","MARCO JUN BORGES","SEM CUSTOS DE INSCRIÇÃO - GRATUITO",0,0,19980.88,19980.88,"TEMA DEFINIDO NO GUIA DE CONHECIMENTOS DA ANTT - EIXO TEMÁTICO/GRUPO DE CONHECIMENTO: GOVERNANÇA CORPORATIVA/ATOS/ATOS, PROCESSOS E PROCEDIMENTOS ADMINISTRATIVOS"]
["CÓDIGO DE TRÂNSITO BRASILEIRO – CTB - ENTENDENDO A LEI DO MOTORISTA PROFISSIONAL - LEI Nº 13.103/2015 - ENTENDENDO A LEI DO MOTORISTA PROFISSIONAL - LEI Nº 13.103/2015 - CÁLCULO DO FRETE - CUSTOS OPERACIONAIS DO TRANSPORTE DE CARGAS - A PRECIFICAÇÃO NO TRANSPORTE RODOVIÁRIO DE CARGAS","SEST SENAT","73.419.630/001-47",138,"2020-09-15","2020-10-14","NO PAÍS","EDSON SEIJI YASSUNAGA","SEM CUSTOS DE INSCRIÇÃO - GRATUITO",0,0,9990.44,9990.44,"REGULAÇÃO / FISCALIZAÇÃO/ PDP: AMPLIAR O CONHECIMENTO TÉCNICO NA ÁREA DE TRANSPORTES TERRESTRES A FIM DE BUSCAR AS MELHORES PRÁTICAS EM REGULAÇÃO, FISCALIZAÇÃO E GESTÃO."]
["LEITURA DINÂMICA","UNIEDUCAR INTELIGÊNCIA EDUCACIONAL LTDA","05.569.970/0001-26",150,"2020-09-15","2020-10-14","NO PAÍS","VANESSA DA SILVA SANTOS","SEM CUSTOS DE INSCRIÇÃO - GRATUITO",0,0,20538.259999999998,20538.259999999998,"TEMA DEFINIDO NO GUIA DE CONHECIMENTOS DA ANTT - EIXO TEMÁTICO/GRUPO DE CONHECIMENTO: DESENVOLVIMENTO INSTITUCIONAL/COMUNICAÇÃO"]
["PROGRAMA DE DESENVOLVIMENTO GERENCIAL - PDG 2020 - TURMA 2 - SUPERVISÃO DE LÍDER COACH 1","HOMERO REIS CONSULTORIA E GESTÃO EMPRESARIAL LTDA","07.131.596/0001-08",2,"2020-09-17","2020-09-17","NO PAÍS","ALAN JOSE DA SILVA","CONTRATAÇÃO",155.41999999999999,0,"NÃO SE APLICA",155.41999999999999,"DESENVOLVER NOS COORDENADORES DE PROCESSOS ORGANIZACIONAIS AS COMPETÊNCIAS QUE FORAM TRABALHADAS NOS GESTORES ESTRATÉGICOS DA ANTT."]
["PROGRAMA DE DESENVOLVIMENTO GERENCIAL - PDG 2020 - TURMA 2 - SUPERVISÃO DE LÍDER COACH 1","HOMERO REIS CONSULTORIA E GESTÃO EMPRESARIAL LTDA","07.131.596/0001-08",2,"2020-09-17","2020-09-17","NO PAÍS","ALESSANDRA CAIXETA SILVA PRADO","CONTRATAÇÃO",155.41999999999999,0,"NÃO SE APLICA",155.41999999999999,"DESENVOLVER NOS COORDENADORES DE PROCESSOS ORGANIZACIONAIS AS COMPETÊNCIAS QUE FORAM TRABALHADAS NOS GESTORES ESTRATÉGICOS DA ANTT."]
["PROGRAMA DE DESENVOLVIMENTO GERENCIAL - PDG 2020 - TURMA 2 - SUPERVISÃO DE LÍDER COACH 1","HOMERO REIS CONSULTORIA E GESTÃO EMPRESARIAL LTDA","07.131.596/0001-08",2,"2020-09-17","2020-09-17","NO PAÍS","ANDRE RICARDO RODRIGUES","CONTRATAÇÃO",155.41999999999999,0,"NÃO SE APLICA",155.41999999999999,"DESENVOLVER NOS COORDENADORES DE PROCESSOS ORGANIZACIONAIS AS COMPETÊNCIAS QUE FORAM TRABALHADAS NOS GESTORES ESTRATÉGICOS DA ANTT."]
["PROGRAMA DE DESENVOLVIMENTO GERENCIAL - PDG 2020 - TURMA 2 - SUPERVISÃO DE LÍDER COACH 1","HOMERO REIS CONSULTORIA E GESTÃO EMPRESARIAL LTDA","07.131.596/0001-08",2,"2020-09-17","2020-09-17","NO PAÍS","ISABELA SOARES MACHADO REICHERT","CONTRATAÇÃO",155.41999999999999,0,"NÃO SE APLICA",155.41999999999999,"DESENVOLVER NOS COORDENADORES DE PROCESSOS ORGANIZACIONAIS AS COMPETÊNCIAS QUE FORAM TRABALHADAS NOS GESTORES ESTRATÉGICOS DA ANTT."]
["PROGRAMA DE DESENVOLVIMENTO GERENCIAL - PDG 2020 - TURMA 2 - SUPERVISÃO DE LÍDER COACH 1","HOMERO REIS CONSULTORIA E GESTÃO EMPRESARIAL LTDA","07.131.596/0001-08",2,"2020-09-17","2020-09-17","NO PAÍS","KALIANE WILMA CAVALCANTE DE LIRA","CONTRATAÇÃO",155.41999999999999,0,"NÃO SE APLICA",155.41999999999999,"DESENVOLVER NOS COORDENADORES DE PROCESSOS ORGANIZACIONAIS AS COMPETÊNCIAS QUE FORAM TRABALHADAS NOS GESTORES ESTRATÉGICOS DA ANTT."]
["PROGRAMA DE DESENVOLVIMENTO GERENCIAL - PDG 2020 - TURMA 2 - SUPERVISÃO DE LÍDER COACH 1","HOMERO REIS CONSULTORIA E GESTÃO EMPRESARIAL LTDA","07.131.596/0001-08",2,"2020-09-17","2020-09-17","NO PAÍS","LEILANE MORAIS ALCÂNTARA","CONTRATAÇÃO",155.41999999999999,0,"NÃO SE APLICA",155.41999999999999,"DESENVOLVER NOS COORDENADORES DE PROCESSOS ORGANIZACIONAIS AS COMPETÊNCIAS QUE FORAM TRABALHADAS NOS GESTORES ESTRATÉGICOS DA ANTT."]
["PROGRAMA DE DESENVOLVIMENTO GERENCIAL - PDG 2020 - TURMA 2 - SUPERVISÃO DE LÍDER COACH 1","HOMERO REIS CONSULTORIA E GESTÃO EMPRESARIAL LTDA","07.131.596/0001-08",2,"2020-09-17","2020-09-17","NO PAÍS","LETICIA ARAUJO SILVA VENSON","CONTRATAÇÃO",155.41999999999999,0,"NÃO SE APLICA",155.41999999999999,"DESENVOLVER NOS COORDENADORES DE PROCESSOS ORGANIZACIONAIS AS COMPETÊNCIAS QUE FORAM TRABALHADAS NOS GESTORES ESTRATÉGICOS DA ANTT."]
["PROGRAMA DE DESENVOLVIMENTO GERENCIAL - PDG 2020 - TURMA 2 - SUPERVISÃO DE LÍDER COACH 1","HOMERO REIS CONSULTORIA E GESTÃO EMPRESARIAL LTDA","07.131.596/0001-08",2,"2020-09-17","2020-09-17","NO PAÍS","LEVINA APARECIDA MACHADO SILVA","CONTRATAÇÃO",155.41999999999999,0,"NÃO SE APLICA",155.41999999999999,"DESENVOLVER NOS COORDENADORES DE PROCESSOS ORGANIZACIONAIS AS COMPETÊNCIAS QUE FORAM TRABALHADAS NOS GESTORES ESTRATÉGICOS DA ANTT."]
["PROGRAMA DE DESENVOLVIMENTO GERENCIAL - PDG 2020 - TURMA 2 - SUPERVISÃO DE LÍDER COACH 1","HOMERO REIS CONSULTORIA E GESTÃO EMPRESARIAL LTDA","07.131.596/0001-08",2,"2020-09-17","2020-09-17","NO PAÍS","LIGIA MARIA DE OLIVEIRA BARROS","CONTRATAÇÃO",155.41999999999999,0,"NÃO SE APLICA",155.41999999999999,"DESENVOLVER NOS COORDENADORES DE PROCESSOS ORGANIZACIONAIS AS COMPETÊNCIAS QUE FORAM TRABALHADAS NOS GESTORES ESTRATÉGICOS DA ANTT."]
["PROGRAMA DE DESENVOLVIMENTO GERENCIAL - PDG 2020 - TURMA 2 - SUPERVISÃO DE LÍDER COACH 1","HOMERO REIS CONSULTORIA E GESTÃO EMPRESARIAL LTDA","07.131.596/0001-08",2,"2020-09-17","2020-09-17","NO PAÍS","MARCIA LIKA MON-MA","CONTRATAÇÃO",155.41999999999999,0,"NÃO SE APLICA",155.41999999999999,"DESENVOLVER NOS COORDENADORES DE PROCESSOS ORGANIZACIONAIS AS COMPETÊNCIAS QUE FORAM TRABALHADAS NOS GESTORES ESTRATÉGICOS DA ANTT."]
["PROGRAMA DE DESENVOLVIMENTO GERENCIAL - PDG 2020 - TURMA 2 - SUPERVISÃO DE LÍDER COACH 1","HOMERO REIS CONSULTORIA E GESTÃO EMPRESARIAL LTDA","07.131.596/0001-08",2,"2020-09-17","2020-09-17","NO PAÍS","MARCUS VINICIUS DE ABREU SOUZA VASCONCELLOS","CONTRATAÇÃO",155.41999999999999,0,"NÃO SE APLICA",155.41999999999999,"DESENVOLVER NOS COORDENADORES DE PROCESSOS ORGANIZACIONAIS AS COMPETÊNCIAS QUE FORAM TRABALHADAS NOS GESTORES ESTRATÉGICOS DA ANTT."]
["PROGRAMA DE DESENVOLVIMENTO GERENCIAL - PDG 2020 - TURMA 2 - SUPERVISÃO DE LÍDER COACH 1","HOMERO REIS CONSULTORIA E GESTÃO EMPRESARIAL LTDA","07.131.596/0001-08",2,"2020-09-17","2020-09-17","NO PAÍS","MARNE LIEGGIO JUNIOR","CONTRATAÇÃO",155.41999999999999,0,"NÃO SE APLICA",155.41999999999999,"DESENVOLVER NOS COORDENADORES DE PROCESSOS ORGANIZACIONAIS AS COMPETÊNCIAS QUE FORAM TRABALHADAS NOS GESTORES ESTRATÉGICOS DA ANTT."]
["PROGRAMA DE DESENVOLVIMENTO GERENCIAL - PDG 2020 - TURMA 2 - SUPERVISÃO DE LÍDER COACH 1","HOMERO REIS CONSULTORIA E GESTÃO EMPRESARIAL LTDA","07.131.596/0001-08",2,"2020-09-17","2020-09-17","NO PAÍS","MAURO RODRIGUES SANJAD","CONTRATAÇÃO",155.41999999999999,0,"NÃO SE APLICA",155.41999999999999,"DESENVOLVER NOS COORDENADORES DE PROCESSOS ORGANIZACIONAIS AS COMPETÊNCIAS QUE FORAM TRABALHADAS NOS GESTORES ESTRATÉGICOS DA ANTT."]
["PROGRAMA DE DESENVOLVIMENTO GERENCIAL - PDG 2020 - TURMA 2 - SUPERVISÃO DE LÍDER COACH 1","HOMERO REIS CONSULTORIA E GESTÃO EMPRESARIAL LTDA","07.131.596/0001-08",2,"2020-09-17","2020-09-17","NO PAÍS","MILENA MARA NARANJO FLORES","CONTRATAÇÃO",155.41999999999999,0,"NÃO SE APLICA",155.41999999999999,"DESENVOLVER NOS COORDENADORES DE PROCESSOS ORGANIZACIONAIS AS COMPETÊNCIAS QUE FORAM TRABALHADAS NOS GESTORES ESTRATÉGICOS DA ANTT."]
["PROGRAMA DE DESENVOLVIMENTO GERENCIAL - PDG 2020 - TURMA 2 - SUPERVISÃO DE LÍDER COACH 1","HOMERO REIS CONSULTORIA E GESTÃO EMPRESARIAL LTDA","07.131.596/0001-08",2,"2020-09-17","2020-09-17","NO PAÍS","NARA KOHLSDORF","CONTRATAÇÃO",155.41999999999999,0,"NÃO SE APLICA",155.41999999999999,"DESENVOLVER NOS COORDENADORES DE PROCESSOS ORGANIZACIONAIS AS COMPETÊNCIAS QUE FORAM TRABALHADAS NOS GESTORES ESTRATÉGICOS DA ANTT."]
["PROGRAMA DE DESENVOLVIMENTO GERENCIAL - PDG 2020 - TURMA 2 - SUPERVISÃO DE LÍDER COACH 1","HOMERO REIS CONSULTORIA E GESTÃO EMPRESARIAL LTDA","07.131.596/0001-08",2,"2020-09-17","2020-09-17","NO PAÍS","NILTON DE MELO VIEIRA","CONTRATAÇÃO",155.41999999999999,0,"NÃO SE APLICA",155.41999999999999,"DESENVOLVER NOS COORDENADORES DE PROCESSOS ORGANIZACIONAIS AS COMPETÊNCIAS QUE FORAM TRABALHADAS NOS GESTORES ESTRATÉGICOS DA ANTT."]
["PROGRAMA DE DESENVOLVIMENTO GERENCIAL - PDG 2020 - TURMA 2 - SUPERVISÃO DE LÍDER COACH 1","HOMERO REIS CONSULTORIA E GESTÃO EMPRESARIAL LTDA","07.131.596/0001-08",2,"2020-09-17","2020-09-17","NO PAÍS","PATRICIA CALDAS MONTEIRO","CONTRATAÇÃO",155.41,0,"NÃO SE APLICA",155.41,"DESENVOLVER NOS COORDENADORES DE PROCESSOS ORGANIZACIONAIS AS COMPETÊNCIAS QUE FORAM TRABALHADAS NOS GESTORES ESTRATÉGICOS DA ANTT."]
["PROGRAMA DE DESENVOLVIMENTO GERENCIAL - PDG 2020 - TURMA 2 - SUPERVISÃO DE LÍDER COACH 1","HOMERO REIS CONSULTORIA E GESTÃO EMPRESARIAL LTDA","07.131.596/0001-08",2,"2020-09-17","2020-09-17","NO PAÍS","PAULO RICARDO ARAUJO DE ORNELAS MENDES","CONTRATAÇÃO",155.41,0,"NÃO SE APLICA",155.41,"DESENVOLVER NOS COORDENADORES DE PROCESSOS ORGANIZACIONAIS AS COMPETÊNCIAS QUE FORAM TRABALHADAS NOS GESTORES ESTRATÉGICOS DA ANTT."]
["PROGRAMA DE DESENVOLVIMENTO GERENCIAL - PDG 2020 - TURMA 2 - SUPERVISÃO DE LÍDER COACH 1","HOMERO REIS CONSULTORIA E GESTÃO EMPRESARIAL LTDA","07.131.596/0001-08",2,"2020-09-17","2020-09-17","NO PAÍS","RACHEL PEDREIRA DALLAGNOL        ","CONTRATAÇÃO",155.41,0,"NÃO SE APLICA",155.41,"DESENVOLVER NOS COORDENADORES DE PROCESSOS ORGANIZACIONAIS AS COMPETÊNCIAS QUE FORAM TRABALHADAS NOS GESTORES ESTRATÉGICOS DA ANTT."]
["PROGRAMA DE DESENVOLVIMENTO GERENCIAL - PDG 2020 - TURMA 2 - SUPERVISÃO DE LÍDER COACH 1","HOMERO REIS CONSULTORIA E GESTÃO EMPRESARIAL LTDA","07.131.596/0001-08",2,"2020-09-17","2020-09-17","NO PAÍS","ROBERTA NEGRAO COSTA WACHHOLZ","CONTRATAÇÃO",155.41,0,"NÃO SE APLICA",155.41,"DESENVOLVER NOS COORDENADORES DE PROCESSOS ORGANIZACIONAIS AS COMPETÊNCIAS QUE FORAM TRABALHADAS NOS GESTORES ESTRATÉGICOS DA ANTT."]
["PROGRAMA DE DESENVOLVIMENTO GERENCIAL - PDG 2020 - TURMA 2 - SUPERVISÃO DE LÍDER COACH 1","HOMERO REIS CONSULTORIA E GESTÃO EMPRESARIAL LTDA","07.131.596/0001-08",2,"2020-09-17","2020-09-17","NO PAÍS","RODRIGO BARROS BRANDAO SOARES","CONTRATAÇÃO",155.41,0,"NÃO SE APLICA",155.41,"DESENVOLVER NOS COORDENADORES DE PROCESSOS ORGANIZACIONAIS AS COMPETÊNCIAS QUE FORAM TRABALHADAS NOS GESTORES ESTRATÉGICOS DA ANTT."]
["PROGRAMA DE DESENVOLVIMENTO GERENCIAL - PDG 2020 - TURMA 2 - SUPERVISÃO DE LÍDER COACH 1","HOMERO REIS CONSULTORIA E GESTÃO EMPRESARIAL LTDA","07.131.596/0001-08",2,"2020-09-17","2020-09-17","NO PAÍS","THAIS NOBRE SUNDFELD LIMA MARTINS","CONTRATAÇÃO",155.41,0,"NÃO SE APLICA",155.41,"DESENVOLVER NOS COORDENADORES DE PROCESSOS ORGANIZACIONAIS AS COMPETÊNCIAS QUE FORAM TRABALHADAS NOS GESTORES ESTRATÉGICOS DA ANTT."]
["PROGRAMA DE DESENVOLVIMENTO GERENCIAL - PDG 2020 - TURMA 2 - SUPERVISÃO DE LÍDER COACH 1","HOMERO REIS CONSULTORIA E GESTÃO EMPRESARIAL LTDA","07.131.596/0001-08",2,"2020-09-17","2020-09-17","NO PAÍS","VANESSA DA SILVA SANTOS","CONTRATAÇÃO",155.41,0,"NÃO SE APLICA",155.41,"DESENVOLVER NOS COORDENADORES DE PROCESSOS ORGANIZACIONAIS AS COMPETÊNCIAS QUE FORAM TRABALHADAS NOS GESTORES ESTRATÉGICOS DA ANTT."]
["PROGRAMA DE DESENVOLVIMENTO GERENCIAL - PDG 2020 - TURMA 2 - SUPERVISÃO DE LÍDER COACH 1","HOMERO REIS CONSULTORIA E GESTÃO EMPRESARIAL LTDA","07.131.596/0001-08",2,"2020-09-17","2020-09-17","NO PAÍS","VICTOR FERREIRA SOARES","CONTRATAÇÃO",155.41,0,"NÃO SE APLICA",155.41,"DESENVOLVER NOS COORDENADORES DE PROCESSOS ORGANIZACIONAIS AS COMPETÊNCIAS QUE FORAM TRABALHADAS NOS GESTORES ESTRATÉGICOS DA ANTT."]
["PROGRAMA DE DESENVOLVIMENTO GERENCIAL - PDG 2020 - TURMA 2 - WORKSHOP 3","HOMERO REIS CONSULTORIA E GESTÃO EMPRESARIAL LTDA","07.131.596/0001-08",4,"2020-09-23","2020-09-25","NO PAÍS","ALAN JOSE DA SILVA","CONTRATAÇÃO",385.17,0,"NÃO SE APLICA",385.17,"DESENVOLVER NOS COORDENADORES DE PROCESSOS ORGANIZACIONAIS AS COMPETÊNCIAS QUE FORAM TRABALHADAS NOS GESTORES ESTRATÉGICOS DA ANTT."]
["PROGRAMA DE DESENVOLVIMENTO GERENCIAL - PDG 2020 - TURMA 2 - WORKSHOP 3","HOMERO REIS CONSULTORIA E GESTÃO EMPRESARIAL LTDA","07.131.596/0001-08",4,"2020-09-23","2020-09-25","NO PAÍS","ALESSANDRA CAIXETA SILVA PRADO","CONTRATAÇÃO",385.17,0,"NÃO SE APLICA",385.17,"DESENVOLVER NOS COORDENADORES DE PROCESSOS ORGANIZACIONAIS AS COMPETÊNCIAS QUE FORAM TRABALHADAS NOS GESTORES ESTRATÉGICOS DA ANTT."]
["PROGRAMA DE DESENVOLVIMENTO GERENCIAL - PDG 2020 - TURMA 2 - WORKSHOP 3","HOMERO REIS CONSULTORIA E GESTÃO EMPRESARIAL LTDA","07.131.596/0001-08",4,"2020-09-23","2020-09-25","NO PAÍS","ANDRE RICARDO RODRIGUES","CONTRATAÇÃO",385.17,0,"NÃO SE APLICA",385.17,"DESENVOLVER NOS COORDENADORES DE PROCESSOS ORGANIZACIONAIS AS COMPETÊNCIAS QUE FORAM TRABALHADAS NOS GESTORES ESTRATÉGICOS DA ANTT."]
["PROGRAMA DE DESENVOLVIMENTO GERENCIAL - PDG 2020 - TURMA 2 - WORKSHOP 3","HOMERO REIS CONSULTORIA E GESTÃO EMPRESARIAL LTDA","07.131.596/0001-08",4,"2020-09-23","2020-09-25","NO PAÍS","CLAUBER SANTOS CAMPELLO","CONTRATAÇÃO",385.17,0,"NÃO SE APLICA",385.17,"DESENVOLVER NOS COORDENADORES DE PROCESSOS ORGANIZACIONAIS AS COMPETÊNCIAS QUE FORAM TRABALHADAS NOS GESTORES ESTRATÉGICOS DA ANTT."]
["PROGRAMA DE DESENVOLVIMENTO GERENCIAL - PDG 2020 - TURMA 2 - WORKSHOP 3","HOMERO REIS CONSULTORIA E GESTÃO EMPRESARIAL LTDA","07.131.596/0001-08",4,"2020-09-23","2020-09-25","NO PAÍS","ISABELA SOARES MACHADO REICHERT","CONTRATAÇÃO",385.17,0,"NÃO SE APLICA",385.17,"DESENVOLVER NOS COORDENADORES DE PROCESSOS ORGANIZACIONAIS AS COMPETÊNCIAS QUE FORAM TRABALHADAS NOS GESTORES ESTRATÉGICOS DA ANTT."]
["PROGRAMA DE DESENVOLVIMENTO GERENCIAL - PDG 2020 - TURMA 2 - WORKSHOP 3","HOMERO REIS CONSULTORIA E GESTÃO EMPRESARIAL LTDA","07.131.596/0001-08",4,"2020-09-23","2020-09-25","NO PAÍS","LEILANE MORAIS ALCÂNTARA","CONTRATAÇÃO",385.17,0,"NÃO SE APLICA",385.17,"DESENVOLVER NOS COORDENADORES DE PROCESSOS ORGANIZACIONAIS AS COMPETÊNCIAS QUE FORAM TRABALHADAS NOS GESTORES ESTRATÉGICOS DA ANTT."]
["PROGRAMA DE DESENVOLVIMENTO GERENCIAL - PDG 2020 - TURMA 2 - WORKSHOP 3","HOMERO REIS CONSULTORIA E GESTÃO EMPRESARIAL LTDA","07.131.596/0001-08",4,"2020-09-23","2020-09-25","NO PAÍS","LEVINA APARECIDA MACHADO SILVA","CONTRATAÇÃO",385.17,0,"NÃO SE APLICA",385.17,"DESENVOLVER NOS COORDENADORES DE PROCESSOS ORGANIZACIONAIS AS COMPETÊNCIAS QUE FORAM TRABALHADAS NOS GESTORES ESTRATÉGICOS DA ANTT."]
["PROGRAMA DE DESENVOLVIMENTO GERENCIAL - PDG 2020 - TURMA 2 - WORKSHOP 3","HOMERO REIS CONSULTORIA E GESTÃO EMPRESARIAL LTDA","07.131.596/0001-08",4,"2020-09-23","2020-09-25","NO PAÍS","LIGIA MARIA DE OLIVEIRA BARROS","CONTRATAÇÃO",385.16,0,"NÃO SE APLICA",385.16,"DESENVOLVER NOS COORDENADORES DE PROCESSOS ORGANIZACIONAIS AS COMPETÊNCIAS QUE FORAM TRABALHADAS NOS GESTORES ESTRATÉGICOS DA ANTT."]
["PROGRAMA DE DESENVOLVIMENTO GERENCIAL - PDG 2020 - TURMA 2 - WORKSHOP 3","HOMERO REIS CONSULTORIA E GESTÃO EMPRESARIAL LTDA","07.131.596/0001-08",4,"2020-09-23","2020-09-25","NO PAÍS","MARCIA LIKA MON-MA","CONTRATAÇÃO",385.16,0,"NÃO SE APLICA",385.16,"DESENVOLVER NOS COORDENADORES DE PROCESSOS ORGANIZACIONAIS AS COMPETÊNCIAS QUE FORAM TRABALHADAS NOS GESTORES ESTRATÉGICOS DA ANTT."]
["PROGRAMA DE DESENVOLVIMENTO GERENCIAL - PDG 2020 - TURMA 2 - WORKSHOP 3","HOMERO REIS CONSULTORIA E GESTÃO EMPRESARIAL LTDA","07.131.596/0001-08",4,"2020-09-23","2020-09-25","NO PAÍS","MARCUS VINICIUS DE ABREU SOUZA VASCONCELLOS","CONTRATAÇÃO",385.16,0,"NÃO SE APLICA",385.16,"DESENVOLVER NOS COORDENADORES DE PROCESSOS ORGANIZACIONAIS AS COMPETÊNCIAS QUE FORAM TRABALHADAS NOS GESTORES ESTRATÉGICOS DA ANTT."]
["PROGRAMA DE DESENVOLVIMENTO GERENCIAL - PDG 2020 - TURMA 2 - WORKSHOP 3","HOMERO REIS CONSULTORIA E GESTÃO EMPRESARIAL LTDA","07.131.596/0001-08",4,"2020-09-23","2020-09-25","NO PAÍS","MARNE LIEGGIO JUNIOR","CONTRATAÇÃO",385.16,0,"NÃO SE APLICA",385.16,"DESENVOLVER NOS COORDENADORES DE PROCESSOS ORGANIZACIONAIS AS COMPETÊNCIAS QUE FORAM TRABALHADAS NOS GESTORES ESTRATÉGICOS DA ANTT."]
["PROGRAMA DE DESENVOLVIMENTO GERENCIAL - PDG 2020 - TURMA 2 - WORKSHOP 3","HOMERO REIS CONSULTORIA E GESTÃO EMPRESARIAL LTDA","07.131.596/0001-08",4,"2020-09-23","2020-09-25","NO PAÍS","MAURO RODRIGUES SANJAD","CONTRATAÇÃO",385.16,0,"NÃO SE APLICA",385.16,"DESENVOLVER NOS COORDENADORES DE PROCESSOS ORGANIZACIONAIS AS COMPETÊNCIAS QUE FORAM TRABALHADAS NOS GESTORES ESTRATÉGICOS DA ANTT."]
["PROGRAMA DE DESENVOLVIMENTO GERENCIAL - PDG 2020 - TURMA 2 - WORKSHOP 3","HOMERO REIS CONSULTORIA E GESTÃO EMPRESARIAL LTDA","07.131.596/0001-08",4,"2020-09-23","2020-09-25","NO PAÍS","MILENA MARA NARANJO FLORES","CONTRATAÇÃO",385.16,0,"NÃO SE APLICA",385.16,"DESENVOLVER NOS COORDENADORES DE PROCESSOS ORGANIZACIONAIS AS COMPETÊNCIAS QUE FORAM TRABALHADAS NOS GESTORES ESTRATÉGICOS DA ANTT."]
["PROGRAMA DE DESENVOLVIMENTO GERENCIAL - PDG 2020 - TURMA 2 - WORKSHOP 3","HOMERO REIS CONSULTORIA E GESTÃO EMPRESARIAL LTDA","07.131.596/0001-08",4,"2020-09-23","2020-09-25","NO PAÍS","NARA KOHLSDORF","CONTRATAÇÃO",385.16,0,"NÃO SE APLICA",385.16,"DESENVOLVER NOS COORDENADORES DE PROCESSOS ORGANIZACIONAIS AS COMPETÊNCIAS QUE FORAM TRABALHADAS NOS GESTORES ESTRATÉGICOS DA ANTT."]
["PROGRAMA DE DESENVOLVIMENTO GERENCIAL - PDG 2020 - TURMA 2 - WORKSHOP 3","HOMERO REIS CONSULTORIA E GESTÃO EMPRESARIAL LTDA","07.131.596/0001-08",4,"2020-09-23","2020-09-25","NO PAÍS","NILTON DE MELO VIEIRA","CONTRATAÇÃO",385.16,0,"NÃO SE APLICA",385.16,"DESENVOLVER NOS COORDENADORES DE PROCESSOS ORGANIZACIONAIS AS COMPETÊNCIAS QUE FORAM TRABALHADAS NOS GESTORES ESTRATÉGICOS DA ANTT."]
["PROGRAMA DE DESENVOLVIMENTO GERENCIAL - PDG 2020 - TURMA 2 - WORKSHOP 3","HOMERO REIS CONSULTORIA E GESTÃO EMPRESARIAL LTDA","07.131.596/0001-08",4,"2020-09-23","2020-09-25","NO PAÍS","PATRICIA CALDAS MONTEIRO","CONTRATAÇÃO",385.16,0,"NÃO SE APLICA",385.16,"DESENVOLVER NOS COORDENADORES DE PROCESSOS ORGANIZACIONAIS AS COMPETÊNCIAS QUE FORAM TRABALHADAS NOS GESTORES ESTRATÉGICOS DA ANTT."]
["PROGRAMA DE DESENVOLVIMENTO GERENCIAL - PDG 2020 - TURMA 2 - WORKSHOP 3","HOMERO REIS CONSULTORIA E GESTÃO EMPRESARIAL LTDA","07.131.596/0001-08",4,"2020-09-23","2020-09-25","NO PAÍS","PAULO RICARDO ARAUJO DE ORNELAS MENDES","CONTRATAÇÃO",385.16,0,"NÃO SE APLICA",385.16,"DESENVOLVER NOS COORDENADORES DE PROCESSOS ORGANIZACIONAIS AS COMPETÊNCIAS QUE FORAM TRABALHADAS NOS GESTORES ESTRATÉGICOS DA ANTT."]
["PROGRAMA DE DESENVOLVIMENTO GERENCIAL - PDG 2020 - TURMA 2 - WORKSHOP 3","HOMERO REIS CONSULTORIA E GESTÃO EMPRESARIAL LTDA","07.131.596/0001-08",4,"2020-09-23","2020-09-25","NO PAÍS","RACHEL PEDREIRA DALLAGNOL        ","CONTRATAÇÃO",385.16,0,"NÃO SE APLICA",385.16,"DESENVOLVER NOS COORDENADORES DE PROCESSOS ORGANIZACIONAIS AS COMPETÊNCIAS QUE FORAM TRABALHADAS NOS GESTORES ESTRATÉGICOS DA ANTT."]
["PROGRAMA DE DESENVOLVIMENTO GERENCIAL - PDG 2020 - TURMA 2 - WORKSHOP 3","HOMERO REIS CONSULTORIA E GESTÃO EMPRESARIAL LTDA","07.131.596/0001-08",4,"2020-09-23","2020-09-25","NO PAÍS","ROBERTA NEGRAO COSTA WACHHOLZ","CONTRATAÇÃO",385.16,0,"NÃO SE APLICA",385.16,"DESENVOLVER NOS COORDENADORES DE PROCESSOS ORGANIZACIONAIS AS COMPETÊNCIAS QUE FORAM TRABALHADAS NOS GESTORES ESTRATÉGICOS DA ANTT."]
["PROGRAMA DE DESENVOLVIMENTO GERENCIAL - PDG 2020 - TURMA 2 - WORKSHOP 3","HOMERO REIS CONSULTORIA E GESTÃO EMPRESARIAL LTDA","07.131.596/0001-08",4,"2020-09-23","2020-09-25","NO PAÍS","RODRIGO BARROS BRANDAO SOARES","CONTRATAÇÃO",385.16,0,"NÃO SE APLICA",385.16,"DESENVOLVER NOS COORDENADORES DE PROCESSOS ORGANIZACIONAIS AS COMPETÊNCIAS QUE FORAM TRABALHADAS NOS GESTORES ESTRATÉGICOS DA ANTT."]
["PROGRAMA DE DESENVOLVIMENTO GERENCIAL - PDG 2020 - TURMA 2 - WORKSHOP 3","HOMERO REIS CONSULTORIA E GESTÃO EMPRESARIAL LTDA","07.131.596/0001-08",4,"2020-09-23","2020-09-25","NO PAÍS","THAIS NOBRE SUNDFELD LIMA MARTINS","CONTRATAÇÃO",385.16,0,"NÃO SE APLICA",385.16,"DESENVOLVER NOS COORDENADORES DE PROCESSOS ORGANIZACIONAIS AS COMPETÊNCIAS QUE FORAM TRABALHADAS NOS GESTORES ESTRATÉGICOS DA ANTT."]
["PROGRAMA DE DESENVOLVIMENTO GERENCIAL - PDG 2020 - TURMA 2 - WORKSHOP 3","HOMERO REIS CONSULTORIA E GESTÃO EMPRESARIAL LTDA","07.131.596/0001-08",4,"2020-09-23","2020-09-25","NO PAÍS","VANESSA DA SILVA SANTOS","CONTRATAÇÃO",385.16,0,"NÃO SE APLICA",385.16,"DESENVOLVER NOS COORDENADORES DE PROCESSOS ORGANIZACIONAIS AS COMPETÊNCIAS QUE FORAM TRABALHADAS NOS GESTORES ESTRATÉGICOS DA ANTT."]
["PROGRAMA DE DESENVOLVIMENTO GERENCIAL - PDG 2020 - TURMA 2 - WORKSHOP 3","HOMERO REIS CONSULTORIA E GESTÃO EMPRESARIAL LTDA","07.131.596/0001-08",4,"2020-09-23","2020-09-25","NO PAÍS","VICTOR FERREIRA SOARES","CONTRATAÇÃO",385.16,0,"NÃO SE APLICA",385.16,"DESENVOLVER NOS COORDENADORES DE PROCESSOS ORGANIZACIONAIS AS COMPETÊNCIAS QUE FORAM TRABALHADAS NOS GESTORES ESTRATÉGICOS DA ANTT."]
["DIREITO DO CONSUMIDOR","GRUPO INTRA DE ENSINO E PESQUISA A DISTÂNCIA LTDA","07.163.191/0001-51",120,"2020-09-30","2020-10-15","NO PAÍS","TIAGO ARAUJO DE OLIVEIRA","SEM CUSTOS DE INSCRIÇÃO - GRATUITO",0,0,5253.09,5253.09,"TEMA DEFINIDO NO GUIA DE CONHECIMENTOS DA ANTT - EIXO TEMÁTICO/GRUPO DE CONHECIMENTO: GOVERNANÇA CORPORATIVA/ATOS/PROCESSOS E PROCEDIMENTOS ADMINISTRATIVOS/ÉTICA E CORREIÇÃO"]
["INTELIGÊNCIA ESTRATÉGICA","POTESTATEM TECNOLOGIA, SERVICOS E EDUCACAO LTDA"," 19.543.624/0001-83",150,"2020-09-30","2020-10-29","NO PAÍS","ALEXANDRE MUNÕZ LOPES DE OLIVEIRA","SEM CUSTOS DE INSCRIÇÃO - GRATUITO",0,0,21036.46,21036.46,"TEMA DEFINIDO NO GUIA DE CONHECIMENTOS DA ANTT - EIXO TEMÁTICO/GRUPO DE CONHECIMENTO: DESENVOLVIMENTO INSTITUCIONAL/GESTÃO ESTRATÉGICA"]
["LOGÍSTICA - GESTÃO DE RISCO - SEGUROS - RASTREAMENTO E MONITORAMENTO","UNIEDUCAR INTELIGÊNCIA EDUCACIONAL LTDA","05.569.970/0001-26",160,"2020-09-30","2020-10-29","NO PAÍS","ANTONIO ALACIR NORONHA MOREIRA","SEM CUSTOS DE INSCRIÇÃO - GRATUITO",0,0,10243.99,10243.99,"TEMA DEFINIDO NO GUIA DE CONHECIMENTOS DA ANTT - EIXO TEMÁTICO/GRUPO DE CONHECIMENTO: FISCALIZAÇÃO/TRANSPORTE DE CARGAS"]
["ATUALIZAÇÃO JURÍDICA – DIREITO ADMINISTRATIVO - ATO ADMINISTRATIVO - LEI 9.784/99","UNIEDUCAR INTELIGÊNCIA EDUCACIONAL LTDA","05.569.970/0001-26",80,"2020-09-30","2020-10-29","NO PAÍS","DANIEL RICARDO LEMOS LINDER","SEM CUSTOS DE INSCRIÇÃO - GRATUITO",0,0,19541.88,19541.88,"TEMA DEFINIDO NO GUIA DE CONHECIMENTOS DA ANTT - EIXO TEMÁTICO/GRUPO DE CONHECIMENTO: GOVERNANÇA CORPORATIVA/ATOS, PROCESSOS E PROCEDIMENTOS ADMINISTRATIVOS"]
["APERFEIÇOAMENTO EM  DIREITO ADMINISTRATIVO","METROPOLITAN EDUCACAO LTDA"," 13.411.192/0001-70",180,"2020-09-30","2020-10-29","NO PAÍS","EDNARDO MENDES FIGUEIREDO","SEM CUSTOS DE INSCRIÇÃO - GRATUITO",0,0,10506.18,10506.18,"TEMA DEFINIDO NO GUIA DE CONHECIMENTOS DA ANTT - EIXO TEMÁTICO/GRUPO DE CONHECIMENTO: FISCALIZAÇÃO/TRANSPORTE DE PASSAGEIROS"]
["APERFEIÇOAMENTO EM  DIREITO ADMINISTRATIVO","METROPOLITAN EDUCACAO LTDA"," 13.411.192/0001-70",180,"2020-09-30","2020-10-29","NO PAÍS","EDNARDO MENDES FIGUEIREDO","SEM CUSTOS DE INSCRIÇÃO - GRATUITO",0,0,10506.18,10506.18,"FISCALIZAÇÃO/TRANSPORTE DE PASSAGEIROS/ PDP: APROFUNDAR CONHECIMENTOS SOBRE O DIREITO DAS AGÊNCIAS REGULADORAS"]
["GERENCIAMENTO DE CONTRATAÇÕES E RISCOS EM PROJETOS","FUNDAÇÃO BRASILEIRA DE EDUCAÇÃO - FUBRAE","34.170.472/0004-57",150,"2020-09-30","2020-10-29","NO PAÍS","EUGENIO JOSE SARAIVA CAMARA COSTA","SEM CUSTOS DE INSCRIÇÃO - GRATUITO",0,0,17549.09,17549.09,"TEMA DEFINIDO NO GUIA DE CONHECIMENTOS DA ANTT - EIXO TEMÁTICO/GRUPO DE CONHECIMENTO: DESENVOLVIMENTO INSTITUCIONAL/MODELOS DE GESTÃO"]
["ENGENHARIA DE ESTRADAS E RODOVIAS","METROPOLITAN EDUCACAO LTDA"," 13.411.192/0001-70",180,"2020-09-30","2020-10-29","NO PAÍS","HUGO LEONARDO ALVES","SEM CUSTOS DE INSCRIÇÃO - GRATUITO",0,0,10506.18,10506.18,"TEMA DEFINIDO NO GUIA DE CONHECIMENTOS DA ANTT - EIXO TEMÁTICO/GRUPO DE CONHECIMENTO: FISCALIZAÇÃO/RODOVIAS"]
["INTRODUÇÃO À FISCALIZAÇÃO DE TRANSPORTE COLETIVO DE PASSAGEIROS","ANGELITA ALVES DE OLIVEIRA COSTA","32.802.528/0001-70",140,"2020-09-30","2020-10-29","NO PAÍS","JOSE MARIA CSISZER","SEM CUSTOS DE INSCRIÇÃO - GRATUITO",0,0,9990.44,9990.44,"FISCALIZAÇÃO/DESENVOLVIMENTO DA FISCALIZAÇÃO"]
["PROGRAMA DE DESENVOLVIMENTO GERENCIAL - PDG 2020 - TURMA 2 - WORKSHOP 4","HOMERO REIS CONSULTORIA E GESTÃO EMPRESARIAL LTDA","07.131.596/0001-08",4,"2020-10-06","2020-10-08","NO PAÍS","ALAN JOSE DA SILVA","CONTRATAÇÃO",385.17,0,0,385.17,"DESENVOLVER NOS COORDENADORES DE PROCESSOS ORGANIZACIONAIS AS COMPETÊNCIAS QUE FORAM TRABALHADAS NOS GESTORES ESTRATÉGICOS DA ANTT."]
["PROGRAMA DE DESENVOLVIMENTO GERENCIAL - PDG 2020 - TURMA 2 - WORKSHOP 4","HOMERO REIS CONSULTORIA E GESTÃO EMPRESARIAL LTDA","07.131.596/0001-08",4,"2020-10-06","2020-10-08","NO PAÍS","ALESSANDRA CAIXETA SILVA PRADO","CONTRATAÇÃO",385.17,0,0,385.17,"DESENVOLVER NOS COORDENADORES DE PROCESSOS ORGANIZACIONAIS AS COMPETÊNCIAS QUE FORAM TRABALHADAS NOS GESTORES ESTRATÉGICOS DA ANTT."]
["PROGRAMA DE DESENVOLVIMENTO GERENCIAL - PDG 2020 - TURMA 2 - WORKSHOP 4","HOMERO REIS CONSULTORIA E GESTÃO EMPRESARIAL LTDA","07.131.596/0001-08",4,"2020-10-06","2020-10-08","NO PAÍS","ANDRE RICARDO RODRIGUES","CONTRATAÇÃO",385.17,0,0,385.17,"DESENVOLVER NOS COORDENADORES DE PROCESSOS ORGANIZACIONAIS AS COMPETÊNCIAS QUE FORAM TRABALHADAS NOS GESTORES ESTRATÉGICOS DA ANTT."]
["PROGRAMA DE DESENVOLVIMENTO GERENCIAL - PDG 2020 - TURMA 2 - WORKSHOP 4","HOMERO REIS CONSULTORIA E GESTÃO EMPRESARIAL LTDA","07.131.596/0001-08",4,"2020-10-06","2020-10-08","NO PAÍS","CLAUBER SANTOS CAMPELLO","CONTRATAÇÃO",385.17,0,0,385.17,"DESENVOLVER NOS COORDENADORES DE PROCESSOS ORGANIZACIONAIS AS COMPETÊNCIAS QUE FORAM TRABALHADAS NOS GESTORES ESTRATÉGICOS DA ANTT."]
["PROGRAMA DE DESENVOLVIMENTO GERENCIAL - PDG 2020 - TURMA 2 - WORKSHOP 4","HOMERO REIS CONSULTORIA E GESTÃO EMPRESARIAL LTDA","07.131.596/0001-08",4,"2020-10-06","2020-10-08","NO PAÍS","LEILANE MORAIS ALCÂNTARA","CONTRATAÇÃO",385.17,0,0,385.17,"DESENVOLVER NOS COORDENADORES DE PROCESSOS ORGANIZACIONAIS AS COMPETÊNCIAS QUE FORAM TRABALHADAS NOS GESTORES ESTRATÉGICOS DA ANTT."]
["PROGRAMA DE DESENVOLVIMENTO GERENCIAL - PDG 2020 - TURMA 2 - WORKSHOP 4","HOMERO REIS CONSULTORIA E GESTÃO EMPRESARIAL LTDA","07.131.596/0001-08",4,"2020-10-06","2020-10-08","NO PAÍS","LETICIA ARAUJO SILVA VENSON","CONTRATAÇÃO",385.17,0,0,385.17,"DESENVOLVER NOS COORDENADORES DE PROCESSOS ORGANIZACIONAIS AS COMPETÊNCIAS QUE FORAM TRABALHADAS NOS GESTORES ESTRATÉGICOS DA ANTT."]
["PROGRAMA DE DESENVOLVIMENTO GERENCIAL - PDG 2020 - TURMA 2 - WORKSHOP 4","HOMERO REIS CONSULTORIA E GESTÃO EMPRESARIAL LTDA","07.131.596/0001-08",4,"2020-10-06","2020-10-08","NO PAÍS","LEVINA APARECIDA MACHADO SILVA","CONTRATAÇÃO",385.17,0,0,385.17,"DESENVOLVER NOS COORDENADORES DE PROCESSOS ORGANIZACIONAIS AS COMPETÊNCIAS QUE FORAM TRABALHADAS NOS GESTORES ESTRATÉGICOS DA ANTT."]
["PROGRAMA DE DESENVOLVIMENTO GERENCIAL - PDG 2020 - TURMA 2 - WORKSHOP 4","HOMERO REIS CONSULTORIA E GESTÃO EMPRESARIAL LTDA","07.131.596/0001-08",4,"2020-10-06","2020-10-08","NO PAÍS","LIGIA MARIA DE OLIVEIRA BARROS","CONTRATAÇÃO",385.16,0,0,385.16,"DESENVOLVER NOS COORDENADORES DE PROCESSOS ORGANIZACIONAIS AS COMPETÊNCIAS QUE FORAM TRABALHADAS NOS GESTORES ESTRATÉGICOS DA ANTT."]
["PROGRAMA DE DESENVOLVIMENTO GERENCIAL - PDG 2020 - TURMA 2 - WORKSHOP 4","HOMERO REIS CONSULTORIA E GESTÃO EMPRESARIAL LTDA","07.131.596/0001-08",4,"2020-10-06","2020-10-08","NO PAÍS","MARCIA LIKA MON-MA","CONTRATAÇÃO",385.16,0,0,385.16,"DESENVOLVER NOS COORDENADORES DE PROCESSOS ORGANIZACIONAIS AS COMPETÊNCIAS QUE FORAM TRABALHADAS NOS GESTORES ESTRATÉGICOS DA ANTT."]
["PROGRAMA DE DESENVOLVIMENTO GERENCIAL - PDG 2020 - TURMA 2 - WORKSHOP 4","HOMERO REIS CONSULTORIA E GESTÃO EMPRESARIAL LTDA","07.131.596/0001-08",4,"2020-10-06","2020-10-08","NO PAÍS","MARCUS VINICIUS DE ABREU SOUZA VASCONCELLOS","CONTRATAÇÃO",385.16,0,0,385.16,"DESENVOLVER NOS COORDENADORES DE PROCESSOS ORGANIZACIONAIS AS COMPETÊNCIAS QUE FORAM TRABALHADAS NOS GESTORES ESTRATÉGICOS DA ANTT."]
["PROGRAMA DE DESENVOLVIMENTO GERENCIAL - PDG 2020 - TURMA 2 - WORKSHOP 4","HOMERO REIS CONSULTORIA E GESTÃO EMPRESARIAL LTDA","07.131.596/0001-08",4,"2020-10-06","2020-10-08","NO PAÍS","MARNE LIEGGIO JUNIOR","CONTRATAÇÃO",385.16,0,0,385.16,"DESENVOLVER NOS COORDENADORES DE PROCESSOS ORGANIZACIONAIS AS COMPETÊNCIAS QUE FORAM TRABALHADAS NOS GESTORES ESTRATÉGICOS DA ANTT."]
["PROGRAMA DE DESENVOLVIMENTO GERENCIAL - PDG 2020 - TURMA 2 - WORKSHOP 4","HOMERO REIS CONSULTORIA E GESTÃO EMPRESARIAL LTDA","07.131.596/0001-08",4,"2020-10-06","2020-10-08","NO PAÍS","MAURO RODRIGUES SANJAD","CONTRATAÇÃO",385.16,0,0,385.16,"DESENVOLVER NOS COORDENADORES DE PROCESSOS ORGANIZACIONAIS AS COMPETÊNCIAS QUE FORAM TRABALHADAS NOS GESTORES ESTRATÉGICOS DA ANTT."]
["PROGRAMA DE DESENVOLVIMENTO GERENCIAL - PDG 2020 - TURMA 2 - WORKSHOP 4","HOMERO REIS CONSULTORIA E GESTÃO EMPRESARIAL LTDA","07.131.596/0001-08",4,"2020-10-06","2020-10-08","NO PAÍS","MILENA MARA NARANJO FLORES","CONTRATAÇÃO",385.16,0,0,385.16,"DESENVOLVER NOS COORDENADORES DE PROCESSOS ORGANIZACIONAIS AS COMPETÊNCIAS QUE FORAM TRABALHADAS NOS GESTORES ESTRATÉGICOS DA ANTT."]
["PROGRAMA DE DESENVOLVIMENTO GERENCIAL - PDG 2020 - TURMA 2 - WORKSHOP 4","HOMERO REIS CONSULTORIA E GESTÃO EMPRESARIAL LTDA","07.131.596/0001-08",4,"2020-10-06","2020-10-08","NO PAÍS","NARA KOHLSDORF","CONTRATAÇÃO",385.16,0,0,385.16,"DESENVOLVER NOS COORDENADORES DE PROCESSOS ORGANIZACIONAIS AS COMPETÊNCIAS QUE FORAM TRABALHADAS NOS GESTORES ESTRATÉGICOS DA ANTT."]
["PROGRAMA DE DESENVOLVIMENTO GERENCIAL - PDG 2020 - TURMA 2 - WORKSHOP 4","HOMERO REIS CONSULTORIA E GESTÃO EMPRESARIAL LTDA","07.131.596/0001-08",4,"2020-10-06","2020-10-08","NO PAÍS","NILTON DE MELO VIEIRA","CONTRATAÇÃO",385.16,0,0,385.16,"DESENVOLVER NOS COORDENADORES DE PROCESSOS ORGANIZACIONAIS AS COMPETÊNCIAS QUE FORAM TRABALHADAS NOS GESTORES ESTRATÉGICOS DA ANTT."]
["PROGRAMA DE DESENVOLVIMENTO GERENCIAL - PDG 2020 - TURMA 2 - WORKSHOP 4","HOMERO REIS CONSULTORIA E GESTÃO EMPRESARIAL LTDA","07.131.596/0001-08",4,"2020-10-06","2020-10-08","NO PAÍS","PATRICIA CALDAS MONTEIRO","CONTRATAÇÃO",385.16,0,0,385.16,"DESENVOLVER NOS COORDENADORES DE PROCESSOS ORGANIZACIONAIS AS COMPETÊNCIAS QUE FORAM TRABALHADAS NOS GESTORES ESTRATÉGICOS DA ANTT."]
["PROGRAMA DE DESENVOLVIMENTO GERENCIAL - PDG 2020 - TURMA 2 - WORKSHOP 4","HOMERO REIS CONSULTORIA E GESTÃO EMPRESARIAL LTDA","07.131.596/0001-08",4,"2020-10-06","2020-10-08","NO PAÍS","PAULO RICARDO ARAUJO DE ORNELAS MENDES","CONTRATAÇÃO",385.16,0,0,385.16,"DESENVOLVER NOS COORDENADORES DE PROCESSOS ORGANIZACIONAIS AS COMPETÊNCIAS QUE FORAM TRABALHADAS NOS GESTORES ESTRATÉGICOS DA ANTT."]
["PROGRAMA DE DESENVOLVIMENTO GERENCIAL - PDG 2020 - TURMA 2 - WORKSHOP 4","HOMERO REIS CONSULTORIA E GESTÃO EMPRESARIAL LTDA","07.131.596/0001-08",4,"2020-10-06","2020-10-08","NO PAÍS","RACHEL PEDREIRA DALLAGNOL        ","CONTRATAÇÃO",385.16,0,0,385.16,"DESENVOLVER NOS COORDENADORES DE PROCESSOS ORGANIZACIONAIS AS COMPETÊNCIAS QUE FORAM TRABALHADAS NOS GESTORES ESTRATÉGICOS DA ANTT."]
["PROGRAMA DE DESENVOLVIMENTO GERENCIAL - PDG 2020 - TURMA 2 - WORKSHOP 4","HOMERO REIS CONSULTORIA E GESTÃO EMPRESARIAL LTDA","07.131.596/0001-08",4,"2020-10-06","2020-10-08","NO PAÍS","ROBERTA NEGRAO COSTA WACHHOLZ","CONTRATAÇÃO",385.16,0,0,385.16,"DESENVOLVER NOS COORDENADORES DE PROCESSOS ORGANIZACIONAIS AS COMPETÊNCIAS QUE FORAM TRABALHADAS NOS GESTORES ESTRATÉGICOS DA ANTT."]
["PROGRAMA DE DESENVOLVIMENTO GERENCIAL - PDG 2020 - TURMA 2 - WORKSHOP 4","HOMERO REIS CONSULTORIA E GESTÃO EMPRESARIAL LTDA","07.131.596/0001-08",4,"2020-10-06","2020-10-08","NO PAÍS","RODRIGO BARROS BRANDAO SOARES","CONTRATAÇÃO",385.16,0,0,385.16,"DESENVOLVER NOS COORDENADORES DE PROCESSOS ORGANIZACIONAIS AS COMPETÊNCIAS QUE FORAM TRABALHADAS NOS GESTORES ESTRATÉGICOS DA ANTT."]
["PROGRAMA DE DESENVOLVIMENTO GERENCIAL - PDG 2020 - TURMA 2 - WORKSHOP 4","HOMERO REIS CONSULTORIA E GESTÃO EMPRESARIAL LTDA","07.131.596/0001-08",4,"2020-10-06","2020-10-08","NO PAÍS","THAIS NOBRE SUNDFELD LIMA MARTINS","CONTRATAÇÃO",385.16,0,0,385.16,"DESENVOLVER NOS COORDENADORES DE PROCESSOS ORGANIZACIONAIS AS COMPETÊNCIAS QUE FORAM TRABALHADAS NOS GESTORES ESTRATÉGICOS DA ANTT."]
["PROGRAMA DE DESENVOLVIMENTO GERENCIAL - PDG 2020 - TURMA 2 - WORKSHOP 4","HOMERO REIS CONSULTORIA E GESTÃO EMPRESARIAL LTDA","07.131.596/0001-08",4,"2020-10-06","2020-10-08","NO PAÍS","VANESSA DA SILVA SANTOS","CONTRATAÇÃO",385.16,0,0,385.16,"DESENVOLVER NOS COORDENADORES DE PROCESSOS ORGANIZACIONAIS AS COMPETÊNCIAS QUE FORAM TRABALHADAS NOS GESTORES ESTRATÉGICOS DA ANTT."]
["PROGRAMA DE DESENVOLVIMENTO GERENCIAL - PDG 2020 - TURMA 2 - WORKSHOP 4","HOMERO REIS CONSULTORIA E GESTÃO EMPRESARIAL LTDA","07.131.596/0001-08",4,"2020-10-06","2020-10-08","NO PAÍS","VICTOR FERREIRA SOARES","CONTRATAÇÃO",385.16,0,0,385.16,"DESENVOLVER NOS COORDENADORES DE PROCESSOS ORGANIZACIONAIS AS COMPETÊNCIAS QUE FORAM TRABALHADAS NOS GESTORES ESTRATÉGICOS DA ANTT."]
["CURSO REGULATORY DELIVERY","FLORENCE SCHOOL OF REGULATION – FSR, (ESCOLA DE REGULAÇÃO DE FLORENÇA)","NÃO POSSUI",70,"2020-10-12","2020-11-29","NO PAÍS","CRISTIANO DELLA GIUSTINA","INSCRIÇÃO",2803.73,0,0,2803.73,"TROCA DE EXPERIÊNCIAS, FORTALECIMENTO DOS LAÇOS INTERINSTITUCIONAIS E APRENDIZADO DAS BOAS PRÁTICAS INTERNACIONAIS"]
["CURSO REGULATORY DELIVERY","FLORENCE SCHOOL OF REGULATION – FSR, (ESCOLA DE REGULAÇÃO DE FLORENÇA)","NÃO POSSUI",70,"2020-10-12","2020-11-29","NO PAÍS","DANIEL CHEDID PEREIRA JORDAO RAMOS        ","INSCRIÇÃO",2803.73,0,0,2803.73,"TROCA DE EXPERIÊNCIAS, FORTALECIMENTO DOS LAÇOS INTERINSTITUCIONAIS E APRENDIZADO DAS BOAS PRÁTICAS INTERNACIONAIS"]
["CURSO REGULATORY DELIVERY","FLORENCE SCHOOL OF REGULATION – FSR, (ESCOLA DE REGULAÇÃO DE FLORENÇA)","NÃO POSSUI",70,"2020-10-12","2020-11-29","NO PAÍS","JOSE EXPEDITO BRANDAO FILHO     ","INSCRIÇÃO",2803.72,0,0,2803.72,"TROCA DE EXPERIÊNCIAS, FORTALECIMENTO DOS LAÇOS INTERINSTITUCIONAIS E APRENDIZADO DAS BOAS PRÁTICAS INTERNACIONAIS"]
["CURSO REGULATORY DELIVERY","FLORENCE SCHOOL OF REGULATION – FSR, (ESCOLA DE REGULAÇÃO DE FLORENÇA)","NÃO POSSUI",70,"2020-10-12","2020-11-29","NO PAÍS","MYLENA MOREIRA DE ALENCASTRO COSTA","INSCRIÇÃO",2803.73,0,0,2803.73,"TROCA DE EXPERIÊNCIAS, FORTALECIMENTO DOS LAÇOS INTERINSTITUCIONAIS E APRENDIZADO DAS BOAS PRÁTICAS INTERNACIONAIS"]
["CURSO REGULATORY DELIVERY","FLORENCE SCHOOL OF REGULATION – FSR, (ESCOLA DE REGULAÇÃO DE FLORENÇA)","NÃO POSSUI",70,"2020-10-12","2020-11-29","NO PAÍS","PAULO HENRIQUE DA SILVA COSTA","INSCRIÇÃO",2803.73,0,0,2803.73,"TROCA DE EXPERIÊNCIAS, FORTALECIMENTO DOS LAÇOS INTERINSTITUCIONAIS E APRENDIZADO DAS BOAS PRÁTICAS INTERNACIONAIS"]
["CURSO REGULATORY DELIVERY","FLORENCE SCHOOL OF REGULATION – FSR, (ESCOLA DE REGULAÇÃO DE FLORENÇA)","NÃO POSSUI",70,"2020-10-12","2020-11-29","NO PAÍS","SERGIO DUARTE PALMEIRA ROSA","INSCRIÇÃO",2803.72,0,0,2803.72,"TROCA DE EXPERIÊNCIAS, FORTALECIMENTO DOS LAÇOS INTERINSTITUCIONAIS E APRENDIZADO DAS BOAS PRÁTICAS INTERNACIONAIS"]
["CURSO REGULATORY DELIVERY","FLORENCE SCHOOL OF REGULATION – FSR, (ESCOLA DE REGULAÇÃO DE FLORENÇA)","NÃO POSSUI",70,"2020-10-12","2020-11-29","NO PAÍS","THERTISON TEIXEIRA DE OLIVEIRA     ","INSCRIÇÃO",2803.72,0,0,2803.72,"TROCA DE EXPERIÊNCIAS, FORTALECIMENTO DOS LAÇOS INTERINSTITUCIONAIS E APRENDIZADO DAS BOAS PRÁTICAS INTERNACIONAIS"]
["CURSO REGULATORY DELIVERY","FLORENCE SCHOOL OF REGULATION – FSR, (ESCOLA DE REGULAÇÃO DE FLORENÇA)","NÃO POSSUI",70,"2020-10-12","2020-11-29","NO PAÍS","THIAGO DE CASTRO SOUSA","INSCRIÇÃO",2803.72,0,0,2803.72,"TROCA DE EXPERIÊNCIAS, FORTALECIMENTO DOS LAÇOS INTERINSTITUCIONAIS E APRENDIZADO DAS BOAS PRÁTICAS INTERNACIONAIS"]
["GESTÃO DE TRÂNSITO","ANGELITA ALVES DE OLIVEIRA COSTA","32.802.528/0001-70",80,"2020-10-15","2020-10-29","NO PAÍS","CALIXTO JOSE DE MORAES","SEM CUSTOS DE INSCRIÇÃO - GRATUITO",0,0,5253.09,5253.09,"TEMA DEFINIDO NO GUIA DE CONHECIMENTOS DA ANTT - EIXO TEMÁTICO/GRUPO DE CONHECIMENTO: FISCALIZAÇÃO/TRANSPORTE DE PASSAGEIROS "]
["DIREITO CONSTITUCIONAL ","METROPOLITAN EDUCACAO LTDA"," 13.411.192/0001-70",80,"2020-10-15","2020-10-29","NO PAÍS","LUCI ANNE TANGARI PEREIRA","SEM CUSTOS DE INSCRIÇÃO - GRATUITO",0,0,5253.09,5253.09,"TEMA DEFINIDO NO GUIA DE CONHECIMENTOS DA ANTT - EIXO TEMÁTICO/GRUPO DE CONHECIMENTO: FISCALIZAÇÃO"]
["TÉCNICAS DE COMUNICAÇÃO ESCRITA","UNIEDUCAR INTELIGÊNCIA EDUCACIONAL LTDA","05.569.970/0001-26",80,"2020-10-15","2020-10-29","NO PAÍS","SHEILA MOREIRA SALES","SEM CUSTOS DE INSCRIÇÃO - GRATUITO",0,0,9782.18,9782.18,"TEMA DEFINIDO NO GUIA DE CONHECIMENTOS DA ANTT - EIXO TEMÁTICO/GRUPO DE CONHECIMENTO: DESENVOLVIMENTO INSTITUCIONAL/GESTÃO DE PESSOAS "]
["GESTÃO E FISCALIZAÇÃO DE CONTRATOS ","CENTRO EDUCACIONAL DE DESENVOLVIMENTO PROFISSIONAL LTDA","18.182.849/0001-99",160,"2020-10-15","2020-11-13","NO PAÍS","FABIANA CARVALHO DA SILVA","SEM CUSTOS DE INSCRIÇÃO - GRATUITO",0,0,10506.18,10506.18,"TEMA DEFINIDO NO GUIA DE CONHECIMENTOS DA ANTT - EIXO TEMÁTICO/GRUPO DE CONHECIMENTO: DESENVOLVIMENTO INSTITUCIONAL/CONTRATAÇÃO E COOPERAÇÃO NO SERVIÇO PÚBLICO"]
["PROGRAMA DE DESENVOLVIMENTO GERENCIAL - PDG 2020 - TURMA 3 - WORKSHOP 1","HOMERO REIS CONSULTORIA E GESTÃO EMPRESARIAL LTDA","07.131.596/0001-08",4,"2020-10-21","2020-10-23","NO PAÍS","AMINADABE DOS SANTOS PIRES SOARES","CONTRATAÇÃO",354.35,0,0,354.35,"DESENVOLVER NOS COORDENADORES DE PROCESSOS ORGANIZACIONAIS AS COMPETÊNCIAS QUE FORAM TRABALHADAS NOS GESTORES ESTRATÉGICOS DA ANTT."]
["PROGRAMA DE DESENVOLVIMENTO GERENCIAL - PDG 2020 - TURMA 3 - WORKSHOP 1","HOMERO REIS CONSULTORIA E GESTÃO EMPRESARIAL LTDA","07.131.596/0001-08",4,"2020-10-21","2020-10-23","NO PAÍS","ANDRE BOTIN NASCIMENTO","CONTRATAÇÃO",354.35,0,0,354.35,"DESENVOLVER NOS COORDENADORES DE PROCESSOS ORGANIZACIONAIS AS COMPETÊNCIAS QUE FORAM TRABALHADAS NOS GESTORES ESTRATÉGICOS DA ANTT."]
["PROGRAMA DE DESENVOLVIMENTO GERENCIAL - PDG 2020 - TURMA 3 - WORKSHOP 1","HOMERO REIS CONSULTORIA E GESTÃO EMPRESARIAL LTDA","07.131.596/0001-08",4,"2020-10-21","2020-10-23","NO PAÍS","CLEIDES SILVA CAMPOS FONTENELE","CONTRATAÇÃO",354.35,0,0,354.35,"DESENVOLVER NOS COORDENADORES DE PROCESSOS ORGANIZACIONAIS AS COMPETÊNCIAS QUE FORAM TRABALHADAS NOS GESTORES ESTRATÉGICOS DA ANTT."]
["PROGRAMA DE DESENVOLVIMENTO GERENCIAL - PDG 2020 - TURMA 3 - WORKSHOP 1","HOMERO REIS CONSULTORIA E GESTÃO EMPRESARIAL LTDA","07.131.596/0001-08",4,"2020-10-21","2020-10-23","NO PAÍS","CRISTIANE SOUSA DE OLIVEIRA","CONTRATAÇÃO",354.35,0,0,354.35,"DESENVOLVER NOS COORDENADORES DE PROCESSOS ORGANIZACIONAIS AS COMPETÊNCIAS QUE FORAM TRABALHADAS NOS GESTORES ESTRATÉGICOS DA ANTT."]
["PROGRAMA DE DESENVOLVIMENTO GERENCIAL - PDG 2020 - TURMA 3 - WORKSHOP 1","HOMERO REIS CONSULTORIA E GESTÃO EMPRESARIAL LTDA","07.131.596/0001-08",4,"2020-10-21","2020-10-23","NO PAÍS","FELIPE BARBOSA FEIJO","CONTRATAÇÃO",354.35,0,0,354.35,"DESENVOLVER NOS COORDENADORES DE PROCESSOS ORGANIZACIONAIS AS COMPETÊNCIAS QUE FORAM TRABALHADAS NOS GESTORES ESTRATÉGICOS DA ANTT."]
["PROGRAMA DE DESENVOLVIMENTO GERENCIAL - PDG 2020 - TURMA 3 - WORKSHOP 1","HOMERO REIS CONSULTORIA E GESTÃO EMPRESARIAL LTDA","07.131.596/0001-08",4,"2020-10-21","2020-10-23","NO PAÍS","FERNANDO CARLOS PSARSKI CABRAL","CONTRATAÇÃO",354.35,0,0,354.35,"DESENVOLVER NOS COORDENADORES DE PROCESSOS ORGANIZACIONAIS AS COMPETÊNCIAS QUE FORAM TRABALHADAS NOS GESTORES ESTRATÉGICOS DA ANTT."]
["PROGRAMA DE DESENVOLVIMENTO GERENCIAL - PDG 2020 - TURMA 3 - WORKSHOP 1","HOMERO REIS CONSULTORIA E GESTÃO EMPRESARIAL LTDA","07.131.596/0001-08",4,"2020-10-21","2020-10-23","NO PAÍS","FERNANDO NUNES CARNEIRO RIOS         ","CONTRATAÇÃO",354.35,0,0,354.35,"DESENVOLVER NOS COORDENADORES DE PROCESSOS ORGANIZACIONAIS AS COMPETÊNCIAS QUE FORAM TRABALHADAS NOS GESTORES ESTRATÉGICOS DA ANTT."]
["PROGRAMA DE DESENVOLVIMENTO GERENCIAL - PDG 2020 - TURMA 3 - WORKSHOP 1","HOMERO REIS CONSULTORIA E GESTÃO EMPRESARIAL LTDA","07.131.596/0001-08",4,"2020-10-21","2020-10-23","NO PAÍS","FRANCISCA VERONICA JUCÁ DE MORAIS","CONTRATAÇÃO",354.35,0,0,354.35,"DESENVOLVER NOS COORDENADORES DE PROCESSOS ORGANIZACIONAIS AS COMPETÊNCIAS QUE FORAM TRABALHADAS NOS GESTORES ESTRATÉGICOS DA ANTT."]
["PROGRAMA DE DESENVOLVIMENTO GERENCIAL - PDG 2020 - TURMA 3 - WORKSHOP 1","HOMERO REIS CONSULTORIA E GESTÃO EMPRESARIAL LTDA","07.131.596/0001-08",4,"2020-10-21","2020-10-23","NO PAÍS","FREDERICO LUIZ VIEIRA","CONTRATAÇÃO",354.35,0,0,354.35,"DESENVOLVER NOS COORDENADORES DE PROCESSOS ORGANIZACIONAIS AS COMPETÊNCIAS QUE FORAM TRABALHADAS NOS GESTORES ESTRATÉGICOS DA ANTT."]
["PROGRAMA DE DESENVOLVIMENTO GERENCIAL - PDG 2020 - TURMA 3 - WORKSHOP 1","HOMERO REIS CONSULTORIA E GESTÃO EMPRESARIAL LTDA","07.131.596/0001-08",4,"2020-10-21","2020-10-23","NO PAÍS","GILBERTO JOSE TELLES FILHO","CONTRATAÇÃO",354.35,0,0,354.35,"DESENVOLVER NOS COORDENADORES DE PROCESSOS ORGANIZACIONAIS AS COMPETÊNCIAS QUE FORAM TRABALHADAS NOS GESTORES ESTRATÉGICOS DA ANTT."]
["PROGRAMA DE DESENVOLVIMENTO GERENCIAL - PDG 2020 - TURMA 3 - WORKSHOP 1","HOMERO REIS CONSULTORIA E GESTÃO EMPRESARIAL LTDA","07.131.596/0001-08",4,"2020-10-21","2020-10-23","NO PAÍS","HILDEVANA MEIRE DA SILVA ALMEIDA","CONTRATAÇÃO",354.35,0,0,354.35,"DESENVOLVER NOS COORDENADORES DE PROCESSOS ORGANIZACIONAIS AS COMPETÊNCIAS QUE FORAM TRABALHADAS NOS GESTORES ESTRATÉGICOS DA ANTT."]
["PROGRAMA DE DESENVOLVIMENTO GERENCIAL - PDG 2020 - TURMA 3 - WORKSHOP 1","HOMERO REIS CONSULTORIA E GESTÃO EMPRESARIAL LTDA","07.131.596/0001-08",4,"2020-10-21","2020-10-23","NO PAÍS","HUGO LEONARDO CUNHA RODRIGUES","CONTRATAÇÃO",354.35,0,0,354.35,"DESENVOLVER NOS COORDENADORES DE PROCESSOS ORGANIZACIONAIS AS COMPETÊNCIAS QUE FORAM TRABALHADAS NOS GESTORES ESTRATÉGICOS DA ANTT."]
["PROGRAMA DE DESENVOLVIMENTO GERENCIAL - PDG 2020 - TURMA 3 - WORKSHOP 1","HOMERO REIS CONSULTORIA E GESTÃO EMPRESARIAL LTDA","07.131.596/0001-08",4,"2020-10-21","2020-10-23","NO PAÍS","JOAO EMERSON LOPES DE SOUZA       ","CONTRATAÇÃO",354.35,0,0,354.35,"DESENVOLVER NOS COORDENADORES DE PROCESSOS ORGANIZACIONAIS AS COMPETÊNCIAS QUE FORAM TRABALHADAS NOS GESTORES ESTRATÉGICOS DA ANTT."]
["PROGRAMA DE DESENVOLVIMENTO GERENCIAL - PDG 2020 - TURMA 3 - WORKSHOP 1","HOMERO REIS CONSULTORIA E GESTÃO EMPRESARIAL LTDA","07.131.596/0001-08",4,"2020-10-21","2020-10-23","NO PAÍS","JULIANE FURTADO NOVAES","CONTRATAÇÃO",354.35,0,0,354.35,"DESENVOLVER NOS COORDENADORES DE PROCESSOS ORGANIZACIONAIS AS COMPETÊNCIAS QUE FORAM TRABALHADAS NOS GESTORES ESTRATÉGICOS DA ANTT."]
["PROGRAMA DE DESENVOLVIMENTO GERENCIAL - PDG 2020 - TURMA 3 - WORKSHOP 1","HOMERO REIS CONSULTORIA E GESTÃO EMPRESARIAL LTDA","07.131.596/0001-08",4,"2020-10-21","2020-10-23","NO PAÍS","LAURINDO SERGIO FILHO","CONTRATAÇÃO",354.35,0,0,354.35,"DESENVOLVER NOS COORDENADORES DE PROCESSOS ORGANIZACIONAIS AS COMPETÊNCIAS QUE FORAM TRABALHADAS NOS GESTORES ESTRATÉGICOS DA ANTT."]
["PROGRAMA DE DESENVOLVIMENTO GERENCIAL - PDG 2020 - TURMA 3 - WORKSHOP 1","HOMERO REIS CONSULTORIA E GESTÃO EMPRESARIAL LTDA","07.131.596/0001-08",4,"2020-10-21","2020-10-23","NO PAÍS","ORLEI DAMASIO SILVEIRA","CONTRATAÇÃO",354.35,0,0,354.35,"DESENVOLVER NOS COORDENADORES DE PROCESSOS ORGANIZACIONAIS AS COMPETÊNCIAS QUE FORAM TRABALHADAS NOS GESTORES ESTRATÉGICOS DA ANTT."]
["PROGRAMA DE DESENVOLVIMENTO GERENCIAL - PDG 2020 - TURMA 3 - WORKSHOP 1","HOMERO REIS CONSULTORIA E GESTÃO EMPRESARIAL LTDA","07.131.596/0001-08",4,"2020-10-21","2020-10-23","NO PAÍS","PEDRO MUGLIA","CONTRATAÇÃO",354.35,0,0,354.35,"DESENVOLVER NOS COORDENADORES DE PROCESSOS ORGANIZACIONAIS AS COMPETÊNCIAS QUE FORAM TRABALHADAS NOS GESTORES ESTRATÉGICOS DA ANTT."]
["PROGRAMA DE DESENVOLVIMENTO GERENCIAL - PDG 2020 - TURMA 3 - WORKSHOP 1","HOMERO REIS CONSULTORIA E GESTÃO EMPRESARIAL LTDA","07.131.596/0001-08",4,"2020-10-21","2020-10-23","NO PAÍS","RAFAELA GOMES DE SOUZA E SILVA","CONTRATAÇÃO",354.35,0,0,354.35,"DESENVOLVER NOS COORDENADORES DE PROCESSOS ORGANIZACIONAIS AS COMPETÊNCIAS QUE FORAM TRABALHADAS NOS GESTORES ESTRATÉGICOS DA ANTT."]
["PROGRAMA DE DESENVOLVIMENTO GERENCIAL - PDG 2020 - TURMA 3 - WORKSHOP 1","HOMERO REIS CONSULTORIA E GESTÃO EMPRESARIAL LTDA","07.131.596/0001-08",4,"2020-10-21","2020-10-23","NO PAÍS","RODRIGO MORETTI BRANCHINI          ","CONTRATAÇÃO",354.35,0,0,354.35,"DESENVOLVER NOS COORDENADORES DE PROCESSOS ORGANIZACIONAIS AS COMPETÊNCIAS QUE FORAM TRABALHADAS NOS GESTORES ESTRATÉGICOS DA ANTT."]
["PROGRAMA DE DESENVOLVIMENTO GERENCIAL - PDG 2020 - TURMA 3 - WORKSHOP 1","HOMERO REIS CONSULTORIA E GESTÃO EMPRESARIAL LTDA","07.131.596/0001-08",4,"2020-10-21","2020-10-23","NO PAÍS","RODRIGO PEREIRA DE CASTRO","CONTRATAÇÃO",354.35,0,0,354.35,"DESENVOLVER NOS COORDENADORES DE PROCESSOS ORGANIZACIONAIS AS COMPETÊNCIAS QUE FORAM TRABALHADAS NOS GESTORES ESTRATÉGICOS DA ANTT."]
["PROGRAMA DE DESENVOLVIMENTO GERENCIAL - PDG 2020 - TURMA 3 - WORKSHOP 1","HOMERO REIS CONSULTORIA E GESTÃO EMPRESARIAL LTDA","07.131.596/0001-08",4,"2020-10-21","2020-10-23","NO PAÍS","SERGIO AUGUSTO FERNANDES","CONTRATAÇÃO",354.35,0,0,354.35,"DESENVOLVER NOS COORDENADORES DE PROCESSOS ORGANIZACIONAIS AS COMPETÊNCIAS QUE FORAM TRABALHADAS NOS GESTORES ESTRATÉGICOS DA ANTT."]
["PROGRAMA DE DESENVOLVIMENTO GERENCIAL - PDG 2020 - TURMA 3 - WORKSHOP 1","HOMERO REIS CONSULTORIA E GESTÃO EMPRESARIAL LTDA","07.131.596/0001-08",4,"2020-10-21","2020-10-23","NO PAÍS","SIMONE LETTI BASTANI","CONTRATAÇÃO",354.35,0,0,354.35,"DESENVOLVER NOS COORDENADORES DE PROCESSOS ORGANIZACIONAIS AS COMPETÊNCIAS QUE FORAM TRABALHADAS NOS GESTORES ESTRATÉGICOS DA ANTT."]
["PROGRAMA DE DESENVOLVIMENTO GERENCIAL - PDG 2020 - TURMA 3 - WORKSHOP 1","HOMERO REIS CONSULTORIA E GESTÃO EMPRESARIAL LTDA","07.131.596/0001-08",4,"2020-10-21","2020-10-23","NO PAÍS","SIOMAR CARIBE DE OLIVEIRA","CONTRATAÇÃO",354.35,0,0,354.35,"DESENVOLVER NOS COORDENADORES DE PROCESSOS ORGANIZACIONAIS AS COMPETÊNCIAS QUE FORAM TRABALHADAS NOS GESTORES ESTRATÉGICOS DA ANTT."]
["PROGRAMA DE DESENVOLVIMENTO GERENCIAL - PDG 2020 - TURMA 3 - WORKSHOP 1","HOMERO REIS CONSULTORIA E GESTÃO EMPRESARIAL LTDA","07.131.596/0001-08",4,"2020-10-21","2020-10-23","NO PAÍS","SUSI ANE SUAREZ DA SILVA","CONTRATAÇÃO",354.35,0,0,354.35,"DESENVOLVER NOS COORDENADORES DE PROCESSOS ORGANIZACIONAIS AS COMPETÊNCIAS QUE FORAM TRABALHADAS NOS GESTORES ESTRATÉGICOS DA ANTT."]
["PROGRAMA DE DESENVOLVIMENTO GERENCIAL - PDG 2020 - TURMA 3 - WORKSHOP 1","HOMERO REIS CONSULTORIA E GESTÃO EMPRESARIAL LTDA","07.131.596/0001-08",4,"2020-10-21","2020-10-23","NO PAÍS","VINICIUS PEREIRA DE OLIVEIRA","CONTRATAÇÃO",354.35,0,0,354.35,"DESENVOLVER NOS COORDENADORES DE PROCESSOS ORGANIZACIONAIS AS COMPETÊNCIAS QUE FORAM TRABALHADAS NOS GESTORES ESTRATÉGICOS DA ANTT."]
["PALESTRA SEMANA DO SERVIDOR: SAÚDE EMOCIONAL E RESILIÊNCIA FAMILIAR EM TEMPOS DE PANDEMIA","ANA PAULA RABELO CHAVES","19.445.041/0001-10",1,"2020-10-22","2020-10-22","NO PAÍS","ALESSANDRA CAIXETA SILVA PRADO","CONTRATAÇÃO",8.93,0,"NÃO SE APLICA",8.93,"CAPACITAR E GERAR CONHECIMENTOS RELATIVOS À QUALIDADE DE VIDA NO TRABALHO"]
["PALESTRA SEMANA DO SERVIDOR: SAÚDE EMOCIONAL E RESILIÊNCIA FAMILIAR EM TEMPOS DE PANDEMIA","ANA PAULA RABELO CHAVES","19.445.041/0001-10",1,"2020-10-22","2020-10-22","NO PAÍS","ALOISIO GOMES CAIXETA","CONTRATAÇÃO",8.93,0,"NÃO SE APLICA",8.93,"CAPACITAR E GERAR CONHECIMENTOS RELATIVOS À QUALIDADE DE VIDA NO TRABALHO"]
["PALESTRA SEMANA DO SERVIDOR: SAÚDE EMOCIONAL E RESILIÊNCIA FAMILIAR EM TEMPOS DE PANDEMIA","ANA PAULA RABELO CHAVES","19.445.041/0001-10",1,"2020-10-22","2020-10-22","NO PAÍS","ANA CAROLINA MACEDO LUBCKE","CONTRATAÇÃO",8.93,0,"NÃO SE APLICA",8.93,"CAPACITAR E GERAR CONHECIMENTOS RELATIVOS À QUALIDADE DE VIDA NO TRABALHO"]
["PALESTRA SEMANA DO SERVIDOR: SAÚDE EMOCIONAL E RESILIÊNCIA FAMILIAR EM TEMPOS DE PANDEMIA","ANA PAULA RABELO CHAVES","19.445.041/0001-10",1,"2020-10-22","2020-10-22","NO PAÍS","ANA LORENA DE CAMPOS DUTRA","CONTRATAÇÃO",8.93,0,"NÃO SE APLICA",8.93,"CAPACITAR E GERAR CONHECIMENTOS RELATIVOS À QUALIDADE DE VIDA NO TRABALHO"]
["PALESTRA SEMANA DO SERVIDOR: SAÚDE EMOCIONAL E RESILIÊNCIA FAMILIAR EM TEMPOS DE PANDEMIA","ANA PAULA RABELO CHAVES","19.445.041/0001-10",1,"2020-10-22","2020-10-22","NO PAÍS","ANA PATRÍCIA DA SILVA DE BRITO ","CONTRATAÇÃO",8.93,0,"NÃO SE APLICA",8.93,"CAPACITAR E GERAR CONHECIMENTOS RELATIVOS À QUALIDADE DE VIDA NO TRABALHO"]
["PALESTRA SEMANA DO SERVIDOR: SAÚDE EMOCIONAL E RESILIÊNCIA FAMILIAR EM TEMPOS DE PANDEMIA","ANA PAULA RABELO CHAVES","19.445.041/0001-10",1,"2020-10-22","2020-10-22","NO PAÍS","ANDERSON GRAY FRAZZON PEREIRA        ","CONTRATAÇÃO",8.93,0,"NÃO SE APLICA",8.93,"CAPACITAR E GERAR CONHECIMENTOS RELATIVOS À QUALIDADE DE VIDA NO TRABALHO"]
["PALESTRA SEMANA DO SERVIDOR: SAÚDE EMOCIONAL E RESILIÊNCIA FAMILIAR EM TEMPOS DE PANDEMIA","ANA PAULA RABELO CHAVES","19.445.041/0001-10",1,"2020-10-22","2020-10-22","NO PAÍS","ANDRE BOTIN NASCIMENTO","CONTRATAÇÃO",8.93,0,"NÃO SE APLICA",8.93,"CAPACITAR E GERAR CONHECIMENTOS RELATIVOS À QUALIDADE DE VIDA NO TRABALHO"]
["PALESTRA SEMANA DO SERVIDOR: SAÚDE EMOCIONAL E RESILIÊNCIA FAMILIAR EM TEMPOS DE PANDEMIA","ANA PAULA RABELO CHAVES","19.445.041/0001-10",1,"2020-10-22","2020-10-22","NO PAÍS","ANDRE SOUSA RAMOS              ","CONTRATAÇÃO",8.93,0,"NÃO SE APLICA",8.93,"CAPACITAR E GERAR CONHECIMENTOS RELATIVOS À QUALIDADE DE VIDA NO TRABALHO"]
["PALESTRA SEMANA DO SERVIDOR: SAÚDE EMOCIONAL E RESILIÊNCIA FAMILIAR EM TEMPOS DE PANDEMIA","ANA PAULA RABELO CHAVES","19.445.041/0001-10",1,"2020-10-22","2020-10-22","NO PAÍS","CARLOS ANDRE CAMARGO","CONTRATAÇÃO",8.93,0,"NÃO SE APLICA",8.93,"CAPACITAR E GERAR CONHECIMENTOS RELATIVOS À QUALIDADE DE VIDA NO TRABALHO"]
["PALESTRA SEMANA DO SERVIDOR: SAÚDE EMOCIONAL E RESILIÊNCIA FAMILIAR EM TEMPOS DE PANDEMIA","ANA PAULA RABELO CHAVES","19.445.041/0001-10",1,"2020-10-22","2020-10-22","NO PAÍS","CARLOS HENRIQUE SILVA","CONTRATAÇÃO",8.93,0,"NÃO SE APLICA",8.93,"CAPACITAR E GERAR CONHECIMENTOS RELATIVOS À QUALIDADE DE VIDA NO TRABALHO"]
["PALESTRA SEMANA DO SERVIDOR: SAÚDE EMOCIONAL E RESILIÊNCIA FAMILIAR EM TEMPOS DE PANDEMIA","ANA PAULA RABELO CHAVES","19.445.041/0001-10",1,"2020-10-22","2020-10-22","NO PAÍS","CINTHIA SANTIAGO SOBREIRA","CONTRATAÇÃO",8.93,0,"NÃO SE APLICA",8.93,"CAPACITAR E GERAR CONHECIMENTOS RELATIVOS À QUALIDADE DE VIDA NO TRABALHO"]
["PALESTRA SEMANA DO SERVIDOR: SAÚDE EMOCIONAL E RESILIÊNCIA FAMILIAR EM TEMPOS DE PANDEMIA","ANA PAULA RABELO CHAVES","19.445.041/0001-10",1,"2020-10-22","2020-10-22","NO PAÍS","CLEMILSON FRAZAO DE OLIVEIRA","CONTRATAÇÃO",8.93,0,"NÃO SE APLICA",8.93,"CAPACITAR E GERAR CONHECIMENTOS RELATIVOS À QUALIDADE DE VIDA NO TRABALHO"]
["PALESTRA SEMANA DO SERVIDOR: SAÚDE EMOCIONAL E RESILIÊNCIA FAMILIAR EM TEMPOS DE PANDEMIA","ANA PAULA RABELO CHAVES","19.445.041/0001-10",1,"2020-10-22","2020-10-22","NO PAÍS","DANIEL ALFREDO ALVES MIGUEL   ","CONTRATAÇÃO",8.93,0,"NÃO SE APLICA",8.93,"CAPACITAR E GERAR CONHECIMENTOS RELATIVOS À QUALIDADE DE VIDA NO TRABALHO"]
["PALESTRA SEMANA DO SERVIDOR: SAÚDE EMOCIONAL E RESILIÊNCIA FAMILIAR EM TEMPOS DE PANDEMIA","ANA PAULA RABELO CHAVES","19.445.041/0001-10",1,"2020-10-22","2020-10-22","NO PAÍS","DANIEL PEREIRA COELHO","CONTRATAÇÃO",8.93,0,"NÃO SE APLICA",8.93,"CAPACITAR E GERAR CONHECIMENTOS RELATIVOS À QUALIDADE DE VIDA NO TRABALHO"]
["PALESTRA SEMANA DO SERVIDOR: SAÚDE EMOCIONAL E RESILIÊNCIA FAMILIAR EM TEMPOS DE PANDEMIA","ANA PAULA RABELO CHAVES","19.445.041/0001-10",1,"2020-10-22","2020-10-22","NO PAÍS","DANIEL VADO TORRAQUE","CONTRATAÇÃO",8.93,0,"NÃO SE APLICA",8.93,"CAPACITAR E GERAR CONHECIMENTOS RELATIVOS À QUALIDADE DE VIDA NO TRABALHO"]
["PALESTRA SEMANA DO SERVIDOR: SAÚDE EMOCIONAL E RESILIÊNCIA FAMILIAR EM TEMPOS DE PANDEMIA","ANA PAULA RABELO CHAVES","19.445.041/0001-10",1,"2020-10-22","2020-10-22","NO PAÍS","DORENICE DE FATIMA ABRANCHES MONTEIRO VERLY","CONTRATAÇÃO",8.93,0,"NÃO SE APLICA",8.93,"CAPACITAR E GERAR CONHECIMENTOS RELATIVOS À QUALIDADE DE VIDA NO TRABALHO"]
["PALESTRA SEMANA DO SERVIDOR: SAÚDE EMOCIONAL E RESILIÊNCIA FAMILIAR EM TEMPOS DE PANDEMIA","ANA PAULA RABELO CHAVES","19.445.041/0001-10",1,"2020-10-22","2020-10-22","NO PAÍS","EDSON LUIS QUADROS DA SILVA","CONTRATAÇÃO",8.93,0,"NÃO SE APLICA",8.93,"CAPACITAR E GERAR CONHECIMENTOS RELATIVOS À QUALIDADE DE VIDA NO TRABALHO"]
["PALESTRA SEMANA DO SERVIDOR: SAÚDE EMOCIONAL E RESILIÊNCIA FAMILIAR EM TEMPOS DE PANDEMIA","ANA PAULA RABELO CHAVES","19.445.041/0001-10",1,"2020-10-22","2020-10-22","NO PAÍS","FABIO YUKIO SUETUGO","CONTRATAÇÃO",8.93,0,"NÃO SE APLICA",8.93,"CAPACITAR E GERAR CONHECIMENTOS RELATIVOS À QUALIDADE DE VIDA NO TRABALHO"]
["PALESTRA SEMANA DO SERVIDOR: SAÚDE EMOCIONAL E RESILIÊNCIA FAMILIAR EM TEMPOS DE PANDEMIA","ANA PAULA RABELO CHAVES","19.445.041/0001-10",1,"2020-10-22","2020-10-22","NO PAÍS","FLAVIA PEIXOTO CABRAL","CONTRATAÇÃO",8.93,0,"NÃO SE APLICA",8.93,"CAPACITAR E GERAR CONHECIMENTOS RELATIVOS À QUALIDADE DE VIDA NO TRABALHO"]
["PALESTRA SEMANA DO SERVIDOR: SAÚDE EMOCIONAL E RESILIÊNCIA FAMILIAR EM TEMPOS DE PANDEMIA","ANA PAULA RABELO CHAVES","19.445.041/0001-10",1,"2020-10-22","2020-10-22","NO PAÍS","GERALDO RODRIGUES DA SILVA JUNIOR","CONTRATAÇÃO",8.93,0,"NÃO SE APLICA",8.93,"CAPACITAR E GERAR CONHECIMENTOS RELATIVOS À QUALIDADE DE VIDA NO TRABALHO"]
["PALESTRA SEMANA DO SERVIDOR: SAÚDE EMOCIONAL E RESILIÊNCIA FAMILIAR EM TEMPOS DE PANDEMIA","ANA PAULA RABELO CHAVES","19.445.041/0001-10",1,"2020-10-22","2020-10-22","NO PAÍS","GUSTAVO NUNES CRUZ","CONTRATAÇÃO",8.93,0,"NÃO SE APLICA",8.93,"CAPACITAR E GERAR CONHECIMENTOS RELATIVOS À QUALIDADE DE VIDA NO TRABALHO"]
["PALESTRA SEMANA DO SERVIDOR: SAÚDE EMOCIONAL E RESILIÊNCIA FAMILIAR EM TEMPOS DE PANDEMIA","ANA PAULA RABELO CHAVES","19.445.041/0001-10",1,"2020-10-22","2020-10-22","NO PAÍS","GUSTAVO RIBEIRO PIMENTEL","CONTRATAÇÃO",8.93,0,"NÃO SE APLICA",8.93,"CAPACITAR E GERAR CONHECIMENTOS RELATIVOS À QUALIDADE DE VIDA NO TRABALHO"]
["PALESTRA SEMANA DO SERVIDOR: SAÚDE EMOCIONAL E RESILIÊNCIA FAMILIAR EM TEMPOS DE PANDEMIA","ANA PAULA RABELO CHAVES","19.445.041/0001-10",1,"2020-10-22","2020-10-22","NO PAÍS","ISMAEL SOUZA SILVA","CONTRATAÇÃO",8.93,0,"NÃO SE APLICA",8.93,"CAPACITAR E GERAR CONHECIMENTOS RELATIVOS À QUALIDADE DE VIDA NO TRABALHO"]
["PALESTRA SEMANA DO SERVIDOR: SAÚDE EMOCIONAL E RESILIÊNCIA FAMILIAR EM TEMPOS DE PANDEMIA","ANA PAULA RABELO CHAVES","19.445.041/0001-10",1,"2020-10-22","2020-10-22","NO PAÍS","ITALO JOSE MENEZES MAIA","CONTRATAÇÃO",8.93,0,"NÃO SE APLICA",8.93,"CAPACITAR E GERAR CONHECIMENTOS RELATIVOS À QUALIDADE DE VIDA NO TRABALHO"]
["PALESTRA SEMANA DO SERVIDOR: SAÚDE EMOCIONAL E RESILIÊNCIA FAMILIAR EM TEMPOS DE PANDEMIA","ANA PAULA RABELO CHAVES","19.445.041/0001-10",1,"2020-10-22","2020-10-22","NO PAÍS","JOSE EDSON DE SENA JUNIOR","CONTRATAÇÃO",8.93,0,"NÃO SE APLICA",8.93,"CAPACITAR E GERAR CONHECIMENTOS RELATIVOS À QUALIDADE DE VIDA NO TRABALHO"]
["PALESTRA SEMANA DO SERVIDOR: SAÚDE EMOCIONAL E RESILIÊNCIA FAMILIAR EM TEMPOS DE PANDEMIA","ANA PAULA RABELO CHAVES","19.445.041/0001-10",1,"2020-10-22","2020-10-22","NO PAÍS","JULIANA MIRANDA CRUZ RIBEIRO","CONTRATAÇÃO",8.93,0,"NÃO SE APLICA",8.93,"CAPACITAR E GERAR CONHECIMENTOS RELATIVOS À QUALIDADE DE VIDA NO TRABALHO"]
["PALESTRA SEMANA DO SERVIDOR: SAÚDE EMOCIONAL E RESILIÊNCIA FAMILIAR EM TEMPOS DE PANDEMIA","ANA PAULA RABELO CHAVES","19.445.041/0001-10",1,"2020-10-22","2020-10-22","NO PAÍS","JULIANE FURTADO NOVAES","CONTRATAÇÃO",8.93,0,"NÃO SE APLICA",8.93,"CAPACITAR E GERAR CONHECIMENTOS RELATIVOS À QUALIDADE DE VIDA NO TRABALHO"]
["PALESTRA SEMANA DO SERVIDOR: SAÚDE EMOCIONAL E RESILIÊNCIA FAMILIAR EM TEMPOS DE PANDEMIA","ANA PAULA RABELO CHAVES","19.445.041/0001-10",1,"2020-10-22","2020-10-22","NO PAÍS","JULYCE ODILIA DE MATOS COSTA","CONTRATAÇÃO",8.93,0,"NÃO SE APLICA",8.93,"CAPACITAR E GERAR CONHECIMENTOS RELATIVOS À QUALIDADE DE VIDA NO TRABALHO"]
["PALESTRA SEMANA DO SERVIDOR: SAÚDE EMOCIONAL E RESILIÊNCIA FAMILIAR EM TEMPOS DE PANDEMIA","ANA PAULA RABELO CHAVES","19.445.041/0001-10",1,"2020-10-22","2020-10-22","NO PAÍS","KATIA VERONICA CAMELO DA SILVA FEITOSA","CONTRATAÇÃO",8.93,0,"NÃO SE APLICA",8.93,"CAPACITAR E GERAR CONHECIMENTOS RELATIVOS À QUALIDADE DE VIDA NO TRABALHO"]
["PALESTRA SEMANA DO SERVIDOR: SAÚDE EMOCIONAL E RESILIÊNCIA FAMILIAR EM TEMPOS DE PANDEMIA","ANA PAULA RABELO CHAVES","19.445.041/0001-10",1,"2020-10-22","2020-10-22","NO PAÍS","LETICIA MACHADO DANTAS","CONTRATAÇÃO",8.93,0,"NÃO SE APLICA",8.93,"CAPACITAR E GERAR CONHECIMENTOS RELATIVOS À QUALIDADE DE VIDA NO TRABALHO"]
["PALESTRA SEMANA DO SERVIDOR: SAÚDE EMOCIONAL E RESILIÊNCIA FAMILIAR EM TEMPOS DE PANDEMIA","ANA PAULA RABELO CHAVES","19.445.041/0001-10",1,"2020-10-22","2020-10-22","NO PAÍS","LIANE MASCARENHAS ROCHA","CONTRATAÇÃO",8.93,0,"NÃO SE APLICA",8.93,"CAPACITAR E GERAR CONHECIMENTOS RELATIVOS À QUALIDADE DE VIDA NO TRABALHO"]
["PALESTRA SEMANA DO SERVIDOR: SAÚDE EMOCIONAL E RESILIÊNCIA FAMILIAR EM TEMPOS DE PANDEMIA","ANA PAULA RABELO CHAVES","19.445.041/0001-10",1,"2020-10-22","2020-10-22","NO PAÍS","LILIAN MORAIS DE OLIVEIRA","CONTRATAÇÃO",8.93,0,"NÃO SE APLICA",8.93,"CAPACITAR E GERAR CONHECIMENTOS RELATIVOS À QUALIDADE DE VIDA NO TRABALHO"]
["PALESTRA SEMANA DO SERVIDOR: SAÚDE EMOCIONAL E RESILIÊNCIA FAMILIAR EM TEMPOS DE PANDEMIA","ANA PAULA RABELO CHAVES","19.445.041/0001-10",1,"2020-10-22","2020-10-22","NO PAÍS","LUCAS MARIANO BRANDAO E SOUZA","CONTRATAÇÃO",8.93,0,"NÃO SE APLICA",8.93,"CAPACITAR E GERAR CONHECIMENTOS RELATIVOS À QUALIDADE DE VIDA NO TRABALHO"]
["PALESTRA SEMANA DO SERVIDOR: SAÚDE EMOCIONAL E RESILIÊNCIA FAMILIAR EM TEMPOS DE PANDEMIA","ANA PAULA RABELO CHAVES","19.445.041/0001-10",1,"2020-10-22","2020-10-22","NO PAÍS","MARCELO PEREIRA RAMOS","CONTRATAÇÃO",8.93,0,"NÃO SE APLICA",8.93,"CAPACITAR E GERAR CONHECIMENTOS RELATIVOS À QUALIDADE DE VIDA NO TRABALHO"]
["PALESTRA SEMANA DO SERVIDOR: SAÚDE EMOCIONAL E RESILIÊNCIA FAMILIAR EM TEMPOS DE PANDEMIA","ANA PAULA RABELO CHAVES","19.445.041/0001-10",1,"2020-10-22","2020-10-22","NO PAÍS","MARIA LUIZA CORDEIRO DE OLIVEIRA","CONTRATAÇÃO",8.93,0,"NÃO SE APLICA",8.93,"CAPACITAR E GERAR CONHECIMENTOS RELATIVOS À QUALIDADE DE VIDA NO TRABALHO"]
["PALESTRA SEMANA DO SERVIDOR: SAÚDE EMOCIONAL E RESILIÊNCIA FAMILIAR EM TEMPOS DE PANDEMIA","ANA PAULA RABELO CHAVES","19.445.041/0001-10",1,"2020-10-22","2020-10-22","NO PAÍS","MARISA DAGMAR TIEFENSEE","CONTRATAÇÃO",8.93,0,"NÃO SE APLICA",8.93,"CAPACITAR E GERAR CONHECIMENTOS RELATIVOS À QUALIDADE DE VIDA NO TRABALHO"]
["PALESTRA SEMANA DO SERVIDOR: SAÚDE EMOCIONAL E RESILIÊNCIA FAMILIAR EM TEMPOS DE PANDEMIA","ANA PAULA RABELO CHAVES","19.445.041/0001-10",1,"2020-10-22","2020-10-22","NO PAÍS","MICHELINE PORTELA PINTO","CONTRATAÇÃO",8.93,0,"NÃO SE APLICA",8.93,"CAPACITAR E GERAR CONHECIMENTOS RELATIVOS À QUALIDADE DE VIDA NO TRABALHO"]
["PALESTRA SEMANA DO SERVIDOR: SAÚDE EMOCIONAL E RESILIÊNCIA FAMILIAR EM TEMPOS DE PANDEMIA","ANA PAULA RABELO CHAVES","19.445.041/0001-10",1,"2020-10-22","2020-10-22","NO PAÍS","MICHELLE FLORENCIO DA SILVA","CONTRATAÇÃO",8.93,0,"NÃO SE APLICA",8.93,"CAPACITAR E GERAR CONHECIMENTOS RELATIVOS À QUALIDADE DE VIDA NO TRABALHO"]
["PALESTRA SEMANA DO SERVIDOR: SAÚDE EMOCIONAL E RESILIÊNCIA FAMILIAR EM TEMPOS DE PANDEMIA","ANA PAULA RABELO CHAVES","19.445.041/0001-10",1,"2020-10-22","2020-10-22","NO PAÍS","NARA KOHLSDORF","CONTRATAÇÃO",8.93,0,"NÃO SE APLICA",8.93,"CAPACITAR E GERAR CONHECIMENTOS RELATIVOS À QUALIDADE DE VIDA NO TRABALHO"]
["PALESTRA SEMANA DO SERVIDOR: SAÚDE EMOCIONAL E RESILIÊNCIA FAMILIAR EM TEMPOS DE PANDEMIA","ANA PAULA RABELO CHAVES","19.445.041/0001-10",1,"2020-10-22","2020-10-22","NO PAÍS","PAULO JOSE  MILANEZ","CONTRATAÇÃO",8.93,0,"NÃO SE APLICA",8.93,"CAPACITAR E GERAR CONHECIMENTOS RELATIVOS À QUALIDADE DE VIDA NO TRABALHO"]
["PALESTRA SEMANA DO SERVIDOR: SAÚDE EMOCIONAL E RESILIÊNCIA FAMILIAR EM TEMPOS DE PANDEMIA","ANA PAULA RABELO CHAVES","19.445.041/0001-10",1,"2020-10-22","2020-10-22","NO PAÍS","PAULO LEONARDO DA COSTA OLIVEIRA","CONTRATAÇÃO",8.93,0,"NÃO SE APLICA",8.93,"CAPACITAR E GERAR CONHECIMENTOS RELATIVOS À QUALIDADE DE VIDA NO TRABALHO"]
["PALESTRA SEMANA DO SERVIDOR: SAÚDE EMOCIONAL E RESILIÊNCIA FAMILIAR EM TEMPOS DE PANDEMIA","ANA PAULA RABELO CHAVES","19.445.041/0001-10",1,"2020-10-22","2020-10-22","NO PAÍS","PAULO RICARDO ARAUJO DE ORNELAS MENDES","CONTRATAÇÃO",8.93,0,"NÃO SE APLICA",8.93,"CAPACITAR E GERAR CONHECIMENTOS RELATIVOS À QUALIDADE DE VIDA NO TRABALHO"]
["PALESTRA SEMANA DO SERVIDOR: SAÚDE EMOCIONAL E RESILIÊNCIA FAMILIAR EM TEMPOS DE PANDEMIA","ANA PAULA RABELO CHAVES","19.445.041/0001-10",1,"2020-10-22","2020-10-22","NO PAÍS","PAULO SERGIO BEZERRA DOS SANTOS","CONTRATAÇÃO",8.93,0,"NÃO SE APLICA",8.93,"CAPACITAR E GERAR CONHECIMENTOS RELATIVOS À QUALIDADE DE VIDA NO TRABALHO"]
["PALESTRA SEMANA DO SERVIDOR: SAÚDE EMOCIONAL E RESILIÊNCIA FAMILIAR EM TEMPOS DE PANDEMIA","ANA PAULA RABELO CHAVES","19.445.041/0001-10",1,"2020-10-22","2020-10-22","NO PAÍS","RAFAEL MACEDO DUARTE","CONTRATAÇÃO",8.93,0,"NÃO SE APLICA",8.93,"CAPACITAR E GERAR CONHECIMENTOS RELATIVOS À QUALIDADE DE VIDA NO TRABALHO"]
["PALESTRA SEMANA DO SERVIDOR: SAÚDE EMOCIONAL E RESILIÊNCIA FAMILIAR EM TEMPOS DE PANDEMIA","ANA PAULA RABELO CHAVES","19.445.041/0001-10",1,"2020-10-22","2020-10-22","NO PAÍS","ROSEMEIRE LOPES FONTES","CONTRATAÇÃO",8.93,0,"NÃO SE APLICA",8.93,"CAPACITAR E GERAR CONHECIMENTOS RELATIVOS À QUALIDADE DE VIDA NO TRABALHO"]
["PALESTRA SEMANA DO SERVIDOR: SAÚDE EMOCIONAL E RESILIÊNCIA FAMILIAR EM TEMPOS DE PANDEMIA","ANA PAULA RABELO CHAVES","19.445.041/0001-10",1,"2020-10-22","2020-10-22","NO PAÍS","ROSIMEIRE LIMA DE FREITAS","CONTRATAÇÃO",8.93,0,"NÃO SE APLICA",8.93,"CAPACITAR E GERAR CONHECIMENTOS RELATIVOS À QUALIDADE DE VIDA NO TRABALHO"]
["PALESTRA SEMANA DO SERVIDOR: SAÚDE EMOCIONAL E RESILIÊNCIA FAMILIAR EM TEMPOS DE PANDEMIA","ANA PAULA RABELO CHAVES","19.445.041/0001-10",1,"2020-10-22","2020-10-22","NO PAÍS","SANDRO VIEIRA DA ROSA","CONTRATAÇÃO",8.93,0,"NÃO SE APLICA",8.93,"CAPACITAR E GERAR CONHECIMENTOS RELATIVOS À QUALIDADE DE VIDA NO TRABALHO"]
["PALESTRA SEMANA DO SERVIDOR: SAÚDE EMOCIONAL E RESILIÊNCIA FAMILIAR EM TEMPOS DE PANDEMIA","ANA PAULA RABELO CHAVES","19.445.041/0001-10",1,"2020-10-22","2020-10-22","NO PAÍS","SILVIA MACHADO LEÃO","CONTRATAÇÃO",8.93,0,"NÃO SE APLICA",8.93,"CAPACITAR E GERAR CONHECIMENTOS RELATIVOS À QUALIDADE DE VIDA NO TRABALHO"]
["PALESTRA SEMANA DO SERVIDOR: SAÚDE EMOCIONAL E RESILIÊNCIA FAMILIAR EM TEMPOS DE PANDEMIA","ANA PAULA RABELO CHAVES","19.445.041/0001-10",1,"2020-10-22","2020-10-22","NO PAÍS","SIMONE MANSO DA SILVA","CONTRATAÇÃO",8.92,0,"NÃO SE APLICA",8.92,"CAPACITAR E GERAR CONHECIMENTOS RELATIVOS À QUALIDADE DE VIDA NO TRABALHO"]
["PALESTRA SEMANA DO SERVIDOR: SAÚDE EMOCIONAL E RESILIÊNCIA FAMILIAR EM TEMPOS DE PANDEMIA","ANA PAULA RABELO CHAVES","19.445.041/0001-10",1,"2020-10-22","2020-10-22","NO PAÍS","SIOMAR CARIBE DE OLIVEIRA","CONTRATAÇÃO",8.92,0,"NÃO SE APLICA",8.92,"CAPACITAR E GERAR CONHECIMENTOS RELATIVOS À QUALIDADE DE VIDA NO TRABALHO"]
["PALESTRA SEMANA DO SERVIDOR: SAÚDE EMOCIONAL E RESILIÊNCIA FAMILIAR EM TEMPOS DE PANDEMIA","ANA PAULA RABELO CHAVES","19.445.041/0001-10",1,"2020-10-22","2020-10-22","NO PAÍS","SUÉLEN SILVA PATROCÍNIO DE OLIVEIRA","CONTRATAÇÃO",8.92,0,"NÃO SE APLICA",8.92,"CAPACITAR E GERAR CONHECIMENTOS RELATIVOS À QUALIDADE DE VIDA NO TRABALHO"]
["PALESTRA SEMANA DO SERVIDOR: SAÚDE EMOCIONAL E RESILIÊNCIA FAMILIAR EM TEMPOS DE PANDEMIA","ANA PAULA RABELO CHAVES","19.445.041/0001-10",1,"2020-10-22","2020-10-22","NO PAÍS","TATIANA FURTADO ALVIM DE AMORIM","CONTRATAÇÃO",8.92,0,"NÃO SE APLICA",8.92,"CAPACITAR E GERAR CONHECIMENTOS RELATIVOS À QUALIDADE DE VIDA NO TRABALHO"]
["PALESTRA SEMANA DO SERVIDOR: SAÚDE EMOCIONAL E RESILIÊNCIA FAMILIAR EM TEMPOS DE PANDEMIA","ANA PAULA RABELO CHAVES","19.445.041/0001-10",1,"2020-10-22","2020-10-22","NO PAÍS","THAIS MESSINA DE GODOY FREIXO","CONTRATAÇÃO",8.92,0,"NÃO SE APLICA",8.92,"CAPACITAR E GERAR CONHECIMENTOS RELATIVOS À QUALIDADE DE VIDA NO TRABALHO"]
["PALESTRA SEMANA DO SERVIDOR: SAÚDE EMOCIONAL E RESILIÊNCIA FAMILIAR EM TEMPOS DE PANDEMIA","ANA PAULA RABELO CHAVES","19.445.041/0001-10",1,"2020-10-22","2020-10-22","NO PAÍS","THIAGO CASTELO BRANCO COELHO","CONTRATAÇÃO",8.92,0,"NÃO SE APLICA",8.92,"CAPACITAR E GERAR CONHECIMENTOS RELATIVOS À QUALIDADE DE VIDA NO TRABALHO"]
["PALESTRA SEMANA DO SERVIDOR: SAÚDE EMOCIONAL E RESILIÊNCIA FAMILIAR EM TEMPOS DE PANDEMIA","ANA PAULA RABELO CHAVES","19.445.041/0001-10",1,"2020-10-22","2020-10-22","NO PAÍS","VANESSA DA SILVA SANTOS","CONTRATAÇÃO",8.92,0,"NÃO SE APLICA",8.92,"CAPACITAR E GERAR CONHECIMENTOS RELATIVOS À QUALIDADE DE VIDA NO TRABALHO"]
["PALESTRA SEMANA DO SERVIDOR: SAÚDE EMOCIONAL E RESILIÊNCIA FAMILIAR EM TEMPOS DE PANDEMIA","ANA PAULA RABELO CHAVES","19.445.041/0001-10",1,"2020-10-22","2020-10-22","NO PAÍS","VICTOR HUGO GOUVEIA DE LUCENA LIMA","CONTRATAÇÃO",8.92,0,"NÃO SE APLICA",8.92,"CAPACITAR E GERAR CONHECIMENTOS RELATIVOS À QUALIDADE DE VIDA NO TRABALHO"]
["PROGRAMA DE DESENVOLVIMENTO GERENCIAL - PDG 2020 - TURMA 2 - SUPERVISÃO DE LÍDER COACH 2","HOMERO REIS CONSULTORIA E GESTÃO EMPRESARIAL LTDA","07.131.596/0001-08",2,"2020-10-26","2020-10-26","NO PAÍS","ALAN JOSE DA SILVA","CONTRATAÇÃO",219.42,0,0,219.42,"DESENVOLVER NOS COORDENADORES DE PROCESSOS ORGANIZACIONAIS AS COMPETÊNCIAS QUE FORAM TRABALHADAS NOS GESTORES ESTRATÉGICOS DA ANTT."]
["PROGRAMA DE DESENVOLVIMENTO GERENCIAL - PDG 2020 - TURMA 2 - SUPERVISÃO DE LÍDER COACH 2","HOMERO REIS CONSULTORIA E GESTÃO EMPRESARIAL LTDA","07.131.596/0001-08",2,"2020-10-26","2020-10-26","NO PAÍS","ALESSANDRA CAIXETA SILVA PRADO","CONTRATAÇÃO",219.42,0,0,219.42,"DESENVOLVER NOS COORDENADORES DE PROCESSOS ORGANIZACIONAIS AS COMPETÊNCIAS QUE FORAM TRABALHADAS NOS GESTORES ESTRATÉGICOS DA ANTT."]
["PROGRAMA DE DESENVOLVIMENTO GERENCIAL - PDG 2020 - TURMA 2 - SUPERVISÃO DE LÍDER COACH 2","HOMERO REIS CONSULTORIA E GESTÃO EMPRESARIAL LTDA","07.131.596/0001-08",2,"2020-10-26","2020-10-26","NO PAÍS","ISABELA SOARES MACHADO REICHERT","CONTRATAÇÃO",219.42,0,0,219.42,"DESENVOLVER NOS COORDENADORES DE PROCESSOS ORGANIZACIONAIS AS COMPETÊNCIAS QUE FORAM TRABALHADAS NOS GESTORES ESTRATÉGICOS DA ANTT."]
["PROGRAMA DE DESENVOLVIMENTO GERENCIAL - PDG 2020 - TURMA 2 - SUPERVISÃO DE LÍDER COACH 2","HOMERO REIS CONSULTORIA E GESTÃO EMPRESARIAL LTDA","07.131.596/0001-08",2,"2020-10-26","2020-10-26","NO PAÍS","LEILANE MORAIS ALCÂNTARA","CONTRATAÇÃO",219.41,0,0,219.41,"DESENVOLVER NOS COORDENADORES DE PROCESSOS ORGANIZACIONAIS AS COMPETÊNCIAS QUE FORAM TRABALHADAS NOS GESTORES ESTRATÉGICOS DA ANTT."]
["PROGRAMA DE DESENVOLVIMENTO GERENCIAL - PDG 2020 - TURMA 2 - SUPERVISÃO DE LÍDER COACH 2","HOMERO REIS CONSULTORIA E GESTÃO EMPRESARIAL LTDA","07.131.596/0001-08",2,"2020-10-26","2020-10-26","NO PAÍS","LETICIA ARAUJO SILVA VENSON","CONTRATAÇÃO",219.41,0,0,219.41,"DESENVOLVER NOS COORDENADORES DE PROCESSOS ORGANIZACIONAIS AS COMPETÊNCIAS QUE FORAM TRABALHADAS NOS GESTORES ESTRATÉGICOS DA ANTT."]
["PROGRAMA DE DESENVOLVIMENTO GERENCIAL - PDG 2020 - TURMA 2 - SUPERVISÃO DE LÍDER COACH 2","HOMERO REIS CONSULTORIA E GESTÃO EMPRESARIAL LTDA","07.131.596/0001-08",2,"2020-10-26","2020-10-26","NO PAÍS","LIGIA MARIA DE OLIVEIRA BARROS","CONTRATAÇÃO",219.41,0,0,219.41,"DESENVOLVER NOS COORDENADORES DE PROCESSOS ORGANIZACIONAIS AS COMPETÊNCIAS QUE FORAM TRABALHADAS NOS GESTORES ESTRATÉGICOS DA ANTT."]
["PROGRAMA DE DESENVOLVIMENTO GERENCIAL - PDG 2020 - TURMA 2 - SUPERVISÃO DE LÍDER COACH 2","HOMERO REIS CONSULTORIA E GESTÃO EMPRESARIAL LTDA","07.131.596/0001-08",2,"2020-10-26","2020-10-26","NO PAÍS","MARCIA LIKA MON-MA","CONTRATAÇÃO",219.41,0,0,219.41,"DESENVOLVER NOS COORDENADORES DE PROCESSOS ORGANIZACIONAIS AS COMPETÊNCIAS QUE FORAM TRABALHADAS NOS GESTORES ESTRATÉGICOS DA ANTT."]
["PROGRAMA DE DESENVOLVIMENTO GERENCIAL - PDG 2020 - TURMA 2 - SUPERVISÃO DE LÍDER COACH 2","HOMERO REIS CONSULTORIA E GESTÃO EMPRESARIAL LTDA","07.131.596/0001-08",2,"2020-10-26","2020-10-26","NO PAÍS","MARNE LIEGGIO JUNIOR","CONTRATAÇÃO",219.41,0,0,219.41,"DESENVOLVER NOS COORDENADORES DE PROCESSOS ORGANIZACIONAIS AS COMPETÊNCIAS QUE FORAM TRABALHADAS NOS GESTORES ESTRATÉGICOS DA ANTT."]
["PROGRAMA DE DESENVOLVIMENTO GERENCIAL - PDG 2020 - TURMA 2 - SUPERVISÃO DE LÍDER COACH 2","HOMERO REIS CONSULTORIA E GESTÃO EMPRESARIAL LTDA","07.131.596/0001-08",2,"2020-10-26","2020-10-26","NO PAÍS","MAURO RODRIGUES SANJAD","CONTRATAÇÃO",219.41,0,0,219.41,"DESENVOLVER NOS COORDENADORES DE PROCESSOS ORGANIZACIONAIS AS COMPETÊNCIAS QUE FORAM TRABALHADAS NOS GESTORES ESTRATÉGICOS DA ANTT."]
["PROGRAMA DE DESENVOLVIMENTO GERENCIAL - PDG 2020 - TURMA 2 - SUPERVISÃO DE LÍDER COACH 2","HOMERO REIS CONSULTORIA E GESTÃO EMPRESARIAL LTDA","07.131.596/0001-08",2,"2020-10-26","2020-10-26","NO PAÍS","NARA KOHLSDORF","CONTRATAÇÃO",219.41,0,0,219.41,"DESENVOLVER NOS COORDENADORES DE PROCESSOS ORGANIZACIONAIS AS COMPETÊNCIAS QUE FORAM TRABALHADAS NOS GESTORES ESTRATÉGICOS DA ANTT."]
["PROGRAMA DE DESENVOLVIMENTO GERENCIAL - PDG 2020 - TURMA 2 - SUPERVISÃO DE LÍDER COACH 2","HOMERO REIS CONSULTORIA E GESTÃO EMPRESARIAL LTDA","07.131.596/0001-08",2,"2020-10-26","2020-10-26","NO PAÍS","PATRICIA CALDAS MONTEIRO","CONTRATAÇÃO",219.41,0,0,219.41,"DESENVOLVER NOS COORDENADORES DE PROCESSOS ORGANIZACIONAIS AS COMPETÊNCIAS QUE FORAM TRABALHADAS NOS GESTORES ESTRATÉGICOS DA ANTT."]
["PROGRAMA DE DESENVOLVIMENTO GERENCIAL - PDG 2020 - TURMA 2 - SUPERVISÃO DE LÍDER COACH 2","HOMERO REIS CONSULTORIA E GESTÃO EMPRESARIAL LTDA","07.131.596/0001-08",2,"2020-10-26","2020-10-26","NO PAÍS","PAULO RICARDO ARAUJO DE ORNELAS MENDES","CONTRATAÇÃO",219.41,0,0,219.41,"DESENVOLVER NOS COORDENADORES DE PROCESSOS ORGANIZACIONAIS AS COMPETÊNCIAS QUE FORAM TRABALHADAS NOS GESTORES ESTRATÉGICOS DA ANTT."]
["PROGRAMA DE DESENVOLVIMENTO GERENCIAL - PDG 2020 - TURMA 2 - SUPERVISÃO DE LÍDER COACH 2","HOMERO REIS CONSULTORIA E GESTÃO EMPRESARIAL LTDA","07.131.596/0001-08",2,"2020-10-26","2020-10-26","NO PAÍS","RACHEL PEDREIRA DALLAGNOL        ","CONTRATAÇÃO",219.41,0,0,219.41,"DESENVOLVER NOS COORDENADORES DE PROCESSOS ORGANIZACIONAIS AS COMPETÊNCIAS QUE FORAM TRABALHADAS NOS GESTORES ESTRATÉGICOS DA ANTT."]
["PROGRAMA DE DESENVOLVIMENTO GERENCIAL - PDG 2020 - TURMA 2 - SUPERVISÃO DE LÍDER COACH 2","HOMERO REIS CONSULTORIA E GESTÃO EMPRESARIAL LTDA","07.131.596/0001-08",2,"2020-10-26","2020-10-26","NO PAÍS","ROBERTA NEGRAO COSTA WACHHOLZ","CONTRATAÇÃO",219.41,0,0,219.41,"DESENVOLVER NOS COORDENADORES DE PROCESSOS ORGANIZACIONAIS AS COMPETÊNCIAS QUE FORAM TRABALHADAS NOS GESTORES ESTRATÉGICOS DA ANTT."]
["PROGRAMA DE DESENVOLVIMENTO GERENCIAL - PDG 2020 - TURMA 2 - SUPERVISÃO DE LÍDER COACH 2","HOMERO REIS CONSULTORIA E GESTÃO EMPRESARIAL LTDA","07.131.596/0001-08",2,"2020-10-26","2020-10-26","NO PAÍS","RODRIGO BARROS BRANDAO SOARES","CONTRATAÇÃO",219.41,0,0,219.41,"DESENVOLVER NOS COORDENADORES DE PROCESSOS ORGANIZACIONAIS AS COMPETÊNCIAS QUE FORAM TRABALHADAS NOS GESTORES ESTRATÉGICOS DA ANTT."]
["PROGRAMA DE DESENVOLVIMENTO GERENCIAL - PDG 2020 - TURMA 2 - SUPERVISÃO DE LÍDER COACH 2","HOMERO REIS CONSULTORIA E GESTÃO EMPRESARIAL LTDA","07.131.596/0001-08",2,"2020-10-26","2020-10-26","NO PAÍS","VANESSA DA SILVA SANTOS","CONTRATAÇÃO",219.41,0,0,219.41,"DESENVOLVER NOS COORDENADORES DE PROCESSOS ORGANIZACIONAIS AS COMPETÊNCIAS QUE FORAM TRABALHADAS NOS GESTORES ESTRATÉGICOS DA ANTT."]
["PROGRAMA DE DESENVOLVIMENTO GERENCIAL - PDG 2020 - TURMA 2 - SUPERVISÃO DE LÍDER COACH 2","HOMERO REIS CONSULTORIA E GESTÃO EMPRESARIAL LTDA","07.131.596/0001-08",2,"2020-10-26","2020-10-26","NO PAÍS","VICTOR FERREIRA SOARES","CONTRATAÇÃO",219.41,0,0,219.41,"DESENVOLVER NOS COORDENADORES DE PROCESSOS ORGANIZACIONAIS AS COMPETÊNCIAS QUE FORAM TRABALHADAS NOS GESTORES ESTRATÉGICOS DA ANTT."]
["RELAÇÕES INTERPESSOAIS NO TRABALHO","CURSOS VIRTUAIS NET","08.179.401/0001-62",100,"2020-10-30","2020-11-13","NO PAÍS","CICERO CAVALCANTI DE MELO","SEM CUSTOS DE INSCRIÇÃO - GRATUITO",0,0,4995.22,4995.22,"DESENVOLVIMENTO INSTITUCIONAL / GESTÃO DE PESSOAS - COMUNICAÇÃO/ PDP: AMPLIAR E DESENVOLVER METODOLOGIAS QUE FACILITEM AS RELAÇÕES HUMANAS E COMPETÊNCIAS INTERPESSOAIS NO AMBIENTE DE TRABALHO"]
["ESTRATÉGIA DE GESTÃO DE PESSOAS - GESTÃO POR COMPETÊNCIAS","UNIEDUCAR","05.569.970/0001-26",140,"2020-10-30","2020-11-28","NO PAÍS","BRUNO RIBEIRO  ALVARENGA","SEM CUSTOS DE INSCRIÇÃO - GRATUITO",0,0,21036.46,21036.46,"DESENVOLVIMENTO INSTITUCIONAL - GESTÃO DE PESSOAS/ PDP: AMPLIAR CONHECIMENTOS SOBRE ELEMENTOS TEÓRICO-CONCEITUAIS E INSTRUMENTAIS DE PLANEJAMENTO ESTRATÉGICO E DE GESTÃO"]
["REDAÇÃO OFICIAL E CORRESPONDÊNCIAS ADMINISTRATIVAS NO SERVIÇO PÚBLICO ","CENED - CENTRO DE EDUCAÇÃO PROFISSIONAL LTDA"," 10.326.300/0001-19   ",180,"2020-10-30","2020-11-28","NO PAÍS","IANA HOLANDA RISUENHO","SEM CUSTOS DE INSCRIÇÃO - GRATUITO",0,0,15726.85,15726.85,"GOVERNANÇA CORPORATIVA - ATOS, PROCESSOS E PROCEDIMENTOS ADMINISTRATIVOS/ PDP: REDAÇÃO OFICIAL E REDAÇÃO JURÍDICA, PARA ADEQUAÇÃO/APERFEIÇOAMENTO DA ELABORAÇÃO DE PEÇAS E DOCUMENTOS COM VIÉS MAIS PROCESSUAL E JURÍDICO."]
["ATUALIZAÇÃO JURÍDICA - APOSENTADORIA DO SERVIDOR PÚBLICO - REFORMA DA PREVIDÊNCIA EC 103/19","UNIEDUCAR","05.569.970/0001-26",140,"2020-10-30","2020-11-28","NO PAÍS","JULIA THAYS BECKER CASSEMIRO","SEM CUSTOS DE INSCRIÇÃO - GRATUITO",0,0,9123.26,9123.26,"DESENVOLVIMENTO INSTITUCIONAL / GESTÃO DE PESSOAS/ PDP: AMPLIAR O CONHECIMENTO RELATIVO À LEGISLAÇÃO E PROCEDIMENTOS EM GESTÃO DE PESSOAS NO SERVIÇO PÚBLICO FEDERAL"]
["INTRODUÇÃO À ADMINISTRAÇÃO PÚBLICA","ABBA CURSOS","32.802.528/0001-70",140,"2020-10-30","2020-11-28","NO PAÍS","LUCILENE MARIA DE LIMA","SEM CUSTOS DE INSCRIÇÃO - GRATUITO",0,0,10243.99,10243.99,"GOVERNANÇA CORPORATIVA -  ATOS, PROCESSOS E PROCEDIMENTOS ADMINISTRATIVOS/ PDP: FORTALECIMENTO DE COMPETÊNCIAS EM GESTÃO E REGULAÇÃO"]
["MATRIZ MODAL - TRANSPORTE INTERMODAL E EFICIÊNCIA OPERACIONAL","UNIEDUCAR INTELIGÊNCIA EDUCACIONAL LTDA","05.569.970/0001-26",140,"2020-10-30","2020-11-28","NO PAÍS","PAULO HENRIQUE MARQUES SANTOS","SEM CUSTOS DE INSCRIÇÃO - GRATUITO",0,0,20040.07,20040.07,"REGULAÇÃ0 - DESENVOLVIMENTO DA REGULAÇÃO/ PDP: AMPLIAR O CONHECIMENTO TÉCNICO NA ÁREA DE TRANSPORTES TERRESTRES A FIM DE BUSCAR AS MELHORES PRÁTICAS EM REGULAÇÃO, FISCALIZAÇÃO E GESTÃO."]
["PROGRAMA DE DESENVOLVIMENTO GERENCIAL - PDG 2020 - TURMA 3 - WORKSHOP 2","HOMERO REIS CONSULTORIA E GESTÃO EMPRESARIAL LTDA","07.131.596/0001-08",4,"2020-11-04","2020-11-06","NO PAÍS","AMINADABE DOS SANTOS PIRES SOARES","CONTRATAÇÃO",354.35,0,0,354.35,"DESENVOLVER NOS COORDENADORES DE PROCESSOS ORGANIZACIONAIS AS COMPETÊNCIAS QUE FORAM TRABALHADAS NOS GESTORES ESTRATÉGICOS DA ANTT."]
["PROGRAMA DE DESENVOLVIMENTO GERENCIAL - PDG 2020 - TURMA 3 - WORKSHOP 2","HOMERO REIS CONSULTORIA E GESTÃO EMPRESARIAL LTDA","07.131.596/0001-08",4,"2020-11-04","2020-11-06","NO PAÍS","ANDRE BOTIN NASCIMENTO","CONTRATAÇÃO",354.35,0,0,354.35,"DESENVOLVER NOS COORDENADORES DE PROCESSOS ORGANIZACIONAIS AS COMPETÊNCIAS QUE FORAM TRABALHADAS NOS GESTORES ESTRATÉGICOS DA ANTT."]
["PROGRAMA DE DESENVOLVIMENTO GERENCIAL - PDG 2020 - TURMA 3 - WORKSHOP 2","HOMERO REIS CONSULTORIA E GESTÃO EMPRESARIAL LTDA","07.131.596/0001-08",4,"2020-11-04","2020-11-06","NO PAÍS","CLEIDES SILVA CAMPOS FONTENELE","CONTRATAÇÃO",354.35,0,0,354.35,"DESENVOLVER NOS COORDENADORES DE PROCESSOS ORGANIZACIONAIS AS COMPETÊNCIAS QUE FORAM TRABALHADAS NOS GESTORES ESTRATÉGICOS DA ANTT."]
["PROGRAMA DE DESENVOLVIMENTO GERENCIAL - PDG 2020 - TURMA 3 - WORKSHOP 2","HOMERO REIS CONSULTORIA E GESTÃO EMPRESARIAL LTDA","07.131.596/0001-08",4,"2020-11-04","2020-11-06","NO PAÍS","CRISTIANE SOUSA DE OLIVEIRA","CONTRATAÇÃO",354.35,0,0,354.35,"DESENVOLVER NOS COORDENADORES DE PROCESSOS ORGANIZACIONAIS AS COMPETÊNCIAS QUE FORAM TRABALHADAS NOS GESTORES ESTRATÉGICOS DA ANTT."]
["PROGRAMA DE DESENVOLVIMENTO GERENCIAL - PDG 2020 - TURMA 3 - WORKSHOP 2","HOMERO REIS CONSULTORIA E GESTÃO EMPRESARIAL LTDA","07.131.596/0001-08",4,"2020-11-04","2020-11-06","NO PAÍS","FELIPE BARBOSA FEIJO","CONTRATAÇÃO",354.35,0,0,354.35,"DESENVOLVER NOS COORDENADORES DE PROCESSOS ORGANIZACIONAIS AS COMPETÊNCIAS QUE FORAM TRABALHADAS NOS GESTORES ESTRATÉGICOS DA ANTT."]
["PROGRAMA DE DESENVOLVIMENTO GERENCIAL - PDG 2020 - TURMA 3 - WORKSHOP 2","HOMERO REIS CONSULTORIA E GESTÃO EMPRESARIAL LTDA","07.131.596/0001-08",4,"2020-11-04","2020-11-06","NO PAÍS","FERNANDO CARLOS PSARSKI CABRAL","CONTRATAÇÃO",354.35,0,0,354.35,"DESENVOLVER NOS COORDENADORES DE PROCESSOS ORGANIZACIONAIS AS COMPETÊNCIAS QUE FORAM TRABALHADAS NOS GESTORES ESTRATÉGICOS DA ANTT."]
["PROGRAMA DE DESENVOLVIMENTO GERENCIAL - PDG 2020 - TURMA 3 - WORKSHOP 2","HOMERO REIS CONSULTORIA E GESTÃO EMPRESARIAL LTDA","07.131.596/0001-08",4,"2020-11-04","2020-11-06","NO PAÍS","FERNANDO NUNES CARNEIRO RIOS         ","CONTRATAÇÃO",354.35,0,0,354.35,"DESENVOLVER NOS COORDENADORES DE PROCESSOS ORGANIZACIONAIS AS COMPETÊNCIAS QUE FORAM TRABALHADAS NOS GESTORES ESTRATÉGICOS DA ANTT."]
["PROGRAMA DE DESENVOLVIMENTO GERENCIAL - PDG 2020 - TURMA 3 - WORKSHOP 2","HOMERO REIS CONSULTORIA E GESTÃO EMPRESARIAL LTDA","07.131.596/0001-08",4,"2020-11-04","2020-11-06","NO PAÍS","FRANCISCA VERONICA JUCÁ DE MORAIS","CONTRATAÇÃO",354.35,0,0,354.35,"DESENVOLVER NOS COORDENADORES DE PROCESSOS ORGANIZACIONAIS AS COMPETÊNCIAS QUE FORAM TRABALHADAS NOS GESTORES ESTRATÉGICOS DA ANTT."]
["PROGRAMA DE DESENVOLVIMENTO GERENCIAL - PDG 2020 - TURMA 3 - WORKSHOP 2","HOMERO REIS CONSULTORIA E GESTÃO EMPRESARIAL LTDA","07.131.596/0001-08",4,"2020-11-04","2020-11-06","NO PAÍS","FREDERICO LUIZ VIEIRA","CONTRATAÇÃO",354.35,0,0,354.35,"DESENVOLVER NOS COORDENADORES DE PROCESSOS ORGANIZACIONAIS AS COMPETÊNCIAS QUE FORAM TRABALHADAS NOS GESTORES ESTRATÉGICOS DA ANTT."]
["PROGRAMA DE DESENVOLVIMENTO GERENCIAL - PDG 2020 - TURMA 3 - WORKSHOP 2","HOMERO REIS CONSULTORIA E GESTÃO EMPRESARIAL LTDA","07.131.596/0001-08",4,"2020-11-04","2020-11-06","NO PAÍS","GILBERTO JOSE TELLES FILHO","CONTRATAÇÃO",354.35,0,0,354.35,"DESENVOLVER NOS COORDENADORES DE PROCESSOS ORGANIZACIONAIS AS COMPETÊNCIAS QUE FORAM TRABALHADAS NOS GESTORES ESTRATÉGICOS DA ANTT."]
["PROGRAMA DE DESENVOLVIMENTO GERENCIAL - PDG 2020 - TURMA 3 - WORKSHOP 2","HOMERO REIS CONSULTORIA E GESTÃO EMPRESARIAL LTDA","07.131.596/0001-08",4,"2020-11-04","2020-11-06","NO PAÍS","HILDEVANA MEIRE DA SILVA ALMEIDA","CONTRATAÇÃO",354.35,0,0,354.35,"DESENVOLVER NOS COORDENADORES DE PROCESSOS ORGANIZACIONAIS AS COMPETÊNCIAS QUE FORAM TRABALHADAS NOS GESTORES ESTRATÉGICOS DA ANTT."]
["PROGRAMA DE DESENVOLVIMENTO GERENCIAL - PDG 2020 - TURMA 3 - WORKSHOP 2","HOMERO REIS CONSULTORIA E GESTÃO EMPRESARIAL LTDA","07.131.596/0001-08",4,"2020-11-04","2020-11-06","NO PAÍS","HUGO LEONARDO CUNHA RODRIGUES","CONTRATAÇÃO",354.35,0,0,354.35,"DESENVOLVER NOS COORDENADORES DE PROCESSOS ORGANIZACIONAIS AS COMPETÊNCIAS QUE FORAM TRABALHADAS NOS GESTORES ESTRATÉGICOS DA ANTT."]
["PROGRAMA DE DESENVOLVIMENTO GERENCIAL - PDG 2020 - TURMA 3 - WORKSHOP 2","HOMERO REIS CONSULTORIA E GESTÃO EMPRESARIAL LTDA","07.131.596/0001-08",4,"2020-11-04","2020-11-06","NO PAÍS","JOAO EMERSON LOPES DE SOUZA       ","CONTRATAÇÃO",354.35,0,0,354.35,"DESENVOLVER NOS COORDENADORES DE PROCESSOS ORGANIZACIONAIS AS COMPETÊNCIAS QUE FORAM TRABALHADAS NOS GESTORES ESTRATÉGICOS DA ANTT."]
["PROGRAMA DE DESENVOLVIMENTO GERENCIAL - PDG 2020 - TURMA 3 - WORKSHOP 2","HOMERO REIS CONSULTORIA E GESTÃO EMPRESARIAL LTDA","07.131.596/0001-08",4,"2020-11-04","2020-11-06","NO PAÍS","JULIANE FURTADO NOVAES","CONTRATAÇÃO",354.35,0,0,354.35,"DESENVOLVER NOS COORDENADORES DE PROCESSOS ORGANIZACIONAIS AS COMPETÊNCIAS QUE FORAM TRABALHADAS NOS GESTORES ESTRATÉGICOS DA ANTT."]
["PROGRAMA DE DESENVOLVIMENTO GERENCIAL - PDG 2020 - TURMA 3 - WORKSHOP 2","HOMERO REIS CONSULTORIA E GESTÃO EMPRESARIAL LTDA","07.131.596/0001-08",4,"2020-11-04","2020-11-06","NO PAÍS","LAURINDO SERGIO FILHO","CONTRATAÇÃO",354.35,0,0,354.35,"DESENVOLVER NOS COORDENADORES DE PROCESSOS ORGANIZACIONAIS AS COMPETÊNCIAS QUE FORAM TRABALHADAS NOS GESTORES ESTRATÉGICOS DA ANTT."]
["PROGRAMA DE DESENVOLVIMENTO GERENCIAL - PDG 2020 - TURMA 3 - WORKSHOP 2","HOMERO REIS CONSULTORIA E GESTÃO EMPRESARIAL LTDA","07.131.596/0001-08",4,"2020-11-04","2020-11-06","NO PAÍS","ORLEI DAMASIO SILVEIRA","CONTRATAÇÃO",354.35,0,0,354.35,"DESENVOLVER NOS COORDENADORES DE PROCESSOS ORGANIZACIONAIS AS COMPETÊNCIAS QUE FORAM TRABALHADAS NOS GESTORES ESTRATÉGICOS DA ANTT."]
["PROGRAMA DE DESENVOLVIMENTO GERENCIAL - PDG 2020 - TURMA 3 - WORKSHOP 2","HOMERO REIS CONSULTORIA E GESTÃO EMPRESARIAL LTDA","07.131.596/0001-08",4,"2020-11-04","2020-11-06","NO PAÍS","PEDRO MUGLIA","CONTRATAÇÃO",354.35,0,0,354.35,"DESENVOLVER NOS COORDENADORES DE PROCESSOS ORGANIZACIONAIS AS COMPETÊNCIAS QUE FORAM TRABALHADAS NOS GESTORES ESTRATÉGICOS DA ANTT."]
["PROGRAMA DE DESENVOLVIMENTO GERENCIAL - PDG 2020 - TURMA 3 - WORKSHOP 2","HOMERO REIS CONSULTORIA E GESTÃO EMPRESARIAL LTDA","07.131.596/0001-08",4,"2020-11-04","2020-11-06","NO PAÍS","RAFAELA GOMES DE SOUZA E SILVA","CONTRATAÇÃO",354.35,0,0,354.35,"DESENVOLVER NOS COORDENADORES DE PROCESSOS ORGANIZACIONAIS AS COMPETÊNCIAS QUE FORAM TRABALHADAS NOS GESTORES ESTRATÉGICOS DA ANTT."]
["PROGRAMA DE DESENVOLVIMENTO GERENCIAL - PDG 2020 - TURMA 3 - WORKSHOP 2","HOMERO REIS CONSULTORIA E GESTÃO EMPRESARIAL LTDA","07.131.596/0001-08",4,"2020-11-04","2020-11-06","NO PAÍS","RODRIGO MORETTI BRANCHINI          ","CONTRATAÇÃO",354.35,0,0,354.35,"DESENVOLVER NOS COORDENADORES DE PROCESSOS ORGANIZACIONAIS AS COMPETÊNCIAS QUE FORAM TRABALHADAS NOS GESTORES ESTRATÉGICOS DA ANTT."]
["PROGRAMA DE DESENVOLVIMENTO GERENCIAL - PDG 2020 - TURMA 3 - WORKSHOP 2","HOMERO REIS CONSULTORIA E GESTÃO EMPRESARIAL LTDA","07.131.596/0001-08",4,"2020-11-04","2020-11-06","NO PAÍS","RODRIGO PEREIRA DE CASTRO","CONTRATAÇÃO",354.35,0,0,354.35,"DESENVOLVER NOS COORDENADORES DE PROCESSOS ORGANIZACIONAIS AS COMPETÊNCIAS QUE FORAM TRABALHADAS NOS GESTORES ESTRATÉGICOS DA ANTT."]
["PROGRAMA DE DESENVOLVIMENTO GERENCIAL - PDG 2020 - TURMA 3 - WORKSHOP 2","HOMERO REIS CONSULTORIA E GESTÃO EMPRESARIAL LTDA","07.131.596/0001-08",4,"2020-11-04","2020-11-06","NO PAÍS","SERGIO AUGUSTO FERNANDES","CONTRATAÇÃO",354.35,0,0,354.35,"DESENVOLVER NOS COORDENADORES DE PROCESSOS ORGANIZACIONAIS AS COMPETÊNCIAS QUE FORAM TRABALHADAS NOS GESTORES ESTRATÉGICOS DA ANTT."]
["PROGRAMA DE DESENVOLVIMENTO GERENCIAL - PDG 2020 - TURMA 3 - WORKSHOP 2","HOMERO REIS CONSULTORIA E GESTÃO EMPRESARIAL LTDA","07.131.596/0001-08",4,"2020-11-04","2020-11-06","NO PAÍS","SIMONE LETTI BASTANI","CONTRATAÇÃO",354.35,0,0,354.35,"DESENVOLVER NOS COORDENADORES DE PROCESSOS ORGANIZACIONAIS AS COMPETÊNCIAS QUE FORAM TRABALHADAS NOS GESTORES ESTRATÉGICOS DA ANTT."]
["PROGRAMA DE DESENVOLVIMENTO GERENCIAL - PDG 2020 - TURMA 3 - WORKSHOP 2","HOMERO REIS CONSULTORIA E GESTÃO EMPRESARIAL LTDA","07.131.596/0001-08",4,"2020-11-04","2020-11-06","NO PAÍS","SIOMAR CARIBE DE OLIVEIRA","CONTRATAÇÃO",354.35,0,0,354.35,"DESENVOLVER NOS COORDENADORES DE PROCESSOS ORGANIZACIONAIS AS COMPETÊNCIAS QUE FORAM TRABALHADAS NOS GESTORES ESTRATÉGICOS DA ANTT."]
["PROGRAMA DE DESENVOLVIMENTO GERENCIAL - PDG 2020 - TURMA 3 - WORKSHOP 2","HOMERO REIS CONSULTORIA E GESTÃO EMPRESARIAL LTDA","07.131.596/0001-08",4,"2020-11-04","2020-11-06","NO PAÍS","SUSI ANE SUAREZ DA SILVA","CONTRATAÇÃO",354.35,0,0,354.35,"DESENVOLVER NOS COORDENADORES DE PROCESSOS ORGANIZACIONAIS AS COMPETÊNCIAS QUE FORAM TRABALHADAS NOS GESTORES ESTRATÉGICOS DA ANTT."]
["PROGRAMA DE DESENVOLVIMENTO GERENCIAL - PDG 2020 - TURMA 3 - WORKSHOP 2","HOMERO REIS CONSULTORIA E GESTÃO EMPRESARIAL LTDA","07.131.596/0001-08",4,"2020-11-04","2020-11-06","NO PAÍS","VINICIUS PEREIRA DE OLIVEIRA","CONTRATAÇÃO",354.35,0,0,354.35,"DESENVOLVER NOS COORDENADORES DE PROCESSOS ORGANIZACIONAIS AS COMPETÊNCIAS QUE FORAM TRABALHADAS NOS GESTORES ESTRATÉGICOS DA ANTT."]
["11º CICLO INTERNACIONAL DE DESENVOLVIMENTO DE EXECUTIVOS DA ADMINISTRAÇÃO PÚBLICA FEDERAL","FUNDAÇÃO ESCOLA NACIONAL DE ADMINISTRACAO PUBLICA","06.627.612/0001-09",90,"2020-11-06","2020-03-31","NO PAÍS/NO EXTERIOR","CLEBER DIAS DA SILVA JUNIOR","INSCRIÇÃO",17433.38,0,5437.6290000000008,22871.009000000002,"DESENVOLVER COMPETÊNCIAS NA GESTÃO E LIDERANÇA DE EQUIPES"]
["CURSO DE SEGURANÇA ORGÂNICA APLICADA À FISCALIZAÇÃO","AGÊNCIA NACIONAL DE TRANSPORTES TERRESTRES - ANTT","04.898.488/0001-77",28,"2020-11-09","2020-11-12","NO PAÍS","CAROLINE BELLUCIO DECEMBRINO","SEM CUSTOS DE INSCRIÇÃO - GRATUITO",0,1121,0,1121,"PROCEDIMENTOS DE SEGURANÇA E POSTURA PROFISSIONAL NA FISCALIZAÇÃO NA RODOVIÁRIA"]
["CURSO DE SEGURANÇA ORGÂNICA APLICADA À FISCALIZAÇÃO","AGÊNCIA NACIONAL DE TRANSPORTES TERRESTRES - ANTT","04.898.488/0001-77",28,"2020-11-09","2020-11-12","NO PAÍS","CLEBER RODRIGUES FERNANDES","SEM CUSTOS DE INSCRIÇÃO - GRATUITO",0,1121,0,1121,"PROCEDIMENTOS DE SEGURANÇA E POSTURA PROFISSIONAL NA FISCALIZAÇÃO NA RODOVIÁRIA"]
["CURSO DE SEGURANÇA ORGÂNICA APLICADA À FISCALIZAÇÃO","AGÊNCIA NACIONAL DE TRANSPORTES TERRESTRES - ANTT","04.898.488/0001-77",28,"2020-11-09","2020-11-12","NO PAÍS","FABIANO FONTES LOPES","SEM CUSTOS DE INSCRIÇÃO - GRATUITO",0,1121,0,1121,"PROCEDIMENTOS DE SEGURANÇA E POSTURA PROFISSIONAL NA FISCALIZAÇÃO NA RODOVIÁRIA"]
["CURSO DE SEGURANÇA ORGÂNICA APLICADA À FISCALIZAÇÃO","AGÊNCIA NACIONAL DE TRANSPORTES TERRESTRES - ANTT","04.898.488/0001-77",28,"2020-11-09","2020-11-12","NO PAÍS","JORGE CARLOS CHAVES DE LYRA","SEM CUSTOS DE INSCRIÇÃO - GRATUITO",0,1121,0,1121,"PROCEDIMENTOS DE SEGURANÇA E POSTURA PROFISSIONAL NA FISCALIZAÇÃO NA RODOVIÁRIA"]
["CURSO DE SEGURANÇA ORGÂNICA APLICADA À FISCALIZAÇÃO","AGÊNCIA NACIONAL DE TRANSPORTES TERRESTRES - ANTT","04.898.488/0001-77",28,"2020-11-09","2020-11-12","NO PAÍS","MARCIO LIMA DE CARVALHO","SEM CUSTOS DE INSCRIÇÃO - GRATUITO",0,1121,0,1121,"PROCEDIMENTOS DE SEGURANÇA E POSTURA PROFISSIONAL NA FISCALIZAÇÃO NA RODOVIÁRIA"]
["CURSO DE SEGURANÇA ORGÂNICA APLICADA À FISCALIZAÇÃO","AGÊNCIA NACIONAL DE TRANSPORTES TERRESTRES - ANTT","04.898.488/0001-77",28,"2020-11-09","2020-11-12","NO PAÍS","RODRIGO DA SILVA PEREIRA","SEM CUSTOS DE INSCRIÇÃO - GRATUITO",0,1121,0,1121,"PROCEDIMENTOS DE SEGURANÇA E POSTURA PROFISSIONAL NA FISCALIZAÇÃO NA RODOVIÁRIA"]
["CURSO DE SEGURANÇA ORGÂNICA APLICADA À FISCALIZAÇÃO","AGÊNCIA NACIONAL DE TRANSPORTES TERRESTRES - ANTT","04.898.488/0001-77",28,"2020-11-09","2020-11-12","NO PAÍS","TIAGO DE ARAUJO PAVAO","SEM CUSTOS DE INSCRIÇÃO - GRATUITO",0,1121,0,1121,"PROCEDIMENTOS DE SEGURANÇA E POSTURA PROFISSIONAL NA FISCALIZAÇÃO NA RODOVIÁRIA"]
["PROGRAMA DE DESENVOLVIMENTO GERENCIAL - PDG 2020 - TURMA 3 - SUPERVISÃO DE LÍDER COACH 1","HOMERO REIS CONSULTORIA E GESTÃO EMPRESARIAL LTDA","07.131.596/0001-08",2,"2020-11-13","2020-11-13","NO PAÍS","AMINADABE DOS SANTOS PIRES SOARES","CONTRATAÇÃO",162.18,0,0,162.18,"DESENVOLVER NOS COORDENADORES DE PROCESSOS ORGANIZACIONAIS AS COMPETÊNCIAS QUE FORAM TRABALHADAS NOS GESTORES ESTRATÉGICOS DA ANTT."]
["PROGRAMA DE DESENVOLVIMENTO GERENCIAL - PDG 2020 - TURMA 3 - SUPERVISÃO DE LÍDER COACH 1","HOMERO REIS CONSULTORIA E GESTÃO EMPRESARIAL LTDA","07.131.596/0001-08",2,"2020-11-13","2020-11-13","NO PAÍS","ANDRE BOTIN NASCIMENTO","CONTRATAÇÃO",162.18,0,0,162.18,"DESENVOLVER NOS COORDENADORES DE PROCESSOS ORGANIZACIONAIS AS COMPETÊNCIAS QUE FORAM TRABALHADAS NOS GESTORES ESTRATÉGICOS DA ANTT."]
["PROGRAMA DE DESENVOLVIMENTO GERENCIAL - PDG 2020 - TURMA 3 - SUPERVISÃO DE LÍDER COACH 1","HOMERO REIS CONSULTORIA E GESTÃO EMPRESARIAL LTDA","07.131.596/0001-08",2,"2020-11-13","2020-11-13","NO PAÍS","CLEIDES SILVA CAMPOS FONTENELE","CONTRATAÇÃO",162.18,0,0,162.18,"DESENVOLVER NOS COORDENADORES DE PROCESSOS ORGANIZACIONAIS AS COMPETÊNCIAS QUE FORAM TRABALHADAS NOS GESTORES ESTRATÉGICOS DA ANTT."]
["PROGRAMA DE DESENVOLVIMENTO GERENCIAL - PDG 2020 - TURMA 3 - SUPERVISÃO DE LÍDER COACH 1","HOMERO REIS CONSULTORIA E GESTÃO EMPRESARIAL LTDA","07.131.596/0001-08",2,"2020-11-13","2020-11-13","NO PAÍS","CRISTIANE SOUSA DE OLIVEIRA","CONTRATAÇÃO",162.18,0,0,162.18,"DESENVOLVER NOS COORDENADORES DE PROCESSOS ORGANIZACIONAIS AS COMPETÊNCIAS QUE FORAM TRABALHADAS NOS GESTORES ESTRATÉGICOS DA ANTT."]
["PROGRAMA DE DESENVOLVIMENTO GERENCIAL - PDG 2020 - TURMA 3 - SUPERVISÃO DE LÍDER COACH 1","HOMERO REIS CONSULTORIA E GESTÃO EMPRESARIAL LTDA","07.131.596/0001-08",2,"2020-11-13","2020-11-13","NO PAÍS","FELIPE BARBOSA FEIJO","CONTRATAÇÃO",162.18,0,0,162.18,"DESENVOLVER NOS COORDENADORES DE PROCESSOS ORGANIZACIONAIS AS COMPETÊNCIAS QUE FORAM TRABALHADAS NOS GESTORES ESTRATÉGICOS DA ANTT."]
["PROGRAMA DE DESENVOLVIMENTO GERENCIAL - PDG 2020 - TURMA 3 - SUPERVISÃO DE LÍDER COACH 1","HOMERO REIS CONSULTORIA E GESTÃO EMPRESARIAL LTDA","07.131.596/0001-08",2,"2020-11-13","2020-11-13","NO PAÍS","FERNANDO CARLOS PSARSKI CABRAL","CONTRATAÇÃO",162.18,0,0,162.18,"DESENVOLVER NOS COORDENADORES DE PROCESSOS ORGANIZACIONAIS AS COMPETÊNCIAS QUE FORAM TRABALHADAS NOS GESTORES ESTRATÉGICOS DA ANTT."]
["PROGRAMA DE DESENVOLVIMENTO GERENCIAL - PDG 2020 - TURMA 3 - SUPERVISÃO DE LÍDER COACH 1","HOMERO REIS CONSULTORIA E GESTÃO EMPRESARIAL LTDA","07.131.596/0001-08",2,"2020-11-13","2020-11-13","NO PAÍS","FERNANDO NUNES CARNEIRO RIOS         ","CONTRATAÇÃO",162.18,0,0,162.18,"DESENVOLVER NOS COORDENADORES DE PROCESSOS ORGANIZACIONAIS AS COMPETÊNCIAS QUE FORAM TRABALHADAS NOS GESTORES ESTRATÉGICOS DA ANTT."]
["PROGRAMA DE DESENVOLVIMENTO GERENCIAL - PDG 2020 - TURMA 3 - SUPERVISÃO DE LÍDER COACH 1","HOMERO REIS CONSULTORIA E GESTÃO EMPRESARIAL LTDA","07.131.596/0001-08",2,"2020-11-13","2020-11-13","NO PAÍS","FRANCISCA VERONICA JUCÁ DE MORAIS","CONTRATAÇÃO",162.18,0,0,162.18,"DESENVOLVER NOS COORDENADORES DE PROCESSOS ORGANIZACIONAIS AS COMPETÊNCIAS QUE FORAM TRABALHADAS NOS GESTORES ESTRATÉGICOS DA ANTT."]
["PROGRAMA DE DESENVOLVIMENTO GERENCIAL - PDG 2020 - TURMA 3 - SUPERVISÃO DE LÍDER COACH 1","HOMERO REIS CONSULTORIA E GESTÃO EMPRESARIAL LTDA","07.131.596/0001-08",2,"2020-11-13","2020-11-13","NO PAÍS","FREDERICO LUIZ VIEIRA","CONTRATAÇÃO",162.18,0,0,162.18,"DESENVOLVER NOS COORDENADORES DE PROCESSOS ORGANIZACIONAIS AS COMPETÊNCIAS QUE FORAM TRABALHADAS NOS GESTORES ESTRATÉGICOS DA ANTT."]
["PROGRAMA DE DESENVOLVIMENTO GERENCIAL - PDG 2020 - TURMA 3 - SUPERVISÃO DE LÍDER COACH 1","HOMERO REIS CONSULTORIA E GESTÃO EMPRESARIAL LTDA","07.131.596/0001-08",2,"2020-11-13","2020-11-13","NO PAÍS","GILBERTO JOSE TELLES FILHO","CONTRATAÇÃO",162.16999999999999,0,0,162.16999999999999,"DESENVOLVER NOS COORDENADORES DE PROCESSOS ORGANIZACIONAIS AS COMPETÊNCIAS QUE FORAM TRABALHADAS NOS GESTORES ESTRATÉGICOS DA ANTT."]
["PROGRAMA DE DESENVOLVIMENTO GERENCIAL - PDG 2020 - TURMA 3 - SUPERVISÃO DE LÍDER COACH 1","HOMERO REIS CONSULTORIA E GESTÃO EMPRESARIAL LTDA","07.131.596/0001-08",2,"2020-11-13","2020-11-13","NO PAÍS","HILDEVANA MEIRE DA SILVA ALMEIDA","CONTRATAÇÃO",162.16999999999999,0,0,162.16999999999999,"DESENVOLVER NOS COORDENADORES DE PROCESSOS ORGANIZACIONAIS AS COMPETÊNCIAS QUE FORAM TRABALHADAS NOS GESTORES ESTRATÉGICOS DA ANTT."]
["PROGRAMA DE DESENVOLVIMENTO GERENCIAL - PDG 2020 - TURMA 3 - SUPERVISÃO DE LÍDER COACH 1","HOMERO REIS CONSULTORIA E GESTÃO EMPRESARIAL LTDA","07.131.596/0001-08",2,"2020-11-13","2020-11-13","NO PAÍS","JOAO EMERSON LOPES DE SOUZA       ","CONTRATAÇÃO",162.16999999999999,0,0,162.16999999999999,"DESENVOLVER NOS COORDENADORES DE PROCESSOS ORGANIZACIONAIS AS COMPETÊNCIAS QUE FORAM TRABALHADAS NOS GESTORES ESTRATÉGICOS DA ANTT."]
["PROGRAMA DE DESENVOLVIMENTO GERENCIAL - PDG 2020 - TURMA 3 - SUPERVISÃO DE LÍDER COACH 1","HOMERO REIS CONSULTORIA E GESTÃO EMPRESARIAL LTDA","07.131.596/0001-08",2,"2020-11-13","2020-11-13","NO PAÍS","JULIANE FURTADO NOVAES","CONTRATAÇÃO",162.16999999999999,0,0,162.16999999999999,"DESENVOLVER NOS COORDENADORES DE PROCESSOS ORGANIZACIONAIS AS COMPETÊNCIAS QUE FORAM TRABALHADAS NOS GESTORES ESTRATÉGICOS DA ANTT."]
["PROGRAMA DE DESENVOLVIMENTO GERENCIAL - PDG 2020 - TURMA 3 - SUPERVISÃO DE LÍDER COACH 1","HOMERO REIS CONSULTORIA E GESTÃO EMPRESARIAL LTDA","07.131.596/0001-08",2,"2020-11-13","2020-11-13","NO PAÍS","LAURINDO SERGIO FILHO","CONTRATAÇÃO",162.16999999999999,0,0,162.16999999999999,"DESENVOLVER NOS COORDENADORES DE PROCESSOS ORGANIZACIONAIS AS COMPETÊNCIAS QUE FORAM TRABALHADAS NOS GESTORES ESTRATÉGICOS DA ANTT."]
["PROGRAMA DE DESENVOLVIMENTO GERENCIAL - PDG 2020 - TURMA 3 - SUPERVISÃO DE LÍDER COACH 1","HOMERO REIS CONSULTORIA E GESTÃO EMPRESARIAL LTDA","07.131.596/0001-08",2,"2020-11-13","2020-11-13","NO PAÍS","ORLEI DAMASIO SILVEIRA","CONTRATAÇÃO",162.16999999999999,0,0,162.16999999999999,"DESENVOLVER NOS COORDENADORES DE PROCESSOS ORGANIZACIONAIS AS COMPETÊNCIAS QUE FORAM TRABALHADAS NOS GESTORES ESTRATÉGICOS DA ANTT."]
["PROGRAMA DE DESENVOLVIMENTO GERENCIAL - PDG 2020 - TURMA 3 - SUPERVISÃO DE LÍDER COACH 1","HOMERO REIS CONSULTORIA E GESTÃO EMPRESARIAL LTDA","07.131.596/0001-08",2,"2020-11-13","2020-11-13","NO PAÍS","PEDRO MUGLIA","CONTRATAÇÃO",162.16999999999999,0,0,162.16999999999999,"DESENVOLVER NOS COORDENADORES DE PROCESSOS ORGANIZACIONAIS AS COMPETÊNCIAS QUE FORAM TRABALHADAS NOS GESTORES ESTRATÉGICOS DA ANTT."]
["PROGRAMA DE DESENVOLVIMENTO GERENCIAL - PDG 2020 - TURMA 3 - SUPERVISÃO DE LÍDER COACH 1","HOMERO REIS CONSULTORIA E GESTÃO EMPRESARIAL LTDA","07.131.596/0001-08",2,"2020-11-13","2020-11-13","NO PAÍS","RAFAELA GOMES DE SOUZA E SILVA","CONTRATAÇÃO",162.16999999999999,0,0,162.16999999999999,"DESENVOLVER NOS COORDENADORES DE PROCESSOS ORGANIZACIONAIS AS COMPETÊNCIAS QUE FORAM TRABALHADAS NOS GESTORES ESTRATÉGICOS DA ANTT."]
["PROGRAMA DE DESENVOLVIMENTO GERENCIAL - PDG 2020 - TURMA 3 - SUPERVISÃO DE LÍDER COACH 1","HOMERO REIS CONSULTORIA E GESTÃO EMPRESARIAL LTDA","07.131.596/0001-08",2,"2020-11-13","2020-11-13","NO PAÍS","RODRIGO MORETTI BRANCHINI          ","CONTRATAÇÃO",162.16999999999999,0,0,162.16999999999999,"DESENVOLVER NOS COORDENADORES DE PROCESSOS ORGANIZACIONAIS AS COMPETÊNCIAS QUE FORAM TRABALHADAS NOS GESTORES ESTRATÉGICOS DA ANTT."]
["PROGRAMA DE DESENVOLVIMENTO GERENCIAL - PDG 2020 - TURMA 3 - SUPERVISÃO DE LÍDER COACH 1","HOMERO REIS CONSULTORIA E GESTÃO EMPRESARIAL LTDA","07.131.596/0001-08",2,"2020-11-13","2020-11-13","NO PAÍS","RODRIGO PEREIRA DE CASTRO","CONTRATAÇÃO",162.16999999999999,0,0,162.16999999999999,"DESENVOLVER NOS COORDENADORES DE PROCESSOS ORGANIZACIONAIS AS COMPETÊNCIAS QUE FORAM TRABALHADAS NOS GESTORES ESTRATÉGICOS DA ANTT."]
["PROGRAMA DE DESENVOLVIMENTO GERENCIAL - PDG 2020 - TURMA 3 - SUPERVISÃO DE LÍDER COACH 1","HOMERO REIS CONSULTORIA E GESTÃO EMPRESARIAL LTDA","07.131.596/0001-08",2,"2020-11-13","2020-11-13","NO PAÍS","SERGIO AUGUSTO FERNANDES","CONTRATAÇÃO",162.16999999999999,0,0,162.16999999999999,"DESENVOLVER NOS COORDENADORES DE PROCESSOS ORGANIZACIONAIS AS COMPETÊNCIAS QUE FORAM TRABALHADAS NOS GESTORES ESTRATÉGICOS DA ANTT."]
["PROGRAMA DE DESENVOLVIMENTO GERENCIAL - PDG 2020 - TURMA 3 - SUPERVISÃO DE LÍDER COACH 1","HOMERO REIS CONSULTORIA E GESTÃO EMPRESARIAL LTDA","07.131.596/0001-08",2,"2020-11-13","2020-11-13","NO PAÍS","SIMONE LETTI BASTANI","CONTRATAÇÃO",162.16999999999999,0,0,162.16999999999999,"DESENVOLVER NOS COORDENADORES DE PROCESSOS ORGANIZACIONAIS AS COMPETÊNCIAS QUE FORAM TRABALHADAS NOS GESTORES ESTRATÉGICOS DA ANTT."]
["PROGRAMA DE DESENVOLVIMENTO GERENCIAL - PDG 2020 - TURMA 3 - SUPERVISÃO DE LÍDER COACH 1","HOMERO REIS CONSULTORIA E GESTÃO EMPRESARIAL LTDA","07.131.596/0001-08",2,"2020-11-13","2020-11-13","NO PAÍS","SIOMAR CARIBE DE OLIVEIRA","CONTRATAÇÃO",162.16999999999999,0,0,162.16999999999999,"DESENVOLVER NOS COORDENADORES DE PROCESSOS ORGANIZACIONAIS AS COMPETÊNCIAS QUE FORAM TRABALHADAS NOS GESTORES ESTRATÉGICOS DA ANTT."]
["PROGRAMA DE DESENVOLVIMENTO GERENCIAL - PDG 2020 - TURMA 3 - SUPERVISÃO DE LÍDER COACH 1","HOMERO REIS CONSULTORIA E GESTÃO EMPRESARIAL LTDA","07.131.596/0001-08",2,"2020-11-13","2020-11-13","NO PAÍS","VINICIUS PEREIRA DE OLIVEIRA","CONTRATAÇÃO",162.16999999999999,0,0,162.16999999999999,"DESENVOLVER NOS COORDENADORES DE PROCESSOS ORGANIZACIONAIS AS COMPETÊNCIAS QUE FORAM TRABALHADAS NOS GESTORES ESTRATÉGICOS DA ANTT."]
["PROGRAMA DE DESENVOLVIMENTO GERENCIAL - PDG 2020 - TURMA 3 - WORKSHOP 3","HOMERO REIS CONSULTORIA E GESTÃO EMPRESARIAL LTDA","07.131.596/0001-08",4,"2020-11-16","2020-11-18","NO PAÍS","AMINADABE DOS SANTOS PIRES SOARES","CONTRATAÇÃO",369.12,0,0,369.12,"DESENVOLVER NOS COORDENADORES DE PROCESSOS ORGANIZACIONAIS AS COMPETÊNCIAS QUE FORAM TRABALHADAS NOS GESTORES ESTRATÉGICOS DA ANTT."]
["PROGRAMA DE DESENVOLVIMENTO GERENCIAL - PDG 2020 - TURMA 3 - WORKSHOP 3","HOMERO REIS CONSULTORIA E GESTÃO EMPRESARIAL LTDA","07.131.596/0001-08",4,"2020-11-16","2020-11-18","NO PAÍS","ANDRE BOTIN NASCIMENTO","CONTRATAÇÃO",369.12,0,0,369.12,"DESENVOLVER NOS COORDENADORES DE PROCESSOS ORGANIZACIONAIS AS COMPETÊNCIAS QUE FORAM TRABALHADAS NOS GESTORES ESTRATÉGICOS DA ANTT."]
["PROGRAMA DE DESENVOLVIMENTO GERENCIAL - PDG 2020 - TURMA 3 - WORKSHOP 3","HOMERO REIS CONSULTORIA E GESTÃO EMPRESARIAL LTDA","07.131.596/0001-08",4,"2020-11-16","2020-11-18","NO PAÍS","CLEIDES SILVA CAMPOS FONTENELE","CONTRATAÇÃO",369.12,0,0,369.12,"DESENVOLVER NOS COORDENADORES DE PROCESSOS ORGANIZACIONAIS AS COMPETÊNCIAS QUE FORAM TRABALHADAS NOS GESTORES ESTRATÉGICOS DA ANTT."]
["PROGRAMA DE DESENVOLVIMENTO GERENCIAL - PDG 2020 - TURMA 3 - WORKSHOP 3","HOMERO REIS CONSULTORIA E GESTÃO EMPRESARIAL LTDA","07.131.596/0001-08",4,"2020-11-16","2020-11-18","NO PAÍS","CRISTIANE SOUSA DE OLIVEIRA","CONTRATAÇÃO",369.12,0,0,369.12,"DESENVOLVER NOS COORDENADORES DE PROCESSOS ORGANIZACIONAIS AS COMPETÊNCIAS QUE FORAM TRABALHADAS NOS GESTORES ESTRATÉGICOS DA ANTT."]
["PROGRAMA DE DESENVOLVIMENTO GERENCIAL - PDG 2020 - TURMA 3 - WORKSHOP 3","HOMERO REIS CONSULTORIA E GESTÃO EMPRESARIAL LTDA","07.131.596/0001-08",4,"2020-11-16","2020-11-18","NO PAÍS","FELIPE BARBOSA FEIJO","CONTRATAÇÃO",369.12,0,0,369.12,"DESENVOLVER NOS COORDENADORES DE PROCESSOS ORGANIZACIONAIS AS COMPETÊNCIAS QUE FORAM TRABALHADAS NOS GESTORES ESTRATÉGICOS DA ANTT."]
["PROGRAMA DE DESENVOLVIMENTO GERENCIAL - PDG 2020 - TURMA 3 - WORKSHOP 3","HOMERO REIS CONSULTORIA E GESTÃO EMPRESARIAL LTDA","07.131.596/0001-08",4,"2020-11-16","2020-11-18","NO PAÍS","FERNANDO CARLOS PSARSKI CABRAL","CONTRATAÇÃO",369.12,0,0,369.12,"DESENVOLVER NOS COORDENADORES DE PROCESSOS ORGANIZACIONAIS AS COMPETÊNCIAS QUE FORAM TRABALHADAS NOS GESTORES ESTRATÉGICOS DA ANTT."]
["PROGRAMA DE DESENVOLVIMENTO GERENCIAL - PDG 2020 - TURMA 3 - WORKSHOP 3","HOMERO REIS CONSULTORIA E GESTÃO EMPRESARIAL LTDA","07.131.596/0001-08",4,"2020-11-16","2020-11-18","NO PAÍS","FERNANDO NUNES CARNEIRO RIOS         ","CONTRATAÇÃO",369.12,0,0,369.12,"DESENVOLVER NOS COORDENADORES DE PROCESSOS ORGANIZACIONAIS AS COMPETÊNCIAS QUE FORAM TRABALHADAS NOS GESTORES ESTRATÉGICOS DA ANTT."]
["PROGRAMA DE DESENVOLVIMENTO GERENCIAL - PDG 2020 - TURMA 3 - WORKSHOP 3","HOMERO REIS CONSULTORIA E GESTÃO EMPRESARIAL LTDA","07.131.596/0001-08",4,"2020-11-16","2020-11-18","NO PAÍS","FRANCISCA VERONICA JUCÁ DE MORAIS","CONTRATAÇÃO",369.12,0,0,369.12,"DESENVOLVER NOS COORDENADORES DE PROCESSOS ORGANIZACIONAIS AS COMPETÊNCIAS QUE FORAM TRABALHADAS NOS GESTORES ESTRATÉGICOS DA ANTT."]
["PROGRAMA DE DESENVOLVIMENTO GERENCIAL - PDG 2020 - TURMA 3 - WORKSHOP 3","HOMERO REIS CONSULTORIA E GESTÃO EMPRESARIAL LTDA","07.131.596/0001-08",4,"2020-11-16","2020-11-18","NO PAÍS","FREDERICO LUIZ VIEIRA","CONTRATAÇÃO",369.12,0,0,369.12,"DESENVOLVER NOS COORDENADORES DE PROCESSOS ORGANIZACIONAIS AS COMPETÊNCIAS QUE FORAM TRABALHADAS NOS GESTORES ESTRATÉGICOS DA ANTT."]
["PROGRAMA DE DESENVOLVIMENTO GERENCIAL - PDG 2020 - TURMA 3 - WORKSHOP 3","HOMERO REIS CONSULTORIA E GESTÃO EMPRESARIAL LTDA","07.131.596/0001-08",4,"2020-11-16","2020-11-18","NO PAÍS","GILBERTO JOSE TELLES FILHO","CONTRATAÇÃO",369.12,0,0,369.12,"DESENVOLVER NOS COORDENADORES DE PROCESSOS ORGANIZACIONAIS AS COMPETÊNCIAS QUE FORAM TRABALHADAS NOS GESTORES ESTRATÉGICOS DA ANTT."]
["PROGRAMA DE DESENVOLVIMENTO GERENCIAL - PDG 2020 - TURMA 3 - WORKSHOP 3","HOMERO REIS CONSULTORIA E GESTÃO EMPRESARIAL LTDA","07.131.596/0001-08",4,"2020-11-16","2020-11-18","NO PAÍS","HILDEVANA MEIRE DA SILVA ALMEIDA","CONTRATAÇÃO",369.12,0,0,369.12,"DESENVOLVER NOS COORDENADORES DE PROCESSOS ORGANIZACIONAIS AS COMPETÊNCIAS QUE FORAM TRABALHADAS NOS GESTORES ESTRATÉGICOS DA ANTT."]
["PROGRAMA DE DESENVOLVIMENTO GERENCIAL - PDG 2020 - TURMA 3 - WORKSHOP 3","HOMERO REIS CONSULTORIA E GESTÃO EMPRESARIAL LTDA","07.131.596/0001-08",4,"2020-11-16","2020-11-18","NO PAÍS","HUGO LEONARDO CUNHA RODRIGUES","CONTRATAÇÃO",369.11,0,0,369.11,"DESENVOLVER NOS COORDENADORES DE PROCESSOS ORGANIZACIONAIS AS COMPETÊNCIAS QUE FORAM TRABALHADAS NOS GESTORES ESTRATÉGICOS DA ANTT."]
["PROGRAMA DE DESENVOLVIMENTO GERENCIAL - PDG 2020 - TURMA 3 - WORKSHOP 3","HOMERO REIS CONSULTORIA E GESTÃO EMPRESARIAL LTDA","07.131.596/0001-08",4,"2020-11-16","2020-11-18","NO PAÍS","JOAO EMERSON LOPES DE SOUZA       ","CONTRATAÇÃO",369.11,0,0,369.11,"DESENVOLVER NOS COORDENADORES DE PROCESSOS ORGANIZACIONAIS AS COMPETÊNCIAS QUE FORAM TRABALHADAS NOS GESTORES ESTRATÉGICOS DA ANTT."]
["PROGRAMA DE DESENVOLVIMENTO GERENCIAL - PDG 2020 - TURMA 3 - WORKSHOP 3","HOMERO REIS CONSULTORIA E GESTÃO EMPRESARIAL LTDA","07.131.596/0001-08",4,"2020-11-16","2020-11-18","NO PAÍS","JULIANE FURTADO NOVAES","CONTRATAÇÃO",369.11,0,0,369.11,"DESENVOLVER NOS COORDENADORES DE PROCESSOS ORGANIZACIONAIS AS COMPETÊNCIAS QUE FORAM TRABALHADAS NOS GESTORES ESTRATÉGICOS DA ANTT."]
["PROGRAMA DE DESENVOLVIMENTO GERENCIAL - PDG 2020 - TURMA 3 - WORKSHOP 3","HOMERO REIS CONSULTORIA E GESTÃO EMPRESARIAL LTDA","07.131.596/0001-08",4,"2020-11-16","2020-11-18","NO PAÍS","LAURINDO SERGIO FILHO","CONTRATAÇÃO",369.11,0,0,369.11,"DESENVOLVER NOS COORDENADORES DE PROCESSOS ORGANIZACIONAIS AS COMPETÊNCIAS QUE FORAM TRABALHADAS NOS GESTORES ESTRATÉGICOS DA ANTT."]
["PROGRAMA DE DESENVOLVIMENTO GERENCIAL - PDG 2020 - TURMA 3 - WORKSHOP 3","HOMERO REIS CONSULTORIA E GESTÃO EMPRESARIAL LTDA","07.131.596/0001-08",4,"2020-11-16","2020-11-18","NO PAÍS","ORLEI DAMASIO SILVEIRA","CONTRATAÇÃO",369.11,0,0,369.11,"DESENVOLVER NOS COORDENADORES DE PROCESSOS ORGANIZACIONAIS AS COMPETÊNCIAS QUE FORAM TRABALHADAS NOS GESTORES ESTRATÉGICOS DA ANTT."]
["PROGRAMA DE DESENVOLVIMENTO GERENCIAL - PDG 2020 - TURMA 3 - WORKSHOP 3","HOMERO REIS CONSULTORIA E GESTÃO EMPRESARIAL LTDA","07.131.596/0001-08",4,"2020-11-16","2020-11-18","NO PAÍS","PEDRO MUGLIA","CONTRATAÇÃO",369.11,0,0,369.11,"DESENVOLVER NOS COORDENADORES DE PROCESSOS ORGANIZACIONAIS AS COMPETÊNCIAS QUE FORAM TRABALHADAS NOS GESTORES ESTRATÉGICOS DA ANTT."]
["PROGRAMA DE DESENVOLVIMENTO GERENCIAL - PDG 2020 - TURMA 3 - WORKSHOP 3","HOMERO REIS CONSULTORIA E GESTÃO EMPRESARIAL LTDA","07.131.596/0001-08",4,"2020-11-16","2020-11-18","NO PAÍS","RAFAELA GOMES DE SOUZA E SILVA","CONTRATAÇÃO",369.11,0,0,369.11,"DESENVOLVER NOS COORDENADORES DE PROCESSOS ORGANIZACIONAIS AS COMPETÊNCIAS QUE FORAM TRABALHADAS NOS GESTORES ESTRATÉGICOS DA ANTT."]
["PROGRAMA DE DESENVOLVIMENTO GERENCIAL - PDG 2020 - TURMA 3 - WORKSHOP 3","HOMERO REIS CONSULTORIA E GESTÃO EMPRESARIAL LTDA","07.131.596/0001-08",4,"2020-11-16","2020-11-18","NO PAÍS","RODRIGO MORETTI BRANCHINI          ","CONTRATAÇÃO",369.11,0,0,369.11,"DESENVOLVER NOS COORDENADORES DE PROCESSOS ORGANIZACIONAIS AS COMPETÊNCIAS QUE FORAM TRABALHADAS NOS GESTORES ESTRATÉGICOS DA ANTT."]
["PROGRAMA DE DESENVOLVIMENTO GERENCIAL - PDG 2020 - TURMA 3 - WORKSHOP 3","HOMERO REIS CONSULTORIA E GESTÃO EMPRESARIAL LTDA","07.131.596/0001-08",4,"2020-11-16","2020-11-18","NO PAÍS","SERGIO AUGUSTO FERNANDES","CONTRATAÇÃO",369.11,0,0,369.11,"DESENVOLVER NOS COORDENADORES DE PROCESSOS ORGANIZACIONAIS AS COMPETÊNCIAS QUE FORAM TRABALHADAS NOS GESTORES ESTRATÉGICOS DA ANTT."]
["PROGRAMA DE DESENVOLVIMENTO GERENCIAL - PDG 2020 - TURMA 3 - WORKSHOP 3","HOMERO REIS CONSULTORIA E GESTÃO EMPRESARIAL LTDA","07.131.596/0001-08",4,"2020-11-16","2020-11-18","NO PAÍS","SIMONE LETTI BASTANI","CONTRATAÇÃO",369.11,0,0,369.11,"DESENVOLVER NOS COORDENADORES DE PROCESSOS ORGANIZACIONAIS AS COMPETÊNCIAS QUE FORAM TRABALHADAS NOS GESTORES ESTRATÉGICOS DA ANTT."]
["PROGRAMA DE DESENVOLVIMENTO GERENCIAL - PDG 2020 - TURMA 3 - WORKSHOP 3","HOMERO REIS CONSULTORIA E GESTÃO EMPRESARIAL LTDA","07.131.596/0001-08",4,"2020-11-16","2020-11-18","NO PAÍS","SIOMAR CARIBE DE OLIVEIRA","CONTRATAÇÃO",369.11,0,0,369.11,"DESENVOLVER NOS COORDENADORES DE PROCESSOS ORGANIZACIONAIS AS COMPETÊNCIAS QUE FORAM TRABALHADAS NOS GESTORES ESTRATÉGICOS DA ANTT."]
["PROGRAMA DE DESENVOLVIMENTO GERENCIAL - PDG 2020 - TURMA 3 - WORKSHOP 3","HOMERO REIS CONSULTORIA E GESTÃO EMPRESARIAL LTDA","07.131.596/0001-08",4,"2020-11-16","2020-11-18","NO PAÍS","SUSI ANE SUAREZ DA SILVA","CONTRATAÇÃO",369.11,0,0,369.11,"DESENVOLVER NOS COORDENADORES DE PROCESSOS ORGANIZACIONAIS AS COMPETÊNCIAS QUE FORAM TRABALHADAS NOS GESTORES ESTRATÉGICOS DA ANTT."]
["PROGRAMA DE DESENVOLVIMENTO GERENCIAL - PDG 2020 - TURMA 3 - WORKSHOP 3","HOMERO REIS CONSULTORIA E GESTÃO EMPRESARIAL LTDA","07.131.596/0001-08",4,"2020-11-16","2020-11-18","NO PAÍS","VINICIUS PEREIRA DE OLIVEIRA","CONTRATAÇÃO",369.11,0,0,369.11,"DESENVOLVER NOS COORDENADORES DE PROCESSOS ORGANIZACIONAIS AS COMPETÊNCIAS QUE FORAM TRABALHADAS NOS GESTORES ESTRATÉGICOS DA ANTT."]
["14º PREGÃO WEEK - SEMANA NACIONAL DE ESTUDOS AVANÇADOS SOBRE PREGÃO","INSTITUTO NEGÓCIOS PÚBLICOS DO BRASIL LTDA","10.498.974/0002-81",30,"2020-11-23","2020-11-27","NO PAÍS","ABELAR VIEIRA ROSA NETO         ","INSCRIÇÃO",2700,0,0,2700,"NECESSIDADE DE CONHECIMENTO TÉCNICO EM PLANEJAMENTO E ACOMPANHAMENTO DA EXECUÇÃO DE CONTRATOS ADMINISTRATIVOS"]
["PROGRAMA DE DESENVOLVIMENTO GERENCIAL - PDG 2020 - TURMA 3 - WORKSHOP 4","HOMERO REIS CONSULTORIA E GESTÃO EMPRESARIAL LTDA","07.131.596/0001-08",4,"2020-11-25","2020-11-27","NO PAÍS","AMINADABE DOS SANTOS PIRES SOARES","CONTRATAÇÃO",369.12,0,0,369.12,"DESENVOLVER NOS COORDENADORES DE PROCESSOS ORGANIZACIONAIS AS COMPETÊNCIAS QUE FORAM TRABALHADAS NOS GESTORES ESTRATÉGICOS DA ANTT."]
["PROGRAMA DE DESENVOLVIMENTO GERENCIAL - PDG 2020 - TURMA 3 - WORKSHOP 4","HOMERO REIS CONSULTORIA E GESTÃO EMPRESARIAL LTDA","07.131.596/0001-08",4,"2020-11-25","2020-11-27","NO PAÍS","ANDRE BOTIN NASCIMENTO","CONTRATAÇÃO",369.12,0,0,369.12,"DESENVOLVER NOS COORDENADORES DE PROCESSOS ORGANIZACIONAIS AS COMPETÊNCIAS QUE FORAM TRABALHADAS NOS GESTORES ESTRATÉGICOS DA ANTT."]
["PROGRAMA DE DESENVOLVIMENTO GERENCIAL - PDG 2020 - TURMA 3 - WORKSHOP 4","HOMERO REIS CONSULTORIA E GESTÃO EMPRESARIAL LTDA","07.131.596/0001-08",4,"2020-11-25","2020-11-27","NO PAÍS","CLEIDES SILVA CAMPOS FONTENELE","CONTRATAÇÃO",369.12,0,0,369.12,"DESENVOLVER NOS COORDENADORES DE PROCESSOS ORGANIZACIONAIS AS COMPETÊNCIAS QUE FORAM TRABALHADAS NOS GESTORES ESTRATÉGICOS DA ANTT."]
["PROGRAMA DE DESENVOLVIMENTO GERENCIAL - PDG 2020 - TURMA 3 - WORKSHOP 4","HOMERO REIS CONSULTORIA E GESTÃO EMPRESARIAL LTDA","07.131.596/0001-08",4,"2020-11-25","2020-11-27","NO PAÍS","CRISTIANE SOUSA DE OLIVEIRA","CONTRATAÇÃO",369.12,0,0,369.12,"DESENVOLVER NOS COORDENADORES DE PROCESSOS ORGANIZACIONAIS AS COMPETÊNCIAS QUE FORAM TRABALHADAS NOS GESTORES ESTRATÉGICOS DA ANTT."]
["PROGRAMA DE DESENVOLVIMENTO GERENCIAL - PDG 2020 - TURMA 3 - WORKSHOP 4","HOMERO REIS CONSULTORIA E GESTÃO EMPRESARIAL LTDA","07.131.596/0001-08",4,"2020-11-25","2020-11-27","NO PAÍS","FELIPE BARBOSA FEIJO","CONTRATAÇÃO",369.12,0,0,369.12,"DESENVOLVER NOS COORDENADORES DE PROCESSOS ORGANIZACIONAIS AS COMPETÊNCIAS QUE FORAM TRABALHADAS NOS GESTORES ESTRATÉGICOS DA ANTT."]
["PROGRAMA DE DESENVOLVIMENTO GERENCIAL - PDG 2020 - TURMA 3 - WORKSHOP 4","HOMERO REIS CONSULTORIA E GESTÃO EMPRESARIAL LTDA","07.131.596/0001-08",4,"2020-11-25","2020-11-27","NO PAÍS","FERNANDO CARLOS PSARSKI CABRAL","CONTRATAÇÃO",369.12,0,0,369.12,"DESENVOLVER NOS COORDENADORES DE PROCESSOS ORGANIZACIONAIS AS COMPETÊNCIAS QUE FORAM TRABALHADAS NOS GESTORES ESTRATÉGICOS DA ANTT."]
["PROGRAMA DE DESENVOLVIMENTO GERENCIAL - PDG 2020 - TURMA 3 - WORKSHOP 4","HOMERO REIS CONSULTORIA E GESTÃO EMPRESARIAL LTDA","07.131.596/0001-08",4,"2020-11-25","2020-11-27","NO PAÍS","FRANCISCA VERONICA JUCÁ DE MORAIS","CONTRATAÇÃO",369.12,0,0,369.12,"DESENVOLVER NOS COORDENADORES DE PROCESSOS ORGANIZACIONAIS AS COMPETÊNCIAS QUE FORAM TRABALHADAS NOS GESTORES ESTRATÉGICOS DA ANTT."]
["PROGRAMA DE DESENVOLVIMENTO GERENCIAL - PDG 2020 - TURMA 3 - WORKSHOP 4","HOMERO REIS CONSULTORIA E GESTÃO EMPRESARIAL LTDA","07.131.596/0001-08",4,"2020-11-25","2020-11-27","NO PAÍS","FREDERICO LUIZ VIEIRA","CONTRATAÇÃO",369.12,0,0,369.12,"DESENVOLVER NOS COORDENADORES DE PROCESSOS ORGANIZACIONAIS AS COMPETÊNCIAS QUE FORAM TRABALHADAS NOS GESTORES ESTRATÉGICOS DA ANTT."]
["PROGRAMA DE DESENVOLVIMENTO GERENCIAL - PDG 2020 - TURMA 3 - WORKSHOP 4","HOMERO REIS CONSULTORIA E GESTÃO EMPRESARIAL LTDA","07.131.596/0001-08",4,"2020-11-25","2020-11-27","NO PAÍS","GILBERTO JOSE TELLES FILHO","CONTRATAÇÃO",369.12,0,0,369.12,"DESENVOLVER NOS COORDENADORES DE PROCESSOS ORGANIZACIONAIS AS COMPETÊNCIAS QUE FORAM TRABALHADAS NOS GESTORES ESTRATÉGICOS DA ANTT."]
["PROGRAMA DE DESENVOLVIMENTO GERENCIAL - PDG 2020 - TURMA 3 - WORKSHOP 4","HOMERO REIS CONSULTORIA E GESTÃO EMPRESARIAL LTDA","07.131.596/0001-08",4,"2020-11-25","2020-11-27","NO PAÍS","HILDEVANA MEIRE DA SILVA ALMEIDA","CONTRATAÇÃO",369.12,0,0,369.12,"DESENVOLVER NOS COORDENADORES DE PROCESSOS ORGANIZACIONAIS AS COMPETÊNCIAS QUE FORAM TRABALHADAS NOS GESTORES ESTRATÉGICOS DA ANTT."]
["PROGRAMA DE DESENVOLVIMENTO GERENCIAL - PDG 2020 - TURMA 3 - WORKSHOP 4","HOMERO REIS CONSULTORIA E GESTÃO EMPRESARIAL LTDA","07.131.596/0001-08",4,"2020-11-25","2020-11-27","NO PAÍS","HUGO LEONARDO CUNHA RODRIGUES","CONTRATAÇÃO",369.12,0,0,369.12,"DESENVOLVER NOS COORDENADORES DE PROCESSOS ORGANIZACIONAIS AS COMPETÊNCIAS QUE FORAM TRABALHADAS NOS GESTORES ESTRATÉGICOS DA ANTT."]
["PROGRAMA DE DESENVOLVIMENTO GERENCIAL - PDG 2020 - TURMA 3 - WORKSHOP 4","HOMERO REIS CONSULTORIA E GESTÃO EMPRESARIAL LTDA","07.131.596/0001-08",4,"2020-11-25","2020-11-27","NO PAÍS","JOAO EMERSON LOPES DE SOUZA       ","CONTRATAÇÃO",369.11,0,0,369.11,"DESENVOLVER NOS COORDENADORES DE PROCESSOS ORGANIZACIONAIS AS COMPETÊNCIAS QUE FORAM TRABALHADAS NOS GESTORES ESTRATÉGICOS DA ANTT."]
["PROGRAMA DE DESENVOLVIMENTO GERENCIAL - PDG 2020 - TURMA 3 - WORKSHOP 4","HOMERO REIS CONSULTORIA E GESTÃO EMPRESARIAL LTDA","07.131.596/0001-08",4,"2020-11-25","2020-11-27","NO PAÍS","JULIANE FURTADO NOVAES","CONTRATAÇÃO",369.11,0,0,369.11,"DESENVOLVER NOS COORDENADORES DE PROCESSOS ORGANIZACIONAIS AS COMPETÊNCIAS QUE FORAM TRABALHADAS NOS GESTORES ESTRATÉGICOS DA ANTT."]
["PROGRAMA DE DESENVOLVIMENTO GERENCIAL - PDG 2020 - TURMA 3 - WORKSHOP 4","HOMERO REIS CONSULTORIA E GESTÃO EMPRESARIAL LTDA","07.131.596/0001-08",4,"2020-11-25","2020-11-27","NO PAÍS","LAURINDO SERGIO FILHO","CONTRATAÇÃO",369.11,0,0,369.11,"DESENVOLVER NOS COORDENADORES DE PROCESSOS ORGANIZACIONAIS AS COMPETÊNCIAS QUE FORAM TRABALHADAS NOS GESTORES ESTRATÉGICOS DA ANTT."]
["PROGRAMA DE DESENVOLVIMENTO GERENCIAL - PDG 2020 - TURMA 3 - WORKSHOP 4","HOMERO REIS CONSULTORIA E GESTÃO EMPRESARIAL LTDA","07.131.596/0001-08",4,"2020-11-25","2020-11-27","NO PAÍS","ORLEI DAMASIO SILVEIRA","CONTRATAÇÃO",369.11,0,0,369.11,"DESENVOLVER NOS COORDENADORES DE PROCESSOS ORGANIZACIONAIS AS COMPETÊNCIAS QUE FORAM TRABALHADAS NOS GESTORES ESTRATÉGICOS DA ANTT."]
["PROGRAMA DE DESENVOLVIMENTO GERENCIAL - PDG 2020 - TURMA 3 - WORKSHOP 4","HOMERO REIS CONSULTORIA E GESTÃO EMPRESARIAL LTDA","07.131.596/0001-08",4,"2020-11-25","2020-11-27","NO PAÍS","PEDRO MUGLIA","CONTRATAÇÃO",369.11,0,0,369.11,"DESENVOLVER NOS COORDENADORES DE PROCESSOS ORGANIZACIONAIS AS COMPETÊNCIAS QUE FORAM TRABALHADAS NOS GESTORES ESTRATÉGICOS DA ANTT."]
["PROGRAMA DE DESENVOLVIMENTO GERENCIAL - PDG 2020 - TURMA 3 - WORKSHOP 4","HOMERO REIS CONSULTORIA E GESTÃO EMPRESARIAL LTDA","07.131.596/0001-08",4,"2020-11-25","2020-11-27","NO PAÍS","RAFAELA GOMES DE SOUZA E SILVA","CONTRATAÇÃO",369.11,0,0,369.11,"DESENVOLVER NOS COORDENADORES DE PROCESSOS ORGANIZACIONAIS AS COMPETÊNCIAS QUE FORAM TRABALHADAS NOS GESTORES ESTRATÉGICOS DA ANTT."]
["PROGRAMA DE DESENVOLVIMENTO GERENCIAL - PDG 2020 - TURMA 3 - WORKSHOP 4","HOMERO REIS CONSULTORIA E GESTÃO EMPRESARIAL LTDA","07.131.596/0001-08",4,"2020-11-25","2020-11-27","NO PAÍS","RODRIGO MORETTI BRANCHINI          ","CONTRATAÇÃO",369.11,0,0,369.11,"DESENVOLVER NOS COORDENADORES DE PROCESSOS ORGANIZACIONAIS AS COMPETÊNCIAS QUE FORAM TRABALHADAS NOS GESTORES ESTRATÉGICOS DA ANTT."]
["PROGRAMA DE DESENVOLVIMENTO GERENCIAL - PDG 2020 - TURMA 3 - WORKSHOP 4","HOMERO REIS CONSULTORIA E GESTÃO EMPRESARIAL LTDA","07.131.596/0001-08",4,"2020-11-25","2020-11-27","NO PAÍS","RODRIGO PEREIRA DE CASTRO","CONTRATAÇÃO",369.11,0,0,369.11,"DESENVOLVER NOS COORDENADORES DE PROCESSOS ORGANIZACIONAIS AS COMPETÊNCIAS QUE FORAM TRABALHADAS NOS GESTORES ESTRATÉGICOS DA ANTT."]
["PROGRAMA DE DESENVOLVIMENTO GERENCIAL - PDG 2020 - TURMA 3 - WORKSHOP 4","HOMERO REIS CONSULTORIA E GESTÃO EMPRESARIAL LTDA","07.131.596/0001-08",4,"2020-11-25","2020-11-27","NO PAÍS","SERGIO AUGUSTO FERNANDES","CONTRATAÇÃO",369.11,0,0,369.11,"DESENVOLVER NOS COORDENADORES DE PROCESSOS ORGANIZACIONAIS AS COMPETÊNCIAS QUE FORAM TRABALHADAS NOS GESTORES ESTRATÉGICOS DA ANTT."]
["PROGRAMA DE DESENVOLVIMENTO GERENCIAL - PDG 2020 - TURMA 3 - WORKSHOP 4","HOMERO REIS CONSULTORIA E GESTÃO EMPRESARIAL LTDA","07.131.596/0001-08",4,"2020-11-25","2020-11-27","NO PAÍS","SIMONE LETTI BASTANI","CONTRATAÇÃO",369.11,0,0,369.11,"DESENVOLVER NOS COORDENADORES DE PROCESSOS ORGANIZACIONAIS AS COMPETÊNCIAS QUE FORAM TRABALHADAS NOS GESTORES ESTRATÉGICOS DA ANTT."]
["PROGRAMA DE DESENVOLVIMENTO GERENCIAL - PDG 2020 - TURMA 3 - WORKSHOP 4","HOMERO REIS CONSULTORIA E GESTÃO EMPRESARIAL LTDA","07.131.596/0001-08",4,"2020-11-25","2020-11-27","NO PAÍS","SIOMAR CARIBE DE OLIVEIRA","CONTRATAÇÃO",369.11,0,0,369.11,"DESENVOLVER NOS COORDENADORES DE PROCESSOS ORGANIZACIONAIS AS COMPETÊNCIAS QUE FORAM TRABALHADAS NOS GESTORES ESTRATÉGICOS DA ANTT."]
["PROGRAMA DE DESENVOLVIMENTO GERENCIAL - PDG 2020 - TURMA 3 - WORKSHOP 4","HOMERO REIS CONSULTORIA E GESTÃO EMPRESARIAL LTDA","07.131.596/0001-08",4,"2020-11-25","2020-11-27","NO PAÍS","SUSI ANE SUAREZ DA SILVA","CONTRATAÇÃO",369.11,0,0,369.11,"DESENVOLVER NOS COORDENADORES DE PROCESSOS ORGANIZACIONAIS AS COMPETÊNCIAS QUE FORAM TRABALHADAS NOS GESTORES ESTRATÉGICOS DA ANTT."]
["PROGRAMA DE DESENVOLVIMENTO GERENCIAL - PDG 2020 - TURMA 3 - WORKSHOP 4","HOMERO REIS CONSULTORIA E GESTÃO EMPRESARIAL LTDA","07.131.596/0001-08",4,"2020-11-25","2020-11-27","NO PAÍS","VINICIUS PEREIRA DE OLIVEIRA","CONTRATAÇÃO",369.11,0,0,369.11,"DESENVOLVER NOS COORDENADORES DE PROCESSOS ORGANIZACIONAIS AS COMPETÊNCIAS QUE FORAM TRABALHADAS NOS GESTORES ESTRATÉGICOS DA ANTT."]
["CIDADANIA E DIREITOS HUMANOS - DIREITOS DA PESSOA IDOSA NO BRASIL","ENAP","00.627.612/0001-09",70,"2020-11-29","2020-12-13","NO PAÍS","CARLOS SOLRRAIQUE PRAZERES ALMEIDA","SEM CUSTOS DE INSCRIÇÃO - GRATUITO",0,0,9770.94,9770.94,"ÉTICA E CORREIÇÃO/ PDP: AMPLIAR O CONHECIMENTO TÉCNICO NA ÁREA DE TRANSPORTES TERRESTRES A FIM DE BUSCAR AS MELHORES PRÁTICAS EM REGULAÇÃO, FISCALIZAÇÃO E GESTÃO."]
["ATUALIZAÇÃO JURÍDICA – IMPROBIDADE ADMINISTRATIVA – AGENTES PÚBLICOS","UNIEDUCAR","05.569.970/0001-26",140,"2020-11-29","2020-12-28","NO PAÍS","CLEIRISTON MARIOVICK BORGES CANUTO","SEM CUSTOS DE INSCRIÇÃO - GRATUITO",0,0,10243.99,10243.99,"GOVERNANÇA CORPORTATIVA/ PDP: FORTALECIMENTO DE COMPETÊNCIAS EM GESTÃO E REGULAÇÃO"]
[" CIDADANIA E ÉTICA NA ADMINISTRAÇÃO PÚBLICA ","ESCOLA CENED"," 10.326.300/0001-20",180,"2020-11-29","2020-12-28","NO PAÍS","FAGNER ARAUJO DA SILVA ROSSI","SEM CUSTOS DE INSCRIÇÃO - GRATUITO",0,0,8587.18,8587.18,"GOVERNANÇA COORPORATIVA PDP: AMPLIAÇÃO DE COMPETÊNCIAS RELACIONADAS À ÉTICA."]
["PROGRAMA DE DESENVOLVIMENTO GERENCIAL - PDG 2020 - TURMA 3 - SUPERVISÃO DE LÍDER COACH 2","HOMERO REIS CONSULTORIA E GESTÃO EMPRESARIAL LTDA","07.131.596/0001-08",2,"2020-12-10","2020-12-10","NO PAÍS","AMINADABE DOS SANTOS PIRES SOARES","CONTRATAÇÃO",149.19999999999999,0,0,149.19999999999999,"DESENVOLVER NOS COORDENADORES DE PROCESSOS ORGANIZACIONAIS AS COMPETÊNCIAS QUE FORAM TRABALHADAS NOS GESTORES ESTRATÉGICOS DA ANTT."]
["PROGRAMA DE DESENVOLVIMENTO GERENCIAL - PDG 2020 - TURMA 3 - SUPERVISÃO DE LÍDER COACH 2","HOMERO REIS CONSULTORIA E GESTÃO EMPRESARIAL LTDA","07.131.596/0001-08",2,"2020-12-10","2020-12-10","NO PAÍS","ANDRE BOTIN NASCIMENTO","CONTRATAÇÃO",149.19999999999999,0,0,149.19999999999999,"DESENVOLVER NOS COORDENADORES DE PROCESSOS ORGANIZACIONAIS AS COMPETÊNCIAS QUE FORAM TRABALHADAS NOS GESTORES ESTRATÉGICOS DA ANTT."]
["PROGRAMA DE DESENVOLVIMENTO GERENCIAL - PDG 2020 - TURMA 3 - SUPERVISÃO DE LÍDER COACH 2","HOMERO REIS CONSULTORIA E GESTÃO EMPRESARIAL LTDA","07.131.596/0001-08",2,"2020-12-10","2020-12-10","NO PAÍS","CLEIDES SILVA CAMPOS FONTENELE","CONTRATAÇÃO",149.19999999999999,0,0,149.19999999999999,"DESENVOLVER NOS COORDENADORES DE PROCESSOS ORGANIZACIONAIS AS COMPETÊNCIAS QUE FORAM TRABALHADAS NOS GESTORES ESTRATÉGICOS DA ANTT."]
["PROGRAMA DE DESENVOLVIMENTO GERENCIAL - PDG 2020 - TURMA 3 - SUPERVISÃO DE LÍDER COACH 2","HOMERO REIS CONSULTORIA E GESTÃO EMPRESARIAL LTDA","07.131.596/0001-08",2,"2020-12-10","2020-12-10","NO PAÍS","CRISTIANE SOUSA DE OLIVEIRA","CONTRATAÇÃO",149.19999999999999,0,0,149.19999999999999,"DESENVOLVER NOS COORDENADORES DE PROCESSOS ORGANIZACIONAIS AS COMPETÊNCIAS QUE FORAM TRABALHADAS NOS GESTORES ESTRATÉGICOS DA ANTT."]
["PROGRAMA DE DESENVOLVIMENTO GERENCIAL - PDG 2020 - TURMA 3 - SUPERVISÃO DE LÍDER COACH 2","HOMERO REIS CONSULTORIA E GESTÃO EMPRESARIAL LTDA","07.131.596/0001-08",2,"2020-12-10","2020-12-10","NO PAÍS","FELIPE BARBOSA FEIJO","CONTRATAÇÃO",149.19999999999999,0,0,149.19999999999999,"DESENVOLVER NOS COORDENADORES DE PROCESSOS ORGANIZACIONAIS AS COMPETÊNCIAS QUE FORAM TRABALHADAS NOS GESTORES ESTRATÉGICOS DA ANTT."]
["PROGRAMA DE DESENVOLVIMENTO GERENCIAL - PDG 2020 - TURMA 3 - SUPERVISÃO DE LÍDER COACH 2","HOMERO REIS CONSULTORIA E GESTÃO EMPRESARIAL LTDA","07.131.596/0001-08",2,"2020-12-10","2020-12-10","NO PAÍS","FERNANDO CARLOS PSARSKI CABRAL","CONTRATAÇÃO",149.19999999999999,0,0,149.19999999999999,"DESENVOLVER NOS COORDENADORES DE PROCESSOS ORGANIZACIONAIS AS COMPETÊNCIAS QUE FORAM TRABALHADAS NOS GESTORES ESTRATÉGICOS DA ANTT."]
["PROGRAMA DE DESENVOLVIMENTO GERENCIAL - PDG 2020 - TURMA 3 - SUPERVISÃO DE LÍDER COACH 2","HOMERO REIS CONSULTORIA E GESTÃO EMPRESARIAL LTDA","07.131.596/0001-08",2,"2020-12-10","2020-12-10","NO PAÍS","FERNANDO NUNES CARNEIRO RIOS         ","CONTRATAÇÃO",149.19999999999999,0,0,149.19999999999999,"DESENVOLVER NOS COORDENADORES DE PROCESSOS ORGANIZACIONAIS AS COMPETÊNCIAS QUE FORAM TRABALHADAS NOS GESTORES ESTRATÉGICOS DA ANTT."]
["PROGRAMA DE DESENVOLVIMENTO GERENCIAL - PDG 2020 - TURMA 3 - SUPERVISÃO DE LÍDER COACH 2","HOMERO REIS CONSULTORIA E GESTÃO EMPRESARIAL LTDA","07.131.596/0001-08",2,"2020-12-10","2020-12-10","NO PAÍS","FRANCISCA VERONICA JUCÁ DE MORAIS","CONTRATAÇÃO",149.19999999999999,0,0,149.19999999999999,"DESENVOLVER NOS COORDENADORES DE PROCESSOS ORGANIZACIONAIS AS COMPETÊNCIAS QUE FORAM TRABALHADAS NOS GESTORES ESTRATÉGICOS DA ANTT."]
["PROGRAMA DE DESENVOLVIMENTO GERENCIAL - PDG 2020 - TURMA 3 - SUPERVISÃO DE LÍDER COACH 2","HOMERO REIS CONSULTORIA E GESTÃO EMPRESARIAL LTDA","07.131.596/0001-08",2,"2020-12-10","2020-12-10","NO PAÍS","FREDERICO LUIZ VIEIRA","CONTRATAÇÃO",149.19999999999999,0,0,149.19999999999999,"DESENVOLVER NOS COORDENADORES DE PROCESSOS ORGANIZACIONAIS AS COMPETÊNCIAS QUE FORAM TRABALHADAS NOS GESTORES ESTRATÉGICOS DA ANTT."]
["PROGRAMA DE DESENVOLVIMENTO GERENCIAL - PDG 2020 - TURMA 3 - SUPERVISÃO DE LÍDER COACH 2","HOMERO REIS CONSULTORIA E GESTÃO EMPRESARIAL LTDA","07.131.596/0001-08",2,"2020-12-10","2020-12-10","NO PAÍS","GILBERTO JOSE TELLES FILHO","CONTRATAÇÃO",149.19999999999999,0,0,149.19999999999999,"DESENVOLVER NOS COORDENADORES DE PROCESSOS ORGANIZACIONAIS AS COMPETÊNCIAS QUE FORAM TRABALHADAS NOS GESTORES ESTRATÉGICOS DA ANTT."]
["PROGRAMA DE DESENVOLVIMENTO GERENCIAL - PDG 2020 - TURMA 3 - SUPERVISÃO DE LÍDER COACH 2","HOMERO REIS CONSULTORIA E GESTÃO EMPRESARIAL LTDA","07.131.596/0001-08",2,"2020-12-10","2020-12-10","NO PAÍS","HILDEVANA MEIRE DA SILVA ALMEIDA","CONTRATAÇÃO",149.19999999999999,0,0,149.19999999999999,"DESENVOLVER NOS COORDENADORES DE PROCESSOS ORGANIZACIONAIS AS COMPETÊNCIAS QUE FORAM TRABALHADAS NOS GESTORES ESTRATÉGICOS DA ANTT."]
["PROGRAMA DE DESENVOLVIMENTO GERENCIAL - PDG 2020 - TURMA 3 - SUPERVISÃO DE LÍDER COACH 2","HOMERO REIS CONSULTORIA E GESTÃO EMPRESARIAL LTDA","07.131.596/0001-08",2,"2020-12-10","2020-12-10","NO PAÍS","HUGO LEONARDO CUNHA RODRIGUES","CONTRATAÇÃO",149.19999999999999,0,0,149.19999999999999,"DESENVOLVER NOS COORDENADORES DE PROCESSOS ORGANIZACIONAIS AS COMPETÊNCIAS QUE FORAM TRABALHADAS NOS GESTORES ESTRATÉGICOS DA ANTT."]
["PROGRAMA DE DESENVOLVIMENTO GERENCIAL - PDG 2020 - TURMA 3 - SUPERVISÃO DE LÍDER COACH 2","HOMERO REIS CONSULTORIA E GESTÃO EMPRESARIAL LTDA","07.131.596/0001-08",2,"2020-12-10","2020-12-10","NO PAÍS","JOAO EMERSON LOPES DE SOUZA       ","CONTRATAÇÃO",149.19999999999999,0,0,149.19999999999999,"DESENVOLVER NOS COORDENADORES DE PROCESSOS ORGANIZACIONAIS AS COMPETÊNCIAS QUE FORAM TRABALHADAS NOS GESTORES ESTRATÉGICOS DA ANTT."]
["PROGRAMA DE DESENVOLVIMENTO GERENCIAL - PDG 2020 - TURMA 3 - SUPERVISÃO DE LÍDER COACH 2","HOMERO REIS CONSULTORIA E GESTÃO EMPRESARIAL LTDA","07.131.596/0001-08",2,"2020-12-10","2020-12-10","NO PAÍS","JULIANE FURTADO NOVAES","CONTRATAÇÃO",149.19999999999999,0,0,149.19999999999999,"DESENVOLVER NOS COORDENADORES DE PROCESSOS ORGANIZACIONAIS AS COMPETÊNCIAS QUE FORAM TRABALHADAS NOS GESTORES ESTRATÉGICOS DA ANTT."]
["PROGRAMA DE DESENVOLVIMENTO GERENCIAL - PDG 2020 - TURMA 3 - SUPERVISÃO DE LÍDER COACH 2","HOMERO REIS CONSULTORIA E GESTÃO EMPRESARIAL LTDA","07.131.596/0001-08",2,"2020-12-10","2020-12-10","NO PAÍS","LAURINDO SERGIO FILHO","CONTRATAÇÃO",149.19999999999999,0,0,149.19999999999999,"DESENVOLVER NOS COORDENADORES DE PROCESSOS ORGANIZACIONAIS AS COMPETÊNCIAS QUE FORAM TRABALHADAS NOS GESTORES ESTRATÉGICOS DA ANTT."]
["PROGRAMA DE DESENVOLVIMENTO GERENCIAL - PDG 2020 - TURMA 3 - SUPERVISÃO DE LÍDER COACH 2","HOMERO REIS CONSULTORIA E GESTÃO EMPRESARIAL LTDA","07.131.596/0001-08",2,"2020-12-10","2020-12-10","NO PAÍS","ORLEI DAMASIO SILVEIRA","CONTRATAÇÃO",149.19999999999999,0,0,149.19999999999999,"DESENVOLVER NOS COORDENADORES DE PROCESSOS ORGANIZACIONAIS AS COMPETÊNCIAS QUE FORAM TRABALHADAS NOS GESTORES ESTRATÉGICOS DA ANTT."]
["PROGRAMA DE DESENVOLVIMENTO GERENCIAL - PDG 2020 - TURMA 3 - SUPERVISÃO DE LÍDER COACH 2","HOMERO REIS CONSULTORIA E GESTÃO EMPRESARIAL LTDA","07.131.596/0001-08",2,"2020-12-10","2020-12-10","NO PAÍS","PEDRO MUGLIA","CONTRATAÇÃO",149.19999999999999,0,0,149.19999999999999,"DESENVOLVER NOS COORDENADORES DE PROCESSOS ORGANIZACIONAIS AS COMPETÊNCIAS QUE FORAM TRABALHADAS NOS GESTORES ESTRATÉGICOS DA ANTT."]
["PROGRAMA DE DESENVOLVIMENTO GERENCIAL - PDG 2020 - TURMA 3 - SUPERVISÃO DE LÍDER COACH 2","HOMERO REIS CONSULTORIA E GESTÃO EMPRESARIAL LTDA","07.131.596/0001-08",2,"2020-12-10","2020-12-10","NO PAÍS","RAFAELA GOMES DE SOUZA E SILVA","CONTRATAÇÃO",149.19999999999999,0,0,149.19999999999999,"DESENVOLVER NOS COORDENADORES DE PROCESSOS ORGANIZACIONAIS AS COMPETÊNCIAS QUE FORAM TRABALHADAS NOS GESTORES ESTRATÉGICOS DA ANTT."]
["PROGRAMA DE DESENVOLVIMENTO GERENCIAL - PDG 2020 - TURMA 3 - SUPERVISÃO DE LÍDER COACH 2","HOMERO REIS CONSULTORIA E GESTÃO EMPRESARIAL LTDA","07.131.596/0001-08",2,"2020-12-10","2020-12-10","NO PAÍS","RODRIGO MORETTI BRANCHINI          ","CONTRATAÇÃO",149.19999999999999,0,0,149.19999999999999,"DESENVOLVER NOS COORDENADORES DE PROCESSOS ORGANIZACIONAIS AS COMPETÊNCIAS QUE FORAM TRABALHADAS NOS GESTORES ESTRATÉGICOS DA ANTT."]
["PROGRAMA DE DESENVOLVIMENTO GERENCIAL - PDG 2020 - TURMA 3 - SUPERVISÃO DE LÍDER COACH 2","HOMERO REIS CONSULTORIA E GESTÃO EMPRESARIAL LTDA","07.131.596/0001-08",2,"2020-12-10","2020-12-10","NO PAÍS","RODRIGO PEREIRA DE CASTRO","CONTRATAÇÃO",149.19999999999999,0,0,149.19999999999999,"DESENVOLVER NOS COORDENADORES DE PROCESSOS ORGANIZACIONAIS AS COMPETÊNCIAS QUE FORAM TRABALHADAS NOS GESTORES ESTRATÉGICOS DA ANTT."]
["PROGRAMA DE DESENVOLVIMENTO GERENCIAL - PDG 2020 - TURMA 3 - SUPERVISÃO DE LÍDER COACH 2","HOMERO REIS CONSULTORIA E GESTÃO EMPRESARIAL LTDA","07.131.596/0001-08",2,"2020-12-10","2020-12-10","NO PAÍS","SERGIO AUGUSTO FERNANDES","CONTRATAÇÃO",149.19999999999999,0,0,149.19999999999999,"DESENVOLVER NOS COORDENADORES DE PROCESSOS ORGANIZACIONAIS AS COMPETÊNCIAS QUE FORAM TRABALHADAS NOS GESTORES ESTRATÉGICOS DA ANTT."]
["PROGRAMA DE DESENVOLVIMENTO GERENCIAL - PDG 2020 - TURMA 3 - SUPERVISÃO DE LÍDER COACH 2","HOMERO REIS CONSULTORIA E GESTÃO EMPRESARIAL LTDA","07.131.596/0001-08",2,"2020-12-10","2020-12-10","NO PAÍS","SIMONE LETTI BASTANI","CONTRATAÇÃO",149.19999999999999,0,0,149.19999999999999,"DESENVOLVER NOS COORDENADORES DE PROCESSOS ORGANIZACIONAIS AS COMPETÊNCIAS QUE FORAM TRABALHADAS NOS GESTORES ESTRATÉGICOS DA ANTT."]
["PROGRAMA DE DESENVOLVIMENTO GERENCIAL - PDG 2020 - TURMA 3 - SUPERVISÃO DE LÍDER COACH 2","HOMERO REIS CONSULTORIA E GESTÃO EMPRESARIAL LTDA","07.131.596/0001-08",2,"2020-12-10","2020-12-10","NO PAÍS","SIOMAR CARIBE DE OLIVEIRA","CONTRATAÇÃO",149.19999999999999,0,0,149.19999999999999,"DESENVOLVER NOS COORDENADORES DE PROCESSOS ORGANIZACIONAIS AS COMPETÊNCIAS QUE FORAM TRABALHADAS NOS GESTORES ESTRATÉGICOS DA ANTT."]
["PROGRAMA DE DESENVOLVIMENTO GERENCIAL - PDG 2020 - TURMA 3 - SUPERVISÃO DE LÍDER COACH 2","HOMERO REIS CONSULTORIA E GESTÃO EMPRESARIAL LTDA","07.131.596/0001-08",2,"2020-12-10","2020-12-10","NO PAÍS","SUSI ANE SUAREZ DA SILVA","CONTRATAÇÃO",149.19999999999999,0,0,149.19999999999999,"DESENVOLVER NOS COORDENADORES DE PROCESSOS ORGANIZACIONAIS AS COMPETÊNCIAS QUE FORAM TRABALHADAS NOS GESTORES ESTRATÉGICOS DA ANTT."]
["PROGRAMA DE DESENVOLVIMENTO GERENCIAL - PDG 2020 - TURMA 3 - SUPERVISÃO DE LÍDER COACH 2","HOMERO REIS CONSULTORIA E GESTÃO EMPRESARIAL LTDA","07.131.596/0001-08",2,"2020-12-10","2020-12-10","NO PAÍS","VINICIUS PEREIRA DE OLIVEIRA","CONTRATAÇÃO",149.19999999999999,0,0,149.19999999999999,"DESENVOLVER NOS COORDENADORES DE PROCESSOS ORGANIZACIONAIS AS COMPETÊNCIAS QUE FORAM TRABALHADAS NOS GESTORES ESTRATÉGICOS DA ANTT."]
["TREINAMENTO GETTING THINGS DONE - GTD","MEM EDUCACAO E TREINAMENTO PROFISSIONALIZANTE LTDA","12.216.595/0001-04",10,"2020-12-14","2020-12-17","NO PAÍS","ANA LORENA DE CAMPOS DUTRA","CONTRATAÇÃO",764.29,0,0,764.29,"ADQUIRIR CONHECIMENTO SOBRE OS MÉTODOS E MELHORES PRÁTICAS DE GESTÃO POR RESULTADOS"]
["TREINAMENTO GETTING THINGS DONE - GTD","MEM EDUCACAO E TREINAMENTO PROFISSIONALIZANTE LTDA","12.216.595/0001-04",10,"2020-12-14","2020-12-17","NO PAÍS","ANDERSON SANTOS BELLAS","CONTRATAÇÃO",764.29,0,0,764.29,"ADQUIRIR CONHECIMENTO SOBRE OS MÉTODOS E MELHORES PRÁTICAS DE GESTÃO POR RESULTADOS"]
["TREINAMENTO GETTING THINGS DONE - GTD","MEM EDUCACAO E TREINAMENTO PROFISSIONALIZANTE LTDA","12.216.595/0001-04",10,"2020-12-14","2020-12-17","NO PAÍS","AUREA FERNANDA DE BRITO LOIOLA AGUIAR","CONTRATAÇÃO",764.29,0,0,764.29,"ADQUIRIR CONHECIMENTO SOBRE OS MÉTODOS E MELHORES PRÁTICAS DE GESTÃO POR RESULTADOS"]
["TREINAMENTO GETTING THINGS DONE - GTD","MEM EDUCACAO E TREINAMENTO PROFISSIONALIZANTE LTDA","12.216.595/0001-04",10,"2020-12-14","2020-12-17","NO PAÍS","BEATRIZ PIMENTA FERNANDES      ","CONTRATAÇÃO",764.29,0,0,764.29,"ADQUIRIR CONHECIMENTO SOBRE OS MÉTODOS E MELHORES PRÁTICAS DE GESTÃO POR RESULTADOS"]
["TREINAMENTO GETTING THINGS DONE - GTD","MEM EDUCACAO E TREINAMENTO PROFISSIONALIZANTE LTDA","12.216.595/0001-04",10,"2020-12-14","2020-12-17","NO PAÍS","BRUNO GRANGEON DO NASCIMENTO","CONTRATAÇÃO",764.29,0,0,764.29,"ADQUIRIR CONHECIMENTO SOBRE OS MÉTODOS E MELHORES PRÁTICAS DE GESTÃO POR RESULTADOS"]
["TREINAMENTO GETTING THINGS DONE - GTD","MEM EDUCACAO E TREINAMENTO PROFISSIONALIZANTE LTDA","12.216.595/0001-04",10,"2020-12-14","2020-12-17","NO PAÍS","ERICA CRISTINA SILVA MARQUES","CONTRATAÇÃO",764.29,0,0,764.29,"ADQUIRIR CONHECIMENTO SOBRE OS MÉTODOS E MELHORES PRÁTICAS DE GESTÃO POR RESULTADOS"]
["TREINAMENTO GETTING THINGS DONE - GTD","MEM EDUCACAO E TREINAMENTO PROFISSIONALIZANTE LTDA","12.216.595/0001-04",10,"2020-12-14","2020-12-17","NO PAÍS","FABIO YUKIO SUETUGO","CONTRATAÇÃO",764.29,0,0,764.29,"ADQUIRIR CONHECIMENTO SOBRE OS MÉTODOS E MELHORES PRÁTICAS DE GESTÃO POR RESULTADOS"]
["TREINAMENTO GETTING THINGS DONE - GTD","MEM EDUCACAO E TREINAMENTO PROFISSIONALIZANTE LTDA","12.216.595/0001-04",10,"2020-12-14","2020-12-17","NO PAÍS","GUILHERME ALMEIDA PEREIRA            ","CONTRATAÇÃO",764.29,0,0,764.29,"ADQUIRIR CONHECIMENTO SOBRE OS MÉTODOS E MELHORES PRÁTICAS DE GESTÃO POR RESULTADOS"]
["TREINAMENTO GETTING THINGS DONE - GTD","MEM EDUCACAO E TREINAMENTO PROFISSIONALIZANTE LTDA","12.216.595/0001-04",10,"2020-12-14","2020-12-17","NO PAÍS","JULIANA PIRES PENNA E NAVES      ","CONTRATAÇÃO",764.28,0,0,764.28,"ADQUIRIR CONHECIMENTO SOBRE OS MÉTODOS E MELHORES PRÁTICAS DE GESTÃO POR RESULTADOS"]
["TREINAMENTO GETTING THINGS DONE - GTD","MEM EDUCACAO E TREINAMENTO PROFISSIONALIZANTE LTDA","12.216.595/0001-04",10,"2020-12-14","2020-12-17","NO PAÍS","NILTON DE MELO VIEIRA","CONTRATAÇÃO",764.28,0,0,764.28,"ADQUIRIR CONHECIMENTO SOBRE OS MÉTODOS E MELHORES PRÁTICAS DE GESTÃO POR RESULTADOS"]
["TREINAMENTO GETTING THINGS DONE - GTD","MEM EDUCACAO E TREINAMENTO PROFISSIONALIZANTE LTDA","12.216.595/0001-04",10,"2020-12-14","2020-12-17","NO PAÍS","TATIANA FURTADO ALVIM DE AMORIM","CONTRATAÇÃO",764.28,0,0,764.28,"ADQUIRIR CONHECIMENTO SOBRE OS MÉTODOS E MELHORES PRÁTICAS DE GESTÃO POR RESULTADOS"]
["TREINAMENTO GETTING THINGS DONE - GTD","MEM EDUCACAO E TREINAMENTO PROFISSIONALIZANTE LTDA","12.216.595/0001-04",10,"2020-12-14","2020-12-17","NO PAÍS","VICTOR HUGO PEREIRA","CONTRATAÇÃO",764.28,0,0,764.28,"ADQUIRIR CONHECIMENTO SOBRE OS MÉTODOS E MELHORES PRÁTICAS DE GESTÃO POR RESULTADOS"]
["TREINAMENTO GETTING THINGS DONE - GTD","MEM EDUCACAO E TREINAMENTO PROFISSIONALIZANTE LTDA","12.216.595/0001-04",10,"2020-12-14","2020-12-17","NO PAÍS","VINICIUS PEREIRA DE OLIVEIRA","CONTRATAÇÃO",764.28,0,0,764.28,"ADQUIRIR CONHECIMENTO SOBRE OS MÉTODOS E MELHORES PRÁTICAS DE GESTÃO POR RESULTADOS"]
["TREINAMENTO GETTING THINGS DONE - GTD","MEM EDUCACAO E TREINAMENTO PROFISSIONALIZANTE LTDA","12.216.595/0001-04",10,"2020-12-14","2020-12-17","NO PAÍS","WILTON COSTA DRUMOND SOUSA","CONTRATAÇÃO",764.28,0,0,764.28,"ADQUIRIR CONHECIMENTO SOBRE OS MÉTODOS E MELHORES PRÁTICAS DE GESTÃO POR RESULTADOS"]
["PALESTRA DE FINAL DE ANO - NUMA ERA DE INCERTEZAS, O MAIS IMPORTANTE É SER FELIZ","IRINEU E LIMA LTDA","14.666.791/0001-06",1,"2020-12-17","2020-12-17","NO PAÍS","ALESSANDRA CAIXETA SILVA PRADO","CONTRATAÇÃO",190.25,0,0,190.25,"CAPACITAR E GERAR CONHECIMENTOS RELATIVOS À QUALIDADE DE VIDA NO TRABALHO"]
["PALESTRA DE FINAL DE ANO - NUMA ERA DE INCERTEZAS, O MAIS IMPORTANTE É SER FELIZ","IRINEU E LIMA LTDA","14.666.791/0001-06",1,"2020-12-17","2020-12-17","NO PAÍS","ALEXANDRE ANTONIO COUTINHO FARIA","CONTRATAÇÃO",190.25,0,0,190.25,"CAPACITAR E GERAR CONHECIMENTOS RELATIVOS À QUALIDADE DE VIDA NO TRABALHO"]
["PALESTRA DE FINAL DE ANO - NUMA ERA DE INCERTEZAS, O MAIS IMPORTANTE É SER FELIZ","IRINEU E LIMA LTDA","14.666.791/0001-06",1,"2020-12-17","2020-12-17","NO PAÍS","ANA CAROLINA MACEDO LUBCKE","CONTRATAÇÃO",190.25,0,0,190.25,"CAPACITAR E GERAR CONHECIMENTOS RELATIVOS À QUALIDADE DE VIDA NO TRABALHO"]
["PALESTRA DE FINAL DE ANO - NUMA ERA DE INCERTEZAS, O MAIS IMPORTANTE É SER FELIZ","IRINEU E LIMA LTDA","14.666.791/0001-06",1,"2020-12-17","2020-12-17","NO PAÍS","ANA CLAUDIA SILVEIRA TORRES","CONTRATAÇÃO",190.25,0,0,190.25,"CAPACITAR E GERAR CONHECIMENTOS RELATIVOS À QUALIDADE DE VIDA NO TRABALHO"]
["PALESTRA DE FINAL DE ANO - NUMA ERA DE INCERTEZAS, O MAIS IMPORTANTE É SER FELIZ","IRINEU E LIMA LTDA","14.666.791/0001-06",1,"2020-12-17","2020-12-17","NO PAÍS","ANA PATRÍCIA DA SILVA DE BRITO ","CONTRATAÇÃO",190.25,0,0,190.25,"CAPACITAR E GERAR CONHECIMENTOS RELATIVOS À QUALIDADE DE VIDA NO TRABALHO"]
["PALESTRA DE FINAL DE ANO - NUMA ERA DE INCERTEZAS, O MAIS IMPORTANTE É SER FELIZ","IRINEU E LIMA LTDA","14.666.791/0001-06",1,"2020-12-17","2020-12-17","NO PAÍS","ANDRE LUIS BUSS","CONTRATAÇÃO",190.25,0,0,190.25,"CAPACITAR E GERAR CONHECIMENTOS RELATIVOS À QUALIDADE DE VIDA NO TRABALHO"]
["PALESTRA DE FINAL DE ANO - NUMA ERA DE INCERTEZAS, O MAIS IMPORTANTE É SER FELIZ","IRINEU E LIMA LTDA","14.666.791/0001-06",1,"2020-12-17","2020-12-17","NO PAÍS","ANDRE MARTINS LAMAS VITAL","CONTRATAÇÃO",190.25,0,0,190.25,"CAPACITAR E GERAR CONHECIMENTOS RELATIVOS À QUALIDADE DE VIDA NO TRABALHO"]
["PALESTRA DE FINAL DE ANO - NUMA ERA DE INCERTEZAS, O MAIS IMPORTANTE É SER FELIZ","IRINEU E LIMA LTDA","14.666.791/0001-06",1,"2020-12-17","2020-12-17","NO PAÍS","ANNA PAULA NUNES SVENDSEN PINHEIRO","CONTRATAÇÃO",190.25,0,0,190.25,"CAPACITAR E GERAR CONHECIMENTOS RELATIVOS À QUALIDADE DE VIDA NO TRABALHO"]
["PALESTRA DE FINAL DE ANO - NUMA ERA DE INCERTEZAS, O MAIS IMPORTANTE É SER FELIZ","IRINEU E LIMA LTDA","14.666.791/0001-06",1,"2020-12-17","2020-12-17","NO PAÍS","BEATRIZ PIMENTA FERNANDES      ","CONTRATAÇÃO",190.25,0,0,190.25,"CAPACITAR E GERAR CONHECIMENTOS RELATIVOS À QUALIDADE DE VIDA NO TRABALHO"]
["PALESTRA DE FINAL DE ANO - NUMA ERA DE INCERTEZAS, O MAIS IMPORTANTE É SER FELIZ","IRINEU E LIMA LTDA","14.666.791/0001-06",1,"2020-12-17","2020-12-17","NO PAÍS","BRUNO MORELLI FARIA","CONTRATAÇÃO",190.25,0,0,190.25,"CAPACITAR E GERAR CONHECIMENTOS RELATIVOS À QUALIDADE DE VIDA NO TRABALHO"]
["PALESTRA DE FINAL DE ANO - NUMA ERA DE INCERTEZAS, O MAIS IMPORTANTE É SER FELIZ","IRINEU E LIMA LTDA","14.666.791/0001-06",1,"2020-12-17","2020-12-17","NO PAÍS","CANDIDA MACHADO PEREIRA OLIVEIRA","CONTRATAÇÃO",190.25,0,0,190.25,"CAPACITAR E GERAR CONHECIMENTOS RELATIVOS À QUALIDADE DE VIDA NO TRABALHO"]
["PALESTRA DE FINAL DE ANO - NUMA ERA DE INCERTEZAS, O MAIS IMPORTANTE É SER FELIZ","IRINEU E LIMA LTDA","14.666.791/0001-06",1,"2020-12-17","2020-12-17","NO PAÍS","CINTHIA SANTIAGO SOBREIRA","CONTRATAÇÃO",190.25,0,0,190.25,"CAPACITAR E GERAR CONHECIMENTOS RELATIVOS À QUALIDADE DE VIDA NO TRABALHO"]
["PALESTRA DE FINAL DE ANO - NUMA ERA DE INCERTEZAS, O MAIS IMPORTANTE É SER FELIZ","IRINEU E LIMA LTDA","14.666.791/0001-06",1,"2020-12-17","2020-12-17","NO PAÍS","CLAUDE SOARES RIBEIRO DE ARAÚJO","CONTRATAÇÃO",190.25,0,0,190.25,"CAPACITAR E GERAR CONHECIMENTOS RELATIVOS À QUALIDADE DE VIDA NO TRABALHO"]
["PALESTRA DE FINAL DE ANO - NUMA ERA DE INCERTEZAS, O MAIS IMPORTANTE É SER FELIZ","IRINEU E LIMA LTDA","14.666.791/0001-06",1,"2020-12-17","2020-12-17","NO PAÍS","CLEIDES SILVA CAMPOS FONTENELE","CONTRATAÇÃO",190.25,0,0,190.25,"CAPACITAR E GERAR CONHECIMENTOS RELATIVOS À QUALIDADE DE VIDA NO TRABALHO"]
["PALESTRA DE FINAL DE ANO - NUMA ERA DE INCERTEZAS, O MAIS IMPORTANTE É SER FELIZ","IRINEU E LIMA LTDA","14.666.791/0001-06",1,"2020-12-17","2020-12-17","NO PAÍS","CLEMILSON FRAZAO DE OLIVEIRA","CONTRATAÇÃO",190.25,0,0,190.25,"CAPACITAR E GERAR CONHECIMENTOS RELATIVOS À QUALIDADE DE VIDA NO TRABALHO"]
["PALESTRA DE FINAL DE ANO - NUMA ERA DE INCERTEZAS, O MAIS IMPORTANTE É SER FELIZ","IRINEU E LIMA LTDA","14.666.791/0001-06",1,"2020-12-17","2020-12-17","NO PAÍS","DANIEL KRAUSE","CONTRATAÇÃO",190.25,0,0,190.25,"CAPACITAR E GERAR CONHECIMENTOS RELATIVOS À QUALIDADE DE VIDA NO TRABALHO"]
["PALESTRA DE FINAL DE ANO - NUMA ERA DE INCERTEZAS, O MAIS IMPORTANTE É SER FELIZ","IRINEU E LIMA LTDA","14.666.791/0001-06",1,"2020-12-17","2020-12-17","NO PAÍS","DANIEL PEREIRA COELHO","CONTRATAÇÃO",190.25,0,0,190.25,"CAPACITAR E GERAR CONHECIMENTOS RELATIVOS À QUALIDADE DE VIDA NO TRABALHO"]
["PALESTRA DE FINAL DE ANO - NUMA ERA DE INCERTEZAS, O MAIS IMPORTANTE É SER FELIZ","IRINEU E LIMA LTDA","14.666.791/0001-06",1,"2020-12-17","2020-12-17","NO PAÍS","DEBORA GOELZER FRAGA","CONTRATAÇÃO",190.25,0,0,190.25,"CAPACITAR E GERAR CONHECIMENTOS RELATIVOS À QUALIDADE DE VIDA NO TRABALHO"]
["PALESTRA DE FINAL DE ANO - NUMA ERA DE INCERTEZAS, O MAIS IMPORTANTE É SER FELIZ","IRINEU E LIMA LTDA","14.666.791/0001-06",1,"2020-12-17","2020-12-17","NO PAÍS","DENISE RANGEL TRESCA","CONTRATAÇÃO",190.25,0,0,190.25,"CAPACITAR E GERAR CONHECIMENTOS RELATIVOS À QUALIDADE DE VIDA NO TRABALHO"]
["PALESTRA DE FINAL DE ANO - NUMA ERA DE INCERTEZAS, O MAIS IMPORTANTE É SER FELIZ","IRINEU E LIMA LTDA","14.666.791/0001-06",1,"2020-12-17","2020-12-17","NO PAÍS","EDSON LUIS QUADROS DA SILVA","CONTRATAÇÃO",190.25,0,0,190.25,"CAPACITAR E GERAR CONHECIMENTOS RELATIVOS À QUALIDADE DE VIDA NO TRABALHO"]
["PALESTRA DE FINAL DE ANO - NUMA ERA DE INCERTEZAS, O MAIS IMPORTANTE É SER FELIZ","IRINEU E LIMA LTDA","14.666.791/0001-06",1,"2020-12-17","2020-12-17","NO PAÍS","ELLIANA MACHADO ZAMPIERI","CONTRATAÇÃO",190.25,0,0,190.25,"CAPACITAR E GERAR CONHECIMENTOS RELATIVOS À QUALIDADE DE VIDA NO TRABALHO"]
["PALESTRA DE FINAL DE ANO - NUMA ERA DE INCERTEZAS, O MAIS IMPORTANTE É SER FELIZ","IRINEU E LIMA LTDA","14.666.791/0001-06",1,"2020-12-17","2020-12-17","NO PAÍS","EMANUELE BANDEIRA CARVALHO DE LIMA","CONTRATAÇÃO",190.25,0,0,190.25,"CAPACITAR E GERAR CONHECIMENTOS RELATIVOS À QUALIDADE DE VIDA NO TRABALHO"]
["PALESTRA DE FINAL DE ANO - NUMA ERA DE INCERTEZAS, O MAIS IMPORTANTE É SER FELIZ","IRINEU E LIMA LTDA","14.666.791/0001-06",1,"2020-12-17","2020-12-17","NO PAÍS","EVANDRO TORQUATO SOBRADO","CONTRATAÇÃO",190.25,0,0,190.25,"CAPACITAR E GERAR CONHECIMENTOS RELATIVOS À QUALIDADE DE VIDA NO TRABALHO"]
["PALESTRA DE FINAL DE ANO - NUMA ERA DE INCERTEZAS, O MAIS IMPORTANTE É SER FELIZ","IRINEU E LIMA LTDA","14.666.791/0001-06",1,"2020-12-17","2020-12-17","NO PAÍS","FABIO YUKIO SUETUGO","CONTRATAÇÃO",190.25,0,0,190.25,"CAPACITAR E GERAR CONHECIMENTOS RELATIVOS À QUALIDADE DE VIDA NO TRABALHO"]
["PALESTRA DE FINAL DE ANO - NUMA ERA DE INCERTEZAS, O MAIS IMPORTANTE É SER FELIZ","IRINEU E LIMA LTDA","14.666.791/0001-06",1,"2020-12-17","2020-12-17","NO PAÍS","FABIOLA DE OLIVEIRA AZEVEDO","CONTRATAÇÃO",190.25,0,0,190.25,"CAPACITAR E GERAR CONHECIMENTOS RELATIVOS À QUALIDADE DE VIDA NO TRABALHO"]
["PALESTRA DE FINAL DE ANO - NUMA ERA DE INCERTEZAS, O MAIS IMPORTANTE É SER FELIZ","IRINEU E LIMA LTDA","14.666.791/0001-06",1,"2020-12-17","2020-12-17","NO PAÍS","FELIPE FREIRE DA COSTA","CONTRATAÇÃO",190.25,0,0,190.25,"CAPACITAR E GERAR CONHECIMENTOS RELATIVOS À QUALIDADE DE VIDA NO TRABALHO"]
["PALESTRA DE FINAL DE ANO - NUMA ERA DE INCERTEZAS, O MAIS IMPORTANTE É SER FELIZ","IRINEU E LIMA LTDA","14.666.791/0001-06",1,"2020-12-17","2020-12-17","NO PAÍS","FLAVIA KLUPPEL CARRARA WOUTERS","CONTRATAÇÃO",190.25,0,0,190.25,"CAPACITAR E GERAR CONHECIMENTOS RELATIVOS À QUALIDADE DE VIDA NO TRABALHO"]
["PALESTRA DE FINAL DE ANO - NUMA ERA DE INCERTEZAS, O MAIS IMPORTANTE É SER FELIZ","IRINEU E LIMA LTDA","14.666.791/0001-06",1,"2020-12-17","2020-12-17","NO PAÍS","FLAVIA PEIXOTO CABRAL","CONTRATAÇÃO",190.25,0,0,190.25,"CAPACITAR E GERAR CONHECIMENTOS RELATIVOS À QUALIDADE DE VIDA NO TRABALHO"]
["PALESTRA DE FINAL DE ANO - NUMA ERA DE INCERTEZAS, O MAIS IMPORTANTE É SER FELIZ","IRINEU E LIMA LTDA","14.666.791/0001-06",1,"2020-12-17","2020-12-17","NO PAÍS","FLAVIO HENRIQUE SARTORIO DA CUNHA","CONTRATAÇÃO",190.25,0,0,190.25,"CAPACITAR E GERAR CONHECIMENTOS RELATIVOS À QUALIDADE DE VIDA NO TRABALHO"]
["PALESTRA DE FINAL DE ANO - NUMA ERA DE INCERTEZAS, O MAIS IMPORTANTE É SER FELIZ","IRINEU E LIMA LTDA","14.666.791/0001-06",1,"2020-12-17","2020-12-17","NO PAÍS","FLAVIO URIEL DE MORAIS","CONTRATAÇÃO",190.25,0,0,190.25,"CAPACITAR E GERAR CONHECIMENTOS RELATIVOS À QUALIDADE DE VIDA NO TRABALHO"]
["PALESTRA DE FINAL DE ANO - NUMA ERA DE INCERTEZAS, O MAIS IMPORTANTE É SER FELIZ","IRINEU E LIMA LTDA","14.666.791/0001-06",1,"2020-12-17","2020-12-17","NO PAÍS","GILSON GONCALVES DE MATOS","CONTRATAÇÃO",190.25,0,0,190.25,"CAPACITAR E GERAR CONHECIMENTOS RELATIVOS À QUALIDADE DE VIDA NO TRABALHO"]
["PALESTRA DE FINAL DE ANO - NUMA ERA DE INCERTEZAS, O MAIS IMPORTANTE É SER FELIZ","IRINEU E LIMA LTDA","14.666.791/0001-06",1,"2020-12-17","2020-12-17","NO PAÍS","GUILHERME ALMEIDA PEREIRA            ","CONTRATAÇÃO",190.25,0,0,190.25,"CAPACITAR E GERAR CONHECIMENTOS RELATIVOS À QUALIDADE DE VIDA NO TRABALHO"]
["PALESTRA DE FINAL DE ANO - NUMA ERA DE INCERTEZAS, O MAIS IMPORTANTE É SER FELIZ","IRINEU E LIMA LTDA","14.666.791/0001-06",1,"2020-12-17","2020-12-17","NO PAÍS","GUSTAVO NUNES CRUZ","CONTRATAÇÃO",190.24,0,0,190.24,"CAPACITAR E GERAR CONHECIMENTOS RELATIVOS À QUALIDADE DE VIDA NO TRABALHO"]
["PALESTRA DE FINAL DE ANO - NUMA ERA DE INCERTEZAS, O MAIS IMPORTANTE É SER FELIZ","IRINEU E LIMA LTDA","14.666.791/0001-06",1,"2020-12-17","2020-12-17","NO PAÍS","HELI ANDRE BENTO COSTA","CONTRATAÇÃO",190.24,0,0,190.24,"CAPACITAR E GERAR CONHECIMENTOS RELATIVOS À QUALIDADE DE VIDA NO TRABALHO"]
["PALESTRA DE FINAL DE ANO - NUMA ERA DE INCERTEZAS, O MAIS IMPORTANTE É SER FELIZ","IRINEU E LIMA LTDA","14.666.791/0001-06",1,"2020-12-17","2020-12-17","NO PAÍS","ITALO JOSE MENEZES MAIA","CONTRATAÇÃO",190.24,0,0,190.24,"CAPACITAR E GERAR CONHECIMENTOS RELATIVOS À QUALIDADE DE VIDA NO TRABALHO"]
["PALESTRA DE FINAL DE ANO - NUMA ERA DE INCERTEZAS, O MAIS IMPORTANTE É SER FELIZ","IRINEU E LIMA LTDA","14.666.791/0001-06",1,"2020-12-17","2020-12-17","NO PAÍS","JANAINA DOS SANTOS","CONTRATAÇÃO",190.24,0,0,190.24,"CAPACITAR E GERAR CONHECIMENTOS RELATIVOS À QUALIDADE DE VIDA NO TRABALHO"]
["PALESTRA DE FINAL DE ANO - NUMA ERA DE INCERTEZAS, O MAIS IMPORTANTE É SER FELIZ","IRINEU E LIMA LTDA","14.666.791/0001-06",1,"2020-12-17","2020-12-17","NO PAÍS","JOAO EMERSON LOPES DE SOUZA       ","CONTRATAÇÃO",190.24,0,0,190.24,"CAPACITAR E GERAR CONHECIMENTOS RELATIVOS À QUALIDADE DE VIDA NO TRABALHO"]
["PALESTRA DE FINAL DE ANO - NUMA ERA DE INCERTEZAS, O MAIS IMPORTANTE É SER FELIZ","IRINEU E LIMA LTDA","14.666.791/0001-06",1,"2020-12-17","2020-12-17","NO PAÍS","JOSE EXPEDITO BRANDAO FILHO     ","CONTRATAÇÃO",190.24,0,0,190.24,"CAPACITAR E GERAR CONHECIMENTOS RELATIVOS À QUALIDADE DE VIDA NO TRABALHO"]
["PALESTRA DE FINAL DE ANO - NUMA ERA DE INCERTEZAS, O MAIS IMPORTANTE É SER FELIZ","IRINEU E LIMA LTDA","14.666.791/0001-06",1,"2020-12-17","2020-12-17","NO PAÍS","JOSE RICARDO NORONHA DE CARVALHO","CONTRATAÇÃO",190.24,0,0,190.24,"CAPACITAR E GERAR CONHECIMENTOS RELATIVOS À QUALIDADE DE VIDA NO TRABALHO"]
["PALESTRA DE FINAL DE ANO - NUMA ERA DE INCERTEZAS, O MAIS IMPORTANTE É SER FELIZ","IRINEU E LIMA LTDA","14.666.791/0001-06",1,"2020-12-17","2020-12-17","NO PAÍS","JULIANA GONÇALVES DE OLIVEIRA","CONTRATAÇÃO",190.24,0,0,190.24,"CAPACITAR E GERAR CONHECIMENTOS RELATIVOS À QUALIDADE DE VIDA NO TRABALHO"]
["PALESTRA DE FINAL DE ANO - NUMA ERA DE INCERTEZAS, O MAIS IMPORTANTE É SER FELIZ","IRINEU E LIMA LTDA","14.666.791/0001-06",1,"2020-12-17","2020-12-17","NO PAÍS","JULIANE FURTADO NOVAES","CONTRATAÇÃO",190.24,0,0,190.24,"CAPACITAR E GERAR CONHECIMENTOS RELATIVOS À QUALIDADE DE VIDA NO TRABALHO"]
["PALESTRA DE FINAL DE ANO - NUMA ERA DE INCERTEZAS, O MAIS IMPORTANTE É SER FELIZ","IRINEU E LIMA LTDA","14.666.791/0001-06",1,"2020-12-17","2020-12-17","NO PAÍS","KATIA VERONICA CAMELO DA SILVA FEITOSA","CONTRATAÇÃO",190.24,0,0,190.24,"CAPACITAR E GERAR CONHECIMENTOS RELATIVOS À QUALIDADE DE VIDA NO TRABALHO"]
["PALESTRA DE FINAL DE ANO - NUMA ERA DE INCERTEZAS, O MAIS IMPORTANTE É SER FELIZ","IRINEU E LIMA LTDA","14.666.791/0001-06",1,"2020-12-17","2020-12-17","NO PAÍS","LETICIA MACHADO DANTAS","CONTRATAÇÃO",190.24,0,0,190.24,"CAPACITAR E GERAR CONHECIMENTOS RELATIVOS À QUALIDADE DE VIDA NO TRABALHO"]
["PALESTRA DE FINAL DE ANO - NUMA ERA DE INCERTEZAS, O MAIS IMPORTANTE É SER FELIZ","IRINEU E LIMA LTDA","14.666.791/0001-06",1,"2020-12-17","2020-12-17","NO PAÍS","LEVINA APARECIDA MACHADO SILVA","CONTRATAÇÃO",190.24,0,0,190.24,"CAPACITAR E GERAR CONHECIMENTOS RELATIVOS À QUALIDADE DE VIDA NO TRABALHO"]
["PALESTRA DE FINAL DE ANO - NUMA ERA DE INCERTEZAS, O MAIS IMPORTANTE É SER FELIZ","IRINEU E LIMA LTDA","14.666.791/0001-06",1,"2020-12-17","2020-12-17","NO PAÍS","LISANGELA JORGE CARIOCA SANTOS","CONTRATAÇÃO",190.24,0,0,190.24,"CAPACITAR E GERAR CONHECIMENTOS RELATIVOS À QUALIDADE DE VIDA NO TRABALHO"]
["PALESTRA DE FINAL DE ANO - NUMA ERA DE INCERTEZAS, O MAIS IMPORTANTE É SER FELIZ","IRINEU E LIMA LTDA","14.666.791/0001-06",1,"2020-12-17","2020-12-17","NO PAÍS","LUCA BUENO NOGUEIRA","CONTRATAÇÃO",190.24,0,0,190.24,"CAPACITAR E GERAR CONHECIMENTOS RELATIVOS À QUALIDADE DE VIDA NO TRABALHO"]
["PALESTRA DE FINAL DE ANO - NUMA ERA DE INCERTEZAS, O MAIS IMPORTANTE É SER FELIZ","IRINEU E LIMA LTDA","14.666.791/0001-06",1,"2020-12-17","2020-12-17","NO PAÍS","MANUEL BROCO ANDRADE","CONTRATAÇÃO",190.24,0,0,190.24,"CAPACITAR E GERAR CONHECIMENTOS RELATIVOS À QUALIDADE DE VIDA NO TRABALHO"]
["PALESTRA DE FINAL DE ANO - NUMA ERA DE INCERTEZAS, O MAIS IMPORTANTE É SER FELIZ","IRINEU E LIMA LTDA","14.666.791/0001-06",1,"2020-12-17","2020-12-17","NO PAÍS","MARCELO JOSÉ BARBOSA AMORELLI","CONTRATAÇÃO",190.24,0,0,190.24,"CAPACITAR E GERAR CONHECIMENTOS RELATIVOS À QUALIDADE DE VIDA NO TRABALHO"]
["PALESTRA DE FINAL DE ANO - NUMA ERA DE INCERTEZAS, O MAIS IMPORTANTE É SER FELIZ","IRINEU E LIMA LTDA","14.666.791/0001-06",1,"2020-12-17","2020-12-17","NO PAÍS","MARCELO PEREIRA RAMOS","CONTRATAÇÃO",190.24,0,0,190.24,"CAPACITAR E GERAR CONHECIMENTOS RELATIVOS À QUALIDADE DE VIDA NO TRABALHO"]
["PALESTRA DE FINAL DE ANO - NUMA ERA DE INCERTEZAS, O MAIS IMPORTANTE É SER FELIZ","IRINEU E LIMA LTDA","14.666.791/0001-06",1,"2020-12-17","2020-12-17","NO PAÍS","MARCIA CRISTINA CARDOSO CORREIA","CONTRATAÇÃO",190.24,0,0,190.24,"CAPACITAR E GERAR CONHECIMENTOS RELATIVOS À QUALIDADE DE VIDA NO TRABALHO"]
["PALESTRA DE FINAL DE ANO - NUMA ERA DE INCERTEZAS, O MAIS IMPORTANTE É SER FELIZ","IRINEU E LIMA LTDA","14.666.791/0001-06",1,"2020-12-17","2020-12-17","NO PAÍS","MARINA SOARES ALMEIDA            ","CONTRATAÇÃO",190.24,0,0,190.24,"CAPACITAR E GERAR CONHECIMENTOS RELATIVOS À QUALIDADE DE VIDA NO TRABALHO"]
["PALESTRA DE FINAL DE ANO - NUMA ERA DE INCERTEZAS, O MAIS IMPORTANTE É SER FELIZ","IRINEU E LIMA LTDA","14.666.791/0001-06",1,"2020-12-17","2020-12-17","NO PAÍS","MARINA VELOSO DE MELO DOS SANTOS","CONTRATAÇÃO",190.24,0,0,190.24,"CAPACITAR E GERAR CONHECIMENTOS RELATIVOS À QUALIDADE DE VIDA NO TRABALHO"]
["PALESTRA DE FINAL DE ANO - NUMA ERA DE INCERTEZAS, O MAIS IMPORTANTE É SER FELIZ","IRINEU E LIMA LTDA","14.666.791/0001-06",1,"2020-12-17","2020-12-17","NO PAÍS","MAURO SIMOES DE ALMEIDA","CONTRATAÇÃO",190.24,0,0,190.24,"CAPACITAR E GERAR CONHECIMENTOS RELATIVOS À QUALIDADE DE VIDA NO TRABALHO"]
["PALESTRA DE FINAL DE ANO - NUMA ERA DE INCERTEZAS, O MAIS IMPORTANTE É SER FELIZ","IRINEU E LIMA LTDA","14.666.791/0001-06",1,"2020-12-17","2020-12-17","NO PAÍS","MICHELINE PORTELA PINTO","CONTRATAÇÃO",190.24,0,0,190.24,"CAPACITAR E GERAR CONHECIMENTOS RELATIVOS À QUALIDADE DE VIDA NO TRABALHO"]
["PALESTRA DE FINAL DE ANO - NUMA ERA DE INCERTEZAS, O MAIS IMPORTANTE É SER FELIZ","IRINEU E LIMA LTDA","14.666.791/0001-06",1,"2020-12-17","2020-12-17","NO PAÍS","MICHELLE VIEIRA DE ALMEIDA      ","CONTRATAÇÃO",190.24,0,0,190.24,"CAPACITAR E GERAR CONHECIMENTOS RELATIVOS À QUALIDADE DE VIDA NO TRABALHO"]
["PALESTRA DE FINAL DE ANO - NUMA ERA DE INCERTEZAS, O MAIS IMPORTANTE É SER FELIZ","IRINEU E LIMA LTDA","14.666.791/0001-06",1,"2020-12-17","2020-12-17","NO PAÍS","MURILLO ESMERALDO MONTELLA ROCHA","CONTRATAÇÃO",190.24,0,0,190.24,"CAPACITAR E GERAR CONHECIMENTOS RELATIVOS À QUALIDADE DE VIDA NO TRABALHO"]
["PALESTRA DE FINAL DE ANO - NUMA ERA DE INCERTEZAS, O MAIS IMPORTANTE É SER FELIZ","IRINEU E LIMA LTDA","14.666.791/0001-06",1,"2020-12-17","2020-12-17","NO PAÍS","NARA KOHLSDORF","CONTRATAÇÃO",190.24,0,0,190.24,"CAPACITAR E GERAR CONHECIMENTOS RELATIVOS À QUALIDADE DE VIDA NO TRABALHO"]
["PALESTRA DE FINAL DE ANO - NUMA ERA DE INCERTEZAS, O MAIS IMPORTANTE É SER FELIZ","IRINEU E LIMA LTDA","14.666.791/0001-06",1,"2020-12-17","2020-12-17","NO PAÍS","NATALIA GOMES CAMPOS MARSHALL","CONTRATAÇÃO",190.24,0,0,190.24,"CAPACITAR E GERAR CONHECIMENTOS RELATIVOS À QUALIDADE DE VIDA NO TRABALHO"]
["PALESTRA DE FINAL DE ANO - NUMA ERA DE INCERTEZAS, O MAIS IMPORTANTE É SER FELIZ","IRINEU E LIMA LTDA","14.666.791/0001-06",1,"2020-12-17","2020-12-17","NO PAÍS","NILSON CORREA GONZE","CONTRATAÇÃO",190.24,0,0,190.24,"CAPACITAR E GERAR CONHECIMENTOS RELATIVOS À QUALIDADE DE VIDA NO TRABALHO"]
["PALESTRA DE FINAL DE ANO - NUMA ERA DE INCERTEZAS, O MAIS IMPORTANTE É SER FELIZ","IRINEU E LIMA LTDA","14.666.791/0001-06",1,"2020-12-17","2020-12-17","NO PAÍS","PAULO SERGIO BEZERRA DOS SANTOS","CONTRATAÇÃO",190.24,0,0,190.24,"CAPACITAR E GERAR CONHECIMENTOS RELATIVOS À QUALIDADE DE VIDA NO TRABALHO"]
["PALESTRA DE FINAL DE ANO - NUMA ERA DE INCERTEZAS, O MAIS IMPORTANTE É SER FELIZ","IRINEU E LIMA LTDA","14.666.791/0001-06",1,"2020-12-17","2020-12-17","NO PAÍS","RAFAEL DA SILVA SCHMITT","CONTRATAÇÃO",190.24,0,0,190.24,"CAPACITAR E GERAR CONHECIMENTOS RELATIVOS À QUALIDADE DE VIDA NO TRABALHO"]
["PALESTRA DE FINAL DE ANO - NUMA ERA DE INCERTEZAS, O MAIS IMPORTANTE É SER FELIZ","IRINEU E LIMA LTDA","14.666.791/0001-06",1,"2020-12-17","2020-12-17","NO PAÍS","RAQUEL BEZERRA MUNIZ DE ANDRADE CALDAS","CONTRATAÇÃO",190.24,0,0,190.24,"CAPACITAR E GERAR CONHECIMENTOS RELATIVOS À QUALIDADE DE VIDA NO TRABALHO"]
["PALESTRA DE FINAL DE ANO - NUMA ERA DE INCERTEZAS, O MAIS IMPORTANTE É SER FELIZ","IRINEU E LIMA LTDA","14.666.791/0001-06",1,"2020-12-17","2020-12-17","NO PAÍS","RAQUEL FALEIRO MACHADO RODRIGUES","CONTRATAÇÃO",190.24,0,0,190.24,"CAPACITAR E GERAR CONHECIMENTOS RELATIVOS À QUALIDADE DE VIDA NO TRABALHO"]
["PALESTRA DE FINAL DE ANO - NUMA ERA DE INCERTEZAS, O MAIS IMPORTANTE É SER FELIZ","IRINEU E LIMA LTDA","14.666.791/0001-06",1,"2020-12-17","2020-12-17","NO PAÍS","RENATO GONCALVES DA SILVA JUNIOR","CONTRATAÇÃO",190.24,0,0,190.24,"CAPACITAR E GERAR CONHECIMENTOS RELATIVOS À QUALIDADE DE VIDA NO TRABALHO"]
["PALESTRA DE FINAL DE ANO - NUMA ERA DE INCERTEZAS, O MAIS IMPORTANTE É SER FELIZ","IRINEU E LIMA LTDA","14.666.791/0001-06",1,"2020-12-17","2020-12-17","NO PAÍS","RICARDO AVILA PINTO               ","CONTRATAÇÃO",190.24,0,0,190.24,"CAPACITAR E GERAR CONHECIMENTOS RELATIVOS À QUALIDADE DE VIDA NO TRABALHO"]
["PALESTRA DE FINAL DE ANO - NUMA ERA DE INCERTEZAS, O MAIS IMPORTANTE É SER FELIZ","IRINEU E LIMA LTDA","14.666.791/0001-06",1,"2020-12-17","2020-12-17","NO PAÍS","RODNEI CALCAGNOTTO","CONTRATAÇÃO",190.24,0,0,190.24,"CAPACITAR E GERAR CONHECIMENTOS RELATIVOS À QUALIDADE DE VIDA NO TRABALHO"]
["PALESTRA DE FINAL DE ANO - NUMA ERA DE INCERTEZAS, O MAIS IMPORTANTE É SER FELIZ","IRINEU E LIMA LTDA","14.666.791/0001-06",1,"2020-12-17","2020-12-17","NO PAÍS","ROMULO AUGUSTULO MONTELES DA SILVA","CONTRATAÇÃO",190.24,0,0,190.24,"CAPACITAR E GERAR CONHECIMENTOS RELATIVOS À QUALIDADE DE VIDA NO TRABALHO"]
["PALESTRA DE FINAL DE ANO - NUMA ERA DE INCERTEZAS, O MAIS IMPORTANTE É SER FELIZ","IRINEU E LIMA LTDA","14.666.791/0001-06",1,"2020-12-17","2020-12-17","NO PAÍS","RONALDO CABRAL MAGALHAES","CONTRATAÇÃO",190.24,0,0,190.24,"CAPACITAR E GERAR CONHECIMENTOS RELATIVOS À QUALIDADE DE VIDA NO TRABALHO"]
["PALESTRA DE FINAL DE ANO - NUMA ERA DE INCERTEZAS, O MAIS IMPORTANTE É SER FELIZ","IRINEU E LIMA LTDA","14.666.791/0001-06",1,"2020-12-17","2020-12-17","NO PAÍS","ROSECLEIDE DA SILVA CUSTODIO","CONTRATAÇÃO",190.24,0,0,190.24,"CAPACITAR E GERAR CONHECIMENTOS RELATIVOS À QUALIDADE DE VIDA NO TRABALHO"]
["PALESTRA DE FINAL DE ANO - NUMA ERA DE INCERTEZAS, O MAIS IMPORTANTE É SER FELIZ","IRINEU E LIMA LTDA","14.666.791/0001-06",1,"2020-12-17","2020-12-17","NO PAÍS","ROSICLEA CARLA FLORENCIO","CONTRATAÇÃO",190.24,0,0,190.24,"CAPACITAR E GERAR CONHECIMENTOS RELATIVOS À QUALIDADE DE VIDA NO TRABALHO"]
["PALESTRA DE FINAL DE ANO - NUMA ERA DE INCERTEZAS, O MAIS IMPORTANTE É SER FELIZ","IRINEU E LIMA LTDA","14.666.791/0001-06",1,"2020-12-17","2020-12-17","NO PAÍS","ROSSIELE E SILVA FERRAZ FORMIGA","CONTRATAÇÃO",190.24,0,0,190.24,"CAPACITAR E GERAR CONHECIMENTOS RELATIVOS À QUALIDADE DE VIDA NO TRABALHO"]
["PALESTRA DE FINAL DE ANO - NUMA ERA DE INCERTEZAS, O MAIS IMPORTANTE É SER FELIZ","IRINEU E LIMA LTDA","14.666.791/0001-06",1,"2020-12-17","2020-12-17","NO PAÍS","SAMANTA DE ARAUJO MORAIS","CONTRATAÇÃO",190.24,0,0,190.24,"CAPACITAR E GERAR CONHECIMENTOS RELATIVOS À QUALIDADE DE VIDA NO TRABALHO"]
["PALESTRA DE FINAL DE ANO - NUMA ERA DE INCERTEZAS, O MAIS IMPORTANTE É SER FELIZ","IRINEU E LIMA LTDA","14.666.791/0001-06",1,"2020-12-17","2020-12-17","NO PAÍS","SERGIO DUARTE PALMEIRA ROSA","CONTRATAÇÃO",190.24,0,0,190.24,"CAPACITAR E GERAR CONHECIMENTOS RELATIVOS À QUALIDADE DE VIDA NO TRABALHO"]
["PALESTRA DE FINAL DE ANO - NUMA ERA DE INCERTEZAS, O MAIS IMPORTANTE É SER FELIZ","IRINEU E LIMA LTDA","14.666.791/0001-06",1,"2020-12-17","2020-12-17","NO PAÍS","SHEILA MOREIRA SALES","CONTRATAÇÃO",190.24,0,0,190.24,"CAPACITAR E GERAR CONHECIMENTOS RELATIVOS À QUALIDADE DE VIDA NO TRABALHO"]
["PALESTRA DE FINAL DE ANO - NUMA ERA DE INCERTEZAS, O MAIS IMPORTANTE É SER FELIZ","IRINEU E LIMA LTDA","14.666.791/0001-06",1,"2020-12-17","2020-12-17","NO PAÍS","SIOMAR CARIBE DE OLIVEIRA","CONTRATAÇÃO",190.24,0,0,190.24,"CAPACITAR E GERAR CONHECIMENTOS RELATIVOS À QUALIDADE DE VIDA NO TRABALHO"]
["PALESTRA DE FINAL DE ANO - NUMA ERA DE INCERTEZAS, O MAIS IMPORTANTE É SER FELIZ","IRINEU E LIMA LTDA","14.666.791/0001-06",1,"2020-12-17","2020-12-17","NO PAÍS","SIRLEY THERESINHA GARAVENTTA","CONTRATAÇÃO",190.24,0,0,190.24,"CAPACITAR E GERAR CONHECIMENTOS RELATIVOS À QUALIDADE DE VIDA NO TRABALHO"]
["PALESTRA DE FINAL DE ANO - NUMA ERA DE INCERTEZAS, O MAIS IMPORTANTE É SER FELIZ","IRINEU E LIMA LTDA","14.666.791/0001-06",1,"2020-12-17","2020-12-17","NO PAÍS","SULIANNY FERREIRA CAMELO           ","CONTRATAÇÃO",190.24,0,0,190.24,"CAPACITAR E GERAR CONHECIMENTOS RELATIVOS À QUALIDADE DE VIDA NO TRABALHO"]
["PALESTRA DE FINAL DE ANO - NUMA ERA DE INCERTEZAS, O MAIS IMPORTANTE É SER FELIZ","IRINEU E LIMA LTDA","14.666.791/0001-06",1,"2020-12-17","2020-12-17","NO PAÍS","SUZY MARY COSTA VAZ","CONTRATAÇÃO",190.24,0,0,190.24,"CAPACITAR E GERAR CONHECIMENTOS RELATIVOS À QUALIDADE DE VIDA NO TRABALHO"]
["PALESTRA DE FINAL DE ANO - NUMA ERA DE INCERTEZAS, O MAIS IMPORTANTE É SER FELIZ","IRINEU E LIMA LTDA","14.666.791/0001-06",1,"2020-12-17","2020-12-17","NO PAÍS","SYLVIA COTIAS VASCONCELLOS","CONTRATAÇÃO",190.24,0,0,190.24,"CAPACITAR E GERAR CONHECIMENTOS RELATIVOS À QUALIDADE DE VIDA NO TRABALHO"]
["PALESTRA DE FINAL DE ANO - NUMA ERA DE INCERTEZAS, O MAIS IMPORTANTE É SER FELIZ","IRINEU E LIMA LTDA","14.666.791/0001-06",1,"2020-12-17","2020-12-17","NO PAÍS","THAIS NOBRE SUNDFELD LIMA MARTINS","CONTRATAÇÃO",190.24,0,0,190.24,"CAPACITAR E GERAR CONHECIMENTOS RELATIVOS À QUALIDADE DE VIDA NO TRABALHO"]
["PALESTRA DE FINAL DE ANO - NUMA ERA DE INCERTEZAS, O MAIS IMPORTANTE É SER FELIZ","IRINEU E LIMA LTDA","14.666.791/0001-06",1,"2020-12-17","2020-12-17","NO PAÍS","WILLIANE VIEIRA MAIA","CONTRATAÇÃO",190.24,0,0,190.24,"CAPACITAR E GERAR CONHECIMENTOS RELATIVOS À QUALIDADE DE VIDA NO TRABALHO"]
["PALESTRA DE FINAL DE ANO - NUMA ERA DE INCERTEZAS, O MAIS IMPORTANTE É SER FELIZ","IRINEU E LIMA LTDA","14.666.791/0001-06",1,"2020-12-17","2020-12-17","NO PAÍS","WILTON COSTA DRUMOND SOUSA","CONTRATAÇÃO",190.24,0,0,190.24,"CAPACITAR E GERAR CONHECIMENTOS RELATIVOS À QUALIDADE DE VIDA NO TRABALHO"]
[]
[]
[]
[]
[]
[]
[]
[]
[]
[]
[]
[]
[]
[]
[]
[]
[]
[]
[]
[]
[]
[]
[]
[]
[]
[]
[]
[]
[]
[]
[]
[]
[]
[]
[]
[]
[]
[]
[]
[]
[]
[]
[]
["OBSERVAÇÃO"]
["OS VALORES DE REMUNERAÇÃO FORAM CALCULADOS COM BASE NO VENCIMENTO BÁSICO DOS SERVIDORES"]
["AS INFORMAÇÕES DO PRESENTE RELATÓRIO PODERÃO SOFRER ALTERAÇÕES, UMA VEZ QUE OS DADOS SÃO INSERIDOS DE ACORDO COM A FINALIZAÇÃO DOS PROCESSOS DE CAPACITAÇÃO"]